Workbook

Sheet Anexo 8 - MDE Municípios
E1: Tabela 8.3 - Demonstrativo das Receitas e Despesas com Manutenção e Desenvolvimento do Ensino - MDE - MUNICÍPIOS
E3: PREFEITURA MUNICIPAL DE SÃO PAULO
E4: RELATÓRIO RESUMIDO DA EXECUÇÃO ORÇAMENTÁRIA
E5: DEMONSTRATIVO DAS RECEITAS E DESPESAS COM MANUTENÇÃO E DESENVOLVIMENTO DO ENSINO - MDE
E6: ORÇAMENTOS FISCAL E DA SEGURIDADE SOCIAL
A7: MÊS DE REFERÊNCIA: | B7: 8 | E7: 4º BIMESTRE (01/01/2025 A 31/08/2025)
E9: RREO - ANEXO 8 (LDB, art. 72) | P9: R$ 1.00
E10: RECEITA RESULTANTE DE IMPOSTOS (Arts. 212 e 212-A da Constituição Federal)
E11: RECEITA RESULTANTE DE IMPOSTOS | G11: PREVISÃO | L11: RECEITAS REALIZADAS
G12: ATUALIZADA | L12: Até o Bimestre
G13: (a) | L13: (b)
E14: 1- RECEITA DE IMPOSTOS | K14: =VLOOKUP($E14, Receita_Consolidada!$B:$F, 3, FALSE) -> 65,077,314,081.00 | P14: =VLOOKUP($E14, Receita_Consolidada!$B:$F, 4, FALSE) -> 44,790,078,831.19
A15: 1.1.1.2.50.0.0.00.00.000.000.00.00.000 | C15: =IFERROR(VLOOKUP(A15,Receita_PMSP_Tabela[],13,0),0)-'Anexo 8 - MDE Municípios'!P15 -> 0 | E15: 1.1- Receita Resultante do Imposto sobre a Propriedade Predial e Territorial Urbana – IPTU | K15: =VLOOKUP($E15, Receita_Consolidada!$B:$F, 3, FALSE) -> 17,596,243,214.00 | P15: =VLOOKUP($E15, Receita_Consolidada!$B:$F, 4, FALSE) -> 13,296,551,095.43
A16: 1.1.1.2.53.0.0.00.00.000.000.00.00.000 | C16: =IFERROR(VLOOKUP(A16,Receita_PMSP_Tabela[],13,0),0)-'Anexo 8 - MDE Municípios'!P16 -> 0 | E16: 1.2- Receita Resultante do Imposto sobre Transmissão Inter Vivos – ITBI | K16: =VLOOKUP($E16, Receita_Consolidada!$B:$F, 3, FALSE) -> 4,399,222,246.00 | P16: =VLOOKUP($E16, Receita_Consolidada!$B:$F, 4, FALSE) -> 2,870,045,168.40
A17: 1.1.1.4.51.1.0.00.00.000.000.00.00.000 | C17: =IFERROR(VLOOKUP(A17,Receita_PMSP_Tabela[],13,0),0)-'Anexo 8 - MDE Municípios'!P17 -> 0 | E17: 1.3- Receita Resultante do Imposto sobre Serviços de Qualquer Natureza – ISS | K17: =VLOOKUP($E17, Receita_Consolidada!$B:$F, 3, FALSE) -> 37,559,875,557.00 | P17: =VLOOKUP($E17, Receita_Consolidada!$B:$F, 4, FALSE) -> 25,409,900,129.87
A18: 1.1.1.3.03.0.0.00.00.000.000.00.00.000 | C18: =IFERROR(VLOOKUP(A18,Receita_PMSP_Tabela[],13,0),0)-'Anexo 8 - MDE Municípios'!P18 -> 0 | E18: 1.4- Receita Resultante do Imposto de Renda Retido na Fonte – IRRF | K18: =VLOOKUP($E18, Receita_Consolidada!$B:$F, 3, FALSE) -> 5,521,973,064.00 | P18: =VLOOKUP($E18, Receita_Consolidada!$B:$F, 4, FALSE) -> 3,213,582,437.49
E19: 2- RECEITA DE TRANSFERÊNCIAS CONSTITUCIONAIS E LEGAIS | K19: =VLOOKUP($E19, Receita_Consolidada!$B:$F, 3, FALSE) -> 15,489,117,575.00 | P19: =VLOOKUP($E19, Receita_Consolidada!$B:$F, 4, FALSE) -> 11,129,094,036.87
E20: 2.1- Cota-Parte FPM | K20: =VLOOKUP($E20, Receita_Consolidada!$B:$F, 3, FALSE) -> 650,286,073.00 | P20: =VLOOKUP($E20, Receita_Consolidada!$B:$F, 4, FALSE) -> 464,659,173.82
E21: 2.1.1- Parcela referente à CF, art. 159, I, alínea b | K21: =VLOOKUP($E21, Receita_Consolidada!$B:$F, 3, FALSE) -> 600,006,885.00 | P21: =VLOOKUP($E21, Receita_Consolidada!$B:$F, 4, FALSE) -> 436,979,367.75
E22: 2.1.2- Parcela referente à CF, art. 159, I, alíneas d e e | K22: =VLOOKUP($E22, Receita_Consolidada!$B:$F, 3, FALSE) -> 50,279,188.00 | P22: =VLOOKUP($E22, Receita_Consolidada!$B:$F, 4, FALSE) -> 27,679,806.07
E23: 2.2- Cota-Parte ICMS | K23: =VLOOKUP($E23, Receita_Consolidada!$B:$F, 3, FALSE) -> 10,203,805,236.00 | P23: =VLOOKUP($E23, Receita_Consolidada!$B:$F, 4, FALSE) -> 6,460,857,674.27
E24: 2.3- Cota-Parte IPI-Exportação | K24: =VLOOKUP($E24, Receita_Consolidada!$B:$F, 3, FALSE) -> 59,459,612.00 | P24: =VLOOKUP($E24, Receita_Consolidada!$B:$F, 4, FALSE) -> 46,489,279.81
E25: 2.4- Cota-Parte ITR | K25: =VLOOKUP($E25, Receita_Consolidada!$B:$F, 3, FALSE) -> 19,439,666.00 | P25: =VLOOKUP($E25, Receita_Consolidada!$B:$F, 4, FALSE) -> 1,789,890.25
E26: 2.5- Cota-Parte IPVA | K26: =VLOOKUP($E26, Receita_Consolidada!$B:$F, 3, FALSE) -> 4,553,894,634.00 | P26: =VLOOKUP($E26, Receita_Consolidada!$B:$F, 4, FALSE) -> 4,155,093,984.28
E27: 2.6- Cota-Parte IOF-Ouro | K27: =VLOOKUP($E27, Receita_Consolidada!$B:$F, 3, FALSE) -> 2,232,354.00 | P27: =VLOOKUP($E27, Receita_Consolidada!$B:$F, 4, FALSE) -> 204,034.44
E28: 2.7- Outras Transferências ou Compensações Financeiras Provenientes de Impostos e Transferências Constitucionais | K28: =VLOOKUP($E28, Receita_Consolidada!$B:$F, 3, FALSE) -> 0 | P28: =VLOOKUP($E28, Receita_Consolidada!$B:$F, 4, FALSE) -> 0
E29: 3- TOTAL DA RECEITA RESULTANTE DE IMPOSTOS (1 + 2) | K29: =VLOOKUP($E29, Receita_Consolidada!$B:$F, 3, FALSE) -> 80,566,431,656.00 | P29: =VLOOKUP($E29, Receita_Consolidada!$B:$F, 4, FALSE) -> 55,919,172,868.06
E31: 4- TOTAL DESTINADO AO FUNDEB - equivalente a 20% DE ((2.1.1) + (2.2) + (2.3) + (2.4) + (2.5) + (2.7))¹ | K31: =VLOOKUP($E31, Receita_Consolidada!$B:$F, 3, FALSE) -> 3,087,321,206.00 | P31: =VLOOKUP($E31, Receita_Consolidada!$B:$F, 4, FALSE) -> 2,221,594,020.32
E33: 5- VALOR MÍNIMO A SER APLICADO ALÉM DO VALOR DESTINADO AO FUNDEB - 5% DE ((2.1.1) + (2.2) + (2.3) + (2.4) + (2.5) + (2.7)) + 25% DE ((1.1) + (1.2) + (1.3) + (1.4) + (2.1.2) + (2.6)) | K33: =VLOOKUP($E33, Receita_Consolidada!$B:$F, 3, FALSE) -> 17,054,286,707.40 | P33: =VLOOKUP($E33, Receita_Consolidada!$B:$F, 4, FALSE) -> 11,758,199,196.30
E35: FUNDEB
E36: RECEITAS RECEBIDAS DO FUNDEB NO EXERCÍCIO | G36: PREVISÃO | L36: RECEITAS REALIZADAS
G37: ATUALIZADA | L37: Até o Bimestre
G38: (a) | L38: (b)
E39: 6- RECEITAS RECEBIDAS DO FUNDEB | K39: =VLOOKUP($E39, Receita_Consolidada!$B:$F, 3, FALSE) -> 7,518,555,149.88 | P39: =VLOOKUP($E39, Receita_Consolidada!$B:$F, 4, FALSE) -> 5,432,235,270.14
E40: 6.1- FUNDEB - Impostos e Transferências de Impostos | K40: =VLOOKUP($E40, Receita_Consolidada!$B:$F, 3, FALSE) -> 7,433,741,316.00 | P40: =VLOOKUP($E40, Receita_Consolidada!$B:$F, 4, FALSE) -> 5,347,421,436.26
E41: 6.1.1- Principal | K41: =VLOOKUP($E41, Receita_Consolidada!$B:$F, 3, FALSE) -> 7,388,707,990.00 | P41: =VLOOKUP($E41, Receita_Consolidada!$B:$F, 4, FALSE) -> 5,308,170,838.44
E42: 6.1.2- Rendimentos de Aplicação Financeira | K42: =VLOOKUP($E42, Receita_Consolidada!$B:$F, 3, FALSE) -> 45,033,326.00 | P42: =VLOOKUP($E42, Receita_Consolidada!$B:$F, 4, FALSE) -> 39,250,597.82
E43: 6.1.3- Ressarcimento de recursos do Fundeb | K43: =VLOOKUP($E43, Receita_Consolidada!$B:$F, 3, FALSE) -> 0 | P43: =VLOOKUP($E43, Receita_Consolidada!$B:$F, 4, FALSE) -> 0
E44: 6.2- FUNDEB - Complementação da União - VAAF | K44: =VLOOKUP($E44, Receita_Consolidada!$B:$F, 3, FALSE) -> 0 | P44: =VLOOKUP($E44, Receita_Consolidada!$B:$F, 4, FALSE) -> 0
E45: 6.2.1- Principal | K45: =VLOOKUP($E45, Receita_Consolidada!$B:$F, 3, FALSE) -> 0 | P45: =VLOOKUP($E45, Receita_Consolidada!$B:$F, 4, FALSE) -> 0
E46: 6.2.2- Rendimentos de Aplicação Financeira | K46: =VLOOKUP($E46, Receita_Consolidada!$B:$F, 3, FALSE) -> 0 | P46: =VLOOKUP($E46, Receita_Consolidada!$B:$F, 4, FALSE) -> 0
E47: 6.2.3- Ressarcimento de recursos do Fundeb | K47: =VLOOKUP($E47, Receita_Consolidada!$B:$F, 3, FALSE) -> 0 | P47: =VLOOKUP($E47, Receita_Consolidada!$B:$F, 4, FALSE) -> 0
E48: 6.3- FUNDEB - Complementação da União - VAAT | K48: =VLOOKUP($E48, Receita_Consolidada!$B:$F, 3, FALSE) -> 0 | P48: =VLOOKUP($E48, Receita_Consolidada!$B:$F, 4, FALSE) -> 0
E49: 6.3.1- Principal | K49: =VLOOKUP($E49, Receita_Consolidada!$B:$F, 3, FALSE) -> 0 | P49: =VLOOKUP($E49, Receita_Consolidada!$B:$F, 4, FALSE) -> 0
E50: 6.3.2- Rendimentos de Aplicação Financeira | K50: =VLOOKUP($E50, Receita_Consolidada!$B:$F, 3, FALSE) -> 0 | P50: =VLOOKUP($E50, Receita_Consolidada!$B:$F, 4, FALSE) -> 0
E51: 6.3.3- Ressarcimento de recursos do Fundeb | K51: =VLOOKUP($E51, Receita_Consolidada!$B:$F, 3, FALSE) -> 0 | P51: =VLOOKUP($E51, Receita_Consolidada!$B:$F, 4, FALSE) -> 0
E52: 6.4- FUNDEB - Complementação da União - VAAR | K52: =VLOOKUP($E52, Receita_Consolidada!$B:$F, 3, FALSE) -> 84,813,833.88 | P52: =VLOOKUP($E52, Receita_Consolidada!$B:$F, 4, FALSE) -> 84,813,833.88
E53: 6.4.1- Principal | K53: =VLOOKUP($E53, Receita_Consolidada!$B:$F, 3, FALSE) -> 84,813,833.88 | P53: =VLOOKUP($E53, Receita_Consolidada!$B:$F, 4, FALSE) -> 84,813,833.88
E54: 6.4.2- Rendimentos de Aplicação Financeira | K54: =VLOOKUP($E54, Receita_Consolidada!$B:$F, 3, FALSE) -> 0 | P54: =VLOOKUP($E54, Receita_Consolidada!$B:$F, 4, FALSE) -> 0
E55: 6.4.3- Ressarcimento de recursos do Fundeb | K55: =VLOOKUP($E55, Receita_Consolidada!$B:$F, 3, FALSE) -> 0 | P55: =VLOOKUP($E55, Receita_Consolidada!$B:$F, 4, FALSE) -> 0
E57: 7- RESULTADO LÍQUIDO DAS TRANSFERÊNCIAS DO FUNDEB (6.1.1 – 4) | K57: =K41-K31 -> 4,301,386,784.00 | P57: =P41-P31 -> 3,086,576,818.12
E59: RECURSOS RECEBIDOS EM EXERCÍCIOS ANTERIORES E NÃO UTILIZADOS (SUPERÁVIT) | G59: VALOR
E60: 8- TOTAL DOS RECURSOS DE SUPERÁVIT | P60: =SUM(P61:P62) -> 55,190,847.86
E61: 8.1- SUPERÁVIT DO EXERCÍCIO IMEDIATAMENTE ANTERIOR | P61: 55,190,847.86
E62: 8.2- SUPERÁVIT RESIDUAL DE OUTROS EXERCÍCIOS
P63: Conforme Anexo do Balanço Patrimonial de 2024 - Quadro de Superávit /Déficit Financeiro - Lei 4320/64.
E64: 9- TOTAL DOS RECURSOS DO FUNDEB DISPONÍVEIS PARA UTILIZAÇÃO (6 +8) | P64: =P39+P60 -> 5,487,426,118.00
A66: Despesas Fonte 04 | E66: DESPESAS COM RECURSOS DO FUNDEB (Por Subfunção) | F66: DOTAÇÃO ATUALIZADA | I66: DESPESAS EMPENHADAS | K66: DESPESAS LIQUIDADAS | M66: DESPESAS PAGAS | O66: INSCRITAS EM RESTOS A PAGAR NÃO PROCESSADOS
I67: Até o Bimestre | K67: Até o Bimestre | M67: Até o Bimestre
F68: (c) | I68: (d) | K68: (e) | M68: (f) | O68: (g)
D69: 10 | E69: 10- TOTAL DAS DESPESAS COM RECURSOS DO FUNDEB | H69: =H70+H76 -> 7,573,745,997.74 | J69: =J70+J76 -> 5,457,839,790.40 | L69: =L70+L76 -> 5,457,839,790.40 | N69: =N70+N76 -> 5,457,839,790.40 | P69: =VLOOKUP($D69, Despesas_Consolidadas!$A:$M, 13, FALSE) -> 0
D70: 10.1 | E70: 10.1- PROFISSIONAIS DA EDUCAÇÃO BÁSICA | H70: =SUM(H71:H75) -> 7,573,745,997.74 | J70: =SUM(J71:J75) -> 5,457,839,790.40 | L70: =SUM(L71:L75) -> 5,457,839,790.40 | N70: =SUM(N71:N75) -> 5,457,839,790.40 | P70: =VLOOKUP($D70, Despesas_Consolidadas!$A:$M, 13, FALSE) -> 0
D71: 10.1.1 | E71: 10.1.1- Educação Infantil | H71: =VLOOKUP($D71, Despesas_Consolidadas!$A:$M, 5, FALSE)+$C$84 -> 3,797,096,916.00 | J71: =VLOOKUP($D71, Despesas_Consolidadas!$A:$M, 7, FALSE)+$C$84 -> 2,761,286,795.80 | L71: =VLOOKUP($D71, Despesas_Consolidadas!$A:$M, 9, FALSE)+$C$84 -> 2,761,286,795.80 | N71: =VLOOKUP($D71, Despesas_Consolidadas!$A:$M, 11, FALSE)+$C$84 -> 2,761,286,795.80 | P71: =VLOOKUP($D71, Despesas_Consolidadas!$A:$M, 13, FALSE) -> 0
D72: 10.1.2 | E72: 10.1.2- Ensino Fundamental | H72: =VLOOKUP($D72, Despesas_Consolidadas!$A:$M, 5, FALSE) -> 3,776,649,081.74 | J72: =VLOOKUP($D72, Despesas_Consolidadas!$A:$M, 7, FALSE) -> 2,696,552,994.60 | L72: =VLOOKUP($D72, Despesas_Consolidadas!$A:$M, 9, FALSE) -> 2,696,552,994.60 | N72: =VLOOKUP($D72, Despesas_Consolidadas!$A:$M, 11, FALSE) -> 2,696,552,994.60 | P72: =VLOOKUP($D72, Despesas_Consolidadas!$A:$M, 13, FALSE) -> 0
D73: 10.1.3 | E73: 10.1.3- Educação de Jovens e Adultos | H73: =VLOOKUP($D73, Despesas_Consolidadas!$A:$M, 5, FALSE) -> 0 | J73: =VLOOKUP($D73, Despesas_Consolidadas!$A:$M, 7, FALSE) -> 0 | L73: =VLOOKUP($D73, Despesas_Consolidadas!$A:$M, 9, FALSE) -> 0 | N73: =VLOOKUP($D73, Despesas_Consolidadas!$A:$M, 11, FALSE) -> 0 | P73: =VLOOKUP($D73, Despesas_Consolidadas!$A:$M, 13, FALSE) -> 0
D74: 10.1.4 | E74: 10.1.4- Educação Especial | H74: =VLOOKUP($D74, Despesas_Consolidadas!$A:$M, 5, FALSE) -> 0 | J74: =VLOOKUP($D74, Despesas_Consolidadas!$A:$M, 7, FALSE) -> 0 | L74: =VLOOKUP($D74, Despesas_Consolidadas!$A:$M, 9, FALSE) -> 0 | N74: =VLOOKUP($D74, Despesas_Consolidadas!$A:$M, 11, FALSE) -> 0 | P74: =VLOOKUP($D74, Despesas_Consolidadas!$A:$M, 13, FALSE) -> 0
D75: 10.1.5 | E75: 10.1.5- Administração Geral | H75: =VLOOKUP($D75, Despesas_Consolidadas!$A:$M, 5, FALSE) -> 0 | J75: =VLOOKUP($D75, Despesas_Consolidadas!$A:$M, 7, FALSE) -> 0 | L75: =VLOOKUP($D75, Despesas_Consolidadas!$A:$M, 9, FALSE) -> 0 | N75: =VLOOKUP($D75, Despesas_Consolidadas!$A:$M, 11, FALSE) -> 0 | P75: =VLOOKUP($D75, Despesas_Consolidadas!$A:$M, 13, FALSE) -> 0
D76: 10.2 | E76: 10.2- OUTRAS DESPESAS | H76: =VLOOKUP($D76, Despesas_Consolidadas!$A:$M, 5, FALSE) -> 0 | J76: =VLOOKUP($D76, Despesas_Consolidadas!$A:$M, 7, FALSE) -> 0 | L76: =VLOOKUP($D76, Despesas_Consolidadas!$A:$M, 9, FALSE) -> 0 | N76: =VLOOKUP($D76, Despesas_Consolidadas!$A:$M, 11, FALSE) -> 0 | P76: =VLOOKUP($D76, Despesas_Consolidadas!$A:$M, 13, FALSE) -> 0
D77: 10.2.1 | E77: 10.2.1- Educação Infantil | H77: =VLOOKUP($D77, Despesas_Consolidadas!$A:$M, 5, FALSE) -> 0 | J77: =VLOOKUP($D77, Despesas_Consolidadas!$A:$M, 7, FALSE) -> 0 | L77: =VLOOKUP($D77, Despesas_Consolidadas!$A:$M, 9, FALSE) -> 0 | N77: =VLOOKUP($D77, Despesas_Consolidadas!$A:$M, 11, FALSE) -> 0 | P77: =VLOOKUP($D77, Despesas_Consolidadas!$A:$M, 13, FALSE) -> 0
D78: 10.2.2 | E78: 10.2.2- Ensino Fundamental | H78: =VLOOKUP($D78, Despesas_Consolidadas!$A:$M, 5, FALSE) -> 0 | J78: =VLOOKUP($D78, Despesas_Consolidadas!$A:$M, 7, FALSE) -> 0 | L78: =VLOOKUP($D78, Despesas_Consolidadas!$A:$M, 9, FALSE) -> 0 | N78: =VLOOKUP($D78, Despesas_Consolidadas!$A:$M, 11, FALSE) -> 0 | P78: =VLOOKUP($D78, Despesas_Consolidadas!$A:$M, 13, FALSE) -> 0
D79: 10.2.3 | E79: 10.2.3- Educação de Jovens e Adultos | H79: =VLOOKUP($D79, Despesas_Consolidadas!$A:$M, 5, FALSE) -> 0 | J79: =VLOOKUP($D79, Despesas_Consolidadas!$A:$M, 7, FALSE) -> 0 | L79: =VLOOKUP($D79, Despesas_Consolidadas!$A:$M, 9, FALSE) -> 0 | N79: =VLOOKUP($D79, Despesas_Consolidadas!$A:$M, 11, FALSE) -> 0 | P79: =VLOOKUP($D79, Despesas_Consolidadas!$A:$M, 13, FALSE) -> 0
D80: 10.2.4 | E80: 10.2.4- Educação Especial | H80: =VLOOKUP($D80, Despesas_Consolidadas!$A:$M, 5, FALSE) -> 0 | J80: =VLOOKUP($D80, Despesas_Consolidadas!$A:$M, 7, FALSE) -> 0 | L80: =VLOOKUP($D80, Despesas_Consolidadas!$A:$M, 9, FALSE) -> 0 | N80: =VLOOKUP($D80, Despesas_Consolidadas!$A:$M, 11, FALSE) -> 0 | P80: =VLOOKUP($D80, Despesas_Consolidadas!$A:$M, 13, FALSE) -> 0
D81: 10.2.5 | E81: 10.2.5- Administração Geral | H81: =VLOOKUP($D81, Despesas_Consolidadas!$A:$M, 5, FALSE) -> 0 | J81: =VLOOKUP($D81, Despesas_Consolidadas!$A:$M, 7, FALSE) -> 0 | L81: =VLOOKUP($D81, Despesas_Consolidadas!$A:$M, 9, FALSE) -> 0 | N81: =VLOOKUP($D81, Despesas_Consolidadas!$A:$M, 11, FALSE) -> 0 | P81: =VLOOKUP($D81, Despesas_Consolidadas!$A:$M, 13, FALSE) -> 0
D82: 10.2.6 | E82: 10.2.6- Transporte (Escolar) | H82: =VLOOKUP($D82, Despesas_Consolidadas!$A:$M, 5, FALSE) -> 0 | J82: =VLOOKUP($D82, Despesas_Consolidadas!$A:$M, 7, FALSE) -> 0 | L82: =VLOOKUP($D82, Despesas_Consolidadas!$A:$M, 9, FALSE) -> 0 | N82: =VLOOKUP($D82, Despesas_Consolidadas!$A:$M, 11, FALSE) -> 0 | P82: =VLOOKUP($D82, Despesas_Consolidadas!$A:$M, 13, FALSE) -> 0
D83: 10.2.7 | E83: 10.2.7- Outras | H83: =VLOOKUP($D83, Despesas_Consolidadas!$A:$M, 5, FALSE) -> 0 | J83: =VLOOKUP($D83, Despesas_Consolidadas!$A:$M, 7, FALSE) -> 0 | L83: =VLOOKUP($D83, Despesas_Consolidadas!$A:$M, 9, FALSE) -> 0 | N83: =VLOOKUP($D83, Despesas_Consolidadas!$A:$M, 11, FALSE) -> 0 | P83: =VLOOKUP($D83, Despesas_Consolidadas!$A:$M, 13, FALSE) -> 0
B84: Parcela coberta por recursos contemplados apenas na L21 | C84: 0
E85: INDICADORES DO FUNDEB
E86: DESPESAS CUSTEADAS COM RECEITAS DO FUNDEB RECEBIDAS NO EXERCÍCIO | F86: DESPESAS EMPENHADAS | I86: DESPESAS LIQUIDADAS | K86: DESPESAS PAGAS | M86: INSCRITAS EM RESTOS A PAGAR NÃO PROCESSADOS | O86: INSCRITAS EM RESTOS A PAGAR NÃO PROCESSADOS (SEM DISPONIBILIDADE DE CAIXA)7 | P86: DESPESAS LIQUIDADAS/ EMPENHADAS EM VALOR SUPERIOR AO TOTAL DAS RECEITAS RECEBIDAS NO EXERCÍCIO9
F87: Até o Bimestre | I87: Até o Bimestre | K87: Até o Bimestre
F88: (d) | I88: (e) | K88: (f) | M88: (g) | O88: (h) | P88: (i)
A89: Total de Despesas custeadas com Superávit de Exercícios anteriores até o Bimestre, por categoria | E89: 11- TOTAL DAS DESPESAS CUSTEADAS COM RECURSOS DO FUNDEB RECEBIDOS NO EXERCÍCIO | H89: =SUM(H90:H93) -> 5,402,650,163.06 | J89: =SUM(J90:J93) -> 5,402,650,163.06 | L89: =SUM(L90:L93) -> 5,402,650,163.06 | N89: =H89-J89 -> 0 | P89: =IF(H89-P39>0, H89-P39, 0) -> 0 | Q89: Comparação do total inscrito em RPNP com a disponibilidade de caixa por fonte de recursos.
A90: ATÉ O BIMESTRE DE REFERÊNCIA: | B90: =GETPIVOTDATA("[Measures].[Valor Liquidado]",Despesas_x_Dotacoes!$B$6,"[Dotação Orçamentária].[Código Dotação Agrupado]","[Dotação Orçamentária].[Código Dotação Agrupado].[Código Dotação Agrupamento].&[16].&[16.10.12.361.3010.2.857.31901100.04.2.540.9001.1]","[Órgão Empresa].[Código Órgão Empresa]","[Órgão Empresa].[Código Órgão Empresa].&[16]","[Órgão Empresa].[Descrição Órgão Empresa]","[Órgão Empresa].[Descrição Órgão Empresa].&[SECRETARIA MUNICIPAL DE EDUCAÇÃO]","[Funcional Programatica].[Código Sub Função]","[Funcional Programatica].[Código Sub Função].&[361]","[Funcional Programatica].[Descrição Sub Função]","[Funcional Programatica].[Descrição Sub Função].&[361 - ENSINO FUNDAMENTAL]","[Funcional Programatica].[Código Projeto Atividade]","[Funcional Programatica].[Código Projeto Atividade].&[2857]","[Funcional Programatica].[Descrição Projeto Atividade]","[Funcional Programatica].[Descrição Projeto Atividade].&[2857 - REMUNERAÇÃO DOS PROFISSIONAIS DA EDUCAÇÃO BÁSICA - ENSINO FUNDAMENTAL]") -> 55,189,627.34 | C90: ATÉ 30/04/2025: | D90: 55,189,627.34 | E90: 11.1- Total das Despesas custeadas com FUNDEB - Impostos e Transferências de Impostos | H90: =J69-$B$90-SUM(H91:H93) -> 5,317,890,378.04 | J90: =L69-$B$90-SUM(J91:J93) -> 5,317,890,378.04 | L90: =N69-$B$90-SUM(L91:L93) -> 5,317,890,378.04 | N90: =H90-J90 -> 0 | P90: =IF(H90-P40>0, H90-P40, 0) -> 0
A91: ATÉ O BIMESTRE DE REFERÊNCIA: | B91: 0.00 | C91: ATÉ 30/04/2025: | D91: 0.00 | E91: 11.2- Total das Despesas custeadas com FUNDEB - Complementação da União - VAAF | H91: 0 | J91: 0 | L91: 0 | N91: =H91-J91 -> 0 | P91: =IF(H91-P44>0, H91-P44, 0) -> 0
A92: ATÉ O BIMESTRE DE REFERÊNCIA: | B92: 0.00 | C92: ATÉ 30/04/2025: | D92: 0.00 | E92: 11.3- Total das Despesas custeadas com FUNDEB - Complementação da União - VAAT | H92: 0 | J92: 0 | L92: 0 | N92: 0 | P92: =IF(H92-P48>0, H92-P48, 0) -> 0
A93: ATÉ O BIMESTRE DE REFERÊNCIA: | B93: 0.00 | C93: ATÉ 30/04/2025: | D93: 0.00 | E93: 11.4- Total das Despesas custeadas com FUNDEB - Complementação da União - VAAR | H93: =SUMIFS(Despesas_x_PAPA!$I:$I, Despesas_x_PAPA!$F:$F, "543") -> 84,759,785.02 | J93: =SUMIFS(Despesas_x_PAPA!$J:$J, Despesas_x_PAPA!$F:$F, "543") -> 84,759,785.02 | L93: =SUMIFS(Despesas_x_PAPA!$K:$K, Despesas_x_PAPA!$F:$F, "543") -> 84,759,785.02 | N93: 0 | P93: =IF(H93-P52>0, H93-P52, 0) -> 0
A94: ATÉ O BIMESTRE DE REFERÊNCIA: | B94: =D90 -> 55,189,627.34 | C94: ATÉ 30/04/2025: | D94: =D90 -> 55,189,627.34 | E94: 12- TOTAL DAS DESPESAS DO FUNDEB COM PROFISSIONAIS DA EDUCAÇÃO BÁSICA * | H94: =J70-$B$94-H93 -> 5,317,890,378.04 | J94: =L70-$B$94-J93 -> 5,317,890,378.04 | L94: =N70-$B$94-L93 -> 5,317,890,378.04 | N94: 0 | Q94: Apuração pela diferença entre o total sem disponibilidade na Fonte VAAT e os RPNP dessas despesas.
A95: ATÉ O BIMESTRE DE REFERÊNCIA: | B95: 0 | C95: ATÉ 30/04/2025: | D95: 0 | E95: 13- TOTAL DAS DESPESAS CUSTEADAS COM FUNDEB - COMPLEMENTAÇÃO DA UNIÃO - VAAT APLICADAS NA EDUCAÇÃO INFANTIL | H95: 0 | J95: 0 | L95: 0 | N95: 0
A96: ATÉ O BIMESTRE DE REFERÊNCIA: | B96: 0 | C96: ATÉ 30/04/2025: | D96: 0 | E96: 14- TOTAL DAS DESPESAS CUSTEADAS COM FUNDEB - COMPLEMENTAÇÃO DA UNIÃO - VAAT APLICADAS EM DESPESA DE CAPITAL | H96: 0 | J96: 0 | L96: 0 | N96: 0
E97: INDICADORES - Art. 212-A, inciso XI e § 3º - Constituição Federal2 | F97: VALOR EXIGIDO | J97: VALOR APLICADO | M97: VALOR CONSIDERADO APÓS DEDUÇÕES | O97: % APLICADO10
F98: (j) | J98: (k) | M98: (l) | O98: (m)
E99: 15- MÍNIMO DE 70% DO FUNDEB NA REMUNERAÇÃO DOS PROFISSIONAIS DA EDUCAÇÃO BÁSICA | F99: (L6(b) - L6.4(b)) * 70 / 100 | I99: =(P39-P52)*0.7 -> 3,743,195,005.38 | J99: L12(d ou e) | L99: =J94 -> 5,317,890,378.04 | M99: L12(d ou e) - L12(h) | N99: =J94-O94 -> 5,317,890,378.04 | O99: [L15(l) / [L6(b) - L6.4(b)] *100 | P99: =IF(((N99)/(P39-P52)*100)>100, 100, (N99)/(P39-P52)*100) -> 99.45
E100: 16 - PERCENTUAL DA COMPLEMENTAÇÃO DA UNIÃO AO FUNDEB - VAAT VINCULADO À EDUCAÇÃO INFANTIL | I100: =P48*0.5 -> 0 | J100: L13(d ou e) | L100: =J95 -> 0 | M100: L13(d ou e) - L13(h) | N100: =J95-O95 -> 0 | O100: L16(l) / L6.3(b) * 100 | P100: =IFERROR(N100/P48*100,0) -> 0
E101: 17- MÍNIMO DE 15% DA COMPLEMENTAÇÃO DA UNIÃO AO FUNDEB - VAAT EM DESPESAS DE CAPITAL | F101: L6.3(b) * 15 / 100 | I101: =P48*0.15 -> 0 | J101: L14(d ou e) | L101: =J96 -> 0 | M101: L14(d ou e) - L14(h) | N101: =J96-O96 -> 0 | O101: L17(l) / L6.3(b) * 100 | P101: =IFERROR(N101/P48*100,0) -> 0
E102: INDICADOR - Art.25, § 3º - Lei nº 14.113, de 2020 - (Máximo de 10% de Superávit)3 | F102: VALOR MÁXIMO PERMITIDO | I102: VALOR NÃO APLICADO | K102: VALOR NÃO APLICADO APÓS AJUSTE | M102: VALOR NÃO APLICADO EXCEDENTE AO MÁXIMO PERMITIDO | O102: % NÃO APLICADO
F103: (n) | I103: (o) | K103: (p) | M103: (q) | O103: (r)
E104: 18- TOTAL DA RECEITA RECEBIDA E NÃO APLICADA NO EXERCÍCIO | F104: L6(b) * 10 / 100 | H104: =$P$39*0.1 -> 543,223,527.01 | I104: L6(b) - [L11(d ou e) - L11(i)] | J104: =$P$39-($J$89-$P$89) -> 29,585,107.08 | K104: L18(o) + [( L11(h) - L11(i)) se > 0)] | L104: =J104+IF(O89-P89>0, O89-P89, 0) -> 29,585,107.08 | M104: L18(p) - L18(n) (somente se > 0) | N104: =IF(L104-H104>0, L104-H104, 0) -> 0 | O104: L18(p) / L6(b) * 100 | P104: =$L$104/$P$39*100 -> 0.5446212399
E105: INDICADOR - Art.25, § 3º - Lei nº 14.113, de 2020 - (Aplicação do Superávit de Exercício Anterior)3 | F105: VALOR DE SUPERÁVIT PERMITIDO NO EXERCÍCIO ANTERIOR | I105: VALOR NÃO APLICADO NO EXERCÍCIO ANTERIOR | K105: VALOR DE SUPERÁVIT APLICADO ATÉ O PRIMEIRO QUADRIMESTRE | M105: VALOR APLICADO APÓS O PRIMEIRO QUADRIMESTRE | O105: VALOR TOTAL DE SUPERÁVIT NÃO APLICADO ATÉ O FINAL DO EXERCÍCIO | P105: VALOR DE SUPERÁVIT PERMITIDO NO EXERCÍCIO ANTERIOR NÃO APLICADO NO EXERCÍCIO ATUAL
F106: (s) | I106: (t) | K106: (u) | M106: (v) | O106: (w) | P106: (x)
E107: 19- TOTAL DAS DESPESAS CUSTEADAS COM SUPERÁVIT DO FUNDEB | F107: L18(n) do exercício anterior | H107: =SUM(H108:H109) -> 749,851,079.50 | I107: L18(o) do exercício anterior | J107: =SUM(J108:J109) -> 48,905,630.86 | K107: Total das despesas executadas até o primeiro quadrimestre | L107: =SUM(L108:L109) -> 55,189,627.34 | M107: Total das despesas executadas após o primeiro quadrimestre | N107: =SUM(N108:N109) -> 0 | O107: =SUM(O108, O109) -> 0 | P107: =IF(L107>=J107, 0, IF(AND(L107<J107, J107<=H107), J107-L107, H107-L107)) -> 0
A108: Receitas recebidas do FUNDEB do ex anterior (6º bi/2024, campo 6b) | B108: 7,369,468,198.52 | E108: 19.1- Total das Despesas custeadas com FUNDEB - Impostos e Transferências de Impostos | H108: =$B$108*0.1 -> 736,946,819.85 | J108: 48,905,630.86 | L108: =D90 -> 55,189,627.34 | N108: =B90-D90 -> 0 | O108: =IF(J108-SUM(L108, N108)<0, 0, J108-SUM(L108, N108)) -> 0 | P108: =IF(L108>=J108, 0, IF(AND(L108<J108, J108<=H108), J108-L108, H108-L108)) -> 0
B109: 129,042,596.50 | E109: 19.2- Total das Despesas custeadas com FUNDEB - Complementação da União (VAAF + VAAT + VAAR) | H109: =B109*0.1 -> 12,904,259.65 | J109: 0 | L109: =SUM(D91:D93) -> 0 | N109: =SUM(B91:B93)-SUM(D91:D93) -> 0 | O109: =IF(J109-SUM(L109, N109)<0, 0, J109-SUM(L109, N109)) -> 0 | P109: =IF(L109>=J109, 0, IF(AND(L109<J109, J109<=H109), J109-L109, H109-L109)) -> 0
K110: Obs.: Despesas de Fonte 04.2.(...) liquidadas até 30/04/2025
E111: DESPESAS COM MANUTENÇÃO E DESENVOLVIMENTO DO ENSINO – MDE - CUSTEADAS COM RECEITA DE IMPOSTOS (EXCETO FUNDEB)
E112: DESPESAS COM AÇÕES TÍPICAS DE MDE - RECEITAS DE IMPOSTOS - EXCETO FUNDEB (Por Subfunção) | G112: DOTAÇÃO ATUALIZADA | I112: DESPESAS EMPENHADAS | K112: DESPESAS LIQUIDADAS | M112: DESPESAS PAGAS | O112: INSCRITAS EM RESTOS A PAGAR NÃO PROCESSADOS
I113: Até o Bimestre | K113: Até o Bimestre | M113: Até o Bimestre
G114: (c) | I114: (d) | K114: (e) | M114: (f) | O114: (g)
D115: 20 | E115: 20 - TOTAL DAS DESPESAS COM AÇÕES TÍPICAS DE MDE CUSTEADAS COM RECEITAS DE IMPOSTOS | H115: =VLOOKUP($D115, Despesas_Consolidadas!$A:$M, 5, FALSE) -> 17,302,567,052.99 | J115: =VLOOKUP($D115, Despesas_Consolidadas!$A:$M, 7, FALSE) -> 13,317,740,153.27 | L115: =VLOOKUP($D115, Despesas_Consolidadas!$A:$M, 9, FALSE) -> 10,302,139,298.91 | N115: =VLOOKUP($D115, Despesas_Consolidadas!$A:$M, 11, FALSE) -> 9,583,939,487.62 | P115: =VLOOKUP($D115, Despesas_Consolidadas!$A:$M, 13, FALSE) -> 3,015,600,854.36
D116: 20.1 | E116: 20.1 - Educação Infantil | H116: =VLOOKUP($D116, Despesas_Consolidadas!$A:$M, 5, FALSE) -> 7,671,766,720.43 | J116: =VLOOKUP($D116, Despesas_Consolidadas!$A:$M, 7, FALSE) -> 5,771,216,958.66 | L116: =VLOOKUP($D116, Despesas_Consolidadas!$A:$M, 9, FALSE) -> 5,251,867,648.91 | N116: =VLOOKUP($D116, Despesas_Consolidadas!$A:$M, 11, FALSE) -> 4,626,853,472.05 | P116: =VLOOKUP($D116, Despesas_Consolidadas!$A:$M, 13, FALSE) -> 519,349,309.75
D117: 20.2 | E117: 20.2- Ensino Fundamental | H117: =VLOOKUP($D117, Despesas_Consolidadas!$A:$M, 5, FALSE) -> 2,843,193,376.76 | J117: =VLOOKUP($D117, Despesas_Consolidadas!$A:$M, 7, FALSE) -> 1,639,391,308.00 | L117: =VLOOKUP($D117, Despesas_Consolidadas!$A:$M, 9, FALSE) -> 1,410,108,866.38 | N117: =VLOOKUP($D117, Despesas_Consolidadas!$A:$M, 11, FALSE) -> 1,360,753,680.10 | P117: =VLOOKUP($D117, Despesas_Consolidadas!$A:$M, 13, FALSE) -> 229,282,441.62
D118: 20.3 | E118: 20.3- Educação de Jovens e Adultos | H118: =VLOOKUP($D118, Despesas_Consolidadas!$A:$M, 5, FALSE) -> 23,982,849.50 | J118: =VLOOKUP($D118, Despesas_Consolidadas!$A:$M, 7, FALSE) -> 17,580,722.69 | L118: =VLOOKUP($D118, Despesas_Consolidadas!$A:$M, 9, FALSE) -> 12,427,802.38 | N118: =VLOOKUP($D118, Despesas_Consolidadas!$A:$M, 11, FALSE) -> 11,264,627.29 | P118: =VLOOKUP($D118, Despesas_Consolidadas!$A:$M, 13, FALSE) -> 5,152,920.31
D119: 20.4 | E119: 20.4- Educação Especial | H119: =VLOOKUP($D119, Despesas_Consolidadas!$A:$M, 5, FALSE) -> 412,193,003.17 | J119: =VLOOKUP($D119, Despesas_Consolidadas!$A:$M, 7, FALSE) -> 307,406,490.02 | L119: =VLOOKUP($D119, Despesas_Consolidadas!$A:$M, 9, FALSE) -> 206,459,169.56 | N119: =VLOOKUP($D119, Despesas_Consolidadas!$A:$M, 11, FALSE) -> 192,651,583.14 | P119: =VLOOKUP($D119, Despesas_Consolidadas!$A:$M, 13, FALSE) -> 100,947,320.46
D120: 20.5 | E120: 20.5- Adminstração Geral | H120: =VLOOKUP($D120, Despesas_Consolidadas!$A:$M, 5, FALSE) -> 912,338,567.78 | J120: =VLOOKUP($D120, Despesas_Consolidadas!$A:$M, 7, FALSE) -> 629,310,779.57 | L120: =VLOOKUP($D120, Despesas_Consolidadas!$A:$M, 9, FALSE) -> 582,890,365.41 | N120: =VLOOKUP($D120, Despesas_Consolidadas!$A:$M, 11, FALSE) -> 579,857,464.03 | P120: =VLOOKUP($D120, Despesas_Consolidadas!$A:$M, 13, FALSE) -> 46,420,414.15
D121: 20.6 | E121: 20.6- Transporte (Escolar) | H121: =VLOOKUP($D121, Despesas_Consolidadas!$A:$M, 5, FALSE) -> 50,939,343.00 | J121: =VLOOKUP($D121, Despesas_Consolidadas!$A:$M, 7, FALSE) -> 44,825,955.00 | L121: =VLOOKUP($D121, Despesas_Consolidadas!$A:$M, 9, FALSE) -> 44,825,955.00 | N121: =VLOOKUP($D121, Despesas_Consolidadas!$A:$M, 11, FALSE) -> 44,825,955.00 | P121: =VLOOKUP($D121, Despesas_Consolidadas!$A:$M, 13, FALSE) -> 0
D122: 20.7 | E122: 20.7- Outras | H122: =VLOOKUP($D122, Despesas_Consolidadas!$A:$M, 5, FALSE) -> 5,388,153,192.35 | J122: =VLOOKUP($D122, Despesas_Consolidadas!$A:$M, 7, FALSE) -> 4,908,007,939.34 | L122: =VLOOKUP($D122, Despesas_Consolidadas!$A:$M, 9, FALSE) -> 2,793,559,491.27 | N122: =VLOOKUP($D122, Despesas_Consolidadas!$A:$M, 11, FALSE) -> 2,767,732,706.01 | P122: =VLOOKUP($D122, Despesas_Consolidadas!$A:$M, 13, FALSE) -> 2,114,448,448.06
E124: DESPESAS COM MANUTENÇÃO E DESENVOLVIMENTO DO ENSINO – MDE - CUSTEADAS COM RECEITA DE IMPOSTOS E COM RECURSOS DO FUNDEB
E125: DESPESAS COM AÇÕES TÍPICAS DE MDE - RECEITAS DE IMPOSTOS E RECURSOS DO FUNDEB (Por Área de Atuação)6 | G125: DOTAÇÃO ATUALIZADA | I125: DESPESAS EMPENHADAS | K125: DESPESAS LIQUIDADAS | M125: DESPESAS PAGAS | O125: INSCRITAS EM RESTOS A PAGAR NÃO PROCESSADOS | Q125: Essas linhas representam áreas de atuação e não correspondem exatamente às subfunções da Função Educação. Dessa forma, as despesas classificadas nas demais subfunções típicas e nas subfunções atípicas são apropriadas nessas áreas de atuação.
I126: Até o Bimestre | K126: Até o Bimestre | M126: Até o Bimestre
G127: (c) | I127: (d) | K127: (e) | M127: (f) | O127: (g)
D128: 21 | E128: 21- TOTAL DAS DESPESAS COM AÇÕES TÍPICAS DE MDE CUSTEADAS COM RECEITAS DE IMPOSTOS E FUNDEB | H128: =VLOOKUP($D128, Despesas_Consolidadas!$A:$M, 5, FALSE) -> 24,876,313,050.73 | J128: =VLOOKUP($D128, Despesas_Consolidadas!$A:$M, 7, FALSE) -> 18,775,579,943.67 | L128: =VLOOKUP($D128, Despesas_Consolidadas!$A:$M, 9, FALSE) -> 15,759,979,089.31 | N128: =VLOOKUP($D128, Despesas_Consolidadas!$A:$M, 11, FALSE) -> 15,041,779,278.02 | P128: =VLOOKUP($D128, Despesas_Consolidadas!$A:$M, 13, FALSE) -> 3,015,600,854.36
D129: 21.1 | E129: 21.1 - EDUCAÇÃO INFANTIL | H129: =VLOOKUP($D129, Despesas_Consolidadas!$A:$M, 5, FALSE) -> 14,777,562,047.58 | J129: =VLOOKUP($D129, Despesas_Consolidadas!$A:$M, 7, FALSE) -> 11,452,182,101.57 | L129: =VLOOKUP($D129, Despesas_Consolidadas!$A:$M, 9, FALSE) -> 9,785,535,674.12 | N129: =VLOOKUP($D129, Despesas_Consolidadas!$A:$M, 11, FALSE) -> 9,145,428,076.82 | P129: =VLOOKUP($D129, Despesas_Consolidadas!$A:$M, 13, FALSE) -> 1,666,646,427.45
D130: 21.1.1 | E130: 21.1.1 - Creche | H130: =VLOOKUP($D130, Despesas_Consolidadas!$A:$M, 5, FALSE) -> 9,662,140,727.80 | J130: =VLOOKUP($D130, Despesas_Consolidadas!$A:$M, 7, FALSE) -> 7,859,390,564.50 | L130: =VLOOKUP($D130, Despesas_Consolidadas!$A:$M, 9, FALSE) -> 6,774,743,915.13 | N130: =VLOOKUP($D130, Despesas_Consolidadas!$A:$M, 11, FALSE) -> 6,167,874,753.37 | P130: =VLOOKUP($D130, Despesas_Consolidadas!$A:$M, 13, FALSE) -> 1,084,646,649.37
D131: 21.1.2 | E131: 21.1.2 - Pré-escola | H131: =VLOOKUP($D131, Despesas_Consolidadas!$A:$M, 5, FALSE) -> 5,115,421,319.77 | J131: =VLOOKUP($D131, Despesas_Consolidadas!$A:$M, 7, FALSE) -> 3,592,791,537.06 | L131: =VLOOKUP($D131, Despesas_Consolidadas!$A:$M, 9, FALSE) -> 3,010,791,758.99 | N131: =VLOOKUP($D131, Despesas_Consolidadas!$A:$M, 11, FALSE) -> 2,977,553,323.46 | P131: =VLOOKUP($D131, Despesas_Consolidadas!$A:$M, 13, FALSE) -> 581,999,778.08
D132: 21.2 | E132: 21.2 - ENSINO FUNDAMENTAL | H132: =VLOOKUP($D132, Despesas_Consolidadas!$A:$M, 5, FALSE) -> 10,098,751,003.15 | J132: =VLOOKUP($D132, Despesas_Consolidadas!$A:$M, 7, FALSE) -> 7,323,397,842.10 | L132: =VLOOKUP($D132, Despesas_Consolidadas!$A:$M, 9, FALSE) -> 5,974,443,415.19 | N132: =VLOOKUP($D132, Despesas_Consolidadas!$A:$M, 11, FALSE) -> 5,896,351,201.20 | P132: =VLOOKUP($D132, Despesas_Consolidadas!$A:$M, 13, FALSE) -> 1,348,954,426.91
E134: APURAÇÃO DAS DESPESAS PARA FINS DE LIMITE MÍNIMO CONSTITUCIONAL | N134: VALOR
E136: 22- TOTAL DAS DESPESAS DE MDE CUSTEADAS COM RECURSOS DE IMPOSTOS = (L20(d ou e)) | P136: =L115 -> 10,302,139,298.91
E137: 23- TOTAL DAS RECEITAS TRANSFERIDAS AO FUNDEB = (L4) | P137: =P31 -> 2,221,594,020.32
E138: 24- (-) RECEITAS DO FUNDEB NÃO UTILIZADAS NO EXERCÍCIO, EM VALOR SUPERIOR A 10% = L18(q) | P138: =N104 -> 0
E139: 25- (-) SUPERÁVIT PERMITIDO NO EXERCÍCIO IMEDIATAMENTE ANTERIOR NÃO APLICADO NO EXERCÍCIO ATUAL = L19.1(x) | P139: =P108 -> 0
E140: 26- (-) RESTOS A PAGAR NÃO PROCESSADOS INSCRITOS NO EXERCÍCIO SEM DISPONIBILIDADE FINANCEIRA DE RECURSOS DE IMPOSTOS4 | P140: 0
E141: 27- (-) CANCELAMENTO, NO EXERCÍCIO, DE RESTOS A PAGAR INSCRITOS COM DISPONIBILIDADE FINANCEIRA DE RECURSOS DE IMPOSTOS VINCULADOS AO ENSINO = (L30.1(af)) (ver nota de rodapé "*****") | P141: =N152 -> 0
E142: 28- TOTAL DAS DESPESAS PARA FINS DE LIMITE (22 + 23 - 24 - 25 - 26 - 27) | P142: =P136+P137-P138-P139-P140-P141 -> 12,523,733,319.23
E144: APURAÇÃO DO LIMITE MÍNIMO CONSTITUCIONAL2 e 5 | I144: VALOR EXIGIDO | M144: VALOR APLICADO | O144: % APLICADO
I145: (z) | M145: (aa) | O145: (ab)
E146: 29- APLICAÇÃO EM MDE SOBRE A RECEITA RESULTANTE DE IMPOSTOS | I146: [25% de L3 ou (L4 + L5)] | L146: =P29*0.25 -> 13,979,793,217.02 | M146: L28 | N146: =P142 -> 12,523,733,319.23 | O146: =N146/P29*100 -> 22.40
E148: RESTOS A PAGAR INSCRITOS EM EXERCÍCIOS ANTERIORES DE DESPESAS CONSIDERADAS PARA CUMPRIMENTO DO LIMITE8 | G148: SALDO INICIAL | I148: RP LIQUIDADOS | K148: RP PAGOS | M148: RP CANCELADOS (ver nota de rodapé "*****") | O148: SALDO FINAL
G150: (ac) | I150: (ad) | K150: (ae) | M150: (af) | O150: (ag) = (ac) - (ae) - (af)
A151: não há RP da 20 (SMT), ativ. 4701 (compensação tarifária) | E151: 30- RESTOS A PAGAR DE DESPESAS COM MDE | H151: =SUM(H152:H154) -> 667,306,743.59 | J151: =SUM(J152:J154) -> 583,445,359.16 | L151: =SUM(L152:L154) -> 580,268,932.77 | N151: =SUM(N152:N154) -> 0 | P151: =SUM(P152:P154) -> 87,037,810.83
E152: 30.1 - Executadas com Recursos de Impostos e Transferências de Impostos | H152: =RP_Consolidados!C2+RP_Consolidados!C4 -> 637,219,942.05 | J152: =RP_Consolidados!D2+RP_Consolidados!D4 -> 553,358,557.62 | L152: =RP_Consolidados!E2+RP_Consolidados!E4 -> 550,182,131.23 | N152: =RP_Consolidados!G2+RP_Consolidados!G4 -> 0 | P152: =H152-L152-N152 -> 87,037,810.83
E153: 30.2 - Executadas com Recursos do FUNDEB - Impostos | H153: =RP_Consolidados!C3 -> 30,086,801.54 | J153: =RP_Consolidados!D3 -> 30,086,801.54 | L153: =RP_Consolidados!E3 -> 30,086,801.54 | N153: =RP_Consolidados!G3 -> 0 | P153: =H153-L153-N153 -> 0
E154: 30.3 - Executadas com Recursos do FUNDEB - Complementação da União (VAAT + VAAF + VAAR) | H154: 0 | J154: 0 | L154: 0 | N154: 0 | P154: =H154-L154-N154 -> 0
E156: OUTRAS INFORMAÇÕES PARA CONTROLE
E157: RECEITAS ADICIONAIS PARA FINANCIAMENTO DO ENSINO | G157: PREVISÃO | L157: RECEITAS REALIZADAS
G158: ATUALIZADA | L158: Até o Bimestre
G159: (a) | L159: (b)
E160: 31- TOTAL DAS RECEITAS ADICIONAIS PARA FINANCIAMENTO DO ENSINO | K160: =VLOOKUP($E160, Receita_Consolidada!$B:$F, 3, FALSE) -> 724,262,533.98 | P160: =VLOOKUP($E160, Receita_Consolidada!$B:$F, 4, FALSE) -> 438,258,250.56
E161: 31.1- RECEITA DE TRANSFERÊNCIAS DO FNDE (INCLUINDO RENDIMENTOS DE APLICAÇÃO FINANCEIRA) | K161: =VLOOKUP($E161, Receita_Consolidada!$B:$F, 3, FALSE) -> 629,227,783.98 | P161: =VLOOKUP($E161, Receita_Consolidada!$B:$F, 4, FALSE) -> 414,967,074.30
E162: 31.1.1- Salário-Educação | K162: =VLOOKUP($E162, Receita_Consolidada!$B:$F, 3, FALSE) -> 434,570,600.00 | P162: =VLOOKUP($E162, Receita_Consolidada!$B:$F, 4, FALSE) -> 289,092,231.07
E163: 31.1.2- PDDE | K163: =VLOOKUP($E163, Receita_Consolidada!$B:$F, 3, FALSE) -> 0 | P163: =VLOOKUP($E163, Receita_Consolidada!$B:$F, 4, FALSE) -> 0
E164: 31.1.3- PNAE | K164: =VLOOKUP($E164, Receita_Consolidada!$B:$F, 3, FALSE) -> 193,468,042.00 | P164: =VLOOKUP($E164, Receita_Consolidada!$B:$F, 4, FALSE) -> 118,745,229.12
E165: 31.1.4 - PNATE | K165: =VLOOKUP($E165, Receita_Consolidada!$B:$F, 3, FALSE) -> 231,743.00 | P165: =VLOOKUP($E165, Receita_Consolidada!$B:$F, 4, FALSE) -> 230,660.20
E166: 31.1.5- Outras Transferências do FNDE | K166: =VLOOKUP($E166, Receita_Consolidada!$B:$F, 3, FALSE) -> 957,398.98 | P166: =VLOOKUP($E166, Receita_Consolidada!$B:$F, 4, FALSE) -> 6,898,953.91
E167: 31.2- RECEITA DE TRANSFERÊNCIAS DE CONVÊNIOS | K167: =VLOOKUP($E167, Receita_Consolidada!$B:$F, 3, FALSE) -> 0 | P167: =VLOOKUP($E167, Receita_Consolidada!$B:$F, 4, FALSE) -> 22,180,347.56
E168: 31.3- RECEITA DE ROYALTIES DESTINADOS À EDUCAÇÃO | K168: =VLOOKUP($E168, Receita_Consolidada!$B:$F, 3, FALSE) -> 0 | P168: =VLOOKUP($E168, Receita_Consolidada!$B:$F, 4, FALSE) -> 0
E169: 31.4- RECEITA DE OPERAÇÕES DE CRÉDITO VINCULADAS À EDUCAÇÃO | K169: =VLOOKUP($E169, Receita_Consolidada!$B:$F, 3, FALSE) -> 95,034,750.00 | P169: =VLOOKUP($E169, Receita_Consolidada!$B:$F, 4, FALSE) -> 0
E170: 31.5- RECEITA DE PRECATÓRIOS - FUNDEF E FUNDEB | K170: =VLOOKUP($E170, Receita_Consolidada!$B:$F, 3, FALSE) -> 0 | P170: =VLOOKUP($E170, Receita_Consolidada!$B:$F, 4, FALSE) -> 0
E171: 31.6- OUTRAS RECEITAS PARA FINANCIAMENTO DO ENSINO | K171: =VLOOKUP($E171, Receita_Consolidada!$B:$F, 3, FALSE) -> 0 | P171: =VLOOKUP($E171, Receita_Consolidada!$B:$F, 4, FALSE) -> 1,110,828.70
E173: OUTRAS DESPESAS COM EDUCAÇÃO (Por Subfunção)6 | G173: DOTAÇÃO ATUALIZADA | I173: DESPESAS EMPENHADAS | K173: DESPESAS LIQUIDADAS | M173: DESPESAS PAGAS | O173: INSCRITAS EM RESTOS A PAGAR NÃO PROCESSADOS
I174: Até o Bimestre | K174: Até o Bimestre | M174: Até o Bimestre
G175: (c) | I175: (d) | K175: (e) | M175: (f) | O175: (g)
D176: 32 | E176: 32- TOTAL DAS OUTRAS DESPESAS COM EDUCAÇÃO | H176: =VLOOKUP($D176, Despesas_Consolidadas!$A:$M, 5, FALSE) -> 7,538,699,065.82 | J176: =VLOOKUP($D176, Despesas_Consolidadas!$A:$M, 7, FALSE) -> 6,727,565,391.27 | L176: =VLOOKUP($D176, Despesas_Consolidadas!$A:$M, 9, FALSE) -> 3,737,407,410.17 | N176: =VLOOKUP($D176, Despesas_Consolidadas!$A:$M, 11, FALSE) -> 3,692,577,537.85 | P176: =VLOOKUP($D176, Despesas_Consolidadas!$A:$M, 13, FALSE) -> 2,990,157,981.10
D177: 32.1 | E177: 32.1- EDUCAÇÃO INFANTIL | H177: =VLOOKUP($D177, Despesas_Consolidadas!$A:$M, 5, FALSE) -> 204,578,329.11 | J177: =VLOOKUP($D177, Despesas_Consolidadas!$A:$M, 7, FALSE) -> 149,004,962.11 | L177: =VLOOKUP($D177, Despesas_Consolidadas!$A:$M, 9, FALSE) -> 135,248,213.03 | N177: =VLOOKUP($D177, Despesas_Consolidadas!$A:$M, 11, FALSE) -> 134,271,180.46 | P177: =VLOOKUP($D177, Despesas_Consolidadas!$A:$M, 13, FALSE) -> 13,756,749.08
D178: 32.2 | E178: 32.2- ENSINO FUNDAMENTAL | H178: =VLOOKUP($D178, Despesas_Consolidadas!$A:$M, 5, FALSE) -> 371,645,768.77 | J178: =VLOOKUP($D178, Despesas_Consolidadas!$A:$M, 7, FALSE) -> 331,531,275.77 | L178: =VLOOKUP($D178, Despesas_Consolidadas!$A:$M, 9, FALSE) -> 321,056,717.53 | N178: =VLOOKUP($D178, Despesas_Consolidadas!$A:$M, 11, FALSE) -> 320,234,193.79 | P178: =VLOOKUP($D178, Despesas_Consolidadas!$A:$M, 13, FALSE) -> 10,474,558.24
D179: 32.3 | E179: 32.3- ENSINO MÉDIO | H179: =VLOOKUP($D179, Despesas_Consolidadas!$A:$M, 5, FALSE) -> 531,886,265.53 | J179: =VLOOKUP($D179, Despesas_Consolidadas!$A:$M, 7, FALSE) -> 372,995,517.91 | L179: =VLOOKUP($D179, Despesas_Consolidadas!$A:$M, 9, FALSE) -> 329,775,878.39 | N179: =VLOOKUP($D179, Despesas_Consolidadas!$A:$M, 11, FALSE) -> 325,930,438.95 | P179: =VLOOKUP($D179, Despesas_Consolidadas!$A:$M, 13, FALSE) -> 43,219,639.52
D180: 32.4 | E180: 32.4- ENSINO SUPERIOR | H180: =VLOOKUP($D180, Despesas_Consolidadas!$A:$M, 5, FALSE) -> 237,257,855.51 | J180: =VLOOKUP($D180, Despesas_Consolidadas!$A:$M, 7, FALSE) -> 163,261,576.00 | L180: =VLOOKUP($D180, Despesas_Consolidadas!$A:$M, 9, FALSE) -> 163,261,576.00 | N180: =VLOOKUP($D180, Despesas_Consolidadas!$A:$M, 11, FALSE) -> 163,261,576.00 | P180: =VLOOKUP($D180, Despesas_Consolidadas!$A:$M, 13, FALSE) -> 0
D181: 32.5 | E181: 32.5- ENSINO PROFISSIONAL | H181: =VLOOKUP($D181, Despesas_Consolidadas!$A:$M, 5, FALSE) -> 234,758,218.96 | J181: =VLOOKUP($D181, Despesas_Consolidadas!$A:$M, 7, FALSE) -> 185,267,632.98 | L181: =VLOOKUP($D181, Despesas_Consolidadas!$A:$M, 9, FALSE) -> 149,956,621.37 | N181: =VLOOKUP($D181, Despesas_Consolidadas!$A:$M, 11, FALSE) -> 148,448,671.83 | P181: =VLOOKUP($D181, Despesas_Consolidadas!$A:$M, 13, FALSE) -> 35,311,011.61
D182: 32.6 | E182: 32.6- EDUCAÇÃO DE JOVENS E ADULTOS | H182: =VLOOKUP($D182, Despesas_Consolidadas!$A:$M, 5, FALSE) -> 0 | J182: =VLOOKUP($D182, Despesas_Consolidadas!$A:$M, 7, FALSE) -> 0 | L182: =VLOOKUP($D182, Despesas_Consolidadas!$A:$M, 9, FALSE) -> 0 | N182: =VLOOKUP($D182, Despesas_Consolidadas!$A:$M, 11, FALSE) -> 0 | P182: =VLOOKUP($D182, Despesas_Consolidadas!$A:$M, 13, FALSE) -> 0
D183: 32.7 | E183: 32.7- EDUCAÇÃO ESPECIAL | H183: =VLOOKUP($D183, Despesas_Consolidadas!$A:$M, 5, FALSE) -> 0 | J183: =VLOOKUP($D183, Despesas_Consolidadas!$A:$M, 7, FALSE) -> 0 | L183: =VLOOKUP($D183, Despesas_Consolidadas!$A:$M, 9, FALSE) -> 0 | N183: =VLOOKUP($D183, Despesas_Consolidadas!$A:$M, 11, FALSE) -> 0 | P183: =VLOOKUP($D183, Despesas_Consolidadas!$A:$M, 13, FALSE) -> 0
D184: 32.8 | E184: 32.8- OUTRAS | H184: =VLOOKUP($D184, Despesas_Consolidadas!$A:$M, 5, FALSE) -> 5,958,572,627.94 | J184: =VLOOKUP($D184, Despesas_Consolidadas!$A:$M, 7, FALSE) -> 5,525,504,426.51 | L184: =VLOOKUP($D184, Despesas_Consolidadas!$A:$M, 9, FALSE) -> 2,638,108,403.86 | N184: =VLOOKUP($D184, Despesas_Consolidadas!$A:$M, 11, FALSE) -> 2,600,431,476.82 | P184: =VLOOKUP($D184, Despesas_Consolidadas!$A:$M, 13, FALSE) -> 2,887,396,022.66
E186: TOTAL GERAL DAS DESPESAS COM EDUCAÇÃO | G186: DOTAÇÃO ATUALIZADA | I186: DESPESAS EMPENHADAS | K186: DESPESAS LIQUIDADAS | M186: DESPESAS PAGAS | O186: INSCRITAS EM RESTOS A PAGAR NÃO PROCESSADOS
I187: Até o Bimestre | K187: Até o Bimestre | M187: Até o Bimestre
G188: (c) | I188: (d) | K188: (e) | M188: (f) | O188: (g)
D189: 33 | E189: 33- TOTAL GERAL DAS DESPESAS COM EDUCAÇÃO (10 + 20 + 32) | H189: =VLOOKUP($D189, Despesas_Consolidadas!$A:$M, 5, FALSE) -> 32,415,012,116.54 | J189: =VLOOKUP($D189, Despesas_Consolidadas!$A:$M, 7, FALSE) -> 25,503,145,334.94 | L189: =VLOOKUP($D189, Despesas_Consolidadas!$A:$M, 9, FALSE) -> 19,497,386,499.49 | N189: =VLOOKUP($D189, Despesas_Consolidadas!$A:$M, 11, FALSE) -> 18,734,356,815.88 | P189: =VLOOKUP($D189, Despesas_Consolidadas!$A:$M, 13, FALSE) -> 6,005,758,835.46
D190: 33.1 | E190: 33.1- Despesas Correntes | H190: =VLOOKUP($D190, Despesas_Consolidadas!$A:$M, 5, FALSE) -> 31,802,481,795.01 | J190: =VLOOKUP($D190, Despesas_Consolidadas!$A:$M, 7, FALSE) -> 25,246,719,941.22 | L190: =VLOOKUP($D190, Despesas_Consolidadas!$A:$M, 9, FALSE) -> 19,328,022,796.61 | N190: =VLOOKUP($D190, Despesas_Consolidadas!$A:$M, 11, FALSE) -> 18,577,867,268.03 | P190: =VLOOKUP($D190, Despesas_Consolidadas!$A:$M, 13, FALSE) -> 5,918,697,144.62
D191: 33.1.1 | E191: 33.1.1- Pessoal Ativo | H191: =VLOOKUP($D191, Despesas_Consolidadas!$A:$M, 5, FALSE) -> 15,869,836,055.22 | J191: =VLOOKUP($D191, Despesas_Consolidadas!$A:$M, 7, FALSE) -> 11,216,196,713.44 | L191: =VLOOKUP($D191, Despesas_Consolidadas!$A:$M, 9, FALSE) -> 9,436,235,984.45 | N191: =VLOOKUP($D191, Despesas_Consolidadas!$A:$M, 11, FALSE) -> 9,436,235,984.45 | P191: =VLOOKUP($D191, Despesas_Consolidadas!$A:$M, 13, FALSE) -> 1,779,960,728.99
D192: 33.1.2 | E192: 33.1.2- Pessoal Inativo | H192: =VLOOKUP($D192, Despesas_Consolidadas!$A:$M, 5, FALSE) -> 3,736,255,196.54 | J192: =VLOOKUP($D192, Despesas_Consolidadas!$A:$M, 7, FALSE) -> 3,736,255,196.54 | L192: =VLOOKUP($D192, Despesas_Consolidadas!$A:$M, 9, FALSE) -> 1,553,095,655.28 | N192: =VLOOKUP($D192, Despesas_Consolidadas!$A:$M, 11, FALSE) -> 1,553,095,655.28 | P192: =VLOOKUP($D192, Despesas_Consolidadas!$A:$M, 13, FALSE) -> 2,183,159,541.27
D193: 33.1.3 | E193: 33.1.3-Transferências às instituições comunitárias, confessionais ou filantrópicas sem fins lucrativos | H193: =VLOOKUP($D193, Despesas_Consolidadas!$A:$M, 5, FALSE) -> 6,008,752,231.49 | J193: =VLOOKUP($D193, Despesas_Consolidadas!$A:$M, 7, FALSE) -> 5,281,366,161.04 | L193: =VLOOKUP($D193, Despesas_Consolidadas!$A:$M, 9, FALSE) -> 4,809,083,947.14 | N193: =VLOOKUP($D193, Despesas_Consolidadas!$A:$M, 11, FALSE) -> 4,195,319,284.30 | P193: =VLOOKUP($D193, Despesas_Consolidadas!$A:$M, 13, FALSE) -> 472,282,213.90
D194: 33.1.4 | E194: 33.1.4- Outras Despesas Correntes | H194: =VLOOKUP($D194, Despesas_Consolidadas!$A:$M, 5, FALSE) -> 6,187,638,311.76 | J194: =VLOOKUP($D194, Despesas_Consolidadas!$A:$M, 7, FALSE) -> 5,012,901,870.20 | L194: =VLOOKUP($D194, Despesas_Consolidadas!$A:$M, 9, FALSE) -> 3,529,607,209.74 | N194: =VLOOKUP($D194, Despesas_Consolidadas!$A:$M, 11, FALSE) -> 3,393,216,344.00 | P194: =VLOOKUP($D194, Despesas_Consolidadas!$A:$M, 13, FALSE) -> 1,483,294,660.46
D195: 33.2 | E195: 33.2- Despesas de Capital | H195: =VLOOKUP($D195, Despesas_Consolidadas!$A:$M, 5, FALSE) -> 612,530,321.53 | J195: =VLOOKUP($D195, Despesas_Consolidadas!$A:$M, 7, FALSE) -> 256,425,393.72 | L195: =VLOOKUP($D195, Despesas_Consolidadas!$A:$M, 9, FALSE) -> 169,363,702.88 | N195: =VLOOKUP($D195, Despesas_Consolidadas!$A:$M, 11, FALSE) -> 156,489,547.85 | P195: =VLOOKUP($D195, Despesas_Consolidadas!$A:$M, 13, FALSE) -> 87,061,690.84
D196: 33.2.1 | E196: 33.2.1- Transferências às instituições comunitárias, confessionais ou filantrópicas sem fins lucrativos | H196: =VLOOKUP($D196, Despesas_Consolidadas!$A:$M, 5, FALSE) -> 2,000,000.00 | J196: =VLOOKUP($D196, Despesas_Consolidadas!$A:$M, 7, FALSE) -> 0 | L196: =VLOOKUP($D196, Despesas_Consolidadas!$A:$M, 9, FALSE) -> 0 | N196: =VLOOKUP($D196, Despesas_Consolidadas!$A:$M, 11, FALSE) -> 0 | P196: =VLOOKUP($D196, Despesas_Consolidadas!$A:$M, 13, FALSE) -> 0
D197: 33.2.2 | E197: 33.2.2- Outras Despesas de Capital | H197: =VLOOKUP($D197, Despesas_Consolidadas!$A:$M, 5, FALSE) -> 610,530,321.53 | J197: =VLOOKUP($D197, Despesas_Consolidadas!$A:$M, 7, FALSE) -> 256,425,393.72 | L197: =VLOOKUP($D197, Despesas_Consolidadas!$A:$M, 9, FALSE) -> 169,363,702.88 | N197: =VLOOKUP($D197, Despesas_Consolidadas!$A:$M, 11, FALSE) -> 156,489,547.85 | P197: =VLOOKUP($D197, Despesas_Consolidadas!$A:$M, 13, FALSE) -> 87,061,690.84
E199: CONTROLE DA DISPONIBILIDADE FINANCEIRA E CONCILIAÇÃO BANCÁRIA | G199: FUNDEB (ah) | L199: SALÁRIO EDUCAÇÃO | O199: PROGRAMA NACIONAL DE ALIMENTAÇÃO ESCOLAR - PNAE/FNDE
L200: (ai)
E201: 34- DISPONIBILIDADE FINANCEIRA EM 31 DE DEZEMBRO DE 2024 | G201: 85,277,649.40 | L201: 90,098,841.10 | P201: 88,717,628.34
E202: 35- (+) INGRESSO DE RECURSOS ATÉ O BIMESTRE (orçamentário) | G202: 5,432,235,270.14 | L202: 289,091,554.87 | P202: 118,745,229.12
E203: 36- (-) PAGAMENTOS EFETUADOS ATÉ O BIMESTRE (orçamentário e restos a pagar) | G203: 5,487,926,591.94 | L203: 310,065,148.21 | P203: 86,761,614.66
E204: 37- (=) DISPONIBILIDADE FINANCEIRA ATÉ O BIMESTRE | G204: =G201+G202-G203 -> 29,586,327.60 | L204: =L201+L202-L203 -> 69,125,247.76 | P204: =P201+P202-P203 -> 120,701,242.80
E205: 38- (+) AJUSTES POSITIVOS ( RETENÇÕES E OUTROS VALORES EXTRAORÇAMENTÁRIOS) | G205: 0 | L205: 0 | P205: 0
E206: 39- (-) AJUSTES NEGATIVOS (OUTROS VALORES EXTRAORÇAMENTÁRIOS) | G206: 0 | L206: 705,467.32 | P206: 67,915.81
E207: 40- (=) SALDO FINANCEIRO CONCILIADO (Saldo Bancário) | G207: =G204+G205-G206 -> 29,586,327.60 | L207: =L204+L205-L206 -> 68,419,780.44 | P207: =P204+P205-P206 -> 120,633,326.99
G208: Obs.: Referência: Processo nº 6017.2022/0010272-7 | L208: Obs.: Referência: Processo nº 6017.2022/0010257-3
E210: MDE E EDUCAÇÃO INCLUSIVA CUSTEADAS COM RECEITA DE IMPOSTOS (EXCETO FUNDEB)
E211: RECEITA RESULTANTE DE IMPOSTOS, INCLUINDO TRANSFERÊNCIAS | G211: PREVISÃO | L211: RECEITAS REALIZADAS
G212: ATUALIZADA | L212: Até o Bimestre
G213: (a) | L213: (b)
E214: 41- TOTAL DA RECEITA RESULTANTE DE IMPOSTOS (1 + 2) | K214: =K29 -> 80,566,431,656.00 | P214: =P29 -> 55,919,172,868.06
E215: DESPESAS COM AÇÕES TÍPICAS DE MDE E EDUCAÇÃO INCLUSIVA - RECEITAS DE IMPOSTOS - EXCETO FUNDEB | G215: DOTAÇÃO ATUALIZADA | I215: DESPESAS EMPENHADAS | K215: DESPESAS LIQUIDADAS | M215: DESPESAS PAGAS | O215: INSCRITAS EM RESTOS A PAGAR NÃO PROCESSADOS
I216: Até o Bimestre | K216: Até o Bimestre | M216: Até o Bimestre
G217: (c) | I217: (d) | K217: (e) | M217: (f) | O217: (g)
D218: 42 | E218: 42- TOTAL DAS DESPESAS COM AÇÕES TÍPICAS DE MDE E EDUCAÇÃO INCLUSIVA - RECEITAS DE IMPOSTOS | H218: =VLOOKUP($D218, Despesas_Consolidadas!$A:$M, 5, FALSE) -> 26,124,290,392.68 | J218: =VLOOKUP($D218, Despesas_Consolidadas!$A:$M, 7, FALSE) -> 21,619,205,491.54 | L218: =VLOOKUP($D218, Despesas_Consolidadas!$A:$M, 9, FALSE) -> 15,922,078,484.50 | N218: =VLOOKUP($D218, Despesas_Consolidadas!$A:$M, 11, FALSE) -> 15,166,232,796.06 | P218: =VLOOKUP($D218, Despesas_Consolidadas!$A:$M, 13, FALSE) -> 5,697,127,007.05
D219: 42.1 | E219: 42.1- Total das Despesas com Ações Típicas de MDE - Receitas de Impostos = L20 | H219: =VLOOKUP($D219, Despesas_Consolidadas!$A:$M, 5, FALSE) -> 17,302,567,052.99 | J219: =VLOOKUP($D219, Despesas_Consolidadas!$A:$M, 7, FALSE) -> 13,317,740,153.27 | L219: =VLOOKUP($D219, Despesas_Consolidadas!$A:$M, 9, FALSE) -> 10,302,139,298.91 | N219: =VLOOKUP($D219, Despesas_Consolidadas!$A:$M, 11, FALSE) -> 9,583,939,487.62 | P219: =VLOOKUP($D219, Despesas_Consolidadas!$A:$M, 13, FALSE) -> 3,015,600,854.36
... 96 more rows

Sheet LEGISLAÇÃO
A1: LEGISLAÇÃO APLICÁVEL
A2: A estruturação e parametrização do DRDMDE se baseia na base legal descrita a seguir:
A4: TÓPICO DO DRDMDE | B4: CONSTITUIÇÃO E LEGISLAÇÃO PRINCIPAL | C4: LEGISLAÇÃO E REGULAMENTAÇÃO ADICIONAL
A5: LIMITES MÍNIMOS DE APLICAÇÃO DE DESPESAS EM MANUTENÇÃO E DESENVOLVIMENTO DO ENSINO E EDUCAÇÃO INCLUSIVA | B5: CONSTITUIÇÃO FEDERAL Art. 212. A União aplicará, anualmente, nunca menos de dezoito, e os Estados, o Distrito Federal e os Municípios vinte e cinco por cento, no mínimo, da receita resultante de impostos, compreendida a proveniente de transferências, na manutenção e desenvolvimento do ensino. | C5: LOM SP Art. 208 - O Município aplicará, anualmente, no mínimo 31% (trinta e um por cento) da receita resultante de impostos, compreendida a proveniente de transferências, na manutenção e desenvolvimento do ensino fundamental, da educação infantil e inclusiva. | D5: PLANO MUNICIPAL DE EDUCAÇÃO - LEI Nº 16.271/2015 Art. 1º Fica aprovado o Plano Municipal de Educação de São Paulo – PME, com vigência de 10 (dez) anos, contados da data de publicação desta lei, na forma do Anexo Único, com vistas ao cumprimento do disposto no inciso I do art. 11 da Lei Federal nº 9.394, de 20 de dezembro de 1996, no art. 8º da Lei Federal nº 13.005, de 25 de junho de 2014, e no § 3º do art. 200 da Lei Orgânica do Município de São Paulo. Art. 3º As metas previstas no Anexo Único integrante desta lei deverão ser cumpridas no prazo de vigência do PME, desde que não haja prazo inferior definido para metas e estratégias específicas. META 1. Ampliar o investimento público em educação, aplicando no mínimo 33% (trinta e três por cento) da receita resultante de impostos, compreendida a proveniente de transferências, em manutenção e desenvolvimento do ensino e em educação inclusiva.
A6: POSSÍVEIS EFEITOS DE NÃO CUMPRIMENTO DOS LIMITES | B6: CONSTITUIÇÃO FEDERAL Art. 35. O Estado não intervirá em seus Municípios, nem a União nos Municípios localizados em Território Federal, exceto quando: (...) III — não tiver sido aplicado o mínimo exigido da receita municipal na manutenção e desenvolvimento do ensino e nas ações e serviços públicos de saúde; (Redação da EC 29/2000).
A7: CONCEITO DE MANUTENÇÃO E DESENVOLVIMENTO DO ENSINO (MDE) E RECEITAS E DESPESAS CONSIDERADAS | B7: LEI DE DIRETRIZES E BASES DA EDUCAÇÃO NACIONAL (LEI Nº 9.394/1996) Art. 70. Considerar-se-ão como de manutenção e desenvolvimento do ensino as despesas realizadas com vistas à consecução dos objetivos básicos das instituições educacionais de todos os níveis, compreendendo as que se destinam a: I - remuneração e aperfeiçoamento do pessoal docente e demais profissionais da educação; II - aquisição, manutenção, construção e conservação de instalações e equipamentos necessários ao ensino; III – uso e manutenção de bens e serviços vinculados ao ensino; IV - levantamentos estatísticos, estudos e pesquisas visando precipuamente ao aprimoramento da qualidade e à expansão do ensino; V - realização de atividades-meio necessárias ao funcionamento dos sistemas de ensino; VI - concessão de bolsas de estudo a alunos de escolas públicas e privadas; VII - amortização e custeio de operações de crédito destinadas a atender ao disposto nos incisos deste artigo; VIII - aquisição de material didático-escolar e manutenção de programas de transporte escolar; IX – realização de atividades curriculares complementares voltadas ao aprendizado dos alunos ou à formação continuada dos profissionais da educação, tais como exposições, feiras ou mostras de ciências da natureza ou humanas, matemática, língua portuguesa ou língua estrangeira, literatura e cultura. (Incluído pela Lei nº 14.560, de 2023). | C7: LOM SP Art. 200, § 4º - O Plano Municipal de Educação atenderá ao disposto na Lei Federal nº 9.394/96 e será complementado por um programa de educação inclusiva cujo custeio utilizará recursos que excedam ao mínimo estabelecido no artigo 212, § 4º, da Constituição Federal. § 5º - A lei definirá as ações que integrarão o programa de educação inclusiva referido no parágrafo anterior. Art. 208, § 2º - A lei definirá as despesas que se caracterizam como de manutenção e desenvolvimento do processo de ensino-aprendizagem, bem como da educação infantil e inclusiva. § 3º - A eventual assistência financeira do Município às instituições de ensino filantrópicas, comunitárias ou confessionais, não poderá incidir sobre a aplicação mínima prevista no "caput" deste artigo. RECEITAS DO FUNDEB - LEI Nº 14.113, DE 25 DE DEZEMBRO DE 2020 Linhas 4 e 5 - Receitas para Formação do FUNDEB Art. 1º (...) Parágrafo único. [Receitas do FUNDEB somadas à cesta de receitas para MDE]: I - pelo menos 5% (cinco por cento) do montante dos impostos e transferências que compõem a cesta de recursos do Fundeb, a que se referem os incisos I, II, III, IV, V, VI, VII, VIII e IX do caput e o § 1º do art. 3º desta Lei, de modo que os recursos previstos no art. 3º desta Lei somados aos referidos neste inciso garantam a aplicação do mínimo de 25% (vinte e cinco por cento) desses impostos e transferências em favor da manutenção e do desenvolvimento do ensino; II - pelo menos 25% (vinte e cinco por cento) dos demais impostos e transferências. APLICAÇÃO INTEGRAL DE DESPESAS COM RECEITAS DO FUNDEB - LEI Nº 14.113, DE 25 DE DEZEMBRO DE 2020 Art. 25. Os recursos dos Fundos, inclusive aqueles oriundos de complementação da União, serão utilizados pelos Estados, pelo Distrito Federal e pelos Municípios, no exercício financeiro em que lhes forem creditados, em ações consideradas de manutenção e de desenvolvimento do ensino para a educação básica pública, conforme disposto no art. 70 da Lei nº 9.394, de 20 de dezembro de 1996. (...) Art. 29. É vedada a utilização dos recursos dos Fundos para: I - financiamento das despesas não consideradas de manutenção e de desenvolvimento da educação básica, conforme o art. 71 da Lei nº 9.394, de 20 de dezembro de 1996 | D7: LEI MUNICIPAL Nº 13.245/2001 Art. 2º - Considerar-se-ão como de manutenção e desenvolvimento do processo de ensino-aprendizagem as despesas realizadas com vistas à consecução dos objetivos básicos das instituições educacionais de todos os níveis compreendendo as que se destinam à: I - remuneração e aperfeiçoamento do pessoal docente e demais profissionais de educação; II - aquisição, manutenção, construção e conservação de instalações e equipamentos necessários ao processo de ensino-aprendizagem; III - uso e manutenção de bens e serviços vinculados ao ensino; IV - levantamentos estatísticos, estudos e pesquisas visando precipuamente ao aprimoramento da qualidade e à expansão do ensino; V - realização de atividades-meio, necessárias ao funcionamento dos sistemas de ensino; VI - concessão de bolsas de estudo para aperfeiçoamento e capacitação do pessoal docente e demais profissionais da educação; VII - amortização e custeio de operações de crédito destinadas a atender ao disposto nos incisos deste artigo; VIII - aquisição de material didático escolar e manutenção de programas de transporte escolar; IX - parcela decrescente anualmente, conforme o Anexo I, da despesa decorrente da insuficiência financeira do Regime Próprio de Previdência Social dos servidores públicos do Município de São Paulo relativa aos inativos da Educação, considerando-se a proporção entre os proventos pagos aos inativos da Educação e o total dos proventos pagos no referido Regime. (alterado pela Lei nº 15.963, de 15 de janeiro de 2014)
A8: CONCEITO DE EDUCAÇÃO INCLUSIVA E DESPESAS CONSIDERADAS | B8: LEI DE DIRETRIZES E BASES DA EDUCAÇÃO NACIONAL (LEI Nº 9.394/1996) Art. 37. A educação de jovens e adultos será destinada àqueles que não tiveram acesso ou continuidade de estudos no ensino fundamental e médio na idade própria. Art. 58. Entende-se por educação especial, para os efeitos desta Lei, a modalidade de educação escolar oferecida preferencialmente na rede regular de ensino, para educandos com deficiência, transtornos globais do desenvolvimento e altas habilidades ou superdotação.(Redação dada pela Lei nº 12.796, de 2013) § 1º Haverá, quando necessário, serviços de apoio especializado, na escola regular, para atender às peculiaridades da clientela de educação especial. § 2º O atendimento educacional será feito em classes, escolas ou serviços especializados, sempre que, em função das condições específicas dos alunos, não for possível a sua integração nas classes comuns de ensino regular. § 3º A oferta de educação especial, dever constitucional do Estado, tem início na faixa etária de zero a seis anos, durante a educação infantil. Art. 80. O Poder Público incentivará o desenvolvimento e a veiculação de programas de ensino a distância, em todos os níveis e modalidades de ensino, e de educação continuada. (Regulamento) (...) § 4º A educação a distância gozará de tratamento diferenciado, que incluirá: I - custos de transmissão reduzidos em canais comerciais de radiodifusão sonora e de sons e imagens e em outros meios de comunicação que sejam explorados mediante autorização, concessão ou permissão do poder público; | C8: LOM SP Art. 200, § 4º - O Plano Municipal de Educação atenderá ao disposto na Lei Federal nº 9.394/96 e será complementado por um programa de educação inclusiva cujo custeio utilizará recursos que excedam ao mínimo estabelecido no artigo 212, § 4º, da Constituição Federal. § 5º - A lei definirá as ações que integrarão o programa de educação inclusiva referido no parágrafo anterior. Art. 203 - É dever do Município garantir: IV - educação inclusiva que garanta as pré-condições de aprendizagem e acesso aos serviços educacionais, a reinserção no processo de ensino de crianças e jovens em risco social, o analfabetismo digital, a educação profissionalizante e a provisão de condições para que o processo educativo utilize meios de difusão, educação e comunicação; Embora nem todas as despesas com Educação Inclusiva sejam despesas com MDE, o mínimo previsto na LOM e a meta prevista do Plano Municipal de Educação têm como base a soma das despesas com MDE e com Educação Inclusiva. MDE: 25% MDE + EDUCAÇÃO INCLUSIVA: 31% (LOM) / 33% (PME) | D8: LEI MUNICIPAL Nº 13.245/2001 Art. 3º - Serão consideradas como despesas relativas à educação inclusiva para fins do disposto do § 5º do artigo 200 da Lei Orgânica do Município [EDUCAÇÃO INCLUSIVA]: I - programas voltados à educação de jovens e adultos que não tiveram acesso ou continuidade de estudos no ensino fundamental e médio na idade própria; II - programas de reinserção educacional da criança e adolescente em situação de risco pessoal ou social; III - programas especiais para educação de crianças e adolescentes com deficiência; IV - programas voltados para a educação profissionalizante visando o desenvolvimento de aptidões para a vida produtiva; V - programas que fortaleçam a inclusão de crianças e adolescentes na ação educacional do município; (???????) VI - custos de produção e transmissão de programas de educação promovidos ou patrocinados pelo Poder Público Municipal, veiculados em emissoras de rádio e televisão; VII - implantação e manutenção de centros integrados de educação e cultura, implantação e manutenção de telecentros ou serviços para acesso a tecnologias de informação e comunicação, em específico, às redes municipais e mundiais de conhecimento; bem como implantação e manutenção de bibliotecas públicas que estejam formalmente consideradas como parte da educação inclusiva, implantação e manutenção de clubes-escola que estejam formalmente considerados como parte da educação inclusiva em apoio à rede municipal de ensino. (alterado pela Lei nº 15.963, de 15 de janeiro de 2014) VIII - provisão de alimentação em creches, escolas de educação infantil, ensino fundamental e supletivo. IX - parcela crescente anualmente e o total a partir do exercício de 2018, conforme o Anexo II, da despesa decorrente da insuficiência financeira do Regime Próprio de Previdência Social dos servidores públicos do Município de São Paulo relativa aos inativos da Educação, considerando-se a proporção entre os proventos pagos aos inativos da Educação e o total dos proventos pagos no referido Regime; (incluído pela Lei nº 15.963, de 15 de janeiro de 2014) X - despesas com proteção escolar, realizadas pela Secretaria Municipal de Segurança Urbana. (incluído pela Lei nº 15.963, de 15 de janeiro de 2014)
A9: CONCEITO DE RECEITAS E DESPESAS NÃO ENQUADRADAS COMO DE MDE | B9: CONSTITUIÇÃO FEDERAL Art. 212, § 1º A parcela da arrecadação de impostos transferida pela União aos Estados, ao Distrito Federal e aos Municípios, ou pelos Estados aos respectivos Municípios, não é considerada, para efeito do cálculo previsto neste artigo, receita do governo que a transferir.
B10: LEI DE DIRETRIZES E BASES DA EDUCAÇÃO NACIONAL (LEI Nº 9.394/1996) Art. 71. Não constituirão despesas de manutenção e desenvolvimento do ensino aquelas realizadas com: I - pesquisa, quando não vinculada às instituições de ensino, ou, quando efetivada fora dos sistemas de ensino, que não vise, precipuamente, ao aprimoramento de sua qualidade ou à sua expansão; II - subvenção a instituições públicas ou privadas de caráter assistencial, desportivo ou cultural; III - formação de quadros especiais para a administração pública, sejam militares ou civis, inclusive diplomáticos; IV - programas suplementares de alimentação, assistência médico-odontológica, farmacêutica e psicológica, e outras formas de assistência social; V - obras de infra-estrutura, ainda que realizadas para beneficiar direta ou indiretamente a rede escolar; VI - pessoal docente e demais trabalhadores da educação, quando em desvio de função ou em atividade alheia à manutenção e desenvolvimento do ensino.
A11: FUNDEB - COMPOSIÇÃO E DISTRIBUIÇÃO DO FUNDO PRINCIPAL E COMPLEMENTAÇÕES VAAF, VAAT E VAAR | B11: CONSTITUIÇÃO FEDERAL Art. 212-A. Os Estados, o Distrito Federal e os Municípios destinarão parte dos recursos a que se refere o caput do art. 212 desta Constituição à manutenção e ao desenvolvimento do ensino na educação básica e à remuneração condigna de seus profissionais, respeitadas as seguintes disposições: I - a distribuição dos recursos e de responsabilidades entre o Distrito Federal, os Estados e seus Municípios é assegurada mediante a instituição, no âmbito de cada Estado e do Distrito Federal, de um Fundo de Manutenção e Desenvolvimento da Educação Básica e de Valorização dos Profissionais da Educação (Fundeb), de natureza contábil II - os fundos referidos no inciso I do caput deste artigo serão constituídos por 20% (vinte por cento): a) das parcelas dos Estados no imposto de que trata o art. 156-A; b) da parcela do Distrito Federal no imposto de que trata o art. 156-A, relativa ao exercício de sua competência estadual, nos termos do art. 156-A, § 2º; c) dos recursos a que se referem os incisos I, II e III do caput do art. 155, o inciso II do caput do art. 157, os incisos II, III e IV do caput do art. 158 e as alíneas "a" e "b" do inciso I e o inciso II do caput do art. 159 desta Constituição; III - os recursos referidos no inciso II do caput deste artigo serão distribuídos entre cada Estado e seus Municípios, proporcionalmente ao número de alunos das diversas etapas e modalidades da educação básica presencial matriculados nas respectivas redes, nos âmbitos de atuação prioritária, conforme estabelecido nos §§ 2º e 3º do art. 211 desta Constituição, observadas as ponderações referidas na alínea "a" do inciso X do caput e no § 2º deste artigo IV - a União complementará os recursos dos fundos a que se refere o inciso II do caput deste artigo; V - a complementação da União será equivalente a, no mínimo, 23% (vinte e três por cento) do total de recursos a que se refere o inciso II do caput deste artigo, distribuída da seguinte forma: [composição das complementações VAAF, VAAT e VAAR especificada nas alíneas a, b e c e inciso VI] (...) VII - os recursos de que tratam os incisos II e IV do caput deste artigo serão aplicados pelos Estados e pelos Municípios exclusivamente nos respectivos âmbitos de atuação prioritária, conforme estabelecido nos §§ 2º e 3º do art. 211 desta Constituição; VIII - a vinculação de recursos à manutenção e ao desenvolvimento do ensino estabelecida no art. 212 desta Constituição suportará, no máximo, 30% (trinta por cento) da complementação da União, considerados para os fins deste inciso os valores previstos no inciso V do caput deste artigo. | C11: LEI Nº 14.113, DE 25 DE DEZEMBRO DE 2020 Art. 3º Os Fundos, no âmbito de cada Estado e do Distrito Federal, são compostos por 20% (vinte por cento) das seguintes fontes de receita: I - (...) ITCD (...); II - (...) ICMS (...); III - (...) IPVA (...); IV - parcela do produto da arrecadação do imposto que a União eventualmente instituir no exercício da competência que lhe é atribuída (...); V - parcela do produto da arrecadação do (...) ITR, relativamente a imóveis situados nos Municípios (...); VI - parcela do produto da arrecadação do (...) IPI devida ao Fundo de Participação dos Estados e do Distrito Federal (FPE) (...); VII - parcela do produto da arrecadação do (...) IPI devida ao Fundo de Participação dos Municípios (FPM) (...); VIII - parcela do produto da arrecadação do IPI devida aos Estados e ao Distrito Federal, prevista no inciso II do caput do art. 159 da Constituição Federal e na Lei Complementar nº 61, de 26 de dezembro de 1989; IX - receitas da dívida ativa tributária relativa aos impostos previstos neste artigo, bem como juros e multas eventualmente incidentes. § 1º Inclui-se ainda na base de cálculo dos recursos referidos nos incisos I a IX do caput deste artigo o adicional na alíquota do ICMS de que trata o § 1º do art. 82 do Ato das Disposições Constitucionais Transitórias. § 2º Além dos recursos mencionados nos incisos I a IX do caput e no § 1º deste artigo, os Fundos contarão com a complementação da União, nos termos da Seção II deste Capítulo. Art. 4º (...) § 3º A União poderá utilizar, no máximo, 30% (trinta por cento) do valor de complementação ao Fundeb previsto no caput deste artigo para cumprimento da aplicação mínima na manutenção e no desenvolvimento do ensino estabelecida no art. 212 da Constituição Federal. (...) Art. 5º A complementação da União será equivalente a, no mínimo, 23% (vinte e três por cento) do total de recursos a que se refere o art. 3º desta Lei | D11: MCASP 10ª Edição Estados e DF: 20% da arrecadação dos seguintes impostos e transferências recebidas: ITCD, IPVA, ICMS, FPE, Cota-parte do IPI Exportação; Municípios: 20% das seguintes transferências recebidas: FPM, Cota-parte do IPI Exportação, Cota-parte do ICMS, Cota-parte do IPVA, Cota-parte do ITR; Complementação da União 23% do total dos recursos de impostos e transferências destinados ao fundo
A12: FUNDEB - INDICADORES | B12: CONSTITUIÇÃO FEDERAL - Indicador da Linha 15 (70% de recursos do FUNDEB aplicados na Educação Básica): Art. 212-A. Os Estados, o Distrito Federal e os Municípios destinarão parte dos recursos a que se refere o caput do art. 212 desta Constituição à manutenção e ao desenvolvimento do ensino na educação básica e à remuneração condigna de seus profissionais, respeitadas as seguintes disposições: (...) XI - proporção não inferior a 70% (setenta por cento) de cada fundo referido no inciso I do caput deste artigo[, o fundo principal do FUNDEB], excluídos os recursos de que trata a alínea "c" do inciso V do caput deste artigo[, da complementação VAAR], será destinada ao pagamento dos profissionais da educação básica em efetivo exercício - Indicador da Linha 16 (mínimo de 50% do VAAT na Educação Infantil: Art. 212-A. (...) § 3º Será destinada à educação infantil a proporção de 50% (cinquenta por cento) dos recursos globais a que se refere a alínea "b" do inciso V do caput deste artigo, nos termos da lei - Indicador da Linha 17 (mínimo de 15% da complementação VAAT em despesas de capital): Art. 212-A. (...) XI (...) observado, em relação aos recursos previstos na alínea "b" do inciso V do caput deste artigo, o percentual mínimo de 15% (quinze por cento) para despesas de capital - Indicador das Linhas 18 e 19 (aplicação de despesas com superávit do FUNDEB): Outra particularidade estabelecida pelo regramento do Fundeb diz respeito à utilização dos recursos do fundo, que devem ser totalmente utilizados durante o exercício em que forem creditados. Admite-se, porém, que eventual saldo não comprometido, de até 10% do valor total repassado no exercício, seja utilizado no primeiro quadrimestre do exercício imediatamente subsequente, mediante abertura de crédito adicional. | C12: LEI Nº 14.113, DE 25 DE DEZEMBRO DE 2020 - Indicador da Linha 15 (70% de recursos do FUNDEB aplicados na Educação Básica): Art. 26. Excluídos os recursos de que trata o inciso III do caput do art. 5º desta Lei, proporção não inferior a 70% (setenta por cento) dos recursos anuais totais dos Fundos referidos no art. 1º desta Lei será destinada ao pagamento, em cada rede de ensino, da remuneração dos profissionais da educação básica em efetivo exercício. - Indicador da Linha 16 (mínimo de 50% do VAAT na Educação Infantil: Art. 28. Realizada a distribuição da complementação-VAAT às redes de ensino, segundo o art. 13 desta Lei, será destinada à educação infantil, nos termos do Anexo desta Lei, proporção de 50% (cinquenta por cento) dos recursos globais a que se refere o inciso II do caput do art. 5º desta Lei. Parágrafo único. Os recursos vinculados nos termos do caput deste artigo serão aplicados pelos Municípios, adotado como parâmetro indicador para educação infantil, que estabelecerá percentuais mínimos de aplicação dos Municípios beneficiados com a complementação-VAAT, de modo que se atinja a proporção especificada no caput deste artigo, que considerará obrigatoriamente: I - o déficit de cobertura, considerada a oferta e a demanda anual pelo ensino; II - a vulnerabilidade socioeconômica da população a ser atendida. - Indicador da Linha 17 (mínimo de 15% da complementação VAAT em despesas de capital): Art. 27. Percentual mínimo de 15% (quinze por cento) dos recursos da complementação-VAAT, previstos no inciso II do caput do art. 5º desta Lei, será aplicado, em cada rede de ensino beneficiada, em despesas de capital. - Indicador das Linhas 18 e 19 (aplicação de despesas com superávit do FUNDEB): | D12: DECRETO 10.656/21 - Metodologia para Indicador da Linha 16 (mínimo de 50% do VAAT na Educação Infantil: Art. 40. O indicador para educação infantil que estabelecerá percentuais mínimos de aplicação dos Municípios beneficiados com a complementação-VAAT será elaborado pelo Inep, observado o disposto na alínea “d” do inciso V do caput do art. 8º, e considerará obrigatoriamente: I - o déficit de cobertura, considerada a oferta e a demanda anual pelo ensino; e II - a vulnerabilidade socioeconômica da população a ser atendida. § 1º O déficit de cobertura a que se refere o inciso I do caput será estimado pelo Inep com base nos dados do Censo Escolar da Educação Básica, com a finalidade de uso para o cálculo do indicador de educação infantil para efeito da vinculação a que se refere o art. 28 da Lei nº 14.113, de 2020. § 2º A vulnerabilidade socioeconômica a que se refere o inciso II do caput será apurada por meio de indicador de nível socioeconômico calculado pelo Inep, atualizado a cada dois anos. MCASP 10ª Edição Indicador 15 (70% de recursos do FUNDEB aplicados na Educação Básica): A regulamentação do Fundeb dispõe que os recursos deverão ser aplicados na forma do art. 70 da Lei de Diretrizes e Bases (LDB) , de forma que pelo menos 70% seja direcionado ao pagamento dos profissionais da educação básica em efetivo exercício no respectivo ente governamental, e o restante (de até 30%) seja aplicado em outras ações de manutenção e desenvolvimento da educação básica, sendo vedada sua utilização nas despesas citadas em seu art. 71. Para controle dos percentuais legais, orienta-se a utilização das fontes ou destinações de recursos combinadas com o marcador que identifica as despesas referentes ao pagamento dos profissionais da educação básica em efetivo exercício. Indicador 19 (aplicação de despesas com superávit do FUNDEB): Outra particularidade estabelecida pelo regramento do Fundeb diz respeito à utilização dos recursos do fundo, que devem ser totalmente utilizados durante o exercício em que forem creditados. Admite-se, porém, que eventual saldo não comprometido, de até 10% do valor total repassado no exercício, seja utilizado no primeiro quadrimestre do exercício imediatamente subsequente, mediante abertura de crédito adicional.
A13: CONCEITO DE EDUCAÇÃO BÁSICA | B13: LEI DE DIRETRIZES E BASES DA EDUCAÇÃO NACIONAL (LEI Nº 9.394/1996) Art. 4º O dever do Estado com educação escolar pública será efetivado mediante a garantia de: I - educação básica obrigatória e gratuita dos 4 (quatro) aos 17 (dezessete) anos de idade, organizada da seguinte forma:(Redação dada pela Lei nº 12.796, de 2013) a) pré-escola; (Incluído pela Lei nº 12.796, de 2013) b) ensino fundamental; (Incluído pela Lei nº 12.796, de 2013) c) ensino médio; (Incluído pela Lei nº 12.796, de 2013) Art. 21. A educação escolar compõe-se de: I - educação básica, formada pela educação infantil, ensino fundamental e ensino médio; II - educação superior. Art. 30. A educação infantil será oferecida em: I - creches, ou entidades equivalentes, para crianças de até três anos de idade; II - pré-escolas, para as crianças de 4 (quatro) a 5 (cinco) anos de idade. Art. 32. O ensino fundamental obrigatório, com duração de 9 (nove) anos, gratuito na escola pública, iniciando-se aos 6 (seis) anos de idade, (...). Art. 35. O ensino médio, etapa final da educação básica, com duração mínima de três anos (...). | C13: LOM SP Art. 203 - É dever do Município garantir: (...) II - educação infantil para o desenvolvimento integral da criança até seis anos de idade, em seus aspectos físico, psicológico, intelectual e social; III - ensino fundamental gratuito a partir de 7 (sete) anos de idade, ou para os que a ele não tiveram acesso na idade própria; IV - educação inclusiva que garanta as pré-condições de aprendizagem e acesso aos serviços educacionais, a reinserção no processo de ensino de crianças e jovens em risco social, o analfabetismo digital, a educação profissionalizante e a provisão de condições para que o processo educativo utilize meios de difusão, educação e comunicação;
A14: CEUs | B14: LEI Nº 14.113, DE 25 DE DEZEMBRO DE 2020 Art. 3º Os Fundos, no âmbito de cada Estado e do Distrito Federal, são compostos por 20% (vinte por cento) das seguintes fontes de receita: I - (...) ITCD (...); II - (...) ICMS (...); III - (...) IPVA (...); IV - parcela do produto da arrecadação do imposto que a União eventualmente instituir no exercício da competência que lhe é atribuída (...); V - parcela do produto da arrecadação do (...) ITR, relativamente a imóveis situados nos Municípios (...); VI - parcela do produto da arrecadação do (...) IPI devida ao Fundo de Participação dos Estados e do Distrito Federal (FPE) (...); VII - parcela do produto da arrecadação do (...) IPI devida ao Fundo de Participação dos Municípios (FPM) (...); VIII - parcela do produto da arrecadação do IPI devida aos Estados e ao Distrito Federal, prevista no inciso II do caput do art. 159 da Constituição Federal e na Lei Complementar nº 61, de 26 de dezembro de 1989; IX - receitas da dívida ativa tributária relativa aos impostos previstos neste artC12+B14+C14+C15 | D14: PORTARIA 4.672/06- SME Capítulo IV Das Unidades Educacionais Art. 57 - São Unidades Educacionais do CEU aquelas com as mesmas estruturas da Rede Municipal de Ensino de São Paulo, inclusive com a instalação de Sala de Leitura ou Espaços de Leitura e Laboratório de Informática Educativa: I) Centro de Educação Infantil - CEI; II) Escola Municipal de Educação Infantil - EMEI; III) Escola Municipal de Ensino Fundamental - EMEF.
A15: PUBLICAÇÃO - PRAZOS E TRANSPARÊNCIA | B15: CONSTITUIÇÃO FEDERAL Art. 165. Leis de iniciativa do Poder Executivo estabelecerão: (...) § 3º O Poder Executivo publicará, até trinta dias após o encerramento de cada bimestre, relatório resumido da execução orçamentária. LEI DE DIRETRIZES E BASES DA EDUCAÇÃO NACIONAL (LEI Nº 9.394/1996) Art. 72. As receitas e as despesas com manutenção e desenvolvimento do ensino serão apuradas e publicadas: I – nos balanços do poder público e nos relatórios a que se refere o § 3º do art. 165 da Constituição Federal; (Incluído pela Lei nº 15.001, de 2024) II – nos sítios eletrônicos do Ministério da Educação e dos órgãos gestores da educação pública de cada ente federado subnacional. (Incluído pela Lei nº 15.001, de 2024) Parágrafo único. Deverão ser publicados, de forma específica, dados relativos a: (Incluído pela Lei nº 15.001, de 2024) I – receitas próprias, de convênios ou de doações das instituições federais de ensino; (Incluído pela Lei nº 15.001, de 2024) II – gestão e execução dos recursos do Fundo de Manutenção e Desenvolvimento da Educação Básica e de Valorização dos Profissionais da Educação (Fundeb); (Incluído pela Lei nº 15.001, de 2024) III – repasses de recursos públicos a instituições de ensino conveniadas para oferta da educação escolar. (Incluído pela Lei nº 15.001, de 2024) | C15: LOM SP Art. 209 - O Município publicará, até 30 (trinta) dias após o encerramento de cada semestre, informações completas sobre receitas arrecadadas, transferências e recursos recebidos e destinados à educação nesse período, bem como a prestação de contas das verbas utilizadas, discriminadas por programas.

Sheet Receita_analítica_teste (hidden)
B2: RECEITA RESULTANTE DE IMPOSTOS (Arts. 212 e 212-A da Constituição Federal)
B3: RECEITA RESULTANTE DE IMPOSTOS | D3: PREVISÃO | F3: RECEITAS
A4: Rubrica Receita | D4: ATUALIZADA | F4: REALIZADAS
D5: (a) | F5: (b)
A6: 1 | B6: 1- RECEITA DE IMPOSTOS | E6: =E7+E20+E34+E62 -> 0 | G6: =G7+G20+G34+G62 -> 0
A7: 1.1 | B7: 1.1- Receita Resultante do Imposto sobre a Propriedade Predial e Territorial Urbana – IPTU | E7: =SUM(E8:E18) -> 0 | G7: =SUM(G8:G18) -> 0
A8: 1.1.1.2.50.0.1.01.00.000.000.11.01.000 | B8: =VLOOKUP($A8,#REF!,6,FALSE) ->  | E8: =IFERROR(VLOOKUP($A8,#REF!,13,FALSE), 0) -> 0 | G8: =IFERROR(VLOOKUP($A8,#REF!,10,FALSE), 0) -> 0
A9: 1.1.1.2.50.0.1.01.00.000.000.11.09.001 | B9: =VLOOKUP($A9,#REF!,6,FALSE) ->  | E9: =IFERROR(VLOOKUP($A9,#REF!,13,FALSE), 0) -> 0 | G9: =IFERROR(VLOOKUP($A9,#REF!,10,FALSE), 0) -> 0
A10: 1.1.1.2.50.0.1.01.00.000.000.12.01.001 | B10: =VLOOKUP($A10,#REF!,6,FALSE) ->  | E10: =IFERROR(VLOOKUP($A10,#REF!,13,FALSE), 0) -> 0 | G10: =IFERROR(VLOOKUP($A10,#REF!,10,FALSE), 0) -> 0
A11: 1.1.1.2.50.0.2.01.00.000.000.11.01.000 | B11: =VLOOKUP($A11,#REF!,6,FALSE) ->  | E11: =IFERROR(VLOOKUP($A11,#REF!,13,FALSE), 0) -> 0 | G11: =IFERROR(VLOOKUP($A11,#REF!,10,FALSE), 0) -> 0
A12: 1.1.1.2.50.0.2.01.00.000.000.12.01.001 | B12: =VLOOKUP($A12,#REF!,6,FALSE) ->  | E12: =IFERROR(VLOOKUP($A12,#REF!,13,FALSE), 0) -> 0 | G12: =IFERROR(VLOOKUP($A12,#REF!,10,FALSE), 0) -> 0
A13: 1.1.1.2.50.0.3.01.00.000.000.11.01.000 | B13: =VLOOKUP($A13,#REF!,6,FALSE) ->  | E13: =IFERROR(VLOOKUP($A13,#REF!,13,FALSE), 0) -> 0 | G13: =IFERROR(VLOOKUP($A13,#REF!,10,FALSE), 0) -> 0
A14: 1.1.1.2.50.0.3.01.00.000.000.12.01.001 | B14: =VLOOKUP($A14,#REF!,6,FALSE) ->  | E14: =IFERROR(VLOOKUP($A14,#REF!,13,FALSE), 0) -> 0 | G14: =IFERROR(VLOOKUP($A14,#REF!,10,FALSE), 0) -> 0
A15: 1.1.1.2.50.0.3.01.00.000.000.12.01.006 | B15: =VLOOKUP($A15,#REF!,6,FALSE) ->  | E15: =IFERROR(VLOOKUP($A15,#REF!,13,FALSE), 0) -> 0 | G15: =IFERROR(VLOOKUP($A15,#REF!,10,FALSE), 0) -> 0
A16: 1.1.1.2.50.0.4.01.00.000.000.11.01.000 | B16: =VLOOKUP($A16,#REF!,6,FALSE) ->  | E16: =IFERROR(VLOOKUP($A16,#REF!,13,FALSE), 0) -> 0 | G16: =IFERROR(VLOOKUP($A16,#REF!,10,FALSE), 0) -> 0
A17: 1.1.1.2.50.0.4.01.00.000.000.12.01.001 | B17: =VLOOKUP($A17,#REF!,6,FALSE) ->  | E17: =IFERROR(VLOOKUP($A17,#REF!,13,FALSE), 0) -> 0 | G17: =IFERROR(VLOOKUP($A17,#REF!,10,FALSE), 0) -> 0
A18: 1.1.1.2.50.0.4.01.00.000.000.12.01.006 | B18: =VLOOKUP($A18,#REF!,6,FALSE) ->  | E18: =IFERROR(VLOOKUP($A18,#REF!,13,FALSE), 0) -> 0 | G18: =IFERROR(VLOOKUP($A18,#REF!,10,FALSE), 0) -> 0
A20: 1.2 | B20: 1.2- Receita Resultante do Imposto sobre Transmissão Inter Vivos – ITBI | E20: =SUM(E21:E30) -> 0 | G20: =SUM(G21:G30) -> 0
A21: 1.1.1.2.53.0.1.01.00.000.000.11.01.000 | B21: =VLOOKUP($A21,#REF!,6,FALSE) ->  | E21: =IFERROR(VLOOKUP($A21,#REF!,13,FALSE), 0) -> 0 | G21: =IFERROR(VLOOKUP($A21,#REF!,10,FALSE), 0) -> 0
A22: 1.1.1.2.53.0.1.01.00.000.000.12.01.001 | B22: =VLOOKUP($A22,#REF!,6,FALSE) ->  | E22: =IFERROR(VLOOKUP($A22,#REF!,13,FALSE), 0) -> 0 | G22: =IFERROR(VLOOKUP($A22,#REF!,10,FALSE), 0) -> 0
A23: 1.1.1.2.53.0.1.01.00.000.000.12.01.002 | B23: =VLOOKUP($A23,#REF!,6,FALSE) ->  | E23: =IFERROR(VLOOKUP($A23,#REF!,13,FALSE), 0) -> 0 | G23: =IFERROR(VLOOKUP($A23,#REF!,10,FALSE), 0) -> 0
A24: 1.1.1.2.53.0.2.01.00.000.000.11.01.000 | B24: =VLOOKUP($A24,#REF!,6,FALSE) ->  | E24: =IFERROR(VLOOKUP($A24,#REF!,13,FALSE), 0) -> 0 | G24: =IFERROR(VLOOKUP($A24,#REF!,10,FALSE), 0) -> 0
A25: 1.1.1.2.53.0.2.01.00.000.000.12.01.001 | B25: =VLOOKUP($A25,#REF!,6,FALSE) ->  | E25: =IFERROR(VLOOKUP($A25,#REF!,13,FALSE), 0) -> 0 | G25: =IFERROR(VLOOKUP($A25,#REF!,10,FALSE), 0) -> 0
A26: 1.1.1.2.53.0.2.01.00.000.000.12.01.002 | B26: =VLOOKUP($A26,#REF!,6,FALSE) ->  | E26: =IFERROR(VLOOKUP($A26,#REF!,13,FALSE), 0) -> 0 | G26: =IFERROR(VLOOKUP($A26,#REF!,10,FALSE), 0) -> 0
A27: 1.1.1.2.53.0.3.01.00.000.000.11.01.000 | B27: =VLOOKUP($A27,#REF!,6,FALSE) ->  | E27: =IFERROR(VLOOKUP($A27,#REF!,13,FALSE), 0) -> 0 | G27: =IFERROR(VLOOKUP($A27,#REF!,10,FALSE), 0) -> 0
A28: 1.1.1.2.53.0.3.01.00.000.000.12.01.001 | B28: =VLOOKUP($A28,#REF!,6,FALSE) ->  | E28: =IFERROR(VLOOKUP($A28,#REF!,13,FALSE), 0) -> 0 | G28: =IFERROR(VLOOKUP($A28,#REF!,10,FALSE), 0) -> 0
A29: 1.1.1.2.53.0.4.01.00.000.000.11.01.000 | B29: =VLOOKUP($A29,#REF!,6,FALSE) ->  | E29: =IFERROR(VLOOKUP($A29,#REF!,13,FALSE), 0) -> 0 | G29: =IFERROR(VLOOKUP($A29,#REF!,10,FALSE), 0) -> 0
A30: 1.1.1.2.53.0.4.01.00.000.000.12.01.001 | B30: =VLOOKUP($A30,#REF!,6,FALSE) ->  | E30: =IFERROR(VLOOKUP($A30,#REF!,13,FALSE), 0) -> 0 | G30: =IFERROR(VLOOKUP($A30,#REF!,10,FALSE), 0) -> 0
A34: 1.3 | B34: 1.3- Receita Resultante do Imposto sobre Serviços de Qualquer Natureza – ISS | E34: =SUM(E35:E59) -> 0 | G34: =SUM(G35:G59) -> 0
A35: 1.1.1.4.51.1.1.01.00.000.000.11.01.000 | B35: =VLOOKUP($A35,#REF!,6,FALSE) ->  | E35: =IFERROR(VLOOKUP($A35,#REF!,13,FALSE), 0) -> 0 | G35: =IFERROR(VLOOKUP($A35,#REF!,10,FALSE), 0) -> 0
A36: 1.1.1.4.51.1.1.01.00.000.000.11.09.001 | B36: =VLOOKUP($A36,#REF!,6,FALSE) ->  | E36: =IFERROR(VLOOKUP($A36,#REF!,13,FALSE), 0) -> 0 | G36: =IFERROR(VLOOKUP($A36,#REF!,10,FALSE), 0) -> 0
A37: 1.1.1.4.51.1.1.01.00.000.000.12.01.001 | B37: =VLOOKUP($A37,#REF!,6,FALSE) ->  | E37: =IFERROR(VLOOKUP($A37,#REF!,13,FALSE), 0) -> 0 | G37: =IFERROR(VLOOKUP($A37,#REF!,10,FALSE), 0) -> 0
A38: 1.1.1.4.51.1.1.01.00.000.000.12.01.002 | B38: =VLOOKUP($A38,#REF!,6,FALSE) ->  | E38: =IFERROR(VLOOKUP($A38,#REF!,13,FALSE), 0) -> 0 | G38: =IFERROR(VLOOKUP($A38,#REF!,10,FALSE), 0) -> 0
A39: 1.1.1.4.51.1.1.01.00.000.000.12.01.004 | B39: =VLOOKUP($A39,#REF!,6,FALSE) ->  | E39: =IFERROR(VLOOKUP($A39,#REF!,13,FALSE), 0) -> 0 | G39: =IFERROR(VLOOKUP($A39,#REF!,10,FALSE), 0) -> 0
A40: 1.1.1.4.51.1.1.01.00.000.000.12.01.007 | B40: =VLOOKUP($A40,#REF!,6,FALSE) ->  | E40: =IFERROR(VLOOKUP($A40,#REF!,13,FALSE), 0) -> 0 | G40: =IFERROR(VLOOKUP($A40,#REF!,10,FALSE), 0) -> 0
A41: 1.1.1.4.51.1.1.03.00.000.000.11.01.000 | B41: =VLOOKUP($A41,#REF!,6,FALSE) ->  | E41: =IFERROR(VLOOKUP($A41,#REF!,13,FALSE), 0) -> 0 | G41: =IFERROR(VLOOKUP($A41,#REF!,10,FALSE), 0) -> 0
A42: 1.1.1.4.51.1.2.01.00.000.000.11.01.000 | B42: =VLOOKUP($A42,#REF!,6,FALSE) ->  | E42: =IFERROR(VLOOKUP($A42,#REF!,13,FALSE), 0) -> 0 | G42: =IFERROR(VLOOKUP($A42,#REF!,10,FALSE), 0) -> 0
A43: 1.1.1.4.51.1.2.01.00.000.000.12.01.001 | B43: =VLOOKUP($A43,#REF!,6,FALSE) ->  | E43: =IFERROR(VLOOKUP($A43,#REF!,13,FALSE), 0) -> 0 | G43: =IFERROR(VLOOKUP($A43,#REF!,10,FALSE), 0) -> 0
A44: 1.1.1.4.51.1.2.01.00.000.000.12.01.002 | B44: =VLOOKUP($A44,#REF!,6,FALSE) ->  | E44: =IFERROR(VLOOKUP($A44,#REF!,13,FALSE), 0) -> 0 | G44: =IFERROR(VLOOKUP($A44,#REF!,10,FALSE), 0) -> 0
A45: 1.1.1.4.51.1.2.01.00.000.000.12.01.004 | B45: =VLOOKUP($A45,#REF!,6,FALSE) ->  | E45: =IFERROR(VLOOKUP($A45,#REF!,13,FALSE), 0) -> 0 | G45: =IFERROR(VLOOKUP($A45,#REF!,10,FALSE), 0) -> 0
A46: 1.1.1.4.51.1.2.01.00.000.000.12.01.007 | B46: =VLOOKUP($A46,#REF!,6,FALSE) ->  | E46: =IFERROR(VLOOKUP($A46,#REF!,13,FALSE), 0) -> 0 | G46: =IFERROR(VLOOKUP($A46,#REF!,10,FALSE), 0) -> 0
A47: 1.1.1.4.51.1.2.03.00.000.000.11.01.000 | B47: =VLOOKUP($A47,#REF!,6,FALSE) ->  | E47: =IFERROR(VLOOKUP($A47,#REF!,13,FALSE), 0) -> 0 | G47: =IFERROR(VLOOKUP($A47,#REF!,10,FALSE), 0) -> 0
A48: 1.1.1.4.51.1.3.01.00.000.000.11.01.000 | B48: =VLOOKUP($A48,#REF!,6,FALSE) ->  | E48: =IFERROR(VLOOKUP($A48,#REF!,13,FALSE), 0) -> 0 | G48: =IFERROR(VLOOKUP($A48,#REF!,10,FALSE), 0) -> 0
A49: 1.1.1.4.51.1.3.01.00.000.000.12.01.001 | B49: =VLOOKUP($A49,#REF!,6,FALSE) ->  | E49: =IFERROR(VLOOKUP($A49,#REF!,13,FALSE), 0) -> 0 | G49: =IFERROR(VLOOKUP($A49,#REF!,10,FALSE), 0) -> 0
A50: 1.1.1.4.51.1.3.01.00.000.000.12.01.002 | B50: =VLOOKUP($A50,#REF!,6,FALSE) ->  | E50: =IFERROR(VLOOKUP($A50,#REF!,13,FALSE), 0) -> 0 | G50: =IFERROR(VLOOKUP($A50,#REF!,10,FALSE), 0) -> 0
A51: 1.1.1.4.51.1.3.01.00.000.000.12.01.004 | B51: =VLOOKUP($A51,#REF!,6,FALSE) ->  | E51: =IFERROR(VLOOKUP($A51,#REF!,13,FALSE), 0) -> 0 | G51: =IFERROR(VLOOKUP($A51,#REF!,10,FALSE), 0) -> 0
A52: 1.1.1.4.51.1.3.01.00.000.000.12.01.007 | B52: =VLOOKUP($A52,#REF!,6,FALSE) ->  | E52: =IFERROR(VLOOKUP($A52,#REF!,13,FALSE), 0) -> 0 | G52: =IFERROR(VLOOKUP($A52,#REF!,10,FALSE), 0) -> 0
A53: 1.1.1.4.51.1.3.03.00.000.000.11.01.000 | B53: =VLOOKUP($A53,#REF!,6,FALSE) ->  | E53: =IFERROR(VLOOKUP($A53,#REF!,13,FALSE), 0) -> 0 | G53: =IFERROR(VLOOKUP($A53,#REF!,10,FALSE), 0) -> 0
A54: 1.1.1.4.51.1.4.01.00.000.000.11.01.000 | B54: =VLOOKUP($A54,#REF!,6,FALSE) ->  | E54: =IFERROR(VLOOKUP($A54,#REF!,13,FALSE), 0) -> 0 | G54: =IFERROR(VLOOKUP($A54,#REF!,10,FALSE), 0) -> 0
A55: 1.1.1.4.51.1.4.01.00.000.000.12.01.001 | B55: =VLOOKUP($A55,#REF!,6,FALSE) ->  | E55: =IFERROR(VLOOKUP($A55,#REF!,13,FALSE), 0) -> 0 | G55: =IFERROR(VLOOKUP($A55,#REF!,10,FALSE), 0) -> 0
A56: 1.1.1.4.51.1.4.01.00.000.000.12.01.002 | B56: =VLOOKUP($A56,#REF!,6,FALSE) ->  | E56: =IFERROR(VLOOKUP($A56,#REF!,13,FALSE), 0) -> 0 | G56: =IFERROR(VLOOKUP($A56,#REF!,10,FALSE), 0) -> 0
A57: 1.1.1.4.51.1.4.01.00.000.000.12.01.004 | B57: =VLOOKUP($A57,#REF!,6,FALSE) ->  | E57: =IFERROR(VLOOKUP($A57,#REF!,13,FALSE), 0) -> 0 | G57: =IFERROR(VLOOKUP($A57,#REF!,10,FALSE), 0) -> 0
A58: 1.1.1.4.51.1.4.01.00.000.000.12.01.007 | B58: =VLOOKUP($A58,#REF!,6,FALSE) ->  | E58: =IFERROR(VLOOKUP($A58,#REF!,13,FALSE), 0) -> 0 | G58: =IFERROR(VLOOKUP($A58,#REF!,10,FALSE), 0) -> 0
A59: 1.1.1.4.51.1.4.03.00.000.000.11.01.000 | B59: =VLOOKUP($A59,#REF!,6,FALSE) ->  | E59: =IFERROR(VLOOKUP($A59,#REF!,13,FALSE), 0) -> 0 | G59: =IFERROR(VLOOKUP($A59,#REF!,10,FALSE), 0) -> 0
A62: 1.4 | B62: 1.4- Receita Resultante do Imposto de Renda Retido na Fonte – IRRF | E62: =SUM(E63:E71) -> 0 | G62: =SUM(G63:G71) -> 0
A63: 1.1.1.3.03.1.1.01.00.000.000.11.01.000 | B63: =VLOOKUP($A63,#REF!,6,FALSE) ->  | E63: =IFERROR(VLOOKUP($A63,#REF!,13,FALSE), 0) -> 0 | G63: =IFERROR(VLOOKUP($A63,#REF!,10,FALSE), 0) -> 0
A64: 1.1.1.3.03.1.2.01.00.000.000.11.01.000 | B64: =VLOOKUP($A64,#REF!,6,FALSE) ->  | E64: =IFERROR(VLOOKUP($A64,#REF!,13,FALSE), 0) -> 0 | G64: =IFERROR(VLOOKUP($A64,#REF!,10,FALSE), 0) -> 0
A65: 1.1.1.3.03.2.1.01.00.000.000.11.01.000 | B65: =VLOOKUP($A65,#REF!,6,FALSE) ->  | E65: =IFERROR(VLOOKUP($A65,#REF!,13,FALSE), 0) -> 0 | G65: =IFERROR(VLOOKUP($A65,#REF!,10,FALSE), 0) -> 0
A66: 1.1.1.3.03.3.1.01.00.000.000.11.01.000 | B66: =VLOOKUP($A66,#REF!,6,FALSE) ->  | E66: =IFERROR(VLOOKUP($A66,#REF!,13,FALSE), 0) -> 0 | G66: =IFERROR(VLOOKUP($A66,#REF!,10,FALSE), 0) -> 0
A67: 1.1.1.3.03.3.1.02.00.000.000.11.01.000 | B67: =VLOOKUP($A67,#REF!,6,FALSE) ->  | E67: =IFERROR(VLOOKUP($A67,#REF!,13,FALSE), 0) -> 0 | G67: =IFERROR(VLOOKUP($A67,#REF!,10,FALSE), 0) -> 0
A68: 1.1.1.3.03.3.2.02.00.000.000.11.01.000 | B68: =VLOOKUP($A68,#REF!,6,FALSE) ->  | E68: =IFERROR(VLOOKUP($A68,#REF!,13,FALSE), 0) -> 0 | G68: =IFERROR(VLOOKUP($A68,#REF!,10,FALSE), 0) -> 0
A69: 1.1.1.3.03.4.1.01.00.000.000.11.01.000 | B69: =VLOOKUP($A69,#REF!,6,FALSE) ->  | E69: =IFERROR(VLOOKUP($A69,#REF!,13,FALSE), 0) -> 0 | G69: =IFERROR(VLOOKUP($A69,#REF!,10,FALSE), 0) -> 0
A70: 1.1.1.3.03.4.1.02.00.000.000.11.01.000 | B70: =VLOOKUP($A70,#REF!,6,FALSE) ->  | E70: =IFERROR(VLOOKUP($A70,#REF!,13,FALSE), 0) -> 0 | G70: =IFERROR(VLOOKUP($A70,#REF!,10,FALSE), 0) -> 0
A71: 1.1.1.3.03.4.2.02.00.000.000.11.01.000 | B71: =VLOOKUP($A71,#REF!,6,FALSE) ->  | E71: =IFERROR(VLOOKUP($A71,#REF!,13,FALSE), 0) -> 0 | G71: =IFERROR(VLOOKUP($A71,#REF!,10,FALSE), 0) -> 0
A74: 2 | B74: 2- RECEITA DE TRANSFERÊNCIAS CONSTITUCIONAIS E LEGAIS | E74: =E75+E83+E87+E91+E95+E99+E103 -> 0 | G74: =G75+G83+G87+G91+G95+G99+G103 -> 0
A75: 2.1 | B75: 2.1- Cota-Parte FPM | E75: =E76+E80 -> 0 | G75: =G76+G80 -> 0
A76: 2.1.1 | B76: 2.1.1- Parcela referente à CF, art. 159, I, alínea b | E76: =E77 -> 0 | G76: =G77 -> 0
A77: 1.7.1.1.51.1.1.01.00.000.000.11.01.000 | B77: =VLOOKUP($A77,#REF!,6,FALSE) ->  | E77: =IFERROR(VLOOKUP($A77,#REF!,13,FALSE), 0) -> 0 | G77: =IFERROR(VLOOKUP($A77,#REF!,10,FALSE), 0) -> 0
A80: 2.1.2 | B80: 2.1.2- Parcela referente à CF, art. 159, I, alíneas d e e | E80: =E81 -> 0 | G80: =G81 -> 0
A81: 1.7.1.1.51.2.1.01.00.000.000.11.01.000 | B81: =VLOOKUP($A81,#REF!,6,FALSE) ->  | E81: =IFERROR(VLOOKUP($A81,#REF!,13,FALSE), 0) -> 0 | G81: =IFERROR(VLOOKUP($A81,#REF!,10,FALSE), 0) -> 0
A83: 2.2 | B83: 2.2- Cota-Parte ICMS | E83: =E84 -> 0 | G83: =G84 -> 0
A84: 1.7.2.1.50.0.1.01.00.000.000.11.01.000 | B84: =VLOOKUP($A84,#REF!,6,FALSE) ->  | E84: =IFERROR(VLOOKUP($A84,#REF!,13,FALSE), 0) -> 0 | G84: =IFERROR(VLOOKUP($A84,#REF!,10,FALSE), 0) -> 0
A87: 2.3 | B87: 2.3- Cota-Parte IPI-Exportação | E87: =E88 -> 0 | G87: =G88 -> 0
A88: 1.7.2.1.52.0.1.01.00.000.000.11.01.000 | B88: =VLOOKUP($A88,#REF!,6,FALSE) ->  | E88: =IFERROR(VLOOKUP($A88,#REF!,13,FALSE), 0) -> 0 | G88: =IFERROR(VLOOKUP($A88,#REF!,10,FALSE), 0) -> 0
A91: 2.4 | B91: 2.4- Cota-Parte ITR | E91: =E92 -> 0 | G91: =G92 -> 0
A92: 1.7.1.1.52.0.1.01.00.000.000.11.01.000 | B92: =VLOOKUP($A92,#REF!,6,FALSE) ->  | E92: =IFERROR(VLOOKUP($A92,#REF!,13,FALSE), 0) -> 0 | G92: =IFERROR(VLOOKUP($A92,#REF!,10,FALSE), 0) -> 0
A95: 2.5 | B95: 2.5- Cota-Parte IPVA | E95: =E96 -> 0 | G95: =G96 -> 0
A96: 1.7.2.1.51.0.1.01.00.000.000.11.01.000 | B96: =VLOOKUP($A96,#REF!,6,FALSE) ->  | E96: =IFERROR(VLOOKUP($A96,#REF!,13,FALSE), 0) -> 0 | G96: =IFERROR(VLOOKUP($A96,#REF!,10,FALSE), 0) -> 0
A99: 2.6 | B99: 2.6- Cota-Parte IOF-Ouro | E99: =E100 -> 0 | G99: =G100 -> 0
A100: 1.7.1.1.55.0.1.01.00.000.000.11.01.000 | B100: =VLOOKUP($A100,#REF!,6,FALSE) ->  | E100: =IFERROR(VLOOKUP($A100,#REF!,13,FALSE), 0) -> 0 | G100: =IFERROR(VLOOKUP($A100,#REF!,10,FALSE), 0) -> 0
A103: 2.7 | B103: 2.7- Compensações Financeiras Provenientes de Impostos e Transferências Constitucionais | E103: 0 | G103: 0
B109: FUNDEB
B110: RECEITAS RECEBIDAS DO FUNDEB NO EXERCÍCIO | D110: PREVISÃO | F110: RECEITAS
D111: INICIAL | F111: REALIZADAS
D112: (a) | F112: (b)
A113: 6 | B113: 6- TOTAL DAS RECEITAS DO FUNDEB RECEBIDAS | E113: =E114+E122+E126+E130 -> 0 | G113: =G114+G122+G126+G130 -> 0
A114: 6.1 | B114: 6.1- FUNDEB - Impostos e Transferências de Impostos | E114: =E115+E120+E121 -> 0 | G114: =G115+G120+G121 -> 0
A115: 6.1.1 | B115: 6.1.1- Principal | E115: =E116+E117 -> 0 | G115: =G116+G117 -> 0
A116: 1.7.5.1.50.0.1.01.00.000.000.11.01.000 | B116: =VLOOKUP($A116,#REF!,6,FALSE) ->  | E116: =IFERROR(VLOOKUP($A116,#REF!,13,FALSE), 0) -> 0 | G116: =IFERROR(VLOOKUP($A116,#REF!,10,FALSE), 0) -> 0
A117: 1.7.5.1.50.0.1.02.00.000.000.11.01.000 | B117: =VLOOKUP($A117,#REF!,6,FALSE) ->  | E117: =IFERROR(VLOOKUP($A117,#REF!,13,FALSE), 0) -> 0 | G117: =IFERROR(VLOOKUP($A117,#REF!,10,FALSE), 0) -> 0
A120: 6.1.2 | B120: 6.1.2- Rendimentos de Aplicação Financeira | E120: 0 | G120: 0
A121: 6.1.3 | B121: 6.1.3- Ressarcimento de Recursos do FUNDEB
A122: 6.2 | B122: 6.2- FUNDEB - Complementação da União - VAAF | E122: 0 | G122: 0
A123: 6.2.1 | B123: 6.2.1- Principal | E123: 0 | G123: 0
A124: 6.2.2 | B124: 6.2.2- Rendimentos de Aplicação Financeira | E124: 0 | G124: 0
A125: 6.2.3 | B125: 6.2.3- Ressarcimento de Recursos do FUNDEB | E125: 0 | G125: 0
A126: 6.3 | B126: 6.3- FUNDEB - Complementação da União - VAAT | E126: 0 | G126: 0
A127: 6.3.1 | B127: 6.3.1- Principal | E127: 0 | G127: 0
A128: 6.3.2 | B128: 6.3.2- Rendimentos de Aplicação Financeira | E128: 0 | G128: 0
A129: 6.3.3 | B129: 6.3.3- Ressarcimento de Recursos do FUNDEB | E129: 0 | G129: 0
A130: 6.3 | B130: 6.3- FUNDEB - Complementação da União - VAAR | E130: 0 | G130: 0
A131: 6.3.1 | B131: 6.3.1- Principal | E131: 0 | G131: 0
A132: 6.3.2 | B132: 6.3.2- Rendimentos de Aplicação Financeira | E132: 0 | G132: 0
A133: 6.3.3 | B133: 6.3.3- Ressarcimento de Recursos do FUNDEB | E133: 0 | G133: 0
B137: RECEITAS ADICIONAIS PARA FINANCIAMENTO DO ENSINO | D137: PREVISÃO | F137: RECEITAS
D138: INICIAL | F138: REALIZADAS
D139: (a) | F139: (b)
A140: 31 | B140: 31- TOTAL DAS RECEITAS ADICIONAIS PARA FINANCIAMENTO DO ENSINO | E140: =E141+E163+E166+E170+E171 -> 0 | G140: =G141+G163+G166+G170+G171 -> 0
A141: 31.1 | B141: 31.1- RECEITA DE TRANSFERÊNCIAS DO FNDE (INCLUINDO RENDIMENTOS DE APLICAÇÃO FINANCEIRA) | E141: =E142+E146+E150+E154+E158 -> 0 | G141: =G142+G146+G150+G154+G158 -> 0
A142: 31.1.1 | B142: 31.1.1- Salário-Educação | E142: =E143+E144 -> 0 | G142: =G143+G144 -> 0
A143: 1.3.2.1.05.0.1.01.03.034.006.11.01.000 | B143: =VLOOKUP($A143,#REF!,6,FALSE) ->  | E143: =IFERROR(VLOOKUP($A143,#REF!,13,FALSE), 0) -> 0 | G143: =IFERROR(VLOOKUP($A143,#REF!,10,FALSE), 0) -> 0
A144: 1.7.1.4.50.0.1.01.00.000.000.11.01.000 | B144: =VLOOKUP($A144,#REF!,6,FALSE) ->  | E144: =IFERROR(VLOOKUP($A144,#REF!,13,FALSE), 0) -> 0 | G144: =IFERROR(VLOOKUP($A144,#REF!,10,FALSE), 0) -> 0
A146: 31.1.2 | B146: 31.1.2- PDDE | E146: 0 | G146: 0
A150: 31.1.3 | B150: 31.1.3- PNAE | E150: =SUM(E151:E152) -> 0 | G150: =SUM(G151:G152) -> 0
A151: 1.3.2.1.05.0.1.01.03.034.001.11.01.000 | B151: =VLOOKUP($A151,#REF!,6,FALSE) ->  | E151: =IFERROR(VLOOKUP($A151,#REF!,13,FALSE), 0) -> 0 | G151: =IFERROR(VLOOKUP($A151,#REF!,10,FALSE), 0) -> 0
A152: 1.7.1.4.52.0.1.01.00.000.000.11.01.000 | B152: =VLOOKUP($A152,#REF!,6,FALSE) ->  | E152: =IFERROR(VLOOKUP($A152,#REF!,13,FALSE), 0) -> 0 | G152: =IFERROR(VLOOKUP($A152,#REF!,10,FALSE), 0) -> 0
A154: 31.1.4 | B154: 31.1.4 - PNATE | E154: =SUM(E155:E156) -> 0 | G154: =SUM(G155:G156) -> 0
A155: 1.3.2.1.05.0.1.01.03.034.004.11.01.000 | B155: =VLOOKUP($A155,#REF!,6,FALSE) ->  | E155: =IFERROR(VLOOKUP($A155,#REF!,13,FALSE), 0) -> 0 | G155: =IFERROR(VLOOKUP($A155,#REF!,10,FALSE), 0) -> 0
A156: 1.7.1.4.53.0.1.01.00.000.000.11.01.000 | B156: =VLOOKUP($A156,#REF!,6,FALSE) ->  | E156: =IFERROR(VLOOKUP($A156,#REF!,13,FALSE), 0) -> 0 | G156: =IFERROR(VLOOKUP($A156,#REF!,10,FALSE), 0) -> 0
A158: 31.1.5 | B158: 31.1.5- Outras Transferências do FNDE | E158: =SUM(E159:E161) -> 0 | G158: =SUM(G159:G161) -> 0
A159: 1.3.2.1.05.0.1.01.03.034.005.11.01.000 | B159: =VLOOKUP($A159,#REF!,6,FALSE) ->  | E159: =IFERROR(VLOOKUP($A159,#REF!,13,FALSE), 0) -> 0 | G159: =IFERROR(VLOOKUP($A159,#REF!,10,FALSE), 0) -> 0
A160: 1.7.1.4.99.0.1.01.01.000.000.11.01.000 | B160: =VLOOKUP($A160,#REF!,6,FALSE) ->  | E160: =IFERROR(VLOOKUP($A160,#REF!,13,FALSE), 0) -> 0 | G160: =IFERROR(VLOOKUP($A160,#REF!,10,FALSE), 0) -> 0
A161: 1.7.1.4.99.0.1.01.02.000.000.11.01.000 | B161: =VLOOKUP($A161,#REF!,6,FALSE) ->  | E161: =IFERROR(VLOOKUP($A161,#REF!,13,FALSE), 0) -> 0 | G161: =IFERROR(VLOOKUP($A161,#REF!,10,FALSE), 0) -> 0
A163: 31.2 | B163: 31.2- RECEITA DE TRANSFERÊNCIAS DE CONVÊNIOS | E163: =E164 -> 0 | G163: =G164 -> 0
A164: 1.3.2.1.05.0.1.01.03.034.003.11.01.000 | B164: =VLOOKUP($A164,#REF!,6,FALSE) ->  | E164: =IFERROR(VLOOKUP($A164,#REF!,13,FALSE), 0) -> 0 | G164: =IFERROR(VLOOKUP($A164,#REF!,10,FALSE), 0) -> 0
A166: 31.3 | B166: 31.3- RECEITA DE ROYALTIES DESTINADOS À EDUCAÇÃO | E166: =SUM(E167:E168) -> 0 | G166: =SUM(G167:G168) -> 0
A167: 1.7.1.2.52.1.1.01.00.000.000.11.01.000 | B167: =VLOOKUP($A167,#REF!,6,FALSE) ->  | E167: =IFERROR(VLOOKUP($A167,#REF!,13,FALSE), 0) -> 0 | G167: =IFERROR(VLOOKUP($A167,#REF!,10,FALSE), 0) -> 0
A168: 1.7.2.2.52.0.1.01.00.000.000.11.01.000 | B168: =VLOOKUP($A168,#REF!,6,FALSE) ->  | E168: =IFERROR(VLOOKUP($A168,#REF!,13,FALSE), 0) -> 0 | G168: =IFERROR(VLOOKUP($A168,#REF!,10,FALSE), 0) -> 0
A170: 31.4 | B170: 31.4- RECEITA DE OPERAÇÕES DE CRÉDITO VINCULADAS À EDUCAÇÃO
A171: 31.5 | B171: 31.5- OUTRAS RECEITAS PARA FINANCIAMENTO DO ENSINO

Sheet Receita_Consolidada
E2: RECEITAS REALIZADAS
A3: COD_ORIG_RCTA | B3: ='Anexo 8 - MDE Municípios'!E11 -> RECEITA RESULTANTE DE IMPOSTOS | C3: PREVISÃO INICIAL | D3: PREVISÃO ATUALIZADA (a) | E3: Até o Bimestre (b) | F3: % (b/a) x 100
B4: ='Anexo 8 - MDE Municípios'!$E$14 -> 1- RECEITA DE IMPOSTOS | C4: =C5+C10+C15+C20 -> 65,077,314,081 | D4: =D5+D10+D15+D20 -> 65,077,314,081 | E4: =E5+E10+E15+E20 -> 44,790,078,831 | F4: =IFERROR(E4/D4*100,0) -> 68.83
B5: ='Anexo 8 - MDE Municípios'!$E$15 -> 1.1- Receita Resultante do Imposto sobre a Propriedade Predial e Territorial Urbana – IPTU | C5: =SUM(C6:C9) -> 17,596,243,214 | D5: =SUM(D6:D9) -> 17,596,243,214 | E5: =SUM(E6:E9) -> 13,296,551,095 | F5: =IFERROR(E5/D5*100,0) -> 75.56
A6: 1.1.1.2.50.0.1.00.00.000.000.00.00.000 | B6: =IFERROR(VLOOKUP(A6,BD_Receita_PMSP_SOR051R!A:S,2,0),0) -> IMPOSTO SOBRE A PROPRIEDADE PREDIAL E TERRITORIAL URBANA - PRINCIPAL | C6: =IFERROR(VLOOKUP($A6,BD_Receita_PMSP_SOR051R!A:S,15,0),0) -> 15,697,308,008 | D6: =IFERROR(VLOOKUP($A6,BD_Receita_PMSP_SOR051R!A:S,10,0),0) -> 15,697,308,008 | E6: =IFERROR(VLOOKUP($A6,BD_Receita_PMSP_SOR051R!A:S,13,0),0) -> 12,139,207,162 | F6: 77.33
A7: 1.1.1.2.50.0.2.00.00.000.000.00.00.000 | B7: =IFERROR(VLOOKUP(A7,BD_Receita_PMSP_SOR051R!A:S,2,0),0) -> IMPOSTO SOBRE A PROPRIEDADE PREDIAL E TERRITORIAL URBANA - MULTAS E JU | C7: =IFERROR(VLOOKUP($A7,BD_Receita_PMSP_SOR051R!A:S,15,0),0) -> 124,573,261 | D7: =IFERROR(VLOOKUP($A7,BD_Receita_PMSP_SOR051R!A:S,10,0),0) -> 124,573,261 | E7: =IFERROR(VLOOKUP($A7,BD_Receita_PMSP_SOR051R!A:S,13,0),0) -> 94,952,125 | F7: 76.22
A8: 1.1.1.2.50.0.3.00.00.000.000.00.00.000 | B8: =IFERROR(VLOOKUP(A8,BD_Receita_PMSP_SOR051R!A:S,2,0),0) -> IMPOSTO SOBRE A PROPRIEDADE PREDIAL E TERRITORIAL URBANA - DÍVIDA ATIV | C8: =IFERROR(VLOOKUP($A8,BD_Receita_PMSP_SOR051R!A:S,15,0),0) -> 1,307,317,200 | D8: =IFERROR(VLOOKUP($A8,BD_Receita_PMSP_SOR051R!A:S,10,0),0) -> 1,307,317,200 | E8: =IFERROR(VLOOKUP($A8,BD_Receita_PMSP_SOR051R!A:S,13,0),0) -> 843,052,327 | F8: 64.49
A9: 1.1.1.2.50.0.4.00.00.000.000.00.00.000 | B9: =IFERROR(VLOOKUP(A9,BD_Receita_PMSP_SOR051R!A:S,2,0),0) -> IMPOSTO SOBRE A PROPRIEDADE PREDIAL E TERRITORIAL URBANA - DÍVIDA ATIV | C9: =IFERROR(VLOOKUP($A9,BD_Receita_PMSP_SOR051R!A:S,15,0),0) -> 467,044,745 | D9: =IFERROR(VLOOKUP($A9,BD_Receita_PMSP_SOR051R!A:S,10,0),0) -> 467,044,745 | E9: =IFERROR(VLOOKUP($A9,BD_Receita_PMSP_SOR051R!A:S,13,0),0) -> 219,339,481 | F9: 46.96
B10: ='Anexo 8 - MDE Municípios'!$E$16 -> 1.2- Receita Resultante do Imposto sobre Transmissão Inter Vivos – ITBI | C10: =SUM(C11:C14) -> 4,399,222,246 | D10: =SUM(D11:D14) -> 4,399,222,246 | E10: =SUM(E11:E14) -> 2,870,045,168 | F10: 65.24
A11: 1.1.1.2.53.0.1.00.00.000.000.00.00.000 | B11: =IFERROR(VLOOKUP(A11,BD_Receita_PMSP_SOR051R!A:S,2,0),0) -> IMPOSTO SOBRE TRANSMISSÃO INTER VIVOS DE BENS IMÓVEIS E DE DIREITOS RE | C11: =IFERROR(VLOOKUP($A11,BD_Receita_PMSP_SOR051R!A:S,15,0),0) -> 4,334,222,428 | D11: =IFERROR(VLOOKUP($A11,BD_Receita_PMSP_SOR051R!A:S,10,0),0) -> 4,334,222,428 | E11: =IFERROR(VLOOKUP($A11,BD_Receita_PMSP_SOR051R!A:S,13,0),0) -> 2,788,103,286 | F11: 64.33
A12: 1.1.1.2.53.0.2.00.00.000.000.00.00.000 | B12: =IFERROR(VLOOKUP(A12,BD_Receita_PMSP_SOR051R!A:S,2,0),0) -> IMPOSTO SOBRE TRANSMISSÃO INTER VIVOS DE BENS IMÓVEIS E DE DIREITOS RE | C12: =IFERROR(VLOOKUP($A12,BD_Receita_PMSP_SOR051R!A:S,15,0),0) -> 35,682,966 | D12: =IFERROR(VLOOKUP($A12,BD_Receita_PMSP_SOR051R!A:S,10,0),0) -> 35,682,966 | E12: =IFERROR(VLOOKUP($A12,BD_Receita_PMSP_SOR051R!A:S,13,0),0) -> 22,143,435 | F12: 62.06
A13: 1.1.1.2.53.0.3.00.00.000.000.00.00.000 | B13: =IFERROR(VLOOKUP(A13,BD_Receita_PMSP_SOR051R!A:S,2,0),0) -> IMPOSTO SOBRE TRANSMISSÃO INTER VIVOS DE BENS IMÓVEIS E DE DIREITOS RE | C13: =IFERROR(VLOOKUP($A13,BD_Receita_PMSP_SOR051R!A:S,15,0),0) -> 17,740,817 | D13: =IFERROR(VLOOKUP($A13,BD_Receita_PMSP_SOR051R!A:S,10,0),0) -> 17,740,817 | E13: =IFERROR(VLOOKUP($A13,BD_Receita_PMSP_SOR051R!A:S,13,0),0) -> 53,286,897 | F13: 300.36
A14: 1.1.1.2.53.0.4.00.00.000.000.00.00.000 | B14: =IFERROR(VLOOKUP(A14,BD_Receita_PMSP_SOR051R!A:S,2,0),0) -> IMPOSTO SOBRE TRANSMISSÃO INTER VIVOS DE BENS IMÓVEIS E DE DIREITOS RE | C14: =IFERROR(VLOOKUP($A14,BD_Receita_PMSP_SOR051R!A:S,15,0),0) -> 11,576,035 | D14: =IFERROR(VLOOKUP($A14,BD_Receita_PMSP_SOR051R!A:S,10,0),0) -> 11,576,035 | E14: =IFERROR(VLOOKUP($A14,BD_Receita_PMSP_SOR051R!A:S,13,0),0) -> 6,511,550 | F14: 56.25
B15: ='Anexo 8 - MDE Municípios'!$E$17 -> 1.3- Receita Resultante do Imposto sobre Serviços de Qualquer Natureza – ISS | C15: =SUM(C16:C19) -> 37,559,875,557 | D15: =SUM(D16:D19) -> 37,559,875,557 | E15: =SUM(E16:E19) -> 25,409,900,130 | F15: 67.65
A16: 1.1.1.4.51.1.1.00.00.000.000.00.00.000 | B16: =IFERROR(VLOOKUP(A16,BD_Receita_PMSP_SOR051R!A:S,2,0),0) -> IMPOSTO SOBRE SERVIÇOS DE QUALQUER NATUREZA - PRINCIPAL | C16: =IFERROR(VLOOKUP($A16,BD_Receita_PMSP_SOR051R!A:S,15,0),0) -> 36,466,235,277 | D16: =IFERROR(VLOOKUP($A16,BD_Receita_PMSP_SOR051R!A:S,10,0),0) -> 36,466,235,277 | E16: =IFERROR(VLOOKUP($A16,BD_Receita_PMSP_SOR051R!A:S,13,0),0) -> 24,556,335,081
A17: 1.1.1.4.51.1.2.00.00.000.000.00.00.000 | B17: =IFERROR(VLOOKUP(A17,BD_Receita_PMSP_SOR051R!A:S,2,0),0) -> IMPOSTO SOBRE SERVIÇOS DE QUALQUER NATUREZA - MULTAS E JUROS | C17: =IFERROR(VLOOKUP($A17,BD_Receita_PMSP_SOR051R!A:S,15,0),0) -> 325,813,375 | D17: =IFERROR(VLOOKUP($A17,BD_Receita_PMSP_SOR051R!A:S,10,0),0) -> 325,813,375 | E17: =IFERROR(VLOOKUP($A17,BD_Receita_PMSP_SOR051R!A:S,13,0),0) -> 234,531,420 | F17: 71.98
A18: 1.1.1.4.51.1.3.00.00.000.000.00.00.000 | B18: =IFERROR(VLOOKUP(A18,BD_Receita_PMSP_SOR051R!A:S,2,0),0) -> IMPOSTO SOBRE SERVIÇOS DE QUALQUER NATUREZA - DÍVIDA ATIVA | C18: =IFERROR(VLOOKUP($A18,BD_Receita_PMSP_SOR051R!A:S,15,0),0) -> 574,044,649 | D18: =IFERROR(VLOOKUP($A18,BD_Receita_PMSP_SOR051R!A:S,10,0),0) -> 574,044,649 | E18: =IFERROR(VLOOKUP($A18,BD_Receita_PMSP_SOR051R!A:S,13,0),0) -> 482,001,668 | F18: 83.97
A19: 1.1.1.4.51.1.4.00.00.000.000.00.00.000 | B19: =IFERROR(VLOOKUP(A19,BD_Receita_PMSP_SOR051R!A:S,2,0),0) -> IMPOSTO SOBRE SERVIÇOS DE QUALQUER NATUREZA - DÍVIDA ATIVA - MULTAS E | C19: =IFERROR(VLOOKUP($A19,BD_Receita_PMSP_SOR051R!A:S,15,0),0) -> 193,782,256 | D19: =IFERROR(VLOOKUP($A19,BD_Receita_PMSP_SOR051R!A:S,10,0),0) -> 193,782,256 | E19: =IFERROR(VLOOKUP($A19,BD_Receita_PMSP_SOR051R!A:S,13,0),0) -> 137,031,961 | F19: 70.71
B20: ='Anexo 8 - MDE Municípios'!$E$18 -> 1.4- Receita Resultante do Imposto de Renda Retido na Fonte – IRRF | C20: =SUM(C21:C24) -> 5,521,973,064 | D20: =SUM(D21:D24) -> 5,521,973,064 | E20: =SUM(E21:E24) -> 3,213,582,437 | F20: 58.20
A21: 1.1.1.3.03.1.0.00.00.000.000.00.00.000 | B21: =IFERROR(VLOOKUP(A21,BD_Receita_PMSP_SOR051R!A:S,2,0),0) -> IMPOSTO SOBRE A RENDA - RETIDO NA FONTE - TRABALHO | C21: =IFERROR(VLOOKUP($A21,BD_Receita_PMSP_SOR051R!A:S,15,0),0) -> 4,690,446,932 | D21: =IFERROR(VLOOKUP($A21,BD_Receita_PMSP_SOR051R!A:S,10,0),0) -> 4,690,446,932 | E21: =IFERROR(VLOOKUP($A21,BD_Receita_PMSP_SOR051R!A:S,13,0),0) -> 2,710,538,355 | F21: 57.79
A22: 1.1.1.3.03.2.0.00.00.000.000.00.00.000 | B22: =IFERROR(VLOOKUP(A22,BD_Receita_PMSP_SOR051R!A:S,2,0),0) -> IMPOSTO SOBRE A RENDA - RETIDO NA FONTE - CAPITAL | C22: =IFERROR(VLOOKUP($A22,BD_Receita_PMSP_SOR051R!A:S,15,0),0) -> 8,206,016 | D22: =IFERROR(VLOOKUP($A22,BD_Receita_PMSP_SOR051R!A:S,10,0),0) -> 8,206,016 | E22: =IFERROR(VLOOKUP($A22,BD_Receita_PMSP_SOR051R!A:S,13,0),0) -> 25,105,820 | F22: =IFERROR(E22/D22*100,0) -> 305.94
A23: 1.1.1.3.03.3.0.00.00.000.000.00.00.000 | B23: =IFERROR(VLOOKUP(A23,BD_Receita_PMSP_SOR051R!A:S,2,0),0) -> IMPOSTO SOBRE A RENDA - RETIDO NA FONTE - REMESSA AO EXTERIOR | C23: =IFERROR(VLOOKUP($A23,BD_Receita_PMSP_SOR051R!A:S,15,0),0) -> 27,798,587 | D23: =IFERROR(VLOOKUP($A23,BD_Receita_PMSP_SOR051R!A:S,10,0),0) -> 27,798,587 | E23: =IFERROR(VLOOKUP($A23,BD_Receita_PMSP_SOR051R!A:S,13,0),0) -> 29,706,257 | F23: 106.86
A24: 1.1.1.3.03.4.0.00.00.000.000.00.00.000 | B24: =IFERROR(VLOOKUP(A24,BD_Receita_PMSP_SOR051R!A:S,2,0),0) -> IMPOSTO SOBRE A RENDA - RETIDO NA FONTE - OUTROS RENDIMENTOS | C24: =IFERROR(VLOOKUP($A24,BD_Receita_PMSP_SOR051R!A:S,15,0),0) -> 795,521,529 | D24: =IFERROR(VLOOKUP($A24,BD_Receita_PMSP_SOR051R!A:S,10,0),0) -> 795,521,529 | E24: =IFERROR(VLOOKUP($A24,BD_Receita_PMSP_SOR051R!A:S,13,0),0) -> 448,232,006 | F24: 56.34
F25: 0 | H25: Receita de transferências constitucionais e legais no DRDASPS (Demonstrativo da Saúde, Anexo 12 RREO), para simples conferência
B26: ='Anexo 8 - MDE Municípios'!$E$19 -> 2- RECEITA DE TRANSFERÊNCIAS CONSTITUCIONAIS E LEGAIS | C26: =SUM(C27, C33, C36, C39, C42, C45, C48) -> 15,489,117,575 | D26: =SUM(D27, D33, D36, D39, D42, D45, D48) -> 15,489,117,575 | E26: =SUM(E27, E33, E36, E39, E42, E45, E48) -> 11,129,094,037 | F26: 71.85 | H26: =E26-E30-E45 -> 11,101,210,196.36
B27: ='Anexo 8 - MDE Municípios'!$E$20 -> 2.1- Cota-Parte FPM | C27: =SUM(C28, C30) -> 650,286,073 | D27: =SUM(D28, D30) -> 650,286,073 | E27: 464,659,174 | F27: 71.45
B28: ='Anexo 8 - MDE Municípios'!$E$21 -> 2.1.1- Parcela referente à CF, art. 159, I, alínea b | C28: =SUM(C29) -> 600,006,885 | D28: =SUM(D29) -> 600,006,885 | E28: =SUM(E29) -> 436,979,368 | F28: 72.83
A29: 1.7.1.1.51.1.1.01.00.000.000.11.01.000 | B29: =IFERROR(VLOOKUP(A29,BD_Receita_PMSP_SOR051R!A:S,2,0),0) -> Cota-Parte do Fundo de Participação dos Municípios - Cota Mensal | C29: =IFERROR(VLOOKUP($A29,BD_Receita_PMSP_SOR051R!A:S,15,0),0) -> 600,006,885 | D29: =IFERROR(VLOOKUP($A29,BD_Receita_PMSP_SOR051R!A:S,10,0),0) -> 600,006,885 | E29: =IFERROR(VLOOKUP($A29,BD_Receita_PMSP_SOR051R!A:S,13,0),0) -> 436,979,368 | F29: 72.83
B30: ='Anexo 8 - MDE Municípios'!$E$22 -> 2.1.2- Parcela referente à CF, art. 159, I, alíneas d e e | C30: =SUM(C31) -> 50,279,188 | D30: =SUM(D31) -> 50,279,188 | E30: =SUM(E31) -> 27,679,806 | F30: 55.05
A31: 1.7.1.1.51.2.1.01.00.000.000.11.00.000 | B31: =IFERROR(VLOOKUP(A31,BD_Receita_PMSP_SOR051R!A:S,2,0),0) -> COTA-PARTE FUNDO DE PARTICIPAÇÃO DO MUNICÍPIOS - COTAS EXTRAORDINÁRIAS | C31: =IFERROR(VLOOKUP($A31,BD_Receita_PMSP_SOR051R!A:S,15,0),0) -> 50,279,188 | D31: =IFERROR(VLOOKUP($A31,BD_Receita_PMSP_SOR051R!A:S,10,0),0) -> 50,279,188 | E31: =IFERROR(VLOOKUP($A31,BD_Receita_PMSP_SOR051R!A:S,13,0),0) -> 27,679,806 | F31: 55.05
B33: ='Anexo 8 - MDE Municípios'!E23 -> 2.2- Cota-Parte ICMS | C33: =C34+C35 -> 10,203,805,236 | D33: =D34+D35 -> 10,203,805,236 | E33: =E34+E35 -> 6,460,857,674 | F33: =IFERROR(E33/D33*100,0) -> 63.32
A34: 1.7.2.1.50.0.1.01.00.000.000.11.01.000 | B34: =IFERROR(VLOOKUP(A34,BD_Receita_PMSP_SOR051R!A:S,2,0),0) -> Cota-Parte do ICMS | C34: =IFERROR(VLOOKUP($A34,BD_Receita_PMSP_SOR051R!A:S,15,0),0) -> 10,203,805,236 | D34: =IFERROR(VLOOKUP($A34,BD_Receita_PMSP_SOR051R!A:S,10,0),0) -> 10,203,805,236 | E34: =IFERROR(VLOOKUP($A34,BD_Receita_PMSP_SOR051R!A:S,13,0),0) -> 6,460,857,674 | F34: 63.32
B36: ='Anexo 8 - MDE Municípios'!E24 -> 2.3- Cota-Parte IPI-Exportação | C36: =C37+C38 -> 59,459,612 | D36: =D37+D38 -> 59,459,612 | E36: 46,489,280 | F36: 78.19
A37: 1.7.2.1.52.0.1.01.00.000.000.11.01.000 | B37: =IFERROR(VLOOKUP(A37,BD_Receita_PMSP_SOR051R!A:S,2,0),0) -> Cota-Parte do IPI sobre Exportação | C37: =IFERROR(VLOOKUP($A37,BD_Receita_PMSP_SOR051R!A:S,15,0),0) -> 59,459,612 | D37: =IFERROR(VLOOKUP($A37,BD_Receita_PMSP_SOR051R!A:S,10,0),0) -> 59,459,612 | E37: =IFERROR(VLOOKUP($A37,BD_Receita_PMSP_SOR051R!A:S,13,0),0) -> 46,489,280 | F37: 78.19
B39: ='Anexo 8 - MDE Municípios'!E25 -> 2.4- Cota-Parte ITR | C39: =C40+C41 -> 19,439,666 | D39: =D40+D41 -> 19,439,666 | E39: =E40+E41 -> 1,789,890 | F39: 9.21
A40: 1.7.1.1.52.0.1.01.00.000.000.11.01.000 | B40: =IFERROR(VLOOKUP(A40,BD_Receita_PMSP_SOR051R!A:S,2,0),0) -> Cota-Parte do Imposto s/ a Propriedade Territorial Rural | C40: =IFERROR(VLOOKUP($A40,BD_Receita_PMSP_SOR051R!A:S,15,0),0) -> 19,439,666 | D40: =IFERROR(VLOOKUP($A40,BD_Receita_PMSP_SOR051R!A:S,10,0),0) -> 19,439,666 | E40: =IFERROR(VLOOKUP($A40,BD_Receita_PMSP_SOR051R!A:S,13,0),0) -> 1,789,890 | F40: 9.21
B42: ='Anexo 8 - MDE Municípios'!E26 -> 2.5- Cota-Parte IPVA | C42: =SUM(C43:C44) -> 4,553,894,634 | D42: =SUM(D43:D44) -> 4,553,894,634 | E42: =SUM(E43:E44) -> 4,155,093,984 | F42: 91.24
A43: 1.7.2.1.51.0.1.01.00.000.000.11.01.000 | B43: =IFERROR(VLOOKUP(A43,BD_Receita_PMSP_SOR051R!A:S,2,0),0) -> Cota-Parte do IPVA | C43: =IFERROR(VLOOKUP($A43,BD_Receita_PMSP_SOR051R!A:S,15,0),0) -> 4,553,894,634 | D43: =IFERROR(VLOOKUP($A43,BD_Receita_PMSP_SOR051R!A:S,10,0),0) -> 4,553,894,634 | E43: =IFERROR(VLOOKUP($A43,BD_Receita_PMSP_SOR051R!A:S,13,0),0) -> 4,161,853,891 | F43: 91.39
A44: 1.7.2.1.51.0.1.01.00.000.000.11.09.001 | B44: =IFERROR(VLOOKUP(A44,BD_Receita_PMSP_SOR051R!A:S,2,0),0) -> Deduções Cota-Parte do IPVA | C44: =IFERROR(VLOOKUP($A44,BD_Receita_PMSP_SOR051R!A:S,15,0),0) -> 0 | D44: =IFERROR(VLOOKUP($A44,BD_Receita_PMSP_SOR051R!A:S,10,0),0) -> 0 | E44: =IFERROR(VLOOKUP($A44,BD_Receita_PMSP_SOR051R!A:S,13,0),0) -> (6,759,907) | F44: 0
B45: ='Anexo 8 - MDE Municípios'!E27 -> 2.6- Cota-Parte IOF-Ouro | C45: =SUM(C46) -> 2,232,354 | D45: =SUM(D46) -> 2,232,354 | E45: =SUM(E46) -> 204,034 | F45: 9.14
A46: 1.7.1.1.55.0.1.01.00.000.000.11.01.000 | B46: =IFERROR(VLOOKUP(A46,BD_Receita_PMSP_SOR051R!A:S,2,0),0) -> Cota-parte do Imposto s/ Operações de Crédito, Câmbio e Seguro, ou Rel | C46: =IFERROR(VLOOKUP($A46,BD_Receita_PMSP_SOR051R!A:S,15,0),0) -> 2,232,354 | D46: =IFERROR(VLOOKUP($A46,BD_Receita_PMSP_SOR051R!A:S,10,0),0) -> 2,232,354 | E46: =IFERROR(VLOOKUP($A46,BD_Receita_PMSP_SOR051R!A:S,13,0),0) -> 204,034 | F46: =IFERROR(E46/D46*100,0) -> 9.14
B48: ='Anexo 8 - MDE Municípios'!E28 -> 2.7- Outras Transferências ou Compensações Financeiras Provenientes de Impostos e Transferências Constitucionais | C48: =SUM(C49:C50) -> 0 | D48: =SUM(D49:D50) -> 0 | E48: =SUM(E49:E50) -> 0 | F48: 0
A49: 1.7.1.9.61.0.0.00.00.000.000.00.00.000 | B49: =IFERROR(VLOOKUP(A49,BD_Receita_PMSP_SOR051R!A:S,2,0),0) -> 0 | C49: =IFERROR(VLOOKUP($A49,BD_Receita_PMSP_SOR051R!A:S,15,0),0) -> 0 | D49: =IFERROR(VLOOKUP($A49,BD_Receita_PMSP_SOR051R!A:S,10,0),0) -> 0 | E49: =IFERROR(VLOOKUP($A49,BD_Receita_PMSP_SOR051R!A:S,13,0),0) -> 0 | F49: 0
A50: 1.7.2.9.53.0.0.00.00.000.000.00.00.000 | B50: =IFERROR(VLOOKUP(A50,BD_Receita_PMSP_SOR051R!A:S,2,0),0) -> 0 | C50: =IFERROR(VLOOKUP($A50,BD_Receita_PMSP_SOR051R!A:S,15,0),0) -> 0 | D50: =IFERROR(VLOOKUP($A50,BD_Receita_PMSP_SOR051R!A:S,10,0),0) -> 0 | E50: =IFERROR(VLOOKUP($A50,BD_Receita_PMSP_SOR051R!A:S,13,0),0) -> 0 | F50: =IFERROR(E50/D50*100,0) -> 0
H51: CHECK - Deduções para formação do FUNDEB - 20% da receita bruta das cotas-parte de transferências
B52: ='Anexo 8 - MDE Municípios'!E29 -> 3- TOTAL DA RECEITA RESULTANTE DE IMPOSTOS (1 + 2) | C52: =C4+C26 -> 80,566,431,656 | D52: =D4+D26 -> 80,566,431,656 | E52: 55,919,172,868 | F52: =IFERROR(E52/D52*100,0) -> 69.41
H53: PREV INICIAL | I53: PREV ATUALIZADA | J53: ATÉ O BIMESTRE
B54: ='Anexo 8 - MDE Municípios'!E31 -> 4- TOTAL DESTINADO AO FUNDEB - equivalente a 20% DE ((2.1.1) + (2.2) + (2.3) + (2.4) + (2.5) + (2.7))¹ | C54: =-SUM(C56:C60) -> 3,087,321,206 | D54: =-SUM(D56:D60) -> 3,087,321,206 | E54: =-SUM(E56:E60) -> 2,221,594,020 | F54: =IFERROR(E54/D54*100,0) -> 71.96 | H54: =ROUND(C54-(0.2*(C29+C34+C37+C40+C43+C48)), 0) -> (1) | I54: =ROUND(D54-(0.2*(D29+D34+D37+D40+D43+D48)), 0) -> (1) | J54: =ROUND(E54-(0.2*(E29+E34+E37+E40+E43+E48)), 0) -> 0
A56: 1.7.1.1.51.1.1.01.00.000.000.11.09.001 | B56: =IFERROR(VLOOKUP(A56,BD_Receita_PMSP_SOR051R!A:S,2,0),0) -> Deduções de Receita para a Formação do FUNDEB - Fundo de Participação | C56: =IFERROR(VLOOKUP($A56,BD_Receita_PMSP_SOR051R!A:S,15,0),0) -> (120,001,377) | D56: =IFERROR(VLOOKUP($A56,BD_Receita_PMSP_SOR051R!A:S,10,0),0) -> (120,001,377) | E56: =IFERROR(VLOOKUP($A56,BD_Receita_PMSP_SOR051R!A:S,13,0),0) -> (87,395,873) | F56: =IFERROR(E56/D56*100,0) -> 72.83
A57: 1.7.1.1.52.0.1.01.00.000.000.11.09.001 | B57: =IFERROR(VLOOKUP(A57,BD_Receita_PMSP_SOR051R!A:S,2,0),0) -> Deduções de Receita para a Formação do FUNDEB - Imposto s/ a Proprieda | C57: =IFERROR(VLOOKUP($A57,BD_Receita_PMSP_SOR051R!A:S,15,0),0) -> (3,887,933) | D57: =IFERROR(VLOOKUP($A57,BD_Receita_PMSP_SOR051R!A:S,10,0),0) -> (3,887,933) | E57: =IFERROR(VLOOKUP($A57,BD_Receita_PMSP_SOR051R!A:S,13,0),0) -> (357,978) | F57: =IFERROR(E57/D57*100,0) -> 9.21
A58: 1.7.2.1.50.0.1.01.00.000.000.11.09.001 | B58: =IFERROR(VLOOKUP(A58,BD_Receita_PMSP_SOR051R!A:S,2,0),0) -> Deduções de Receita para a Formação do FUNDEB - ICMS | C58: =IFERROR(VLOOKUP($A58,BD_Receita_PMSP_SOR051R!A:S,15,0),0) -> (2,040,761,047) | D58: =IFERROR(VLOOKUP($A58,BD_Receita_PMSP_SOR051R!A:S,10,0),0) -> (2,040,761,047) | E58: =IFERROR(VLOOKUP($A58,BD_Receita_PMSP_SOR051R!A:S,13,0),0) -> (1,292,171,535) | F58: 63.32
A59: 1.7.2.1.51.0.1.01.00.000.000.11.09.002 | B59: =IFERROR(VLOOKUP(A59,BD_Receita_PMSP_SOR051R!A:S,2,0),0) -> Dedução de Receita para a Formação do FUNDEB - IPVA | C59: =IFERROR(VLOOKUP($A59,BD_Receita_PMSP_SOR051R!A:S,15,0),0) -> (910,778,927) | D59: =IFERROR(VLOOKUP($A59,BD_Receita_PMSP_SOR051R!A:S,10,0),0) -> (910,778,927) | E59: =IFERROR(VLOOKUP($A59,BD_Receita_PMSP_SOR051R!A:S,13,0),0) -> (832,370,778) | F59: 91.39 | H59: CHECK - 25% DA RECEITA RESULTANTE DE IMPOSTOS - L4 - L5 == 0
A60: 1.7.2.1.52.0.1.01.00.000.000.11.09.001 | B60: =IFERROR(VLOOKUP(A60,BD_Receita_PMSP_SOR051R!A:S,2,0),0) -> Deduções de Receita para a Formação do FUNDEB - IPI sobre Exportação | C60: =IFERROR(VLOOKUP($A60,BD_Receita_PMSP_SOR051R!A:S,15,0),0) -> (11,891,922) | D60: =IFERROR(VLOOKUP($A60,BD_Receita_PMSP_SOR051R!A:S,10,0),0) -> (11,891,922) | E60: =IFERROR(VLOOKUP($A60,BD_Receita_PMSP_SOR051R!A:S,13,0),0) -> (9,297,856) | F60: 78.19
H61: PREV INICIAL | I61: PREV ATUALIZADA | J61: ATÉ O BIMESTRE
B62: ='Anexo 8 - MDE Municípios'!E33 -> 5- VALOR MÍNIMO A SER APLICADO ALÉM DO VALOR DESTINADO AO FUNDEB - 5% DE ((2.1.1) + (2.2) + (2.3) + (2.4) + (2.5) + (2.7)) + 25% DE ((1.1) + (1.2) + (1.3) + (1.4) + (2.1.2) + (2.6)) | C62: =SUM((0.05*(C28+C33+C36+C39+C43+C48)), (0.25*(C5+C10+C15+C20+C30+C44+C45))) -> 17,054,286,707 | D62: 17,054,286,707 | E62: =SUM((0.05*(E28+E33+E36+E39+E43+E48)), (0.25*(E5+E10+E15+E20+E30+E44+E45))) -> 11,758,199,196 | F62: =IFERROR(E62/D62*100,0) -> 68.95 | H62: =ROUND((C52*0.25)-C54-C62, 0) -> 1 | I62: =ROUND((D52*0.25)-D54-D62, 0) -> 1 | J62: =ROUND((E52*0.25)-E54-E62, 0) -> 0
E66: RECEITAS REALIZADAS
A67: COD_ORIG_RCTA | B67: ='Anexo 8 - MDE Municípios'!E36 -> RECEITAS RECEBIDAS DO FUNDEB NO EXERCÍCIO | C67: PREVISÃO INICIAL | D67: PREVISÃO ATUALIZADA (a) | E67: Até o Bimestre (b) | F67: % (b/a)x100
B68: ='Anexo 8 - MDE Municípios'!E39 -> 6- RECEITAS RECEBIDAS DO FUNDEB | C68: =SUM(C69,C79,C83,C87) -> 7,461,572,924 | D68: =SUM(D69,D79,D83,D87) -> 7,518,555,150 | E68: =SUM(E69,E79,E83,E87) -> 5,432,235,270 | F68: =IFERROR(E68/D68*100,0) -> 72.25
B69: ='Anexo 8 - MDE Municípios'!E40 -> 6.1- FUNDEB - Impostos e Transferências de Impostos | C69: =SUM(C70, C75, C77) -> 7,433,741,316 | D69: =SUM(D70, D75, D77) -> 7,433,741,316 | E69: =SUM(E70, E75, E77) -> 5,347,421,436 | F69: 71.93
B70: ='Anexo 8 - MDE Municípios'!E41 -> 6.1.1- Principal | C70: =SUM(C71:C74) -> 7,388,707,990 | D70: =SUM(D71:D74) -> 7,388,707,990 | E70: =SUM(E71:E74) -> 5,308,170,838 | F70: 71.84
A71: 1.7.5.1.50.0.1.01.00.000.000.11.01.000 | B71: =IFERROR(VLOOKUP(A71,BD_Receita_PMSP_SOR051R!A:S,2,0),0) -> Transferências do FUNDEB - União | C71: =IFERROR(VLOOKUP($A71,BD_Receita_PMSP_SOR051R!A:S,15,0),0) -> 711,247,784 | D71: =IFERROR(VLOOKUP($A71,BD_Receita_PMSP_SOR051R!A:S,10,0),0) -> 711,247,784 | E71: =IFERROR(VLOOKUP($A71,BD_Receita_PMSP_SOR051R!A:S,13,0),0) -> 539,158,288 | F71: 75.80
A72: 1.7.5.1.50.0.1.01.00.000.000.11.09.001 | B72: =IFERROR(VLOOKUP(A72,BD_Receita_PMSP_SOR051R!A:S,2,0),0) -> 0 | C72: =IFERROR(VLOOKUP($A72,BD_Receita_PMSP_SOR051R!A:S,15,0),0) -> 0 | D72: =IFERROR(VLOOKUP($A72,BD_Receita_PMSP_SOR051R!A:S,10,0),0) -> 0 | E72: =IFERROR(VLOOKUP($A72,BD_Receita_PMSP_SOR051R!A:S,13,0),0) -> 0 | F72: 0
A73: 1.7.5.1.50.0.1.02.00.000.000.11.01.000 | B73: =IFERROR(VLOOKUP(A73,BD_Receita_PMSP_SOR051R!A:S,2,0),0) -> Transferências do FUNDEB - Estado | C73: =IFERROR(VLOOKUP($A73,BD_Receita_PMSP_SOR051R!A:S,15,0),0) -> 6,677,460,206 | D73: =IFERROR(VLOOKUP($A73,BD_Receita_PMSP_SOR051R!A:S,10,0),0) -> 6,677,460,206 | E73: =IFERROR(VLOOKUP($A73,BD_Receita_PMSP_SOR051R!A:S,13,0),0) -> 4,769,012,550 | F73: 71.42
A74: 1.7.5.1.50.0.1.02.00.000.000.11.09.000 | B74: =IFERROR(VLOOKUP(A74,BD_Receita_PMSP_SOR051R!A:S,2,0),0) -> 0 | C74: =IFERROR(VLOOKUP($A74,BD_Receita_PMSP_SOR051R!A:S,15,0),0) -> 0 | D74: =IFERROR(VLOOKUP($A74,BD_Receita_PMSP_SOR051R!A:S,10,0),0) -> 0 | E74: =IFERROR(VLOOKUP($A74,BD_Receita_PMSP_SOR051R!A:S,13,0),0) -> 0 | F74: 0
B75: ='Anexo 8 - MDE Municípios'!E42 -> 6.1.2- Rendimentos de Aplicação Financeira | C75: =SUM(C76) -> 45,033,326 | D75: =SUM(D76) -> 45,033,326 | E75: =SUM(E76) -> 39,250,598 | F75: =IFERROR(E75/D75*100,0) -> 87.16
A76: 1.3.2.1.05.0.1.01.05.034.002.11.01.000 | B76: =IFERROR(VLOOKUP(A76,BD_Receita_PMSP_SOR051R!A:S,2,0),0) -> Remuneração de Recursos Vinculados - FUNDEB | C76: =IFERROR(VLOOKUP($A76,BD_Receita_PMSP_SOR051R!A:S,15,0),0) -> 45,033,326 | D76: =IFERROR(VLOOKUP($A76,BD_Receita_PMSP_SOR051R!A:S,10,0),0) -> 45,033,326 | E76: =IFERROR(VLOOKUP($A76,BD_Receita_PMSP_SOR051R!A:S,13,0),0) -> 39,250,598 | F76: 87.16
B77: ='Anexo 8 - MDE Municípios'!E43 -> 6.1.3- Ressarcimento de recursos do Fundeb | C77: =SUM(C78) -> 0 | D77: =SUM(D78) -> 0 | E77: =SUM(E78) -> 0 | F77: 0
B78: =IFERROR(VLOOKUP(A78,BD_Receita_PMSP_SOR051R!A:S,2,0),0) -> 0 | C78: =IFERROR(VLOOKUP($A78,BD_Receita_PMSP_SOR051R!A:S,15,0),0) -> 0 | D78: =IFERROR(VLOOKUP($A78,BD_Receita_PMSP_SOR051R!A:S,10,0),0) -> 0 | E78: =IFERROR(VLOOKUP($A78,BD_Receita_PMSP_SOR051R!A:S,13,0),0) -> 0 | F78: 0
B79: ='Anexo 8 - MDE Municípios'!E44 -> 6.2- FUNDEB - Complementação da União - VAAF | C79: =SUM(C80:C82) -> 0 | D79: =SUM(D80:D82) -> 0 | E79: =SUM(E80:E82) -> 0 | F79: 0
B80: ='Anexo 8 - MDE Municípios'!E45 -> 6.2.1- Principal | C80: 0 | D80: =IFERROR(VLOOKUP($A80,BD_Receita_PMSP_SOR051R!A:S,10,0),0) -> 0 | E80: =IFERROR(VLOOKUP($A80,BD_Receita_PMSP_SOR051R!A:S,13,0),0) -> 0 | F80: 0
B81: ='Anexo 8 - MDE Municípios'!E46 -> 6.2.2- Rendimentos de Aplicação Financeira | C81: 0 | D81: =IFERROR(VLOOKUP($A81,BD_Receita_PMSP_SOR051R!A:S,10,0),0) -> 0 | E81: =IFERROR(VLOOKUP($A81,BD_Receita_PMSP_SOR051R!A:S,13,0),0) -> 0 | F81: 0
B82: ='Anexo 8 - MDE Municípios'!E47 -> 6.2.3- Ressarcimento de recursos do Fundeb | C82: 0 | D82: =IFERROR(VLOOKUP($A82,BD_Receita_PMSP_SOR051R!A:S,10,0),0) -> 0 | E82: =IFERROR(VLOOKUP($A82,BD_Receita_PMSP_SOR051R!A:S,13,0),0) -> 0 | F82: 0
B83: ='Anexo 8 - MDE Municípios'!E48 -> 6.3- FUNDEB - Complementação da União - VAAT | C83: =SUM(C84:C86) -> 0 | D83: =SUM(D84:D86) -> 0 | E83: =SUM(E84:E86) -> 0 | F83: 0
B84: ='Anexo 8 - MDE Municípios'!E49 -> 6.3.1- Principal | C84: 0 | D84: =IFERROR(VLOOKUP($A84,BD_Receita_PMSP_SOR051R!A:S,10,0),0) -> 0 | E84: =IFERROR(VLOOKUP($A84,BD_Receita_PMSP_SOR051R!A:S,13,0),0) -> 0 | F84: 0
B85: ='Anexo 8 - MDE Municípios'!E50 -> 6.3.2- Rendimentos de Aplicação Financeira | C85: 0 | D85: =IFERROR(VLOOKUP($A85,BD_Receita_PMSP_SOR051R!A:S,10,0),0) -> 0 | E85: =IFERROR(VLOOKUP($A85,BD_Receita_PMSP_SOR051R!A:S,13,0),0) -> 0 | F85: 0
B86: ='Anexo 8 - MDE Municípios'!E51 -> 6.3.3- Ressarcimento de recursos do Fundeb | C86: 0 | D86: =IFERROR(VLOOKUP($A86,BD_Receita_PMSP_SOR051R!A:S,10,0),0) -> 0 | E86: =IFERROR(VLOOKUP($A86,BD_Receita_PMSP_SOR051R!A:S,13,0),0) -> 0 | F86: 0
B87: ='Anexo 8 - MDE Municípios'!E52 -> 6.4- FUNDEB - Complementação da União - VAAR | C87: =SUM(C88,C91,C93) -> 27,831,608 | D87: =SUM(D88,D91,D93) -> 84,813,834 | E87: 84,813,834 | F87: 100.00
B88: ='Anexo 8 - MDE Municípios'!E53 -> 6.4.1- Principal | C88: =SUM(C89) -> 27,831,608 | D88: =SUM(D89:D90) -> 84,813,834 | E88: =SUM(E89:E90) -> 84,813,834 | F88: 100.00
A89: 1.7.1.5.52.0.1.01.00.000.000.11.01.000 | B89: =IFERROR(VLOOKUP(A89,BD_Receita_PMSP_SOR051R!A:S,2,0),0) -> Transferências de Recursos de Complementação da União ao Fundeb - VAAR | C89: =IFERROR(VLOOKUP($A89,BD_Receita_PMSP_SOR051R!A:S,15,0),0) -> 27,831,608 | D89: =IFERROR(VLOOKUP($A89,BD_Receita_PMSP_SOR051R!A:S,10,0),0) -> 84,813,834 | E89: =IFERROR(VLOOKUP($A89,BD_Receita_PMSP_SOR051R!A:S,13,0),0) -> 85,461,893 | F89: 100.76
A90: 1.7.1.5.52.0.1.01.00.000.000.11.09.001 | B90: =IFERROR(VLOOKUP(A90,BD_Receita_PMSP_SOR051R!A:S,2,0),0) -> Deduções de Transf Recursos Complementação da União ao Fundeb - VAAR | D90: =IFERROR(VLOOKUP($A90,BD_Receita_PMSP_SOR051R!A:S,10,0),0) -> 0 | E90: =IFERROR(VLOOKUP($A90,BD_Receita_PMSP_SOR051R!A:S,13,0),0) -> (648,059) | F90: =IFERROR(E90/D90*100,0) -> 0
B91: ='Anexo 8 - MDE Municípios'!E54 -> 6.4.2- Rendimentos de Aplicação Financeira | C91: 0 | D91: 0 | E91: 0 | F91: 0
A92: =IF(COUNTIF(BD_Receita_PMSP_SOR051R!T:T, "543_1.3.2.1")>0, "CHECAR!", "OK_1") -> OK_1 | B92: =IFERROR(VLOOKUP(A92,BD_Receita_PMSP_SOR051R!A:S,2,0),0) -> 0 | C92: =IFERROR(VLOOKUP($A92,BD_Receita_PMSP_SOR051R!A:S,15,0),0) -> 0 | D92: =IFERROR(VLOOKUP($A92,BD_Receita_PMSP_SOR051R!A:S,10,0),0) -> 0 | E92: =IFERROR(VLOOKUP($A92,BD_Receita_PMSP_SOR051R!A:S,13,0),0) -> 0 | F92: =IFERROR(E92/D92*100,0) -> 0
B93: ='Anexo 8 - MDE Municípios'!E55 -> 6.4.3- Ressarcimento de recursos do Fundeb | C93: 0 | D93: 0 | E93: 0 | F93: 0
A94: =IF(COUNTIF(BD_Receita_PMSP_SOR051R!T:T, "543_1.9.2.2")>0, "CHECAR!", "OK_2") -> OK_2 | B94: =IFERROR(VLOOKUP(A94,BD_Receita_PMSP_SOR051R!A:S,2,0),0) -> 0 | C94: =IFERROR(VLOOKUP($A94,BD_Receita_PMSP_SOR051R!A:S,15,0),0) -> 0 | D94: =IFERROR(VLOOKUP($A94,BD_Receita_PMSP_SOR051R!A:S,10,0),0) -> 0 | E94: =IFERROR(VLOOKUP($A94,BD_Receita_PMSP_SOR051R!A:S,13,0),0) -> 0 | F94: =IFERROR(E94/D94*100,0) -> 0
E98: RECEITAS REALIZADAS
A99: COD_ORIG_RCTA | B99: ='Anexo 8 - MDE Municípios'!E157 -> RECEITAS ADICIONAIS PARA FINANCIAMENTO DO ENSINO | C99: PREVISÃO INICIAL | D99: PREVISÃO ATUALIZADA (a) | E99: Até o Bimestre (b) | F99: % (b/a)x100
B100: ='Anexo 8 - MDE Municípios'!E160 -> 31- TOTAL DAS RECEITAS ADICIONAIS PARA FINANCIAMENTO DO ENSINO | C100: =SUM(C101, C127, C138, C141, C144, C146) -> 723,305,135 | D100: =SUM(D101, D127, D138, D141, D144, D146) -> 724,262,534 | E100: =SUM(E101, E127, E138, E141, E144, E146) -> 438,258,251 | F100: =IFERROR(E100/D100*100,0) -> 60.51
B101: ='Anexo 8 - MDE Municípios'!E161 -> 31.1- RECEITA DE TRANSFERÊNCIAS DO FNDE (INCLUINDO RENDIMENTOS DE APLICAÇÃO FINANCEIRA) | C101: =SUM(C102, C105, C107, C110, C113) -> 628,270,385 | D101: =SUM(D102, D105, D107, D110, D113) -> 629,227,784 | E101: =SUM(E102, E105, E107, E110, E113) -> 414,967,074 | F101: 65.95
B102: ='Anexo 8 - MDE Municípios'!E162 -> 31.1.1- Salário-Educação | C102: =SUM(C103:C104) -> 434,570,600 | D102: =SUM(D103:D104) -> 434,570,600 | E102: =SUM(E103:E104) -> 289,092,231 | F102: 66.52
A103: 1.3.2.1.05.0.1.01.03.034.006.11.01.000 | B103: =IFERROR(VLOOKUP(A103,BD_Receita_PMSP_SOR051R!A:S,2,0),0) -> Transferências do Salário Educação - Lei 10.832/03 | C103: =IFERROR(VLOOKUP($A103,BD_Receita_PMSP_SOR051R!A:S,15,0),0) -> 54,453,330 | D103: =IFERROR(VLOOKUP($A103,BD_Receita_PMSP_SOR051R!A:S,10,0),0) -> 54,453,330 | E103: =IFERROR(VLOOKUP($A103,BD_Receita_PMSP_SOR051R!A:S,13,0),0) -> 8,338,336 | F103: 15.31
A104: 1.7.1.4.50.0.1.01.00.000.000.11.01.000 | B104: =IFERROR(VLOOKUP(A104,BD_Receita_PMSP_SOR051R!A:S,2,0),0) -> Transferências do Salário-Educação | C104: =IFERROR(VLOOKUP($A104,BD_Receita_PMSP_SOR051R!A:S,15,0),0) -> 380,117,270 | D104: =IFERROR(VLOOKUP($A104,BD_Receita_PMSP_SOR051R!A:S,10,0),0) -> 380,117,270 | E104: =IFERROR(VLOOKUP($A104,BD_Receita_PMSP_SOR051R!A:S,13,0),0) -> 280,753,895 | F104: =IFERROR(E104/D104*100,0) -> 73.86
B105: ='Anexo 8 - MDE Municípios'!E163 -> 31.1.2- PDDE | C105: =SUM(C106) -> 0 | D105: =SUM(D106) -> 0 | E105: =SUM(E106) -> 0 | F105: =IFERROR(E105/D105*100,0) -> 0
A106: =IF(COUNTIF(BD_Receita_PMSP_SOR051R!$P:$P, "551")>0, "CHECAR!", "OK_3") -> OK_3 | B106: =IFERROR(VLOOKUP(A106,BD_Receita_PMSP_SOR051R!A:S,2,0),0) -> 0 | C106: =IFERROR(VLOOKUP($A106,BD_Receita_PMSP_SOR051R!A:S,15,0),0) -> 0 | D106: =IFERROR(VLOOKUP($A106,BD_Receita_PMSP_SOR051R!A:S,10,0),0) -> 0 | E106: =IFERROR(VLOOKUP($A106,BD_Receita_PMSP_SOR051R!A:S,13,0),0) -> 0 | F106: 0
B107: ='Anexo 8 - MDE Municípios'!E164 -> 31.1.3- PNAE | C107: =SUM(C108:C109) -> 193,468,042 | D107: =SUM(D108:D109) -> 193,468,042 | E107: =SUM(E108:E109) -> 118,745,229 | F107: =IFERROR(E107/D107*100,0) -> 61.38
A108: 1.3.2.1.05.0.1.01.03.034.001.11.01.000 | B108: =IFERROR(VLOOKUP(A108,BD_Receita_PMSP_SOR051R!A:S,2,0),0) -> Programa Nacional de Alimentação Escolar - PNAE/FNDE | C108: =IFERROR(VLOOKUP($A108,BD_Receita_PMSP_SOR051R!A:S,15,0),0) -> 11,626,802 | D108: =IFERROR(VLOOKUP($A108,BD_Receita_PMSP_SOR051R!A:S,10,0),0) -> 11,626,802 | E108: =IFERROR(VLOOKUP($A108,BD_Receita_PMSP_SOR051R!A:S,13,0),0) -> 9,673,099 | F108: =IFERROR(E108/D108*100,0) -> 83.20
A109: 1.7.1.4.52.0.1.01.00.000.000.11.01.000 | B109: =IFERROR(VLOOKUP(A109,BD_Receita_PMSP_SOR051R!A:S,2,0),0) -> Transferências Diretas do FNDE referentes ao Programa Nacional de Alim | C109: =IFERROR(VLOOKUP($A109,BD_Receita_PMSP_SOR051R!A:S,15,0),0) -> 181,841,240 | D109: =IFERROR(VLOOKUP($A109,BD_Receita_PMSP_SOR051R!A:S,10,0),0) -> 181,841,240 | E109: =IFERROR(VLOOKUP($A109,BD_Receita_PMSP_SOR051R!A:S,13,0),0) -> 109,072,130 | F109: =IFERROR(E109/D109*100,0) -> 59.98
B110: ='Anexo 8 - MDE Municípios'!E165 -> 31.1.4 - PNATE | C110: =SUM(C111:C112) -> 231,743 | D110: =SUM(D111:D112) -> 231,743 | E110: =SUM(E111:E112) -> 230,660 | F110: =IFERROR(E110/D110*100,0) -> 99.53
A111: 1.3.2.1.05.0.1.01.03.034.004.11.01.000 | B111: =IFERROR(VLOOKUP(A111,BD_Receita_PMSP_SOR051R!A:S,2,0),0) -> Programa Nacional de Apoio ao Transporte do Escolar - PNATE | C111: =IFERROR(VLOOKUP($A111,BD_Receita_PMSP_SOR051R!A:S,15,0),0) -> 87,971 | D111: =IFERROR(VLOOKUP($A111,BD_Receita_PMSP_SOR051R!A:S,10,0),0) -> 87,971 | E111: =IFERROR(VLOOKUP($A111,BD_Receita_PMSP_SOR051R!A:S,13,0),0) -> 79,451 | F111: 90.31
A112: 1.7.1.4.53.0.1.01.00.000.000.11.01.000 | B112: =IFERROR(VLOOKUP(A108,BD_Receita_PMSP_SOR051R!A:S,2,0),0) -> Programa Nacional de Alimentação Escolar - PNAE/FNDE | C112: =IFERROR(VLOOKUP($A112,BD_Receita_PMSP_SOR051R!A:S,15,0),0) -> 143,772 | D112: =IFERROR(VLOOKUP($A112,BD_Receita_PMSP_SOR051R!A:S,10,0),0) -> 143,772 | E112: =IFERROR(VLOOKUP($A112,BD_Receita_PMSP_SOR051R!A:S,13,0),0) -> 151,210 | F112: 105.17
B113: ='Anexo 8 - MDE Municípios'!E166 -> 31.1.5- Outras Transferências do FNDE | C113: =SUM(C114:C125) -> 0 | D113: =SUM(D114:D125) -> 957,399 | E113: =SUM(E114:E125) -> 6,898,954 | F113: 720.59
A114: 1.3.2.1.05.0.1.01.03.034.010.11.01.000 | B114: =IFERROR(VLOOKUP(A114,BD_Receita_PMSP_SOR051R!A:S,2,0),0) -> SME/ FNDE Lei nº 14.640/23 - Programa Escola em Tempo Integral - E.T.I | C114: =IFERROR(VLOOKUP($A114,BD_Receita_PMSP_SOR051R!A:S,15,0),0) -> 0 | D114: =IFERROR(VLOOKUP($A114,BD_Receita_PMSP_SOR051R!A:S,10,0),0) -> 957,399 | E114: =IFERROR(VLOOKUP($A114,BD_Receita_PMSP_SOR051R!A:S,13,0),0) -> 1,342,766 | F114: =IFERROR(E114/D114*100,0) -> 140.25
A115: 1.3.2.1.05.0.1.01.03.034.050.11.01.000 | B115: =IFERROR(VLOOKUP(A115,BD_Receita_PMSP_SOR051R!A:S,2,0),0) -> PMSP-SME/FNDE-PAC 2/PRO INFÂNCIA-CONSTRUÇÃO DE CRECHES | C115: =IFERROR(VLOOKUP($A115,BD_Receita_PMSP_SOR051R!A:S,15,0),0) -> 0 | D115: =IFERROR(VLOOKUP($A115,BD_Receita_PMSP_SOR051R!A:S,10,0),0) -> 0 | E115: =IFERROR(VLOOKUP($A115,BD_Receita_PMSP_SOR051R!A:S,13,0),0) -> 2,806,501 | F115: =IFERROR(E115/D115*100,0) -> 0
A116: 1.3.2.1.05.0.1.01.03.034.051.11.01.000 | B116: =IFERROR(VLOOKUP(A116,BD_Receita_PMSP_SOR051R!A:S,2,0),0) -> PMSP-SME/FNDE-BRASIL CARINHOSO | C116: =IFERROR(VLOOKUP($A116,BD_Receita_PMSP_SOR051R!A:S,15,0),0) -> 0 | D116: =IFERROR(VLOOKUP($A116,BD_Receita_PMSP_SOR051R!A:S,10,0),0) -> 0 | E116: =IFERROR(VLOOKUP($A116,BD_Receita_PMSP_SOR051R!A:S,13,0),0) -> 1,633,596 | F116: 0
A117: 1.3.2.1.05.0.1.01.03.034.052.11.01.000 | B117: =IFERROR(VLOOKUP(A117,BD_Receita_PMSP_SOR051R!A:S,2,0),0) -> PMSP-SME/FNDE-manutenção Ed. Infantil-Novas Turmas | C117: =IFERROR(VLOOKUP($A117,BD_Receita_PMSP_SOR051R!A:S,15,0),0) -> 0 | D117: =IFERROR(VLOOKUP($A117,BD_Receita_PMSP_SOR051R!A:S,10,0),0) -> 0 | E117: =IFERROR(VLOOKUP($A117,BD_Receita_PMSP_SOR051R!A:S,13,0),0) -> 408,674 | F117: 0
A118: 1.3.2.1.05.0.1.01.03.034.054.11.01.000 | B118: =IFERROR(VLOOKUP(A118,BD_Receita_PMSP_SOR051R!A:S,2,0),0) -> PMSP-SME/FNDE-PAR | C118: =IFERROR(VLOOKUP($A118,BD_Receita_PMSP_SOR051R!A:S,15,0),0) -> 0 | D118: =IFERROR(VLOOKUP($A118,BD_Receita_PMSP_SOR051R!A:S,10,0),0) -> 0 | E118: =IFERROR(VLOOKUP($A118,BD_Receita_PMSP_SOR051R!A:S,13,0),0) -> 145,752 | F118: 0
A119: 1.3.2.1.05.0.1.01.03.034.055.11.01.000 | B119: =IFERROR(VLOOKUP(A119,BD_Receita_PMSP_SOR051R!A:S,2,0),0) -> PMSP-SME/FNDE-PAR | C119: =IFERROR(VLOOKUP($A119,BD_Receita_PMSP_SOR051R!A:S,15,0),0) -> 0 | D119: =IFERROR(VLOOKUP($A119,BD_Receita_PMSP_SOR051R!A:S,10,0),0) -> 0 | E119: =IFERROR(VLOOKUP($A119,BD_Receita_PMSP_SOR051R!A:S,13,0),0) -> 500,668 | F119: 0
A120: 1.3.2.1.05.0.1.01.03.034.058.11.01.000 | B120: =IFERROR(VLOOKUP(A120,BD_Receita_PMSP_SOR051R!A:S,2,0),0) -> 0 | C120: =IFERROR(VLOOKUP($A120,BD_Receita_PMSP_SOR051R!A:S,15,0),0) -> 0 | D120: =IFERROR(VLOOKUP($A120,BD_Receita_PMSP_SOR051R!A:S,10,0),0) -> 0 | E120: =IFERROR(VLOOKUP($A120,BD_Receita_PMSP_SOR051R!A:S,13,0),0) -> 0 | F120: 0
A121: 1.3.2.1.05.0.1.01.03.034.065.11.01.000 | B121: =IFERROR(VLOOKUP(A121,BD_Receita_PMSP_SOR051R!A:S,2,0),0) -> PMSP-SME/FNDE-Manutenção Ed. Infantil-Novas Turmas | C121: =IFERROR(VLOOKUP($A121,BD_Receita_PMSP_SOR051R!A:S,15,0),0) -> 0 | D121: =IFERROR(VLOOKUP($A121,BD_Receita_PMSP_SOR051R!A:S,10,0),0) -> 0 | E121: =IFERROR(VLOOKUP($A121,BD_Receita_PMSP_SOR051R!A:S,13,0),0) -> 60,997 | F121: 0
A122: 1.3.2.1.05.0.1.01.03.034.069.11.01.000 | B122: =IFERROR(VLOOKUP(A122,BD_Receita_PMSP_SOR051R!A:S,2,0),0) -> 0 | C122: =IFERROR(VLOOKUP($A122,BD_Receita_PMSP_SOR051R!A:S,15,0),0) -> 0 | D122: =IFERROR(VLOOKUP($A122,BD_Receita_PMSP_SOR051R!A:S,10,0),0) -> 0 | E122: =IFERROR(VLOOKUP($A122,BD_Receita_PMSP_SOR051R!A:S,13,0),0) -> 0 | F122: 0
A123: 1.7.1.4.99.0.1.01.01.000.000.11.01.000 | B123: =IFERROR(VLOOKUP(A123,BD_Receita_PMSP_SOR051R!A:S,2,0),0) -> 0 | C123: =IFERROR(VLOOKUP($A123,BD_Receita_PMSP_SOR051R!A:S,15,0),0) -> 0 | D123: =IFERROR(VLOOKUP($A123,BD_Receita_PMSP_SOR051R!A:S,10,0),0) -> 0 | E123: =IFERROR(VLOOKUP($A123,BD_Receita_PMSP_SOR051R!A:S,13,0),0) -> 0 | F123: 0
A124: 1.7.1.4.99.0.1.01.02.000.000.11.01.000 | B124: =IFERROR(VLOOKUP(A124,BD_Receita_PMSP_SOR051R!A:S,2,0),0) -> 0 | C124: =IFERROR(VLOOKUP($A124,BD_Receita_PMSP_SOR051R!A:S,15,0),0) -> 0 | D124: =IFERROR(VLOOKUP($A124,BD_Receita_PMSP_SOR051R!A:S,10,0),0) -> 0 | E124: =IFERROR(VLOOKUP($A124,BD_Receita_PMSP_SOR051R!A:S,13,0),0) -> 0 | F124: 0
A125: 1.7.1.4.99.0.1.01.07.000.000.11.01.000 | B125: =IFERROR(VLOOKUP(A125,BD_Receita_PMSP_SOR051R!A:S,2,0),0) -> 0 | C125: =IFERROR(VLOOKUP($A125,BD_Receita_PMSP_SOR051R!A:S,15,0),0) -> 0 | D125: =IFERROR(VLOOKUP($A125,BD_Receita_PMSP_SOR051R!A:S,10,0),0) -> 0 | E125: =IFERROR(VLOOKUP($A125,BD_Receita_PMSP_SOR051R!A:S,13,0),0) -> 0 | F125: 0
A126: =IF(SUMIF(BD_Receita_PMSP_SOR051R!$P:$P,"569",BD_Receita_PMSP_SOR051R!$M:$M)-Receita_Consolidada!E113<>0,"CHECAR!","OK_4") -> OK_4 | B126: =IFERROR(VLOOKUP(A126,BD_Receita_PMSP_SOR051R!A:S,2,0),0) -> 0 | C126: =IFERROR(VLOOKUP($A126,BD_Receita_PMSP_SOR051R!A:S,15,0),0) -> 0 | D126: =IFERROR(VLOOKUP($A126,BD_Receita_PMSP_SOR051R!A:S,10,0),0) -> 0 | E126: =IFERROR(VLOOKUP($A126,BD_Receita_PMSP_SOR051R!A:S,13,0),0) -> 0 | F126: 0
B127: ='Anexo 8 - MDE Municípios'!E167 -> 31.2- RECEITA DE TRANSFERÊNCIAS DE CONVÊNIOS | C127: =SUM(C128:C136) -> 0 | D127: =SUM(D128:D136) -> 0 | E127: =SUM(E128:E136) -> 22,180,348 | F127: 0
A128: 1.3.2.1.05.0.1.01.04.034.002.11.01.000 | B128: =IFERROR(VLOOKUP(A128,BD_Receita_PMSP_SOR051R!A:S,2,0),0) -> PMSP-SME/Convênio SEDUC | C128: =IFERROR(VLOOKUP($A128,BD_Receita_PMSP_SOR051R!A:S,15,0),0) -> 0 | D128: =IFERROR(VLOOKUP($A128,BD_Receita_PMSP_SOR051R!A:S,10,0),0) -> 0 | E128: =IFERROR(VLOOKUP($A128,BD_Receita_PMSP_SOR051R!A:S,13,0),0) -> 6,515,919 | F128: 0
A129: 1.3.2.1.05.0.1.01.04.034.004.11.01.000 | B129: =IFERROR(VLOOKUP(A129,BD_Receita_PMSP_SOR051R!A:S,2,0),0) -> PMSP-SME/Equipamentos e mobiliário-EMEI Nelson Mandela | C129: =IFERROR(VLOOKUP($A129,BD_Receita_PMSP_SOR051R!A:S,15,0),0) -> 0 | D129: =IFERROR(VLOOKUP($A129,BD_Receita_PMSP_SOR051R!A:S,10,0),0) -> 0 | E129: =IFERROR(VLOOKUP($A129,BD_Receita_PMSP_SOR051R!A:S,13,0),0) -> 5,105 | F129: =IFERROR(E129/D129*100,0) -> 0
A130: 1.3.2.1.05.0.1.01.04.034.005.11.01.000 | B130: =IFERROR(VLOOKUP(A130,BD_Receita_PMSP_SOR051R!A:S,2,0),0) -> PMSP-SME/Convênio SEDUC PNAE | C130: =IFERROR(VLOOKUP($A130,BD_Receita_PMSP_SOR051R!A:S,15,0),0) -> 0 | D130: =IFERROR(VLOOKUP($A130,BD_Receita_PMSP_SOR051R!A:S,10,0),0) -> 0 | E130: =IFERROR(VLOOKUP($A130,BD_Receita_PMSP_SOR051R!A:S,13,0),0) -> 79,041 | F130: 0
A131: 1.3.2.1.05.0.1.01.04.034.006.11.01.000 | B131: =IFERROR(VLOOKUP(A131,BD_Receita_PMSP_SOR051R!A:S,2,0),0) -> PMSP-SME/Convênio SEDUC QESE | C131: =IFERROR(VLOOKUP($A131,BD_Receita_PMSP_SOR051R!A:S,15,0),0) -> 0 | D131: =IFERROR(VLOOKUP($A131,BD_Receita_PMSP_SOR051R!A:S,10,0),0) -> 0 | E131: =IFERROR(VLOOKUP($A131,BD_Receita_PMSP_SOR051R!A:S,13,0),0) -> 370,652 | F131: =IFERROR(E131/D131*100,0) -> 0
A132: 1.3.2.1.05.0.1.01.04.034.050.11.01.000 | B132: =IFERROR(VLOOKUP(A132,BD_Receita_PMSP_SOR051R!A:S,2,0),0) -> PMSP-SME/Convênio Estado - Constr. Creches | C132: =IFERROR(VLOOKUP($A132,BD_Receita_PMSP_SOR051R!A:S,15,0),0) -> 0 | D132: =IFERROR(VLOOKUP($A132,BD_Receita_PMSP_SOR051R!A:S,10,0),0) -> 0 | E132: =IFERROR(VLOOKUP($A132,BD_Receita_PMSP_SOR051R!A:S,13,0),0) -> 14,732 | F132: 0
A133: 1.7.2.4.51.0.1.02.00.000.000.11.01.000 | B133: =IFERROR(VLOOKUP(A133,BD_Receita_PMSP_SOR051R!A:S,2,0),0) -> Convênio SEDUC X SME 015.00444808/2023-21 | C133: =IFERROR(VLOOKUP($A133,BD_Receita_PMSP_SOR051R!A:S,15,0),0) -> 0 | D133: =IFERROR(VLOOKUP($A133,BD_Receita_PMSP_SOR051R!A:S,10,0),0) -> 0 | E133: =IFERROR(VLOOKUP($A133,BD_Receita_PMSP_SOR051R!A:S,13,0),0) -> 7,996,017 | F133: 0
A134: 1.7.2.4.51.0.1.03.00.000.000.11.01.000 | B134: =IFERROR(VLOOKUP(A134,BD_Receita_PMSP_SOR051R!A:S,2,0),0) -> PMSP-SME/Convênio SEDUC PNAE | C134: =IFERROR(VLOOKUP($A134,BD_Receita_PMSP_SOR051R!A:S,15,0),0) -> 0 | D134: =IFERROR(VLOOKUP($A134,BD_Receita_PMSP_SOR051R!A:S,10,0),0) -> 0 | E134: =IFERROR(VLOOKUP($A134,BD_Receita_PMSP_SOR051R!A:S,13,0),0) -> 1,239,366 | F134: 0
A135: 1.7.2.4.51.0.1.04.00.000.000.11.01.000 | B135: =IFERROR(VLOOKUP(A135,BD_Receita_PMSP_SOR051R!A:S,2,0),0) -> PMSP-SME/Convênio SEDUC QESE | C135: =IFERROR(VLOOKUP($A135,BD_Receita_PMSP_SOR051R!A:S,15,0),0) -> 0 | D135: =IFERROR(VLOOKUP($A135,BD_Receita_PMSP_SOR051R!A:S,10,0),0) -> 0 | E135: =IFERROR(VLOOKUP($A135,BD_Receita_PMSP_SOR051R!A:S,13,0),0) -> 5,811,815 | F135: =IFERROR(E135/D135*100,0) -> 0
A136: 2.4.2.2.51.0.1.02.00.000.000.11.01.000 | B136: =IFERROR(VLOOKUP(A136,BD_Receita_PMSP_SOR051R!A:S,2,0),0) -> Convênio PMSP-SME/Equipamentos e mobiliário - EMEI Nelson Mandela | C136: =IFERROR(VLOOKUP($A136,BD_Receita_PMSP_SOR051R!A:S,15,0),0) -> 0 | D136: =IFERROR(VLOOKUP($A136,BD_Receita_PMSP_SOR051R!A:S,10,0),0) -> 0 | E136: =IFERROR(VLOOKUP($A136,BD_Receita_PMSP_SOR051R!A:S,13,0),0) -> 147,700 | F136: 0
A137: =IF(SUM(SUMIF(BD_Receita_PMSP_SOR051R!$P:$P,{"570";"571";"572";"575"},BD_Receita_PMSP_SOR051R!$M:$M))-E127<>0,"CHECAR!","OK_5") -> OK_5 | B137: =IFERROR(VLOOKUP(A137,BD_Receita_PMSP_SOR051R!A:S,2,0),0) -> 0 | C137: =IFERROR(VLOOKUP($A137,BD_Receita_PMSP_SOR051R!A:S,15,0),0) -> 0 | D137: =IFERROR(VLOOKUP($A137,BD_Receita_PMSP_SOR051R!A:S,10,0),0) -> 0 | E137: =IFERROR(VLOOKUP($A137,BD_Receita_PMSP_SOR051R!A:S,13,0),0) -> 0 | F137: 0
B138: ='Anexo 8 - MDE Municípios'!E168 -> 31.3- RECEITA DE ROYALTIES DESTINADOS À EDUCAÇÃO | C138: =SUM(C139) -> 0 | D138: =SUM(D139) -> 0 | E138: =SUM(E139) -> 0 | F138: 0
A139: 0 | B139: =IFERROR(VLOOKUP(A139,BD_Receita_PMSP_SOR051R!A:S,2,0),0) -> 0 | C139: =IFERROR(VLOOKUP($A139,BD_Receita_PMSP_SOR051R!A:S,15,0),0) -> 0 | D139: =IFERROR(VLOOKUP($A139,BD_Receita_PMSP_SOR051R!A:S,10,0),0) -> 0 | E139: =IFERROR(VLOOKUP($A139,BD_Receita_PMSP_SOR051R!A:S,13,0),0) -> 0
A140: =IF(SUM(SUMIF(BD_Receita_PMSP_SOR051R!$P:$P,"573",BD_Receita_PMSP_SOR051R!$M:$M))-E138<>0,"CHECAR!","OK_6") -> OK_6 | B140: =IFERROR(VLOOKUP(A140,BD_Receita_PMSP_SOR051R!A:S,2,0),0) -> 0 | C140: =IFERROR(VLOOKUP($A140,BD_Receita_PMSP_SOR051R!A:S,15,0),0) -> 0 | D140: =IFERROR(VLOOKUP($A140,BD_Receita_PMSP_SOR051R!A:S,10,0),0) -> 0 | E140: =IFERROR(VLOOKUP($A140,BD_Receita_PMSP_SOR051R!A:S,13,0),0) -> 0 | F140: 0
B141: ='Anexo 8 - MDE Municípios'!E169 -> 31.4- RECEITA DE OPERAÇÕES DE CRÉDITO VINCULADAS À EDUCAÇÃO | C141: =SUM(C142) -> 95,034,750 | D141: =SUM(D142) -> 95,034,750 | E141: =SUM(E142) -> 0 | F141: 0
A142: 2.1.2.2.50.0.1.01.00.000.000.11.01.000 | B142: =IFERROR(VLOOKUP(A142,BD_Receita_PMSP_SOR051R!A:S,2,0),0) -> Operação de Crédito - Educação Paulistana Pode Mais BID | C142: =IFERROR(VLOOKUP($A142,BD_Receita_PMSP_SOR051R!A:S,15,0),0) -> 95,034,750 | D142: =IFERROR(VLOOKUP($A142,BD_Receita_PMSP_SOR051R!A:S,10,0),0) -> 95,034,750 | E142: =IFERROR(VLOOKUP($A142,BD_Receita_PMSP_SOR051R!A:S,13,0),0) -> 0 | F142: 0
A143: =IF(AND( SUM(SUMIF(BD_Receita_PMSP_SOR051R!$P:$P,"574",BD_Receita_PMSP_SOR051R!$O:$O))-C141<>0, SUM(SUMIF(BD_Receita_PMSP_SOR051R!$P:$P,"574",BD_Receita_PMSP_SOR051R!$J:$J))-D141<>0, SUM(SUMIF(BD_Receita_PMSP_SOR051R!$P:$P,"574",BD_Receita_PMSP_SOR051R!$M:$M))-E141<>0), "CHECAR!","OK_7") -> OK_7 | B143: =IFERROR(VLOOKUP(A143,BD_Receita_PMSP_SOR051R!A:S,2,0),0) -> 0 | C143: =IFERROR(VLOOKUP($A143,BD_Receita_PMSP_SOR051R!A:S,15,0),0) -> 0 | D143: =IFERROR(VLOOKUP($A143,BD_Receita_PMSP_SOR051R!A:S,10,0),0) -> 0 | E143: =IFERROR(VLOOKUP($A143,BD_Receita_PMSP_SOR051R!A:S,13,0),0) -> 0 | F143: 0
B144: ='Anexo 8 - MDE Municípios'!E170 -> 31.5- RECEITA DE PRECATÓRIOS - FUNDEF E FUNDEB | C144: =SUM(C145) -> 0 | D144: =SUM(D145) -> 0 | E144: =SUM(E145) -> 0 | F144: =IFERROR(E144/D144*100,0) -> 0
A145: =IF(SUMPRODUCT(ISNUMBER(SEARCH("PRECATÓRIO", BD_Receita_PMSP_SOR051R!$B:$B))*1, ISNUMBER(SEARCH("FUNDE", BD_Receita_PMSP_SOR051R!$B:$B))*1)>0, "CHECAR!","OK_8") -> OK_8 | B145: =IFERROR(VLOOKUP(A145,BD_Receita_PMSP_SOR051R!A:S,2,0),0) -> 0 | C145: =IFERROR(VLOOKUP($A145,BD_Receita_PMSP_SOR051R!A:S,15,0),0) -> 0 | D145: =IFERROR(VLOOKUP($A145,BD_Receita_PMSP_SOR051R!A:S,10,0),0) -> 0 | E145: =IFERROR(VLOOKUP($A145,BD_Receita_PMSP_SOR051R!A:S,13,0),0) -> 0 | F145: 0
B146: ='Anexo 8 - MDE Municípios'!E171 -> 31.6- OUTRAS RECEITAS PARA FINANCIAMENTO DO ENSINO | C146: =SUM(C147) -> 0 | D146: =SUM(D147) -> 0 | E146: =SUM(E147) -> 1,110,829 | F146: 0
A147: 1.3.2.1.05.0.1.01.06.034.001.11.01.000 | B147: =IFERROR(VLOOKUP(A147,BD_Receita_PMSP_SOR051R!A:S,2,0),0) -> SME/Projeto Nossa Creche II | C147: =IFERROR(VLOOKUP($A147,BD_Receita_PMSP_SOR051R!A:S,15,0),0) -> 0 | D147: =IFERROR(VLOOKUP($A147,BD_Receita_PMSP_SOR051R!A:S,10,0),0) -> 0 | E147: =IFERROR(VLOOKUP($A147,BD_Receita_PMSP_SOR051R!A:S,13,0),0) -> 1,110,829 | F147: 0
A148: =IF(SUM(SUMIFS(BD_Receita_PMSP_SOR051R!$M:$M,BD_Receita_PMSP_SOR051R!$Q:$Q,{"1.7.1.9.56";"1.7.2.9.52.0.0";"1.7.9.1.51";"2.4.2.9.51";"2.4.6.1.51";"2.4.9.1.51"}), SUMIFS(BD_Receita_PMSP_SOR051R!$M:$M,BD_Receita_PMSP_SOR051R!$Q:$Q,{"1.9.2.2.06";"1.9.2.2.99"}, BD_Receita_PMSP_SOR051R!$P:$P, "544"), SUMIFS(BD_Receita_PMSP_SOR051R!$M:$M,BD_Receita_PMSP_SOR051R!$Q:$Q,{"1.9.2.2.06";"1.9.2.2.99";"1.9.4.0.00";"1.9.9.9.99";"2.9.9.9.99"}, BD_Receita_PMSP_SOR051R!$P:$P, "576"), SUMIFS(BD_Receita_PMSP_SOR051R!$M:$M,BD_Receita_PMSP_SOR051R!$P:$P, "599"))-E146<>0,"CHECAR!","OK_9") -> OK_9 | B148: =IFERROR(VLOOKUP(A148,BD_Receita_PMSP_SOR051R!A:S,2,0),0) -> 0 | C148: =IFERROR(VLOOKUP($A148,BD_Receita_PMSP_SOR051R!A:S,15,0),0) -> 0 | D148: =IFERROR(VLOOKUP($A148,BD_Receita_PMSP_SOR051R!A:S,10,0),0) -> 0 | E148: =IFERROR(VLOOKUP($A148,BD_Receita_PMSP_SOR051R!A:S,13,0),0) -> 0 | F148: 0

Sheet Despesas_Consolidadas
B13: DESPESAS COM RECURSOS DO FUNDEB (Por Subfunção) | D13: DOTAÇÃO ATUALIZADA | F13: DESPESAS EMPENHADAS | H13: DESPESAS LIQUIDADAS | J13: DESPESAS PAGAS | L13: INSCRITAS EM RESTOS A PAGAR NÃO PROCESSADOS
F14: Até o Bimestre | H14: Até o Bimestre | J14: Até o Bimestre
D15: (c) | F15: (d) | H15: (e) | J15: (f) | L15: (g)
A16: 10 | B16: 10- TOTAL DAS DESPESAS COM RECURSOS DO FUNDEB | E16: =E17+E29 -> 7,573,745,998 | G16: =G17+G29 -> 5,457,839,790 | I16: =I17+I29 -> 5,457,839,790 | K16: =K17+K29 -> 5,457,839,790 | M16: =M17+M29 -> 0
A17: 10.1 | B17: 10.1- PROFISSIONAIS DA EDUCAÇÃO BÁSICA | E17: =E18+E23 -> 7,573,745,998 | G17: =G18+G23 -> 5,457,839,790 | I17: =I18+I23 -> 5,457,839,790 | K17: =K18+K23 -> 5,457,839,790 | M17: =M18+M23 -> 0
A18: 10.1.1 | B18: 10.1.1- Educação Infantil | E18: =SUM(E19:E21) -> 3,797,096,916 | G18: =SUM(G19:G21) -> 2,761,286,796 | I18: =SUM(I19:I21) -> 2,761,286,796 | K18: =SUM(K19:K21) -> 2,761,286,796 | M18: =SUM(M19:M21) -> 0
A19: 16.365.2856.04 | B19: =VLOOKUP($A19,Despesas_x_Subfuncao!$A:$L,7,FALSE) -> 2856 - REMUNERAÇÃO DOS PROFISSIONAIS DA EDUCAÇÃO BÁSICA - CENTRO DE EDUCAÇÃO INFANTIL (CEI) | E19: =VLOOKUP($A19,Despesas_x_Subfuncao!$A:$L,9,FALSE) -> 1,639,790,150.00 | G19: =VLOOKUP($A19,Despesas_x_Subfuncao!$A:$L,10,FALSE) -> 1,105,614,296.57 | I19: =VLOOKUP($A19,Despesas_x_Subfuncao!$A:$L,11,FALSE) -> 1,105,614,296.57 | K19: =VLOOKUP($A19,Despesas_x_Subfuncao!$A:$L,12,FALSE) -> 1,105,614,296.57 | M19: =G19-I19 -> 0
A20: 16.365.2858.04 | B20: =VLOOKUP($A20,Despesas_x_Subfuncao!$A:$L,7,FALSE) -> 2858 - REMUNERAÇÃO DOS PROFISSIONAIS DA EDUCAÇÃO BÁSICA - ESCOLA MUNICIPAL DE EDUCAÇÃO INFANTIL (EMEI) | E20: =VLOOKUP($A20,Despesas_x_Subfuncao!$A:$L,9,FALSE) -> 1,953,548,251.00 | G20: =VLOOKUP($A20,Despesas_x_Subfuncao!$A:$L,10,FALSE) -> 1,490,019,827.13 | I20: =VLOOKUP($A20,Despesas_x_Subfuncao!$A:$L,11,FALSE) -> 1,490,019,827.13 | K20: =VLOOKUP($A20,Despesas_x_Subfuncao!$A:$L,12,FALSE) -> 1,490,019,827.13 | M20: =G20-I20 -> 0
A21: 16.365.2877.04 | B21: =VLOOKUP($A21,Despesas_x_Subfuncao!$A:$L,7,FALSE) -> 2877 - REMUNERAÇÃO DOS PROFISSIONAIS DA EDUCAÇÃO BÁSICA - CENTRO MUNICIPAL DE EDUCAÇÃO INFANTIL( CEMEI) | E21: =VLOOKUP($A21,Despesas_x_Subfuncao!$A:$L,9,FALSE) -> 203,758,515.00 | G21: =VLOOKUP($A21,Despesas_x_Subfuncao!$A:$L,10,FALSE) -> 165,652,672.10 | I21: =VLOOKUP($A21,Despesas_x_Subfuncao!$A:$L,11,FALSE) -> 165,652,672.10 | K21: =VLOOKUP($A21,Despesas_x_Subfuncao!$A:$L,12,FALSE) -> 165,652,672.10 | M21: 0
A23: 10.1.2 | B23: 10.1.2- Ensino Fundamental | E23: =E24 -> 3,776,649,082 | G23: =G24 -> 2,696,552,995 | I23: =I24 -> 2,696,552,995 | K23: =K24 -> 2,696,552,995 | M23: =M24 -> 0
A24: 16.361.2857.04 | B24: =VLOOKUP($A24,Despesas_x_Subfuncao!$A:$L,7,FALSE) -> 2857 - REMUNERAÇÃO DOS PROFISSIONAIS DA EDUCAÇÃO BÁSICA - ENSINO FUNDAMENTAL | E24: =VLOOKUP($A24,Despesas_x_Subfuncao!$A:$L,9,FALSE) -> 3,776,649,081.74 | G24: =VLOOKUP($A24,Despesas_x_Subfuncao!$A:$L,10,FALSE) -> 2,696,552,994.60 | I24: =VLOOKUP($A24,Despesas_x_Subfuncao!$A:$L,11,FALSE) -> 2,696,552,994.60 | K24: =VLOOKUP($A24,Despesas_x_Subfuncao!$A:$L,12,FALSE) -> 2,696,552,994.60 | M24: =G24-I24 -> 0
A26: 10.1.3 | B26: 10.1.3- Educação de Jovens e Adultos | E26: 0 | G26: 0 | I26: 0 | K26: 0 | M26: 0
A27: 10.1.4 | B27: 10.1.4- Educação Especial | E27: 0 | G27: 0 | I27: 0 | K27: 0 | M27: 0
A28: 10.1.5 | B28: 10.1.5- Administração Geral | E28: 0 | G28: 0 | I28: 0 | K28: 0 | M28: 0
A29: 10.2 | B29: 10.2- OUTRAS DESPESAS | E29: 0 | G29: 0 | I29: 0 | K29: 0 | M29: 0
A30: 10.2.1 | B30: 10.2.1- Educação Infantil | E30: 0 | G30: 0 | I30: 0 | K30: 0 | M30: 0
A31: 10.2.2 | B31: 10.2.2- Ensino Fundamental | E31: 0 | G31: 0 | I31: 0 | K31: 0 | M31: 0
A32: 10.2.3 | B32: 10.2.3- Educação de Jovens e Adultos | E32: 0 | G32: 0 | I32: 0 | K32: 0 | M32: 0
A33: 10.2.4 | B33: 10.2.4- Educação Especial | E33: 0 | G33: 0 | I33: 0 | K33: 0 | M33: 0
A34: 10.2.5 | B34: 10.2.5- Administração Geral | E34: 0 | G34: 0 | I34: 0 | K34: 0 | M34: 0
A35: 10.2.6 | B35: 10.2.6- Transporte (Escolar) | E35: 0 | G35: 0 | I35: 0 | K35: 0 | M35: 0
A36: 10.2.7 | B36: 10.2.7- Outras | E36: 0 | G36: 0 | I36: 0 | K36: 0 | M36: 0
B39: DESPESAS COM MANUTENÇÃO E DESENVOLVIMENTO DO ENSINO – MDE - CUSTEADAS COM RECEITA DE IMPOSTOS (EXCETO FUNDEB)
B40: DESPESAS COM AÇÕES TÍPICAS DE MDE - RECEITAS DE IMPOSTOS - EXCETO FUNDEB (Por Subfunção) | D40: DOTAÇÃO ATUALIZADA | F40: DESPESAS EMPENHADAS | H40: DESPESAS LIQUIDADAS | J40: DESPESAS PAGAS | L40: INSCRITAS EM RESTOS A PAGAR NÃO PROCESSADOS
F41: Até o Bimestre | H41: Até o Bimestre | J41: Até o Bimestre
D42: (c) | F42: (d) | H42: (e) | J42: (f) | L42: (g)
A43: 20 | B43: 20- TOTAL DAS DESPESAS COM AÇÕES TÍPICAS DE MDE CUSTEADAS COM RECEITAS DE IMPOSTOS | E43: =E44+E47+E50+E53+E56+E59+E62 -> 17,302,567,053 | G43: =G44+G47+G50+G53+G56+G59+G62 -> 13,317,740,153 | I43: =I44+I47+I50+I53+I56+I59+I62 -> 10,302,139,299 | K43: =K44+K47+K50+K53+K56+K59+K62 -> 9,583,939,488 | M43: =M44+M47+M50+M53+M56+M59+M62 -> 3,015,600,854
A44: 20.1 | B44: 20.1- Educação Infantil | E44: =E45 -> 7,671,766,720 | G44: =G45 -> 5,771,216,959 | I44: =I45 -> 5,251,867,649 | K44: =K45 -> 4,626,853,472 | M44: =M45 -> 519,349,310
A45: 365 | B45: =VLOOKUP($A45,Despesas_x_Subfuncao!$D:$E,2,FALSE) -> 365 - EDUCAÇÃO INFANTIL | E45: =SUMIFS(Despesas_x_Subfuncao!$P:$P, Despesas_x_Subfuncao!$D:$D,$A45,Despesas_x_Subfuncao!$M:$M,"SIM") + SUMIFS(Despesas_x_Subfuncao!$V:$V, Despesas_x_Subfuncao!$D:$D,$A45,Despesas_x_Subfuncao!$M:$M,"SIM") + SUMIFS(Despesas_x_Subfuncao!$AB:$AB, Despesas_x_Subfuncao!$D:$D,$A45,Despesas_x_Subfuncao!$M:$M,"SIM") -> 7,671,766,720 | G45: =SUMIFS(Despesas_x_Subfuncao!$Q:$Q, Despesas_x_Subfuncao!$D:$D,$A45,Despesas_x_Subfuncao!$M:$M,"SIM") + SUMIFS(Despesas_x_Subfuncao!$W:$W, Despesas_x_Subfuncao!$D:$D,$A45,Despesas_x_Subfuncao!$M:$M,"SIM") + SUMIFS(Despesas_x_Subfuncao!$AC:$AC, Despesas_x_Subfuncao!$D:$D,$A45,Despesas_x_Subfuncao!$M:$M,"SIM") -> 5,771,216,959 | I45: =SUMIFS(Despesas_x_Subfuncao!$R:$R, Despesas_x_Subfuncao!$D:$D,$A45,Despesas_x_Subfuncao!$M:$M,"SIM") + SUMIFS(Despesas_x_Subfuncao!$X:$X, Despesas_x_Subfuncao!$D:$D,$A45,Despesas_x_Subfuncao!$M:$M,"SIM") + SUMIFS(Despesas_x_Subfuncao!$AD:$AD, Despesas_x_Subfuncao!$D:$D,$A45,Despesas_x_Subfuncao!$M:$M,"SIM") -> 5,251,867,649 | K45: =SUMIFS(Despesas_x_Subfuncao!$S:$S, Despesas_x_Subfuncao!$D:$D,$A45,Despesas_x_Subfuncao!$M:$M,"SIM") + SUMIFS(Despesas_x_Subfuncao!$Y:$Y, Despesas_x_Subfuncao!$D:$D,$A45,Despesas_x_Subfuncao!$M:$M,"SIM") + SUMIFS(Despesas_x_Subfuncao!$AE:$AE, Despesas_x_Subfuncao!$D:$D,$A45,Despesas_x_Subfuncao!$M:$M,"SIM") -> 4,626,853,472 | M45: =G45-I45 -> 519,349,309.75
A47: 20.2 | B47: 20.2- Educação Fundamental | E47: =E48 -> 2,843,193,377 | G47: =G48 -> 1,639,391,308 | I47: 1,410,108,866 | K47: 1,360,753,680 | M47: 229,282,442
A48: 361 | B48: =VLOOKUP($A48,Despesas_x_Subfuncao!$D:$E,2,FALSE) -> 361 - ENSINO FUNDAMENTAL | E48: =SUMIFS(Despesas_x_Subfuncao!$P:$P, Despesas_x_Subfuncao!$D:$D,$A48,Despesas_x_Subfuncao!$M:$M,"SIM") + SUMIFS(Despesas_x_Subfuncao!$V:$V, Despesas_x_Subfuncao!$D:$D,$A48,Despesas_x_Subfuncao!$M:$M,"SIM") + SUMIFS(Despesas_x_Subfuncao!$AB:$AB, Despesas_x_Subfuncao!$D:$D,$A48,Despesas_x_Subfuncao!$M:$M,"SIM") -> 2,843,193,377 | G48: =SUMIFS(Despesas_x_Subfuncao!$Q:$Q, Despesas_x_Subfuncao!$D:$D,$A48,Despesas_x_Subfuncao!$M:$M,"SIM") + SUMIFS(Despesas_x_Subfuncao!$W:$W, Despesas_x_Subfuncao!$D:$D,$A48,Despesas_x_Subfuncao!$M:$M,"SIM") + SUMIFS(Despesas_x_Subfuncao!$AC:$AC, Despesas_x_Subfuncao!$D:$D,$A48,Despesas_x_Subfuncao!$M:$M,"SIM") -> 1,639,391,308 | I48: =SUMIFS(Despesas_x_Subfuncao!$R:$R, Despesas_x_Subfuncao!$D:$D,$A48,Despesas_x_Subfuncao!$M:$M,"SIM") + SUMIFS(Despesas_x_Subfuncao!$X:$X, Despesas_x_Subfuncao!$D:$D,$A48,Despesas_x_Subfuncao!$M:$M,"SIM") + SUMIFS(Despesas_x_Subfuncao!$AD:$AD, Despesas_x_Subfuncao!$D:$D,$A48,Despesas_x_Subfuncao!$M:$M,"SIM") -> 1,410,108,866 | K48: =SUMIFS(Despesas_x_Subfuncao!$S:$S, Despesas_x_Subfuncao!$D:$D,$A48,Despesas_x_Subfuncao!$M:$M,"SIM") + SUMIFS(Despesas_x_Subfuncao!$Y:$Y, Despesas_x_Subfuncao!$D:$D,$A48,Despesas_x_Subfuncao!$M:$M,"SIM") + SUMIFS(Despesas_x_Subfuncao!$AE:$AE, Despesas_x_Subfuncao!$D:$D,$A48,Despesas_x_Subfuncao!$M:$M,"SIM") -> 1,360,753,680 | M48: =G48-I48 -> 229,282,441.62
A50: 20.3 | B50: 20.3- Educação de Jovens e Adultos | E50: =E51 -> 23,982,850 | G50: =G51 -> 17,580,723 | I50: =I51 -> 12,427,802 | K50: =K51 -> 11,264,627 | M50: =M51 -> 5,152,920
A51: 366 | B51: =VLOOKUP($A51,Despesas_x_Subfuncao!$D:$E,2,FALSE) -> 366 - EDUCAÇÃO DE JOVENS E ADULTOS | E51: =SUMIFS(Despesas_x_Subfuncao!$P:$P, Despesas_x_Subfuncao!$D:$D,$A51,Despesas_x_Subfuncao!$M:$M,"SIM") + SUMIFS(Despesas_x_Subfuncao!$V:$V, Despesas_x_Subfuncao!$D:$D,$A51,Despesas_x_Subfuncao!$M:$M,"SIM") + SUMIFS(Despesas_x_Subfuncao!$AB:$AB, Despesas_x_Subfuncao!$D:$D,$A51,Despesas_x_Subfuncao!$M:$M,"SIM") -> 23,982,850 | G51: =SUMIFS(Despesas_x_Subfuncao!$Q:$Q, Despesas_x_Subfuncao!$D:$D,$A51,Despesas_x_Subfuncao!$M:$M,"SIM") + SUMIFS(Despesas_x_Subfuncao!$W:$W, Despesas_x_Subfuncao!$D:$D,$A51,Despesas_x_Subfuncao!$M:$M,"SIM") + SUMIFS(Despesas_x_Subfuncao!$AC:$AC, Despesas_x_Subfuncao!$D:$D,$A51,Despesas_x_Subfuncao!$M:$M,"SIM") -> 17,580,723 | I51: =SUMIFS(Despesas_x_Subfuncao!$R:$R, Despesas_x_Subfuncao!$D:$D,$A51,Despesas_x_Subfuncao!$M:$M,"SIM") + SUMIFS(Despesas_x_Subfuncao!$X:$X, Despesas_x_Subfuncao!$D:$D,$A51,Despesas_x_Subfuncao!$M:$M,"SIM") + SUMIFS(Despesas_x_Subfuncao!$AD:$AD, Despesas_x_Subfuncao!$D:$D,$A51,Despesas_x_Subfuncao!$M:$M,"SIM") -> 12,427,802 | K51: =SUMIFS(Despesas_x_Subfuncao!$S:$S, Despesas_x_Subfuncao!$D:$D,$A51,Despesas_x_Subfuncao!$M:$M,"SIM") + SUMIFS(Despesas_x_Subfuncao!$Y:$Y, Despesas_x_Subfuncao!$D:$D,$A51,Despesas_x_Subfuncao!$M:$M,"SIM") + SUMIFS(Despesas_x_Subfuncao!$AE:$AE, Despesas_x_Subfuncao!$D:$D,$A51,Despesas_x_Subfuncao!$M:$M,"SIM") -> 11,264,627 | M51: =G51-I51 -> 5,152,920.31
A53: 20.4 | B53: 20.4- Educação Especial | E53: =E54 -> 412,193,003 | G53: =G54 -> 307,406,490 | I53: =I54 -> 206,459,170 | K53: =K54 -> 192,651,583 | M53: =M54 -> 100,947,320
A54: 367 | B54: =VLOOKUP($A54,Despesas_x_Subfuncao!$D:$E,2,FALSE) -> 367 - EDUCAÇÃO ESPECIAL | E54: =SUMIFS(Despesas_x_Subfuncao!$P:$P, Despesas_x_Subfuncao!$D:$D,$A54,Despesas_x_Subfuncao!$M:$M,"SIM") + SUMIFS(Despesas_x_Subfuncao!$V:$V, Despesas_x_Subfuncao!$D:$D,$A54,Despesas_x_Subfuncao!$M:$M,"SIM") + SUMIFS(Despesas_x_Subfuncao!$AB:$AB, Despesas_x_Subfuncao!$D:$D,$A54,Despesas_x_Subfuncao!$M:$M,"SIM") -> 412,193,003 | G54: =SUMIFS(Despesas_x_Subfuncao!$Q:$Q, Despesas_x_Subfuncao!$D:$D,$A54,Despesas_x_Subfuncao!$M:$M,"SIM") + SUMIFS(Despesas_x_Subfuncao!$W:$W, Despesas_x_Subfuncao!$D:$D,$A54,Despesas_x_Subfuncao!$M:$M,"SIM") + SUMIFS(Despesas_x_Subfuncao!$AC:$AC, Despesas_x_Subfuncao!$D:$D,$A54,Despesas_x_Subfuncao!$M:$M,"SIM") -> 307,406,490 | I54: =SUMIFS(Despesas_x_Subfuncao!$R:$R, Despesas_x_Subfuncao!$D:$D,$A54,Despesas_x_Subfuncao!$M:$M,"SIM") + SUMIFS(Despesas_x_Subfuncao!$X:$X, Despesas_x_Subfuncao!$D:$D,$A54,Despesas_x_Subfuncao!$M:$M,"SIM") + SUMIFS(Despesas_x_Subfuncao!$AD:$AD, Despesas_x_Subfuncao!$D:$D,$A54,Despesas_x_Subfuncao!$M:$M,"SIM") -> 206,459,170 | K54: =SUMIFS(Despesas_x_Subfuncao!$S:$S, Despesas_x_Subfuncao!$D:$D,$A54,Despesas_x_Subfuncao!$M:$M,"SIM") + SUMIFS(Despesas_x_Subfuncao!$Y:$Y, Despesas_x_Subfuncao!$D:$D,$A54,Despesas_x_Subfuncao!$M:$M,"SIM") + SUMIFS(Despesas_x_Subfuncao!$AE:$AE, Despesas_x_Subfuncao!$D:$D,$A54,Despesas_x_Subfuncao!$M:$M,"SIM") -> 192,651,583 | M54: =G54-I54 -> 100,947,320.46
A56: 20.5 | B56: 20.5- Administração Geral | E56: =E57 -> 912,338,568 | G56: =G57 -> 629,310,780 | I56: =I57 -> 582,890,365 | K56: =K57 -> 579,857,464 | M56: =M57 -> 46,420,414
A57: 122 | B57: =VLOOKUP($A57,Despesas_x_Subfuncao!$D:$E,2,FALSE) -> 122 - ADMINISTRAÇÃO GERAL | E57: =SUMIFS(Despesas_x_Subfuncao!$P:$P, Despesas_x_Subfuncao!$D:$D,$A57,Despesas_x_Subfuncao!$M:$M,"SIM") + SUMIFS(Despesas_x_Subfuncao!$V:$V, Despesas_x_Subfuncao!$D:$D,$A57,Despesas_x_Subfuncao!$M:$M,"SIM") + SUMIFS(Despesas_x_Subfuncao!$AB:$AB, Despesas_x_Subfuncao!$D:$D,$A57,Despesas_x_Subfuncao!$M:$M,"SIM") -> 912,338,568 | G57: =SUMIFS(Despesas_x_Subfuncao!$Q:$Q, Despesas_x_Subfuncao!$D:$D,$A57,Despesas_x_Subfuncao!$M:$M,"SIM") + SUMIFS(Despesas_x_Subfuncao!$W:$W, Despesas_x_Subfuncao!$D:$D,$A57,Despesas_x_Subfuncao!$M:$M,"SIM") + SUMIFS(Despesas_x_Subfuncao!$AC:$AC, Despesas_x_Subfuncao!$D:$D,$A57,Despesas_x_Subfuncao!$M:$M,"SIM") -> 629,310,780 | I57: =SUMIFS(Despesas_x_Subfuncao!$R:$R, Despesas_x_Subfuncao!$D:$D,$A57,Despesas_x_Subfuncao!$M:$M,"SIM") + SUMIFS(Despesas_x_Subfuncao!$X:$X, Despesas_x_Subfuncao!$D:$D,$A57,Despesas_x_Subfuncao!$M:$M,"SIM") + SUMIFS(Despesas_x_Subfuncao!$AD:$AD, Despesas_x_Subfuncao!$D:$D,$A57,Despesas_x_Subfuncao!$M:$M,"SIM") -> 582,890,365 | K57: =SUMIFS(Despesas_x_Subfuncao!$S:$S, Despesas_x_Subfuncao!$D:$D,$A57,Despesas_x_Subfuncao!$M:$M,"SIM") + SUMIFS(Despesas_x_Subfuncao!$Y:$Y, Despesas_x_Subfuncao!$D:$D,$A57,Despesas_x_Subfuncao!$M:$M,"SIM") + SUMIFS(Despesas_x_Subfuncao!$AE:$AE, Despesas_x_Subfuncao!$D:$D,$A57,Despesas_x_Subfuncao!$M:$M,"SIM") -> 579,857,464 | M57: =G57-I57 -> 46,420,414.15
A59: 20.6 | B59: 20.6- Transporte (Escolar) | E59: =E60 -> 50,939,343 | G59: =G60 -> 44,825,955 | I59: =I60 -> 44,825,955 | K59: =K60 -> 44,825,955 | M59: =M60 -> 0
A60: 20.453.4701.00.MUNICIPAL | B60: Compensação Tarifária Estudantil | E60: =VLOOKUP($A60, Despesas_x_Subfuncao!$A:$L, 9, FALSE) -> 50,939,343 | G60: =VLOOKUP($A60, Despesas_x_Subfuncao!$A:$L, 10, FALSE) -> 44,825,955 | I60: =VLOOKUP($A60, Despesas_x_Subfuncao!$A:$L, 11, FALSE) -> 44,825,955 | K60: =VLOOKUP($A60, Despesas_x_Subfuncao!$A:$L, 12, FALSE) -> 44,825,955 | M60: =G60-I60 -> 0
A62: 20.7 | B62: 20.7- Outras | E62: =SUM(E63:E73) -> 5,388,153,192 | G62: =SUM(G63:G73) -> 4,908,007,939 | I62: =SUM(I63:I73) -> 2,793,559,491 | K62: =SUM(K63:K73) -> 2,767,732,706 | M62: =SUM(M63:M73) -> 2,114,448,448
A63: 126 | B63: =VLOOKUP($A63,Despesas_x_Subfuncao!$D:$E,2,FALSE) -> 126 - TECNOLOGIA DA INFORMAÇÃO | E63: =SUMIFS(Despesas_x_Subfuncao!$P:$P, Despesas_x_Subfuncao!$D:$D,$A63,Despesas_x_Subfuncao!$M:$M,"SIM") + SUMIFS(Despesas_x_Subfuncao!$V:$V, Despesas_x_Subfuncao!$D:$D,$A63,Despesas_x_Subfuncao!$M:$M,"SIM") + SUMIFS(Despesas_x_Subfuncao!$AB:$AB, Despesas_x_Subfuncao!$D:$D,$A63,Despesas_x_Subfuncao!$M:$M,"SIM") -> 341,133,261 | G63: =SUMIFS(Despesas_x_Subfuncao!$Q:$Q, Despesas_x_Subfuncao!$D:$D,$A63,Despesas_x_Subfuncao!$M:$M,"SIM") + SUMIFS(Despesas_x_Subfuncao!$W:$W, Despesas_x_Subfuncao!$D:$D,$A63,Despesas_x_Subfuncao!$M:$M,"SIM") + SUMIFS(Despesas_x_Subfuncao!$AC:$AC, Despesas_x_Subfuncao!$D:$D,$A63,Despesas_x_Subfuncao!$M:$M,"SIM") -> 261,671,100 | I63: =SUMIFS(Despesas_x_Subfuncao!$R:$R, Despesas_x_Subfuncao!$D:$D,$A63,Despesas_x_Subfuncao!$M:$M,"SIM") + SUMIFS(Despesas_x_Subfuncao!$X:$X, Despesas_x_Subfuncao!$D:$D,$A63,Despesas_x_Subfuncao!$M:$M,"SIM") + SUMIFS(Despesas_x_Subfuncao!$AD:$AD, Despesas_x_Subfuncao!$D:$D,$A63,Despesas_x_Subfuncao!$M:$M,"SIM") -> 133,762,145 | K63: =SUMIFS(Despesas_x_Subfuncao!$S:$S, Despesas_x_Subfuncao!$D:$D,$A63,Despesas_x_Subfuncao!$M:$M,"SIM") + SUMIFS(Despesas_x_Subfuncao!$Y:$Y, Despesas_x_Subfuncao!$D:$D,$A63,Despesas_x_Subfuncao!$M:$M,"SIM") + SUMIFS(Despesas_x_Subfuncao!$AE:$AE, Despesas_x_Subfuncao!$D:$D,$A63,Despesas_x_Subfuncao!$M:$M,"SIM") -> 127,523,146 | M63: =G63-I63 -> 127,908,955.16
A64: 128 | B64: =VLOOKUP($A64,Despesas_x_Subfuncao!$D:$E,2,FALSE) -> 128 - FORMAÇÃO DE RECURSOS HUMANOS | E64: =SUMIFS(Despesas_x_Subfuncao!$P:$P, Despesas_x_Subfuncao!$D:$D,$A64,Despesas_x_Subfuncao!$M:$M,"SIM") + SUMIFS(Despesas_x_Subfuncao!$V:$V, Despesas_x_Subfuncao!$D:$D,$A64,Despesas_x_Subfuncao!$M:$M,"SIM") + SUMIFS(Despesas_x_Subfuncao!$AB:$AB, Despesas_x_Subfuncao!$D:$D,$A64,Despesas_x_Subfuncao!$M:$M,"SIM") -> 29,409,584 | G64: =SUMIFS(Despesas_x_Subfuncao!$Q:$Q, Despesas_x_Subfuncao!$D:$D,$A64,Despesas_x_Subfuncao!$M:$M,"SIM") + SUMIFS(Despesas_x_Subfuncao!$W:$W, Despesas_x_Subfuncao!$D:$D,$A64,Despesas_x_Subfuncao!$M:$M,"SIM") + SUMIFS(Despesas_x_Subfuncao!$AC:$AC, Despesas_x_Subfuncao!$D:$D,$A64,Despesas_x_Subfuncao!$M:$M,"SIM") -> 12,388,362 | I64: =SUMIFS(Despesas_x_Subfuncao!$R:$R, Despesas_x_Subfuncao!$D:$D,$A64,Despesas_x_Subfuncao!$M:$M,"SIM") + SUMIFS(Despesas_x_Subfuncao!$X:$X, Despesas_x_Subfuncao!$D:$D,$A64,Despesas_x_Subfuncao!$M:$M,"SIM") + SUMIFS(Despesas_x_Subfuncao!$AD:$AD, Despesas_x_Subfuncao!$D:$D,$A64,Despesas_x_Subfuncao!$M:$M,"SIM") -> 6,203,616 | K64: =SUMIFS(Despesas_x_Subfuncao!$S:$S, Despesas_x_Subfuncao!$D:$D,$A64,Despesas_x_Subfuncao!$M:$M,"SIM") + SUMIFS(Despesas_x_Subfuncao!$Y:$Y, Despesas_x_Subfuncao!$D:$D,$A64,Despesas_x_Subfuncao!$M:$M,"SIM") + SUMIFS(Despesas_x_Subfuncao!$AE:$AE, Despesas_x_Subfuncao!$D:$D,$A64,Despesas_x_Subfuncao!$M:$M,"SIM") -> 5,892,293 | M64: 6,184,745.96
A65: 131 | B65: =VLOOKUP($A65,Despesas_x_Subfuncao!$D:$E,2,FALSE) -> 131 - COMUNICAÇÃO SOCIAL | E65: =SUMIFS(Despesas_x_Subfuncao!$P:$P, Despesas_x_Subfuncao!$D:$D,$A65,Despesas_x_Subfuncao!$M:$M,"SIM") + SUMIFS(Despesas_x_Subfuncao!$V:$V, Despesas_x_Subfuncao!$D:$D,$A65,Despesas_x_Subfuncao!$M:$M,"SIM") + SUMIFS(Despesas_x_Subfuncao!$AB:$AB, Despesas_x_Subfuncao!$D:$D,$A65,Despesas_x_Subfuncao!$M:$M,"SIM") -> 0 | G65: =SUMIFS(Despesas_x_Subfuncao!$Q:$Q, Despesas_x_Subfuncao!$D:$D,$A65,Despesas_x_Subfuncao!$M:$M,"SIM") + SUMIFS(Despesas_x_Subfuncao!$W:$W, Despesas_x_Subfuncao!$D:$D,$A65,Despesas_x_Subfuncao!$M:$M,"SIM") + SUMIFS(Despesas_x_Subfuncao!$AC:$AC, Despesas_x_Subfuncao!$D:$D,$A65,Despesas_x_Subfuncao!$M:$M,"SIM") -> 0 | I65: =SUMIFS(Despesas_x_Subfuncao!$R:$R, Despesas_x_Subfuncao!$D:$D,$A65,Despesas_x_Subfuncao!$M:$M,"SIM") + SUMIFS(Despesas_x_Subfuncao!$X:$X, Despesas_x_Subfuncao!$D:$D,$A65,Despesas_x_Subfuncao!$M:$M,"SIM") + SUMIFS(Despesas_x_Subfuncao!$AD:$AD, Despesas_x_Subfuncao!$D:$D,$A65,Despesas_x_Subfuncao!$M:$M,"SIM") -> 0 | K65: =SUMIFS(Despesas_x_Subfuncao!$S:$S, Despesas_x_Subfuncao!$D:$D,$A65,Despesas_x_Subfuncao!$M:$M,"SIM") + SUMIFS(Despesas_x_Subfuncao!$Y:$Y, Despesas_x_Subfuncao!$D:$D,$A65,Despesas_x_Subfuncao!$M:$M,"SIM") + SUMIFS(Despesas_x_Subfuncao!$AE:$AE, Despesas_x_Subfuncao!$D:$D,$A65,Despesas_x_Subfuncao!$M:$M,"SIM") -> 0 | M65: 0
A66: 362 | B66: =VLOOKUP($A66,Despesas_x_Subfuncao!$D:$E,2,FALSE) -> 362 - ENSINO MÉDIO | E66: =SUMIFS(Despesas_x_Subfuncao!$P:$P, Despesas_x_Subfuncao!$D:$D,$A66,Despesas_x_Subfuncao!$M:$M,"SIM") + SUMIFS(Despesas_x_Subfuncao!$V:$V, Despesas_x_Subfuncao!$D:$D,$A66,Despesas_x_Subfuncao!$M:$M,"SIM") + SUMIFS(Despesas_x_Subfuncao!$AB:$AB, Despesas_x_Subfuncao!$D:$D,$A66,Despesas_x_Subfuncao!$M:$M,"SIM") -> 76,241,104 | G66: =SUMIFS(Despesas_x_Subfuncao!$Q:$Q, Despesas_x_Subfuncao!$D:$D,$A66,Despesas_x_Subfuncao!$M:$M,"SIM") + SUMIFS(Despesas_x_Subfuncao!$W:$W, Despesas_x_Subfuncao!$D:$D,$A66,Despesas_x_Subfuncao!$M:$M,"SIM") + SUMIFS(Despesas_x_Subfuncao!$AC:$AC, Despesas_x_Subfuncao!$D:$D,$A66,Despesas_x_Subfuncao!$M:$M,"SIM") -> 45,374,076 | I66: =SUMIFS(Despesas_x_Subfuncao!$R:$R, Despesas_x_Subfuncao!$D:$D,$A66,Despesas_x_Subfuncao!$M:$M,"SIM") + SUMIFS(Despesas_x_Subfuncao!$X:$X, Despesas_x_Subfuncao!$D:$D,$A66,Despesas_x_Subfuncao!$M:$M,"SIM") + SUMIFS(Despesas_x_Subfuncao!$AD:$AD, Despesas_x_Subfuncao!$D:$D,$A66,Despesas_x_Subfuncao!$M:$M,"SIM") -> 42,591,228 | K66: =SUMIFS(Despesas_x_Subfuncao!$S:$S, Despesas_x_Subfuncao!$D:$D,$A66,Despesas_x_Subfuncao!$M:$M,"SIM") + SUMIFS(Despesas_x_Subfuncao!$Y:$Y, Despesas_x_Subfuncao!$D:$D,$A66,Despesas_x_Subfuncao!$M:$M,"SIM") + SUMIFS(Despesas_x_Subfuncao!$AE:$AE, Despesas_x_Subfuncao!$D:$D,$A66,Despesas_x_Subfuncao!$M:$M,"SIM") -> 42,146,122 | M66: 2,782,847.69
A67: 363 | B67: =VLOOKUP($A67,Despesas_x_Subfuncao!$D:$E,2,FALSE) -> 363 - ENSINO PROFISSIONAL | E67: =SUMIFS(Despesas_x_Subfuncao!$P:$P, Despesas_x_Subfuncao!$D:$D,$A67,Despesas_x_Subfuncao!$M:$M,"SIM") + SUMIFS(Despesas_x_Subfuncao!$V:$V, Despesas_x_Subfuncao!$D:$D,$A67,Despesas_x_Subfuncao!$M:$M,"SIM") + SUMIFS(Despesas_x_Subfuncao!$AB:$AB, Despesas_x_Subfuncao!$D:$D,$A67,Despesas_x_Subfuncao!$M:$M,"SIM") -> 0 | G67: =SUMIFS(Despesas_x_Subfuncao!$Q:$Q, Despesas_x_Subfuncao!$D:$D,$A67,Despesas_x_Subfuncao!$M:$M,"SIM") + SUMIFS(Despesas_x_Subfuncao!$W:$W, Despesas_x_Subfuncao!$D:$D,$A67,Despesas_x_Subfuncao!$M:$M,"SIM") + SUMIFS(Despesas_x_Subfuncao!$AC:$AC, Despesas_x_Subfuncao!$D:$D,$A67,Despesas_x_Subfuncao!$M:$M,"SIM") -> 0 | I67: =SUMIFS(Despesas_x_Subfuncao!$R:$R, Despesas_x_Subfuncao!$D:$D,$A67,Despesas_x_Subfuncao!$M:$M,"SIM") + SUMIFS(Despesas_x_Subfuncao!$X:$X, Despesas_x_Subfuncao!$D:$D,$A67,Despesas_x_Subfuncao!$M:$M,"SIM") + SUMIFS(Despesas_x_Subfuncao!$AD:$AD, Despesas_x_Subfuncao!$D:$D,$A67,Despesas_x_Subfuncao!$M:$M,"SIM") -> 0 | K67: =SUMIFS(Despesas_x_Subfuncao!$S:$S, Despesas_x_Subfuncao!$D:$D,$A67,Despesas_x_Subfuncao!$M:$M,"SIM") + SUMIFS(Despesas_x_Subfuncao!$Y:$Y, Despesas_x_Subfuncao!$D:$D,$A67,Despesas_x_Subfuncao!$M:$M,"SIM") + SUMIFS(Despesas_x_Subfuncao!$AE:$AE, Despesas_x_Subfuncao!$D:$D,$A67,Despesas_x_Subfuncao!$M:$M,"SIM") -> 0 | M67: 0
A68: 364 | B68: =VLOOKUP($A68,Despesas_x_Subfuncao!$D:$E,2,FALSE) -> 364 - ENSINO SUPERIOR | E68: =SUMIFS(Despesas_x_Subfuncao!$P:$P, Despesas_x_Subfuncao!$D:$D,$A68,Despesas_x_Subfuncao!$M:$M,"SIM") + SUMIFS(Despesas_x_Subfuncao!$V:$V, Despesas_x_Subfuncao!$D:$D,$A68,Despesas_x_Subfuncao!$M:$M,"SIM") + SUMIFS(Despesas_x_Subfuncao!$AB:$AB, Despesas_x_Subfuncao!$D:$D,$A68,Despesas_x_Subfuncao!$M:$M,"SIM") -> 0 | G68: =SUMIFS(Despesas_x_Subfuncao!$Q:$Q, Despesas_x_Subfuncao!$D:$D,$A68,Despesas_x_Subfuncao!$M:$M,"SIM") + SUMIFS(Despesas_x_Subfuncao!$W:$W, Despesas_x_Subfuncao!$D:$D,$A68,Despesas_x_Subfuncao!$M:$M,"SIM") + SUMIFS(Despesas_x_Subfuncao!$AC:$AC, Despesas_x_Subfuncao!$D:$D,$A68,Despesas_x_Subfuncao!$M:$M,"SIM") -> 0 | I68: =SUMIFS(Despesas_x_Subfuncao!$R:$R, Despesas_x_Subfuncao!$D:$D,$A68,Despesas_x_Subfuncao!$M:$M,"SIM") + SUMIFS(Despesas_x_Subfuncao!$X:$X, Despesas_x_Subfuncao!$D:$D,$A68,Despesas_x_Subfuncao!$M:$M,"SIM") + SUMIFS(Despesas_x_Subfuncao!$AD:$AD, Despesas_x_Subfuncao!$D:$D,$A68,Despesas_x_Subfuncao!$M:$M,"SIM") -> 0 | K68: =SUMIFS(Despesas_x_Subfuncao!$S:$S, Despesas_x_Subfuncao!$D:$D,$A68,Despesas_x_Subfuncao!$M:$M,"SIM") + SUMIFS(Despesas_x_Subfuncao!$Y:$Y, Despesas_x_Subfuncao!$D:$D,$A68,Despesas_x_Subfuncao!$M:$M,"SIM") + SUMIFS(Despesas_x_Subfuncao!$AE:$AE, Despesas_x_Subfuncao!$D:$D,$A68,Despesas_x_Subfuncao!$M:$M,"SIM") -> 0 | M68: 0
A69: 368 | B69: =VLOOKUP($A69,Despesas_x_Subfuncao!$D:$E,2,FALSE) -> 368 - EDUCAÇÃO BÁSICA | E69: =SUMIFS(Despesas_x_Subfuncao!$P:$P, Despesas_x_Subfuncao!$D:$D,$A69,Despesas_x_Subfuncao!$M:$M,"SIM") + SUMIFS(Despesas_x_Subfuncao!$V:$V, Despesas_x_Subfuncao!$D:$D,$A69,Despesas_x_Subfuncao!$M:$M,"SIM") + SUMIFS(Despesas_x_Subfuncao!$AB:$AB, Despesas_x_Subfuncao!$D:$D,$A69,Despesas_x_Subfuncao!$M:$M,"SIM") -> 910,542,224 | G69: =SUMIFS(Despesas_x_Subfuncao!$Q:$Q, Despesas_x_Subfuncao!$D:$D,$A69,Despesas_x_Subfuncao!$M:$M,"SIM") + SUMIFS(Despesas_x_Subfuncao!$W:$W, Despesas_x_Subfuncao!$D:$D,$A69,Despesas_x_Subfuncao!$M:$M,"SIM") + SUMIFS(Despesas_x_Subfuncao!$AC:$AC, Despesas_x_Subfuncao!$D:$D,$A69,Despesas_x_Subfuncao!$M:$M,"SIM") -> 557,748,408 | I69: =SUMIFS(Despesas_x_Subfuncao!$R:$R, Despesas_x_Subfuncao!$D:$D,$A69,Despesas_x_Subfuncao!$M:$M,"SIM") + SUMIFS(Despesas_x_Subfuncao!$X:$X, Despesas_x_Subfuncao!$D:$D,$A69,Despesas_x_Subfuncao!$M:$M,"SIM") + SUMIFS(Despesas_x_Subfuncao!$AD:$AD, Despesas_x_Subfuncao!$D:$D,$A69,Despesas_x_Subfuncao!$M:$M,"SIM") -> 342,831,141 | K69: =SUMIFS(Despesas_x_Subfuncao!$S:$S, Despesas_x_Subfuncao!$D:$D,$A69,Despesas_x_Subfuncao!$M:$M,"SIM") + SUMIFS(Despesas_x_Subfuncao!$Y:$Y, Despesas_x_Subfuncao!$D:$D,$A69,Despesas_x_Subfuncao!$M:$M,"SIM") + SUMIFS(Despesas_x_Subfuncao!$AE:$AE, Despesas_x_Subfuncao!$D:$D,$A69,Despesas_x_Subfuncao!$M:$M,"SIM") -> 323,999,784 | M69: 214,917,267.16
A70: 422 | B70: =VLOOKUP($A70,Despesas_x_Subfuncao!$D:$E,2,FALSE) -> 422 - DIREITOS INDIVIDUAIS, COLETIVOS E DIFUSOS | E70: =SUMIFS(Despesas_x_Subfuncao!$P:$P, Despesas_x_Subfuncao!$D:$D,$A70,Despesas_x_Subfuncao!$M:$M,"SIM") + SUMIFS(Despesas_x_Subfuncao!$V:$V, Despesas_x_Subfuncao!$D:$D,$A70,Despesas_x_Subfuncao!$M:$M,"SIM") + SUMIFS(Despesas_x_Subfuncao!$AB:$AB, Despesas_x_Subfuncao!$D:$D,$A70,Despesas_x_Subfuncao!$M:$M,"SIM") -> 0 | G70: =SUMIFS(Despesas_x_Subfuncao!$Q:$Q, Despesas_x_Subfuncao!$D:$D,$A70,Despesas_x_Subfuncao!$M:$M,"SIM") + SUMIFS(Despesas_x_Subfuncao!$W:$W, Despesas_x_Subfuncao!$D:$D,$A70,Despesas_x_Subfuncao!$M:$M,"SIM") + SUMIFS(Despesas_x_Subfuncao!$AC:$AC, Despesas_x_Subfuncao!$D:$D,$A70,Despesas_x_Subfuncao!$M:$M,"SIM") -> 0 | I70: =SUMIFS(Despesas_x_Subfuncao!$R:$R, Despesas_x_Subfuncao!$D:$D,$A70,Despesas_x_Subfuncao!$M:$M,"SIM") + SUMIFS(Despesas_x_Subfuncao!$X:$X, Despesas_x_Subfuncao!$D:$D,$A70,Despesas_x_Subfuncao!$M:$M,"SIM") + SUMIFS(Despesas_x_Subfuncao!$AD:$AD, Despesas_x_Subfuncao!$D:$D,$A70,Despesas_x_Subfuncao!$M:$M,"SIM") -> 0 | K70: =SUMIFS(Despesas_x_Subfuncao!$S:$S, Despesas_x_Subfuncao!$D:$D,$A70,Despesas_x_Subfuncao!$M:$M,"SIM") + SUMIFS(Despesas_x_Subfuncao!$Y:$Y, Despesas_x_Subfuncao!$D:$D,$A70,Despesas_x_Subfuncao!$M:$M,"SIM") + SUMIFS(Despesas_x_Subfuncao!$AE:$AE, Despesas_x_Subfuncao!$D:$D,$A70,Despesas_x_Subfuncao!$M:$M,"SIM") -> 0 | M70: 0
A71: 451 | B71: =VLOOKUP($A71,Despesas_x_Subfuncao!$D:$E,2,FALSE) -> 451 - INFRA-ESTRUTURA URBANA | E71: =SUMIFS(Despesas_x_Subfuncao!$P:$P, Despesas_x_Subfuncao!$D:$D,$A71,Despesas_x_Subfuncao!$M:$M,"SIM") + SUMIFS(Despesas_x_Subfuncao!$V:$V, Despesas_x_Subfuncao!$D:$D,$A71,Despesas_x_Subfuncao!$M:$M,"SIM") + SUMIFS(Despesas_x_Subfuncao!$AB:$AB, Despesas_x_Subfuncao!$D:$D,$A71,Despesas_x_Subfuncao!$M:$M,"SIM") -> 996 | G71: =SUMIFS(Despesas_x_Subfuncao!$Q:$Q, Despesas_x_Subfuncao!$D:$D,$A71,Despesas_x_Subfuncao!$M:$M,"SIM") + SUMIFS(Despesas_x_Subfuncao!$W:$W, Despesas_x_Subfuncao!$D:$D,$A71,Despesas_x_Subfuncao!$M:$M,"SIM") + SUMIFS(Despesas_x_Subfuncao!$AC:$AC, Despesas_x_Subfuncao!$D:$D,$A71,Despesas_x_Subfuncao!$M:$M,"SIM") -> 0 | I71: =SUMIFS(Despesas_x_Subfuncao!$R:$R, Despesas_x_Subfuncao!$D:$D,$A71,Despesas_x_Subfuncao!$M:$M,"SIM") + SUMIFS(Despesas_x_Subfuncao!$X:$X, Despesas_x_Subfuncao!$D:$D,$A71,Despesas_x_Subfuncao!$M:$M,"SIM") + SUMIFS(Despesas_x_Subfuncao!$AD:$AD, Despesas_x_Subfuncao!$D:$D,$A71,Despesas_x_Subfuncao!$M:$M,"SIM") -> 0 | K71: =SUMIFS(Despesas_x_Subfuncao!$S:$S, Despesas_x_Subfuncao!$D:$D,$A71,Despesas_x_Subfuncao!$M:$M,"SIM") + SUMIFS(Despesas_x_Subfuncao!$Y:$Y, Despesas_x_Subfuncao!$D:$D,$A71,Despesas_x_Subfuncao!$M:$M,"SIM") + SUMIFS(Despesas_x_Subfuncao!$AE:$AE, Despesas_x_Subfuncao!$D:$D,$A71,Despesas_x_Subfuncao!$M:$M,"SIM") -> 0 | M71: =G71-I71 -> 0
A72: 271 | B72: =VLOOKUP($A72,Despesas_x_Subfuncao!$D:$E,2,FALSE) -> 271 - PREVIDÊNCIA BÁSICA | E72: =SUMIFS(Despesas_x_Subfuncao!$P:$P, Despesas_x_Subfuncao!$D:$D,$A72,Despesas_x_Subfuncao!$M:$M,"SIM") + SUMIFS(Despesas_x_Subfuncao!$V:$V, Despesas_x_Subfuncao!$D:$D,$A72,Despesas_x_Subfuncao!$M:$M,"SIM") + SUMIFS(Despesas_x_Subfuncao!$AB:$AB, Despesas_x_Subfuncao!$D:$D,$A72,Despesas_x_Subfuncao!$M:$M,"SIM") -> 4,030,826,024 | G72: =SUMIFS(Despesas_x_Subfuncao!$Q:$Q, Despesas_x_Subfuncao!$D:$D,$A72,Despesas_x_Subfuncao!$M:$M,"SIM") + SUMIFS(Despesas_x_Subfuncao!$W:$W, Despesas_x_Subfuncao!$D:$D,$A72,Despesas_x_Subfuncao!$M:$M,"SIM") + SUMIFS(Despesas_x_Subfuncao!$AC:$AC, Despesas_x_Subfuncao!$D:$D,$A72,Despesas_x_Subfuncao!$M:$M,"SIM") -> 4,030,825,994 | I72: =SUMIFS(Despesas_x_Subfuncao!$R:$R, Despesas_x_Subfuncao!$D:$D,$A72,Despesas_x_Subfuncao!$M:$M,"SIM") + SUMIFS(Despesas_x_Subfuncao!$X:$X, Despesas_x_Subfuncao!$D:$D,$A72,Despesas_x_Subfuncao!$M:$M,"SIM") + SUMIFS(Despesas_x_Subfuncao!$AD:$AD, Despesas_x_Subfuncao!$D:$D,$A72,Despesas_x_Subfuncao!$M:$M,"SIM") -> 2,268,171,361 | K72: =SUMIFS(Despesas_x_Subfuncao!$S:$S, Despesas_x_Subfuncao!$D:$D,$A72,Despesas_x_Subfuncao!$M:$M,"SIM") + SUMIFS(Despesas_x_Subfuncao!$Y:$Y, Despesas_x_Subfuncao!$D:$D,$A72,Despesas_x_Subfuncao!$M:$M,"SIM") + SUMIFS(Despesas_x_Subfuncao!$AE:$AE, Despesas_x_Subfuncao!$D:$D,$A72,Despesas_x_Subfuncao!$M:$M,"SIM") -> 2,268,171,361 | M72: 1,762,654,632.10
B76: DESPESAS COM AÇÕES TÍPICAS DE MDE - RECEITAS DE IMPOSTOS E RECURSOS DO FUNDEB (Por Área de Atuação)6 | D76: DOTAÇÃO ATUALIZADA | F76: DESPESAS EMPENHADAS | H76: DESPESAS LIQUIDADAS | J76: DESPESAS PAGAS | L76: INSCRITAS EM RESTOS A PAGAR NÃO PROCESSADOS
F77: Até o Bimestre | H77: Até o Bimestre | J77: Até o Bimestre
D78: (c) | F78: (d) | H78: (e) | J78: (f) | L78: (g)
A79: 21 | B79: 21- TOTAL DAS DESPESAS COM AÇÕES TÍPICAS DE MDE CUSTEADAS COM RECEITAS DE IMPOSTOS E FUNDEB | E79: =E80+E83 -> 24,876,313,051 | G79: =G80+G83 -> 18,775,579,944 | I79: =I80+I83 -> 15,759,979,089 | K79: =K80+K83 -> 15,041,779,278 | M79: =M80+M83 -> 3,015,600,854
A80: 21.1 | B80: 21.1- EDUCAÇÃO INFANTIL | E80: =E81+E82 -> 14,777,562,048 | G80: =G81+G82 -> 11,452,182,102 | I80: =I81+I82 -> 9,785,535,674 | K80: =K81+K82 -> 9,145,428,077 | M80: =M81+M82 -> 1,666,646,427
A81: 21.1.1 | B81: 21.1.1- Creche | E81: =SUMIFS(Despesas_x_Subfuncao!P:P, Despesas_x_Subfuncao!$M:$M, "SIM")+Despesas_x_Subfuncao!I8+Despesas_x_Subfuncao!I10 -> 9,662,140,728 | G81: =SUMIFS(Despesas_x_Subfuncao!Q:Q, Despesas_x_Subfuncao!$M:$M, "SIM")+Despesas_x_Subfuncao!J8+Despesas_x_Subfuncao!J10 -> 7,859,390,565 | I81: =SUMIFS(Despesas_x_Subfuncao!R:R, Despesas_x_Subfuncao!$M:$M, "SIM")+Despesas_x_Subfuncao!K8+Despesas_x_Subfuncao!K10 -> 6,774,743,915 | K81: =SUMIFS(Despesas_x_Subfuncao!S:S, Despesas_x_Subfuncao!$M:$M, "SIM")+Despesas_x_Subfuncao!L8+Despesas_x_Subfuncao!L10 -> 6,167,874,753 | M81: =G81-I81 -> 1,084,646,649
A82: 21.1.2 | B82: 21.1.2- Pré-escola | E82: =SUMIFS(Despesas_x_Subfuncao!V:V, Despesas_x_Subfuncao!$M:$M, "SIM")+Despesas_x_Subfuncao!I9 -> 5,115,421,320 | G82: =SUMIFS(Despesas_x_Subfuncao!W:W, Despesas_x_Subfuncao!$M:$M, "SIM")+Despesas_x_Subfuncao!J9 -> 3,592,791,537 | I82: =SUMIFS(Despesas_x_Subfuncao!X:X, Despesas_x_Subfuncao!$M:$M, "SIM")+Despesas_x_Subfuncao!K9 -> 3,010,791,759 | K82: =SUMIFS(Despesas_x_Subfuncao!Y:Y, Despesas_x_Subfuncao!$M:$M, "SIM")+Despesas_x_Subfuncao!L9 -> 2,977,553,323 | M82: =G82-I82 -> 581,999,778
A83: 21.2 | B83: 21.2- ENSINO FUNDAMENTAL | E83: =SUMIFS(Despesas_x_Subfuncao!AB:AB, Despesas_x_Subfuncao!$M:$M, "SIM")+Despesas_x_Subfuncao!I7 -> 10,098,751,003 | G83: =SUMIFS(Despesas_x_Subfuncao!AC:AC, Despesas_x_Subfuncao!$M:$M, "SIM")+Despesas_x_Subfuncao!J7 -> 7,323,397,842 | I83: =SUMIFS(Despesas_x_Subfuncao!AD:AD, Despesas_x_Subfuncao!$M:$M, "SIM")+Despesas_x_Subfuncao!K7 -> 5,974,443,415 | K83: =SUMIFS(Despesas_x_Subfuncao!AE:AE, Despesas_x_Subfuncao!$M:$M, "SIM")+Despesas_x_Subfuncao!L7 -> 5,896,351,201 | M83: 1,348,954,427
B87: OUTRAS DESPESAS COM EDUCAÇÃO (Por Subfunção)6 | D87: DOTAÇÃO ATUALIZADA | F87: DESPESAS EMPENHADAS | H87: DESPESAS LIQUIDADAS | J87: DESPESAS PAGAS | L87: INSCRITAS EM RESTOS A PAGAR NÃO PROCESSADOS
F88: Até o Bimestre | H88: Até o Bimestre | J88: Até o Bimestre
D89: (c) | F89: (d) | H89: (e) | J89: (f) | L89: (g)
A90: 32 | B90: 32- TOTAL DAS OUTRAS DESPESAS COM EDUCAÇÃO | E90: =SUM(E91:E98) -> 7,538,699,066 | G90: =SUM(G91:G98) -> 6,727,565,391 | I90: =SUM(I91:I98) -> 3,737,407,410 | K90: =SUM(K91:K98) -> 3,692,577,538 | M90: =SUM(M91:M98) -> 2,990,157,981
A91: 32.1 | B91: 32.1- EDUCAÇÃO INFANTIL | E91: =SUMIFS(Despesas_x_Subfuncao!P:P, Despesas_x_Subfuncao!$M:$M, "NÃO") + SUMIFS(Despesas_x_Subfuncao!V:V, Despesas_x_Subfuncao!$M:$M, "NÃO") -> 204,578,329 | G91: =SUMIFS(Despesas_x_Subfuncao!Q:Q, Despesas_x_Subfuncao!$M:$M, "NÃO") + SUMIFS(Despesas_x_Subfuncao!W:W, Despesas_x_Subfuncao!$M:$M, "NÃO") -> 149,004,962 | I91: =SUMIFS(Despesas_x_Subfuncao!R:R, Despesas_x_Subfuncao!$M:$M, "NÃO") + SUMIFS(Despesas_x_Subfuncao!X:X, Despesas_x_Subfuncao!$M:$M, "NÃO") -> 135,248,213 | K91: =SUMIFS(Despesas_x_Subfuncao!S:S, Despesas_x_Subfuncao!$M:$M, "NÃO") + SUMIFS(Despesas_x_Subfuncao!Y:Y, Despesas_x_Subfuncao!$M:$M, "NÃO") -> 134,271,180 | M91: =G91-I91 -> 13,756,749
A92: 32.2 | B92: 32.2- ENSINO FUNDAMENTAL | E92: =SUMIFS(Despesas_x_Subfuncao!AB:AB, Despesas_x_Subfuncao!$M:$M, "NÃO") -> 371,645,769 | G92: =SUMIFS(Despesas_x_Subfuncao!AC:AC, Despesas_x_Subfuncao!$M:$M, "NÃO") -> 331,531,276 | I92: =SUMIFS(Despesas_x_Subfuncao!AD:AD, Despesas_x_Subfuncao!$M:$M, "NÃO") -> 321,056,718 | K92: =SUMIFS(Despesas_x_Subfuncao!AE:AE, Despesas_x_Subfuncao!$M:$M, "NÃO") -> 320,234,194 | M92: 10,474,558
A93: 32.3 | B93: 32.3- ENSINO MÉDIO | E93: =SUM(Despesas_x_Subfuncao!AH:AH) -> 531,886,266 | G93: =SUM(Despesas_x_Subfuncao!AI:AI) -> 372,995,518 | I93: =SUM(Despesas_x_Subfuncao!AJ:AJ) -> 329,775,878 | K93: =SUM(Despesas_x_Subfuncao!AK:AK) -> 325,930,439 | M93: 43,219,640
A94: 32.4 | B94: 32.4- ENSINO SUPERIOR | E94: =SUM(Despesas_x_Subfuncao!AT:AT) -> 237,257,856 | G94: =SUM(Despesas_x_Subfuncao!AU:AU) -> 163,261,576 | I94: =SUM(Despesas_x_Subfuncao!AV:AV) -> 163,261,576 | K94: =SUM(Despesas_x_Subfuncao!AW:AW) -> 163,261,576 | M94: 0
A95: 32.5 | B95: 32.5- ENSINO PROFISSIONAL | E95: =SUM(Despesas_x_Subfuncao!AN:AN) -> 234,758,219 | G95: =SUM(Despesas_x_Subfuncao!AO:AO) -> 185,267,633 | I95: =SUM(Despesas_x_Subfuncao!AP:AP) -> 149,956,621 | K95: =SUM(Despesas_x_Subfuncao!AQ:AQ) -> 148,448,672 | M95: 35,311,012
A96: 32.6 | B96: 32.6- EDUCAÇÃO DE JOVENS E ADULTOS | E96: 0 | G96: 0 | I96: 0 | K96: 0 | M96: 0
A97: 32.7 | B97: 32.7- EDUCAÇÃO ESPECIAL | E97: 0 | G97: 0 | I97: 0 | K97: 0 | M97: 0
A98: 32.8 | B98: 32.8- OUTRAS | E98: =SUM(Despesas_x_Subfuncao!AZ:AZ) -> 5,958,572,628 | G98: =SUM(Despesas_x_Subfuncao!BA:BA) -> 5,525,504,427 | I98: =SUM(Despesas_x_Subfuncao!BB:BB) -> 2,638,108,404 | K98: =SUM(Despesas_x_Subfuncao!BC:BC) -> 2,600,431,477 | M98: 2,887,396,023
B102: TOTAL GERAL DAS DESPESAS COM EDUCAÇÃO | D102: DOTAÇÃO ATUALIZADA | F102: DESPESAS EMPENHADAS | H102: DESPESAS LIQUIDADAS | J102: DESPESAS PAGAS | L102: INSCRITAS EM RESTOS A PAGAR NÃO PROCESSADOS
F103: Até o Bimestre | H103: Até o Bimestre | J103: Até o Bimestre
D104: (c) | F104: (d) | H104: (e) | J104: (f) | L104: (g)
A105: 33 | B105: 33- TOTAL GERAL DAS DESPESAS COM EDUCAÇÃO (10 + 20 + 32) | E105: =E16+E43+E90 -> 32,415,012,117 | G105: =G16+G43+G90 -> 25,503,145,335 | I105: =I16+I43+I90 -> 19,497,386,499 | K105: =K16+K43+K90 -> 18,734,356,816 | M105: =M16+M43+M90 -> 6,005,758,835 | O105: Verificação
A106: 33.1 | B106: 33.1- Despesas Correntes | E106: =E107+E110+E112+E114 -> 31,802,481,795 | G106: =G107+G110+G112+G114 -> 25,246,719,941 | I106: =I107+I110+I112+I114 -> 19,328,022,797 | K106: =K107+K110+K112+K114 -> 18,577,867,268 | M106: =M107+M110+M112+M114 -> 5,918,697,145 | O106: ATUALIZADA | P106: EMPENHADA | Q106: LIQUIDADA | R106: PAGA
A107: 33.1.1 | B107: 33.1.1- Pessoal Ativo | E107: =SUM(E108:E109) -> 15,869,836,055 | G107: =SUM(G108:G109) -> 11,216,196,713 | I107: =SUM(I108:I109) -> 9,436,235,984 | K107: =SUM(K108:K109) -> 9,436,235,984 | M107: =SUM(M108:M109) -> 1,779,960,729 | O107: =E105-(E106+E118) -> 0 | P107: =G105-(G106+G118) -> 0 | Q107: =I105-(I106+I118) -> 0 | R107: =K105-(K106+K118) -> 0
B108: Pessoal | E108: =SUMIFS(Despesas_x_PAPA!H:H, Despesas_x_PAPA!$C:$C, "3", Despesas_x_PAPA!$E:$E,"PESSOAL")- SUMIFS(Despesas_x_PAPA!H:H, Despesas_x_PAPA!$C:$C, "3", Despesas_x_PAPA!$E:$E,"PESSOAL", Despesas_x_PAPA!$F:$F, "50")- SUMIFS(Despesas_x_PAPA!H:H, Despesas_x_PAPA!$C:$C, "3", Despesas_x_PAPA!$E:$E,"PESSOAL", Despesas_x_PAPA!$F:$F, "0052")- SUMIFS(Despesas_x_PAPA!H:H, Despesas_x_PAPA!$C:$C, "3", Despesas_x_PAPA!$E:$E,"PESSOAL", Despesas_x_PAPA!$F:$F, "4701")- SUMIFS(Despesas_x_PAPA!H:H, Despesas_x_PAPA!$C:$C, "3", Despesas_x_PAPA!$E:$E,"PESSOAL", Despesas_x_PAPA!$F:$F, "4987") -> 14,925,005,703 | G108: =SUMIFS(Despesas_x_PAPA!I:I, Despesas_x_PAPA!$C:$C, "3", Despesas_x_PAPA!$E:$E,"PESSOAL")- SUMIFS(Despesas_x_PAPA!I:I, Despesas_x_PAPA!$C:$C, "3", Despesas_x_PAPA!$E:$E,"PESSOAL", Despesas_x_PAPA!$F:$F, "50")- SUMIFS(Despesas_x_PAPA!I:I, Despesas_x_PAPA!$C:$C, "3", Despesas_x_PAPA!$E:$E,"PESSOAL", Despesas_x_PAPA!$F:$F, "0052")- SUMIFS(Despesas_x_PAPA!I:I, Despesas_x_PAPA!$C:$C, "3", Despesas_x_PAPA!$E:$E,"PESSOAL", Despesas_x_PAPA!$F:$F, "4701")- SUMIFS(Despesas_x_PAPA!I:I, Despesas_x_PAPA!$C:$C, "3", Despesas_x_PAPA!$E:$E,"PESSOAL", Despesas_x_PAPA!$F:$F, "4987") -> 10,589,295,202 | I108: =SUMIFS(Despesas_x_PAPA!J:J, Despesas_x_PAPA!$C:$C, "3", Despesas_x_PAPA!$E:$E,"PESSOAL")- SUMIFS(Despesas_x_PAPA!J:J, Despesas_x_PAPA!$C:$C, "3", Despesas_x_PAPA!$E:$E,"PESSOAL", Despesas_x_PAPA!$F:$F, "50")- SUMIFS(Despesas_x_PAPA!J:J, Despesas_x_PAPA!$C:$C, "3", Despesas_x_PAPA!$E:$E,"PESSOAL", Despesas_x_PAPA!$F:$F, "0052")- SUMIFS(Despesas_x_PAPA!J:J, Despesas_x_PAPA!$C:$C, "3", Despesas_x_PAPA!$E:$E,"PESSOAL", Despesas_x_PAPA!$F:$F, "4701")- SUMIFS(Despesas_x_PAPA!J:J, Despesas_x_PAPA!$C:$C, "3", Despesas_x_PAPA!$E:$E,"PESSOAL", Despesas_x_PAPA!$F:$F, "4987") -> 8,810,178,783 | K108: =SUMIFS(Despesas_x_PAPA!K:K, Despesas_x_PAPA!$C:$C, "3", Despesas_x_PAPA!$E:$E,"PESSOAL")- SUMIFS(Despesas_x_PAPA!K:K, Despesas_x_PAPA!$C:$C, "3", Despesas_x_PAPA!$E:$E,"PESSOAL", Despesas_x_PAPA!$F:$F, "50")- SUMIFS(Despesas_x_PAPA!K:K, Despesas_x_PAPA!$C:$C, "3", Despesas_x_PAPA!$E:$E,"PESSOAL", Despesas_x_PAPA!$F:$F, "0052")- SUMIFS(Despesas_x_PAPA!K:K, Despesas_x_PAPA!$C:$C, "3", Despesas_x_PAPA!$E:$E,"PESSOAL", Despesas_x_PAPA!$F:$F, "4701")- SUMIFS(Despesas_x_PAPA!K:K, Despesas_x_PAPA!$C:$C, "3", Despesas_x_PAPA!$E:$E,"PESSOAL", Despesas_x_PAPA!$F:$F, "4987") -> 8,810,178,783 | M108: =G108-I108 -> 1,779,116,419.06
B109: Auxílios | E109: =SUMIFS(Despesas_x_PAPA!H:H, Despesas_x_PAPA!$C:$C, "3", Despesas_x_PAPA!$E:$E,"AUXÍLIO")- SUMIFS(Despesas_x_PAPA!H:H, Despesas_x_PAPA!$C:$C, "3", Despesas_x_PAPA!$E:$E,"AUXÍLIO", Despesas_x_PAPA!$F:$F, "50")- SUMIFS(Despesas_x_PAPA!H:H, Despesas_x_PAPA!$C:$C, "3", Despesas_x_PAPA!$E:$E,"AUXÍLIO", Despesas_x_PAPA!$F:$F, "0052")- SUMIFS(Despesas_x_PAPA!H:H, Despesas_x_PAPA!$C:$C, "3", Despesas_x_PAPA!$E:$E,"AUXÍLIO", Despesas_x_PAPA!$F:$F, "4701")- SUMIFS(Despesas_x_PAPA!H:H, Despesas_x_PAPA!$C:$C, "3", Despesas_x_PAPA!$E:$E,"AUXÍLIO", Despesas_x_PAPA!$F:$F, "4987") -> 944,830,352 | G109: =SUMIFS(Despesas_x_PAPA!I:I, Despesas_x_PAPA!$C:$C, "3", Despesas_x_PAPA!$E:$E,"AUXÍLIO")- SUMIFS(Despesas_x_PAPA!I:I, Despesas_x_PAPA!$C:$C, "3", Despesas_x_PAPA!$E:$E,"AUXÍLIO", Despesas_x_PAPA!$F:$F, "50")- SUMIFS(Despesas_x_PAPA!I:I, Despesas_x_PAPA!$C:$C, "3", Despesas_x_PAPA!$E:$E,"AUXÍLIO", Despesas_x_PAPA!$F:$F, "0052")- SUMIFS(Despesas_x_PAPA!I:I, Despesas_x_PAPA!$C:$C, "3", Despesas_x_PAPA!$E:$E,"AUXÍLIO", Despesas_x_PAPA!$F:$F, "4701")- SUMIFS(Despesas_x_PAPA!I:I, Despesas_x_PAPA!$C:$C, "3", Despesas_x_PAPA!$E:$E,"AUXÍLIO", Despesas_x_PAPA!$F:$F, "4987") -> 626,901,511 | I109: =SUMIFS(Despesas_x_PAPA!J:J, Despesas_x_PAPA!$C:$C, "3", Despesas_x_PAPA!$E:$E,"AUXÍLIO")- SUMIFS(Despesas_x_PAPA!J:J, Despesas_x_PAPA!$C:$C, "3", Despesas_x_PAPA!$E:$E,"AUXÍLIO", Despesas_x_PAPA!$F:$F, "50")- SUMIFS(Despesas_x_PAPA!J:J, Despesas_x_PAPA!$C:$C, "3", Despesas_x_PAPA!$E:$E,"AUXÍLIO", Despesas_x_PAPA!$F:$F, "0052")- SUMIFS(Despesas_x_PAPA!J:J, Despesas_x_PAPA!$C:$C, "3", Despesas_x_PAPA!$E:$E,"AUXÍLIO", Despesas_x_PAPA!$F:$F, "4701")- SUMIFS(Despesas_x_PAPA!J:J, Despesas_x_PAPA!$C:$C, "3", Despesas_x_PAPA!$E:$E,"AUXÍLIO", Despesas_x_PAPA!$F:$F, "4987") -> 626,057,201 | K109: =SUMIFS(Despesas_x_PAPA!K:K, Despesas_x_PAPA!$C:$C, "3", Despesas_x_PAPA!$E:$E,"AUXÍLIO")- SUMIFS(Despesas_x_PAPA!K:K, Despesas_x_PAPA!$C:$C, "3", Despesas_x_PAPA!$E:$E,"AUXÍLIO", Despesas_x_PAPA!$F:$F, "50")- SUMIFS(Despesas_x_PAPA!K:K, Despesas_x_PAPA!$C:$C, "3", Despesas_x_PAPA!$E:$E,"AUXÍLIO", Despesas_x_PAPA!$F:$F, "0052")- SUMIFS(Despesas_x_PAPA!K:K, Despesas_x_PAPA!$C:$C, "3", Despesas_x_PAPA!$E:$E,"AUXÍLIO", Despesas_x_PAPA!$F:$F, "4701")- SUMIFS(Despesas_x_PAPA!K:K, Despesas_x_PAPA!$C:$C, "3", Despesas_x_PAPA!$E:$E,"AUXÍLIO", Despesas_x_PAPA!$F:$F, "4987") -> 626,057,201 | M109: 844,309.93
A110: 33.1.2 | B110: 33.1.2- Pessoal Inativo | E110: =E111 -> 3,736,255,197 | G110: =G111 -> 3,736,255,197 | I110: =I111 -> 1,553,095,655 | K110: =K111 -> 1,553,095,655 | M110: =M111 -> 2,183,159,541
B111: IPREM | E111: =SUMIFS(Despesas_x_PAPA!H:H, Despesas_x_PAPA!$F:$F, "0052") + SUMIFS(Despesas_x_PAPA!H:H, Despesas_x_PAPA!$F:$F, "4987") -> 3,736,255,197 | G111: =SUMIFS(Despesas_x_PAPA!I:I, Despesas_x_PAPA!$F:$F, "0052") + SUMIFS(Despesas_x_PAPA!I:I, Despesas_x_PAPA!$F:$F, "4987") -> 3,736,255,197 | I111: =SUMIFS(Despesas_x_PAPA!J:J, Despesas_x_PAPA!$F:$F, "0052") + SUMIFS(Despesas_x_PAPA!J:J, Despesas_x_PAPA!$F:$F, "4987") -> 1,553,095,655 | K111: =SUMIFS(Despesas_x_PAPA!K:K, Despesas_x_PAPA!$F:$F, "0052") + SUMIFS(Despesas_x_PAPA!K:K, Despesas_x_PAPA!$F:$F, "4987") -> 1,553,095,655 | M111: =G111-I111 -> 2,183,159,541.27
A112: 33.1.3 | B112: 33.1.3-Transferências às instituições comunitárias, confessionais ou filantrópicas sem fins lucrativos | E112: =SUM(E113) -> 6,008,752,231 | G112: =SUM(G113) -> 5,281,366,161 | I112: =SUM(I113) -> 4,809,083,947 | K112: =SUM(K113) -> 4,195,319,284 | M112: =SUM(M113) -> 472,282,214
B113: Parcerias Educação Infantil | E113: =SUMIFS(Despesas_x_PAPA!H:H, Despesas_x_PAPA!$C:$C, "3", Despesas_x_PAPA!$F:$F, "50") -> 6,008,752,231 | G113: =SUMIFS(Despesas_x_PAPA!I:I, Despesas_x_PAPA!$C:$C, "3", Despesas_x_PAPA!$F:$F, "50") -> 5,281,366,161 | I113: =SUMIFS(Despesas_x_PAPA!J:J, Despesas_x_PAPA!$C:$C, "3", Despesas_x_PAPA!$F:$F, "50") -> 4,809,083,947 | K113: =SUMIFS(Despesas_x_PAPA!K:K, Despesas_x_PAPA!$C:$C, "3", Despesas_x_PAPA!$F:$F, "50") -> 4,195,319,284 | M113: 472,282,213.90
A114: 33.1.4 | B114: 33.1.4- Outras Despesas Correntes | E114: =SUM(E115:E117) -> 6,187,638,312 | G114: =SUM(G115:G117) -> 5,012,901,870 | I114: =SUM(I115:I117) -> 3,529,607,210 | K114: =SUM(K115:K117) -> 3,393,216,344 | M114: =SUM(M115:M117) -> 1,483,294,660
B115: Projeto | E115: =SUMIFS(Despesas_x_PAPA!H:H, Despesas_x_PAPA!$C:$C, "3", Despesas_x_PAPA!$E:$E,"PROJETO")- SUMIFS(Despesas_x_PAPA!H:H, Despesas_x_PAPA!$C:$C, "3", Despesas_x_PAPA!$E:$E,"PROJETO", Despesas_x_PAPA!$F:$F, "50")- SUMIFS(Despesas_x_PAPA!H:H, Despesas_x_PAPA!$C:$C, "3", Despesas_x_PAPA!$E:$E,"PROJETO", Despesas_x_PAPA!$F:$F, "0052")- SUMIFS(Despesas_x_PAPA!H:H, Despesas_x_PAPA!$C:$C, "3", Despesas_x_PAPA!$E:$E,"PROJETO", Despesas_x_PAPA!$F:$F, "4701")- SUMIFS(Despesas_x_PAPA!H:H, Despesas_x_PAPA!$C:$C, "3", Despesas_x_PAPA!$E:$E,"PROJETO", Despesas_x_PAPA!$F:$F, "4987") -> 3,000 | G115: =SUMIFS(Despesas_x_PAPA!I:I, Despesas_x_PAPA!$C:$C, "3", Despesas_x_PAPA!$E:$E,"PROJETO")- SUMIFS(Despesas_x_PAPA!I:I, Despesas_x_PAPA!$C:$C, "3", Despesas_x_PAPA!$E:$E,"PROJETO", Despesas_x_PAPA!$F:$F, "50")- SUMIFS(Despesas_x_PAPA!I:I, Despesas_x_PAPA!$C:$C, "3", Despesas_x_PAPA!$E:$E,"PROJETO", Despesas_x_PAPA!$F:$F, "0052")- SUMIFS(Despesas_x_PAPA!I:I, Despesas_x_PAPA!$C:$C, "3", Despesas_x_PAPA!$E:$E,"PROJETO", Despesas_x_PAPA!$F:$F, "4701")- SUMIFS(Despesas_x_PAPA!I:I, Despesas_x_PAPA!$C:$C, "3", Despesas_x_PAPA!$E:$E,"PROJETO", Despesas_x_PAPA!$F:$F, "4987") -> 0 | I115: =SUMIFS(Despesas_x_PAPA!J:J, Despesas_x_PAPA!$C:$C, "3", Despesas_x_PAPA!$E:$E,"PROJETO")- SUMIFS(Despesas_x_PAPA!J:J, Despesas_x_PAPA!$C:$C, "3", Despesas_x_PAPA!$E:$E,"PROJETO", Despesas_x_PAPA!$F:$F, "50")- SUMIFS(Despesas_x_PAPA!J:J, Despesas_x_PAPA!$C:$C, "3", Despesas_x_PAPA!$E:$E,"PROJETO", Despesas_x_PAPA!$F:$F, "0052")- SUMIFS(Despesas_x_PAPA!J:J, Despesas_x_PAPA!$C:$C, "3", Despesas_x_PAPA!$E:$E,"PROJETO", Despesas_x_PAPA!$F:$F, "4701")- SUMIFS(Despesas_x_PAPA!J:J, Despesas_x_PAPA!$C:$C, "3", Despesas_x_PAPA!$E:$E,"PROJETO", Despesas_x_PAPA!$F:$F, "4987") -> 0 | K115: =SUMIFS(Despesas_x_PAPA!K:K, Despesas_x_PAPA!$C:$C, "3", Despesas_x_PAPA!$E:$E,"PROJETO")- SUMIFS(Despesas_x_PAPA!K:K, Despesas_x_PAPA!$C:$C, "3", Despesas_x_PAPA!$E:$E,"PROJETO", Despesas_x_PAPA!$F:$F, "50")- SUMIFS(Despesas_x_PAPA!K:K, Despesas_x_PAPA!$C:$C, "3", Despesas_x_PAPA!$E:$E,"PROJETO", Despesas_x_PAPA!$F:$F, "0052")- SUMIFS(Despesas_x_PAPA!K:K, Despesas_x_PAPA!$C:$C, "3", Despesas_x_PAPA!$E:$E,"PROJETO", Despesas_x_PAPA!$F:$F, "4701")- SUMIFS(Despesas_x_PAPA!K:K, Despesas_x_PAPA!$C:$C, "3", Despesas_x_PAPA!$E:$E,"PROJETO", Despesas_x_PAPA!$F:$F, "4987") -> 0 | M115: 0
B116: Atividade | E116: =SUMIFS(Despesas_x_PAPA!H:H, Despesas_x_PAPA!$C:$C, "3", Despesas_x_PAPA!$E:$E,"ATIVIDADE")- SUMIFS(Despesas_x_PAPA!H:H, Despesas_x_PAPA!$C:$C, "3", Despesas_x_PAPA!$E:$E,"ATIVIDADE", Despesas_x_PAPA!$F:$F, "50")- SUMIFS(Despesas_x_PAPA!H:H, Despesas_x_PAPA!$C:$C, "3", Despesas_x_PAPA!$E:$E,"ATIVIDADE", Despesas_x_PAPA!$F:$F, "0052")- SUMIFS(Despesas_x_PAPA!H:H, Despesas_x_PAPA!$C:$C, "3", Despesas_x_PAPA!$E:$E,"ATIVIDADE", Despesas_x_PAPA!$F:$F, "4701")- SUMIFS(Despesas_x_PAPA!H:H, Despesas_x_PAPA!$C:$C, "3", Despesas_x_PAPA!$E:$E,"ATIVIDADE", Despesas_x_PAPA!$F:$F, "4987") -> 5,381,318,792 | G116: =SUMIFS(Despesas_x_PAPA!I:I, Despesas_x_PAPA!$C:$C, "3", Despesas_x_PAPA!$E:$E,"ATIVIDADE")- SUMIFS(Despesas_x_PAPA!I:I, Despesas_x_PAPA!$C:$C, "3", Despesas_x_PAPA!$E:$E,"ATIVIDADE", Despesas_x_PAPA!$F:$F, "50")- SUMIFS(Despesas_x_PAPA!I:I, Despesas_x_PAPA!$C:$C, "3", Despesas_x_PAPA!$E:$E,"ATIVIDADE", Despesas_x_PAPA!$F:$F, "0052")- SUMIFS(Despesas_x_PAPA!I:I, Despesas_x_PAPA!$C:$C, "3", Despesas_x_PAPA!$E:$E,"ATIVIDADE", Despesas_x_PAPA!$F:$F, "4701")- SUMIFS(Despesas_x_PAPA!I:I, Despesas_x_PAPA!$C:$C, "3", Despesas_x_PAPA!$E:$E,"ATIVIDADE", Despesas_x_PAPA!$F:$F, "4987") -> 4,447,848,192 | I116: =SUMIFS(Despesas_x_PAPA!J:J, Despesas_x_PAPA!$C:$C, "3", Despesas_x_PAPA!$E:$E,"ATIVIDADE")- SUMIFS(Despesas_x_PAPA!J:J, Despesas_x_PAPA!$C:$C, "3", Despesas_x_PAPA!$E:$E,"ATIVIDADE", Despesas_x_PAPA!$F:$F, "50")- SUMIFS(Despesas_x_PAPA!J:J, Despesas_x_PAPA!$C:$C, "3", Despesas_x_PAPA!$E:$E,"ATIVIDADE", Despesas_x_PAPA!$F:$F, "0052")- SUMIFS(Despesas_x_PAPA!J:J, Despesas_x_PAPA!$C:$C, "3", Despesas_x_PAPA!$E:$E,"ATIVIDADE", Despesas_x_PAPA!$F:$F, "4701")- SUMIFS(Despesas_x_PAPA!J:J, Despesas_x_PAPA!$C:$C, "3", Despesas_x_PAPA!$E:$E,"ATIVIDADE", Despesas_x_PAPA!$F:$F, "4987") -> 2,964,553,532 | K116: =SUMIFS(Despesas_x_PAPA!K:K, Despesas_x_PAPA!$C:$C, "3", Despesas_x_PAPA!$E:$E,"ATIVIDADE")- SUMIFS(Despesas_x_PAPA!K:K, Despesas_x_PAPA!$C:$C, "3", Despesas_x_PAPA!$E:$E,"ATIVIDADE", Despesas_x_PAPA!$F:$F, "50")- SUMIFS(Despesas_x_PAPA!K:K, Despesas_x_PAPA!$C:$C, "3", Despesas_x_PAPA!$E:$E,"ATIVIDADE", Despesas_x_PAPA!$F:$F, "0052")- SUMIFS(Despesas_x_PAPA!K:K, Despesas_x_PAPA!$C:$C, "3", Despesas_x_PAPA!$E:$E,"ATIVIDADE", Despesas_x_PAPA!$F:$F, "4701")- SUMIFS(Despesas_x_PAPA!K:K, Despesas_x_PAPA!$C:$C, "3", Despesas_x_PAPA!$E:$E,"ATIVIDADE", Despesas_x_PAPA!$F:$F, "4987") -> 2,828,162,666 | M116: 1,483,294,660.46
B117: Compensação Tarifária Estudantil | E117: =SUMIFS(Despesas_x_PAPA!H:H, Despesas_x_PAPA!$F:$F, "4701") -> 806,316,520 | G117: =SUMIFS(Despesas_x_PAPA!I:I, Despesas_x_PAPA!$F:$F, "4701") -> 565,053,678 | I117: =SUMIFS(Despesas_x_PAPA!J:J, Despesas_x_PAPA!$F:$F, "4701") -> 565,053,678 | K117: =SUMIFS(Despesas_x_PAPA!K:K, Despesas_x_PAPA!$F:$F, "4701") -> 565,053,678 | M117: 0
A118: 33.2 | B118: 33.2- Despesas de Capital | E118: =E119+E121 -> 612,530,322 | G118: =G119+G121 -> 256,425,394 | I118: =I119+I121 -> 169,363,703 | K118: =K119+K121 -> 156,489,548 | M118: =M119+M121 -> 87,061,691
A119: 33.2.1 | B119: 33.2.1- Transferências às instituições comunitárias, confessionais ou filantrópicas sem fins lucrativos | E119: =SUM(E120) -> 2,000,000 | G119: =SUM(G120) -> 0 | I119: =SUM(I120) -> 0 | K119: =SUM(K120) -> 0 | M119: =SUM(M120) -> 0
B120: Parcerias Educação Infantil | E120: =SUMIFS(Despesas_x_PAPA!H:H, Despesas_x_PAPA!$C:$C, "4", Despesas_x_PAPA!$F:$F, "50") -> 2,000,000 | G120: =SUMIFS(Despesas_x_PAPA!I:I, Despesas_x_PAPA!$C:$C, "4", Despesas_x_PAPA!$F:$F, "50") -> 0 | I120: =SUMIFS(Despesas_x_PAPA!J:J, Despesas_x_PAPA!$C:$C, "4", Despesas_x_PAPA!$F:$F, "50") -> 0 | K120: =SUMIFS(Despesas_x_PAPA!K:K, Despesas_x_PAPA!$C:$C, "4", Despesas_x_PAPA!$F:$F, "50") -> 0 | M120: =G120-I120 -> 0
A121: 33.2.2 | B121: 33.2.2- Outras Despesas de Capital | E121: =SUM(E122:E124) -> 610,530,322 | G121: =SUM(G122:G124) -> 256,425,394 | I121: =SUM(I122:I124) -> 169,363,703 | K121: =SUM(K122:K124) -> 156,489,548 | M121: =SUM(M122:M124) -> 87,061,691
B122: Projeto | E122: =SUMIFS(Despesas_x_PAPA!H:H, Despesas_x_PAPA!$C:$C, "4", Despesas_x_PAPA!$E:$E,"PROJETO")- SUMIFS(Despesas_x_PAPA!H:H, Despesas_x_PAPA!$C:$C, "4", Despesas_x_PAPA!$E:$E,"PROJETO", Despesas_x_PAPA!$F:$F, "50") -> 588,600,285 | G122: =SUMIFS(Despesas_x_PAPA!I:I, Despesas_x_PAPA!$C:$C, "4", Despesas_x_PAPA!$E:$E,"PROJETO")- SUMIFS(Despesas_x_PAPA!I:I, Despesas_x_PAPA!$C:$C, "4", Despesas_x_PAPA!$E:$E,"PROJETO", Despesas_x_PAPA!$F:$F, "50") -> 244,161,021 | I122: =SUMIFS(Despesas_x_PAPA!J:J,Despesas_x_PAPA!$C:$C,"4",Despesas_x_PAPA!$E:$E,"PROJETO")- SUMIFS(Despesas_x_PAPA!J:J,Despesas_x_PAPA!$C:$C,"4",Despesas_x_PAPA!$E:$E,"PROJETO",Despesas_x_PAPA!$F:$F,"50") -> 165,748,403 | K122: =SUMIFS(Despesas_x_PAPA!K:K, Despesas_x_PAPA!$C:$C, "4", Despesas_x_PAPA!$E:$E,"PROJETO")- SUMIFS(Despesas_x_PAPA!K:K, Despesas_x_PAPA!$C:$C, "4", Despesas_x_PAPA!$E:$E,"PROJETO", Despesas_x_PAPA!$F:$F, "50") -> 153,552,659 | M122: =G122-I122 -> 78,412,618.05
B123: Atividade | E123: =SUMIFS(Despesas_x_PAPA!H:H, Despesas_x_PAPA!$C:$C, "4", Despesas_x_PAPA!$E:$E,"ATIVIDADE")- SUMIFS(Despesas_x_PAPA!H:H, Despesas_x_PAPA!$C:$C, "4", Despesas_x_PAPA!$E:$E,"ATIVIDADE", Despesas_x_PAPA!$F:$F, "50") -> 21,930,036 | G123: =SUMIFS(Despesas_x_PAPA!I:I, Despesas_x_PAPA!$C:$C, "4", Despesas_x_PAPA!$E:$E,"ATIVIDADE")- SUMIFS(Despesas_x_PAPA!I:I, Despesas_x_PAPA!$C:$C, "4", Despesas_x_PAPA!$E:$E,"ATIVIDADE", Despesas_x_PAPA!$F:$F, "50") -> 12,264,373 | I123: =SUMIFS(Despesas_x_PAPA!J:J,Despesas_x_PAPA!$C:$C,"4",Despesas_x_PAPA!$E:$E,"ATIVIDADE")- SUMIFS(Despesas_x_PAPA!J:J,Despesas_x_PAPA!$C:$C,"4",Despesas_x_PAPA!$E:$E,"ATIVIDADE",Despesas_x_PAPA!$F:$F,"50") -> 3,615,300 | K123: =SUMIFS(Despesas_x_PAPA!K:K, Despesas_x_PAPA!$C:$C, "4", Despesas_x_PAPA!$E:$E,"ATIVIDADE")- SUMIFS(Despesas_x_PAPA!K:K, Despesas_x_PAPA!$C:$C, "4", Despesas_x_PAPA!$E:$E,"ATIVIDADE", Despesas_x_PAPA!$F:$F, "50") -> 2,936,889 | M123: =G123-I123 -> 8,649,072.79
B124: Auxílios | E124: =SUMIFS(Despesas_x_PAPA!G:G, Despesas_x_PAPA!$C:$C, "4", Despesas_x_PAPA!$E:$E,"AUXÍLIO")- SUMIFS(Despesas_x_PAPA!G:G, Despesas_x_PAPA!$C:$C, "4", Despesas_x_PAPA!$E:$E,"AUXÍLIO", Despesas_x_PAPA!$F:$F, "50") -> 0 | G124: =SUMIFS(Despesas_x_PAPA!H:H, Despesas_x_PAPA!$C:$C, "4", Despesas_x_PAPA!$E:$E,"AUXÍLIO")- SUMIFS(Despesas_x_PAPA!H:H, Despesas_x_PAPA!$C:$C, "4", Despesas_x_PAPA!$E:$E,"AUXÍLIO", Despesas_x_PAPA!$F:$F, "50") -> 0 | I124: =SUMIFS(Despesas_x_PAPA!I:I, Despesas_x_PAPA!$C:$C, "4", Despesas_x_PAPA!$E:$E,"AUXÍLIO")- SUMIFS(Despesas_x_PAPA!I:I, Despesas_x_PAPA!$C:$C, "4", Despesas_x_PAPA!$E:$E,"AUXÍLIO", Despesas_x_PAPA!$F:$F, "50") -> 0 | K124: =SUMIFS(Despesas_x_PAPA!J:J, Despesas_x_PAPA!$C:$C, "4", Despesas_x_PAPA!$E:$E,"AUXÍLIO")- SUMIFS(Despesas_x_PAPA!J:J, Despesas_x_PAPA!$C:$C, "4", Despesas_x_PAPA!$E:$E,"AUXÍLIO", Despesas_x_PAPA!$F:$F, "50") -> 0 | M124: 0
B129: MDE E EDUCAÇÃO INCLUSIVA CUSTEADAS COM RECEITA DE IMPOSTOS (EXCETO FUNDEB)
B130: DESPESAS COM AÇÕES TÍPICAS DE MDE E EDUCAÇÃO INCLUSIVA - RECEITAS DE IMPOSTOS - EXCETO FUNDEB | D130: DOTAÇÃO ATUALIZADA | F130: DESPESAS EMPENHADAS | H130: DESPESAS LIQUIDADAS | J130: DESPESAS PAGAS | L130: INSCRITAS EM RESTOS A PAGAR NÃO PROCESSADOS
F131: Até o Bimestre | H131: Até o Bimestre | J131: Até o Bimestre
D132: (c) | F132: (d) | H132: (e) | J132: (f) | L132: (g)
A133: 42 | B133: 42- TOTAL DAS DESPESAS COM AÇÕES TÍPICAS DE MDE E EDUCAÇÃO INCLUSIVA - RECEITAS DE IMPOSTOS | E133: =SUM(E134,E135,E140:E144) -> 26,124,290,392.68 | G133: =SUM(G134,G135,G140:G144) -> 21,619,205,491.54 | I133: =SUM(I134,I135,I140:I144) -> 15,922,078,484.50 | K133: =SUM(K134,K135,K140:K144) -> 15,166,232,796.06 | M133: =SUM(M134,M135,M140:M144) -> 5,697,127,007.05
A134: 42.1 | B134: 42.1- Total das Despesas com Ações Típicas de MDE - Receitas de Impostos (20) | E134: =E43 -> 17,302,567,052.99 | G134: =G43 -> 13,317,740,153.27 | I134: =I43 -> 10,302,139,298.91 | K134: =K43 -> 9,583,939,487.62 | M134: =M43 -> 3,015,600,854.36
A135: 42.2 | B135: 42.2- Total das Despesas Custeadas com Receitas Adicionais para Financiamento do Ensino - Receitas de Impostos | E135: =E136+E137 -> 6,600,129,319.38 | G135: =G136+G137 -> 6,079,871,317.95 | I135: =I136+I137 -> 3,398,345,165.26 | K135: =K136+K137 -> 3,360,699,288.11 | M135: =M136+M137 -> 2,681,526,152.69
A136: 42.2.1 | B136: 42.2.1- Total das Despesas Custeadas com Receitas Adicionais para Financiamento do Ensino - Todas as Fontes (32) | E136: =E90 -> 7,538,699,065.82 | G136: =G90 -> 6,727,565,391.27 | I136: =I90 -> 3,737,407,410.17 | K136: =K90 -> 3,692,577,537.85 | M136: =M90 -> 2,990,157,981.10
A137: 42.2.2 | B137: 42.2.2- (-) Dedução das Despesas Custeadas com Receitas Adicionais para Financiamento do Ensino - Fontes Vinculadas | E137: =E138+E139 -> -938,569,746.44 | G137: =G138+G139 -> -647,694,073.32 | I137: =I138+I139 -> -339,062,244.91 | K137: =K138+K139 -> -331,878,249.74 | M137: =M138+M139 -> -308,631,828.41
B138: SME | E138: =-SUMIFS(Despesas_x_Subfuncao!$BN:$BN, Despesas_x_Subfuncao!$B:$B, "16") -> -880,890,857.20 | G138: =-SUMIFS(Despesas_x_Subfuncao!$BO:$BO, Despesas_x_Subfuncao!$B:$B, "16") -> -627,651,923.94 | I138: =-SUMIFS(Despesas_x_Subfuncao!$BP:$BP, Despesas_x_Subfuncao!$B:$B, "16") -> -324,341,509.44 | K138: =-SUMIFS(Despesas_x_Subfuncao!$BQ:$BQ, Despesas_x_Subfuncao!$B:$B, "16") -> -317,177,026.05 | M138: =G138-I138 -> -303,310,414.50
B139: Exceto SME | E139: =-SUM(Despesas_x_Subfuncao!$BN:$BN)-E138 -> -57,678,889.24 | G139: =-SUM(Despesas_x_Subfuncao!$BO:$BO)-G138 -> -20,042,149.38 | I139: =-SUM(Despesas_x_Subfuncao!$BP:$BP)-I138 -> -14,720,735.47 | K139: =-SUM(Despesas_x_Subfuncao!$BQ:$BQ)-K138 -> -14,701,223.69 | M139: =G139-I139 -> -5,321,413.91
A140: 42.3 | B140: 42.3 - Total das receitas transferidas ao FUNDEB = L4 | E140: ='Anexo 8 - MDE Municípios'!$P137 -> 2,221,594,020.32 | G140: ='Anexo 8 - MDE Municípios'!$P137 -> 2,221,594,020.32 | I140: ='Anexo 8 - MDE Municípios'!$P137 -> 2,221,594,020.32 | K140: ='Anexo 8 - MDE Municípios'!$P137 -> 2,221,594,020.32 | M140: =G140-I140 -> 0
A141: 42.4 | B141: 42.4 - (-) Receitas do FUNDEB não utilizadas no exercício, Em valor superior a 10% = L18(q) | E141: =-'Anexo 8 - MDE Municípios'!$P138 -> 0 | G141: =-'Anexo 8 - MDE Municípios'!$P138 -> 0 | I141: =-'Anexo 8 - MDE Municípios'!$P138 -> 0 | K141: =-'Anexo 8 - MDE Municípios'!$P138 -> 0 | M141: 0
A142: 42.5 | B142: 42.5 - (-) Superávit permitido no exercício imediatamente anterior não aplicado no exercício atual = L19.1(x) | E142: =-'Anexo 8 - MDE Municípios'!$P139 -> 0 | G142: =-'Anexo 8 - MDE Municípios'!$P139 -> 0 | I142: =-'Anexo 8 - MDE Municípios'!$P139 -> 0 | K142: =-'Anexo 8 - MDE Municípios'!$P139 -> 0 | M142: 0
A143: 42.6 | B143: 42.6 - (-) Restos a Pagar Não Processados inscritos no exercício sem disponibilidade financeira de recursos de impostos4 | E143: =-'Anexo 8 - MDE Municípios'!$P140 -> 0 | G143: =-'Anexo 8 - MDE Municípios'!$P140 -> 0 | I143: =-'Anexo 8 - MDE Municípios'!$P140 -> 0 | K143: =-'Anexo 8 - MDE Municípios'!$P140 -> 0 | M143: 0
A144: 42.7 | B144: 42.7 - (-) Cancelamento, no exercício, de Restos a Pagar inscritos com disponibilidade financeira de recursos de impostos vinculados ao ensino = (L30.1(af) + L30.2(af)) | E144: =-'Anexo 8 - MDE Municípios'!$P141 -> 0 | G144: =-'Anexo 8 - MDE Municípios'!$P141 -> 0 | I144: =-'Anexo 8 - MDE Municípios'!$P141 -> 0 | K144: =-'Anexo 8 - MDE Municípios'!$P141 -> 0 | M144: 0

Sheet RP_Consolidados
A1: Órgão | B1: Fonte | C1: SALDO RP TOTAL | D1: SALDO LIQUIDADO TOTAL | E1: SALDO PAGO TOTAL | F1: SALDO CANCELADO TOTAL | G1: SALDO CANCELADO QUE AFETA O MÍNIMO | M1: ANO_EPH | N1: Soma de SALDO CANCELADO RATEADO | O1: % Cumprido de Despesas com MDE (ii) | P1: Valor Exigido (29z em 2025) (iii) | Q1: Valor Aplicado no Anexo 8 do RREO (29aa em 2025) (iv) | R1: Restos a Pagar Cancelados não considerados no cômputo do mínimo de Despesas com MDE em exercícios anteriores (v) | S1: Restos a Pagar a Serem Compensados no Exercício Atual (vii) = [(v) + (vi)] - [(iv) - (iii)], se > 0; senão, 0 | T1: Saldo passível de cancelamento sem comprometer o mínimo de 25% de Despesas com MDE por ano de empenho | U1: Saldo Total
A2: 16 | B2: 00 | C2: =VLOOKUP(CONCATENATE(A2,".Total Geral.",B2),$M:$S,4,FALSE) -> 630,040,926.69 | D2: =VLOOKUP(CONCATENATE(A2,".Total Geral.",B2),$M:$S,5,FALSE) -> 553,358,557.62 | E2: =VLOOKUP(CONCATENATE(A2,".Total Geral.",B2),$M:$S,6,FALSE) -> 550,182,131.23 | F2: =VLOOKUP(CONCATENATE(A2,".Total Geral.",B2),$M:$S,7,FALSE) -> 76,682,018.53 | G2: =(F2/$F$5)*$S$7 -> 0 | M2: 2020 | N2: 0 | O2: =Q2/(P2*4) -> 25.16% | P2: R$ 11,357,102,379.00 | Q2: R$ 11,429,958,546.00 | R2: =SUMIF('RP CONSOLIDADO_2024'!$I$1:$I$7, M2, 'RP CONSOLIDADO_2024'!$N$1:$N$7)+ SUMIF('RP CONSOLIDADO_2024'!$I$9:$I$120, M2, 'RP CONSOLIDADO_2024'!$O$9:$O$120)- SUMIF('RP CONSOLIDADO_2024'!$I$2:$I$7, M2, 'RP CONSOLIDADO_2024'!$O$2:$O$7) -> 0 | S2: =IF(((N2+R2)-(Q2-P2))>0, (N2+R2)-(Q2-P2), 0) -> 0 | T2: =IF(((Q2-P2)-N2-R2-S2)>0, ((Q2-P2)-N2-R2-S2), 0) -> R$ 72,856,167.00 | U2: =SUMIF($M$11:$M$103, M2, $P$11:$P$103) - SUMIF($M$11:$M$103, M2, $R$11:$R$103) - SUMIF($M$11:$M$103, M2, $S$11:$S$103) -> R$ 230,433.97
A3: 16 | B3: 04 | C3: =VLOOKUP(CONCATENATE(A3,".Total Geral.",B3),$M:$S,4,FALSE) -> 30,086,801.54 | D3: =VLOOKUP(CONCATENATE(A3,".Total Geral.",B3),$M:$S,5,FALSE) -> 30,086,801.54 | E3: =VLOOKUP(CONCATENATE(A3,".Total Geral.",B3),$M:$S,6,FALSE) -> 30,086,801.54 | F3: =VLOOKUP(CONCATENATE(A3,".Total Geral.",B3),$M:$S,7,FALSE) -> 0 | G3: 0 | M3: 2021 | N3: 0 | O3: =Q3/(P3*4) -> 25.43% | P3: R$ 13,979,071,572.83 | Q3: R$ 14,219,217,742.11 | R3: =SUMIF('RP CONSOLIDADO_2024'!$I$1:$I$7, M3, 'RP CONSOLIDADO_2024'!$N$1:$N$7)+ SUMIF('RP CONSOLIDADO_2024'!$I$9:$I$120, M3, 'RP CONSOLIDADO_2024'!$O$9:$O$120)- SUMIF('RP CONSOLIDADO_2024'!$I$2:$I$7, M3, 'RP CONSOLIDADO_2024'!$O$2:$O$7) -> R$ 240,146,169.28 | S3: =IF(((N3+R3)-(Q3-P3))>0, (N3+R3)-(Q3-P3), 0) -> 0 | T3: =IF(((Q3-P3)-N3-R3-S3)>0, ((Q3-P3)-N3-R3-S3), 0) -> 0 | U3: =SUMIF($M$11:$M$103, M3, $P$11:$P$103) - SUMIF($M$11:$M$103, M3, $R$11:$R$103) - SUMIF($M$11:$M$103, M3, $S$11:$S$103) -> R$ 163,945.47
A4: 28 | B4: 00 | C4: =VLOOKUP(CONCATENATE(A4,".Total Geral.",B4),$M:$S,4,FALSE) -> 7,179,015.37 | D4: =VLOOKUP(CONCATENATE(A4,".Total Geral.",B4),$M:$S,5,FALSE) -> 0 | E4: =VLOOKUP(CONCATENATE(A4,".Total Geral.",B4),$M:$S,6,FALSE) -> 0 | F4: =VLOOKUP(CONCATENATE(A4,".Total Geral.",B4),$M:$S,7,FALSE) -> 7,179,015.37 | G4: =(F4/$F$5)*$S$7 -> 0 | M4: 2022 | N4: 0 | O4: 28.16% | P4: R$ 15,293,920,402.14 | Q4: =17224850830.3 -> R$ 17,224,850,830.30 | R4: =SUMIF('RP CONSOLIDADO_2024'!$I$1:$I$7, M4, 'RP CONSOLIDADO_2024'!$N$1:$N$7)+ SUMIF('RP CONSOLIDADO_2024'!$I$9:$I$120, M4, 'RP CONSOLIDADO_2024'!$O$9:$O$120)- SUMIF('RP CONSOLIDADO_2024'!$I$2:$I$7, M4, 'RP CONSOLIDADO_2024'!$O$2:$O$7) -> R$ 1,930,930,428.17 | S4: 0 | T4: 0 | U4: =SUMIF($M$11:$M$103, M4, $P$11:$P$103) - SUMIF($M$11:$M$103, M4, $R$11:$R$103) - SUMIF($M$11:$M$103, M4, $S$11:$S$103) -> R$ 2,035,640.61
A5: Total Restos a Pagar | C5: =SUM(C2:C4) -> 667,306,743.59 | D5: =SUM(D2:D4) -> 583,445,359.16 | E5: 580,268,932.77 | F5: 83,861,033.90 | G5: =SUM(G2, G4) -> 0 | M5: 2023 | N5: 0 | O5: 26.63% | P5: R$ 16,401,017,732.18 | Q5: R$ 17,467,840,853.87 | R5: =SUMIF('RP CONSOLIDADO_2024'!$I$1:$I$7, M5, 'RP CONSOLIDADO_2024'!$N$1:$N$7)+ SUMIF('RP CONSOLIDADO_2024'!$I$9:$I$120, M5, 'RP CONSOLIDADO_2024'!$O$9:$O$120)- SUMIF('RP CONSOLIDADO_2024'!$I$2:$I$7, M5, 'RP CONSOLIDADO_2024'!$O$2:$O$7) -> R$ 139,089,944.62 | S5: 0 | T5: R$ 927,733,177.07 | U5: =SUMIF($M$11:$M$103, M5, $P$11:$P$103) - SUMIF($M$11:$M$103, M5, $R$11:$R$103) - SUMIF($M$11:$M$103, M5, $S$11:$S$103) -> R$ 27,419.25
M6: 2024 | N6: R$ 83,860,899.71 | O6: 26.05% | P6: R$ 19,083,644,841.77 | Q6: R$ 19,885,588,202.84 | R6: =SUMIF('RP CONSOLIDADO_2024'!$I$1:$I$7, M6, 'RP CONSOLIDADO_2024'!$N$1:$N$7)+ SUMIF('RP CONSOLIDADO_2024'!$I$9:$I$120, M6, 'RP CONSOLIDADO_2024'!$O$9:$O$120)- SUMIF('RP CONSOLIDADO_2024'!$I$2:$I$7, M6, 'RP CONSOLIDADO_2024'!$O$2:$O$7) -> 0 | S6: 0 | T6: R$ 718,082,461.36 | U6: =SUMIF($M$11:$M$103, M6, $P$11:$P$103) - SUMIF($M$11:$M$103, M6, $R$11:$R$103) - SUMIF($M$11:$M$103, M6, $S$11:$S$103) -> R$ 719,337.64
A7: COD_ORG_EMP | B7: 16 | M7: Total Geral | N7: R$ 83,860,899.71 | S7: =SUM(S2:S6) -> 0 | U7: =SUM(U2:U6) -> R$ 3,176,776.93
A8: COD_UNID_ORCM_SOF | B8: (Vários itens) | C8: TODAS MENOS 24 (CODAE)
A9: COD_FONT_REC | B9: (Vários itens) | C9: FONTES PMSP = 00
A11: ANO_EPH | B11: COD_PROJ_ATVD_SOF | C11: Soma de VAL_SLDO_NAO_PRCS | D11: Soma de VAL_SLDO_NPRC_LQDD | E11: Soma de VAL_SLDO_PRCS | F11: Soma de VAL_LQDD_NPRC | G11: Soma de VAL_PAGO_NAO_PRCS | H11: Soma de VAL_PAGO_PRCS | I11: Soma de VAL_CANC_NAO_PRCS | J11: Soma de VAL_CANC_PRCS | M11: ANO_EPH | N11: UID | O11: RATEIO (da aba Rateios) | P11: SALDO RP RATEADO | Q11: SALDO LIQUIDADO RATEADO | R11: SALDO PAGO RATEADO | S11: SALDO CANCELADO RATEADO
A12: 2020 | B12: 2824 | C12: 0 | D12: 0 | E12: R$ 119,269.83 | F12: 0 | G12: 0 | H12: 0 | I12: 0 | J12: 0 | M12: =LEFT(N12, 4) -> 2020 | N12: =CONCATENATE(A12,".",$B$7,".",B12) -> 2020.16.2824 | O12: =VLOOKUP($N12,Rateios_RP!$B:$E,4, FALSE) -> 100.000000000000000000% | P12: =SUM(C12:E12)*$O12 -> 119,269.83 | Q12: =SUM(D12:F12)*$O12 -> 119,269.83 | R12: =SUM(G12:H12)*$O12 -> 0 | S12: =SUM(I12:J12)*$O12 -> 0
A13: 2020 | B13: 2828 | C13: 0 | D13: R$ 27,186.50 | E13: R$ 82,585.73 | F13: 0 | G13: 0 | H13: 0 | I13: 0 | J13: 0 | M13: 2020 | N13: =CONCATENATE(A13,".",$B$7,".",B13) -> 2020.16.2828 | O13: =VLOOKUP($N13,Rateios_RP!$B:$E,4, FALSE) -> 100.000000000000000000% | P13: =SUM(C13:E13)*$O13 -> 109,772.23 | Q13: =SUM(D13:F13)*$O13 -> 109,772.23 | R13: =SUM(G13:H13)*$O13 -> 0 | S13: =SUM(I13:J13)*$O13 -> 0
A14: 2020 | B14: 4362 | C14: 0 | D14: 0 | E14: R$ 1,391.91 | F14: 0 | G14: 0 | H14: 0 | I14: 0 | J14: 0 | M14: 2020 | N14: 2020.16.4362 | O14: =VLOOKUP($N14,Rateios_RP!$B:$E,4, FALSE) -> 100.000000000000000000% | P14: 1,391.91 | Q14: 1,391.91 | R14: 0 | S14: 0
A15: 2021 | B15: 2100 | C15: 0 | D15: R$ 795.00 | E15: R$ 2,442.00 | F15: 0 | G15: 0 | H15: 0 | I15: 0 | J15: 0 | M15: 2021 | N15: 2021.16.2100 | O15: =VLOOKUP($N15,Rateios_RP!$B:$E,4, FALSE) -> 99.626724129092900000% | P15: 3,224.92 | Q15: 3,224.92 | R15: 0 | S15: 0
A16: 2021 | B16: 2828 | C16: 0 | D16: 0 | E16: R$ 152,431.13 | F16: 0 | G16: 0 | H16: 0 | I16: 0 | J16: 0 | M16: 2021 | N16: 2021.16.2828 | O16: =VLOOKUP($N16,Rateios_RP!$B:$E,4, FALSE) -> 100.000000000000000000% | P16: 152,431.13 | Q16: 152,431.13 | R16: 0 | S16: 0
A17: 2021 | B17: 2848 | C17: 0 | D17: 0 | E17: R$ 1,965.62 | F17: 0 | G17: 0 | H17: 0 | I17: 0 | J17: 0 | M17: 2021 | N17: 2021.16.2848 | O17: =VLOOKUP($N17,Rateios_RP!$B:$E,4, FALSE) -> 100.000000000000000000% | P17: 1,965.62 | Q17: 1,965.62 | R17: 0 | S17: 0
A18: 2021 | B18: 2849 | C18: 0 | D18: R$ 338.78 | E18: R$ 5,420.40 | F18: 0 | G18: 0 | H18: 0 | I18: 0 | J18: 0 | M18: 2021 | N18: 2021.16.2849 | O18: =VLOOKUP($N18,Rateios_RP!$B:$E,4, FALSE) -> 100.000000000000000000% | P18: 5,759.18 | Q18: 5,759.18 | R18: 0 | S18: 0
A19: 2021 | B19: 2850 | C19: 0 | D19: R$ 564.62 | E19: 0 | F19: 0 | G19: 0 | H19: 0 | I19: 0 | J19: 0 | M19: 2021 | N19: 2021.16.2850 | O19: =VLOOKUP($N19,Rateios_RP!$B:$E,4, FALSE) -> 100.000000000000000000% | P19: 564.62 | Q19: 564.62 | R19: 0 | S19: 0
A20: 2022 | B20: 2100 | C20: 0 | D20: 0 | E20: R$ 1,039.00 | F20: 0 | G20: 0 | H20: 0 | I20: 0 | J20: 0 | M20: 2022 | N20: 2022.16.2100 | O20: =VLOOKUP($N20,Rateios_RP!$B:$E,4, FALSE) -> 99.639756384527600000% | P20: 1,035.26 | Q20: 1,035.26 | R20: 0 | S20: 0
A21: 2022 | B21: 2818 | C21: 0 | D21: R$ 1,996,979.57 | E21: 0 | F21: 0 | G21: 0 | H21: 0 | I21: 0 | J21: 0 | M21: 2022 | N21: 2022.16.2818 | O21: =VLOOKUP($N21,Rateios_RP!$B:$E,4, FALSE) -> 99.639756384527600000% | P21: 1,989,785.58 | Q21: 1,989,785.58 | R21: 0 | S21: 0
A22: 2022 | B22: 2828 | C22: 0 | D22: R$ 8,578.12 | E22: 0 | F22: 0 | G22: 0 | H22: 0 | I22: 0 | J22: 0 | M22: 2022 | N22: 2022.16.2828 | O22: =VLOOKUP($N22,Rateios_RP!$B:$E,4, FALSE) -> 100.000000000000000000% | P22: 8,578.12 | Q22: 8,578.12 | R22: 0 | S22: 0
A23: 2022 | B23: 2849 | C23: 0 | D23: 0 | E23: R$ 112.93 | F23: 0 | G23: 0 | H23: 0 | I23: 0 | J23: 0 | M23: 2022 | N23: 2022.16.2849 | O23: =VLOOKUP($N23,Rateios_RP!$B:$E,4, FALSE) -> 100.000000000000000000% | P23: 112.93 | Q23: 112.93 | R23: 0 | S23: 0
A24: 2022 | B24: 2850 | C24: 0 | D24: 0 | E24: R$ 16,439.36 | F24: 0 | G24: 0 | H24: 0 | I24: 0 | J24: 0 | M24: 2022 | N24: 2022.16.2850 | O24: =VLOOKUP($N24,Rateios_RP!$B:$E,4, FALSE) -> 100.000000000000000000% | P24: 16,439.36 | Q24: 16,439.36 | R24: 0 | S24: 0
A25: 2022 | B25: 4303 | C25: 0 | D25: R$ 440.00 | E25: R$ 2,669.92 | F25: 0 | G25: 0 | H25: 0 | I25: 0 | J25: 0 | M25: 2022 | N25: 2022.16.4303 | O25: =VLOOKUP($N25,Rateios_RP!$B:$E,4, FALSE) -> 99.639756384527600000% | P25: 3,098.72 | Q25: 3,098.72 | R25: 0 | S25: 0
A26: 2022 | B26: 4362 | C26: 0 | D26: 0 | E26: R$ 16,455.81 | F26: 0 | G26: 0 | H26: 0 | I26: 0 | J26: 0 | M26: 2022 | N26: 2022.16.4362 | O26: =VLOOKUP($N26,Rateios_RP!$B:$E,4, FALSE) -> 100.000000000000000000% | P26: 16,455.81 | Q26: 16,455.81 | R26: 0 | S26: 0
A27: 2022 | B27: 4364 | C27: 0 | D27: 0 | E27: R$ 188.77 | F27: 0 | G27: 0 | H27: 0 | I27: 0 | J27: 0 | M27: 2022 | N27: 2022.16.4364 | O27: =VLOOKUP($N27,Rateios_RP!$B:$E,4, FALSE) -> 71.428571428571400000% | P27: 134.84 | Q27: 134.84 | R27: 0 | S27: 0
A28: 2023 | B28: 2100 | C28: 0 | D28: R$ 2,671.44 | E28: R$ 359.62 | F28: 0 | G28: 0 | H28: 0 | I28: 0 | J28: 0 | M28: 2023 | N28: 2023.16.2100 | O28: =VLOOKUP($N28,Rateios_RP!$B:$E,4, FALSE) -> 99.652154299527800000% | P28: 3,020.52 | Q28: 3,020.52 | R28: 0 | S28: 0
A29: 2023 | B29: 2826 | C29: 0 | D29: R$ 13,949.86 | E29: 0 | F29: 0 | G29: 0 | H29: 0 | I29: 0 | J29: 0 | M29: 2023 | N29: 2023.16.2826 | O29: =VLOOKUP($N29,Rateios_RP!$B:$E,4, FALSE) -> 100.000000000000000000% | P29: 13,949.86 | Q29: 13,949.86 | R29: 0 | S29: 0
A30: 2023 | B30: 2827 | C30: 0 | D30: R$ 418.57 | E30: 0 | F30: 0 | G30: 0 | H30: 0 | I30: 0 | J30: 0 | M30: 2023 | N30: 2023.16.2827 | O30: =VLOOKUP($N30,Rateios_RP!$B:$E,4, FALSE) -> 100.000000000000000000% | P30: 418.57 | Q30: 418.57 | R30: 0 | S30: 0
A31: 2023 | B31: 2876 | C31: 0 | D31: R$ 330.48 | E31: 0 | F31: 0 | G31: 0 | H31: 0 | I31: 0 | J31: 0 | M31: 2023 | N31: 2023.16.2876 | O31: =VLOOKUP($N31,Rateios_RP!$B:$E,4, FALSE) -> 100.000000000000000000% | P31: 330.48 | Q31: 330.48 | R31: 0 | S31: 0
A32: 2023 | B32: 2883 | C32: 0 | D32: R$ 480.39 | E32: R$ 163.04 | F32: 0 | G32: 0 | H32: 0 | I32: 0 | J32: 0 | M32: 2023 | N32: 2023.16.2883 | O32: =VLOOKUP($N32,Rateios_RP!$B:$E,4, FALSE) -> 66.717536071032200000% | P32: 429.28 | Q32: 429.28 | R32: 0 | S32: 0
A33: 2023 | B33: 4303 | C33: 0 | D33: 0 | E33: R$ 5,547.70 | F33: 0 | G33: 0 | H33: 0 | I33: 0 | J33: 0 | M33: 2023 | N33: 2023.16.4303 | O33: =VLOOKUP($N33,Rateios_RP!$B:$E,4, FALSE) -> 99.652154299527800000% | P33: 5,528.40 | Q33: 5,528.40 | R33: 0 | S33: 0
A34: 2023 | B34: 4360 | C34: 0 | D34: R$ 2,773.89 | E34: 0 | F34: 0 | G34: 0 | H34: 0 | I34: 0 | J34: 0 | M34: 2023 | N34: 2023.16.4360 | O34: =VLOOKUP($N34,Rateios_RP!$B:$E,4, FALSE) -> 100.000000000000000000% | P34: 2,773.89 | Q34: 2,773.89 | R34: 0 | S34: 0
A35: 2023 | B35: 4362 | C35: 0 | D35: R$ 279.59 | E35: 0 | F35: 0 | G35: 0 | H35: 0 | I35: 0 | J35: 0 | M35: 2023 | N35: 2023.16.4362 | O35: =VLOOKUP($N35,Rateios_RP!$B:$E,4, FALSE) -> 100.000000000000000000% | P35: 279.59 | Q35: 279.59 | R35: 0 | S35: 0
A36: 2023 | B36: 4364 | C36: 0 | D36: R$ 964.12 | E36: 0 | F36: 0 | G36: 0 | H36: 0 | I36: 0 | J36: 0 | M36: 2023 | N36: 2023.16.4364 | O36: =VLOOKUP($N36,Rateios_RP!$B:$E,4, FALSE) -> 71.428571428571400000% | P36: 688.66 | Q36: 688.66 | R36: 0 | S36: 0
A37: 2024 | B37: 2100 | C37: R$ 25,682,992.11 | D37: 0 | E37: R$ 93,908.96 | F37: R$ 19,996,179.17 | G37: R$ 19,991,675.30 | H37: R$ 92,747.89 | I37: R$ 5,686,812.94 | J37: 0 | M37: 2024 | N37: 2024.16.2100 | O37: =VLOOKUP($N37,Rateios_RP!$B:$E,4, FALSE) -> 99.676210690461700000% | P37: 25,693,438.22 | Q37: 20,025,038.57 | R37: 20,019,391.97 | S37: 5,668,399.65
A38: 2024 | B38: 2171 | C38: R$ 1,639,771.19 | D38: 0 | E38: 0 | F38: R$ 1,540,462.20 | G38: R$ 1,540,462.20 | H38: 0 | I38: R$ 99,308.99 | J38: 0 | M38: 2024 | N38: 2024.16.2171 | O38: =VLOOKUP($N38,Rateios_RP!$B:$E,4, FALSE) -> 99.676210690461700000% | P38: 1,634,461.79 | Q38: 1,535,474.35 | R38: 1,535,474.35 | S38: 98,987.44
A39: 2024 | B39: 2180 | C39: R$ 1,937,448.13 | D39: 0 | E39: R$ 57,773.26 | F39: R$ 350,022.50 | G39: R$ 350,022.50 | H39: R$ 57,773.26 | I39: R$ 1,587,425.63 | J39: 0 | M39: 2024 | N39: 2024.16.2180 | O39: =VLOOKUP($N39,Rateios_RP!$B:$E,4, FALSE) -> 99.676210690461700000% | P39: 1,988,761.08 | Q39: 406,475.36 | R39: 406,475.36 | S39: 1,582,285.72
A40: 2024 | B40: 2803 | C40: R$ 101,992.12 | D40: 0 | E40: R$ 17,402.81 | F40: R$ 27,002.20 | G40: R$ 27,002.20 | H40: R$ 17,402.81 | I40: R$ 74,989.92 | J40: 0 | M40: 2024 | N40: 2024.16.2803 | O40: =VLOOKUP($N40,Rateios_RP!$B:$E,4, FALSE) -> 100.000000000000000000% | P40: 119,394.93 | Q40: 44,405.01 | R40: 44,405.01 | S40: 74,989.92
A41: 2024 | B41: 2815 | C41: R$ 110,283.83 | D41: 0 | E41: 0 | F41: R$ 110,257.08 | G41: R$ 110,257.08 | H41: 0 | I41: R$ 26.75 | J41: 0 | M41: 2024 | N41: 2024.16.2815 | O41: =VLOOKUP($N41,Rateios_RP!$B:$E,4, FALSE) -> 100.000000000000000000% | P41: 110,283.83 | Q41: 110,257.08 | R41: 110,257.08 | S41: 26.75
A42: 2024 | B42: 2816 | C42: R$ 223,209.82 | D42: 0 | E42: 0 | F42: R$ 223,204.52 | G42: R$ 223,204.52 | H42: 0 | I42: R$ 5.30 | J42: 0 | M42: 2024 | N42: 2024.16.2816 | O42: =VLOOKUP($N42,Rateios_RP!$B:$E,4, FALSE) -> 100.000000000000000000% | P42: 223,209.82 | Q42: 223,204.52 | R42: 223,204.52 | S42: 5.30
A43: 2024 | B43: 2818 | C43: R$ 33,462,596.09 | D43: 0 | E43: R$ 134,743.58 | F43: R$ 24,589,282.55 | G43: R$ 24,589,282.55 | H43: R$ 134,743.58 | I43: R$ 8,873,313.54 | J43: 0 | M43: 2024 | N43: 2024.16.2818 | O43: =VLOOKUP($N43,Rateios_RP!$B:$E,4, FALSE) -> 99.676210690461700000% | P43: 33,488,555.08 | Q43: 24,643,972.38 | R43: 24,643,972.38 | S43: 8,844,582.70
A44: 2024 | B44: 2821 | C44: R$ 614,966.99 | D44: 0 | E44: R$ 85,923.68 | F44: 0 | G44: 0 | H44: R$ 85,923.68 | I44: R$ 614,966.99 | J44: 0 | M44: 2024 | N44: 2024.16.2821 | O44: =VLOOKUP($N44,Rateios_RP!$B:$E,4, FALSE) -> 100.000000000000000000% | P44: 700,890.67 | Q44: 85,923.68 | R44: 85,923.68 | S44: 614,966.99
A45: 2024 | B45: 2823 | C45: R$ 705,521.29 | D45: 0 | E45: R$ 56,527.01 | F45: R$ 447,145.24 | G45: R$ 447,104.86 | H45: R$ 56,527.01 | I45: R$ 258,376.05 | J45: 0 | M45: 2024 | N45: 2024.16.2823 | O45: =VLOOKUP($N45,Rateios_RP!$B:$E,4, FALSE) -> 100.000000000000000000% | P45: 762,048.30 | Q45: 503,672.25 | R45: 503,631.87 | S45: 258,376.05
A46: 2024 | B46: 2824 | C46: R$ 85,110.34 | D46: 0 | E46: R$ 2,495.48 | F46: R$ 41,636.43 | G46: R$ 41,636.43 | H46: R$ 2,495.48 | I46: R$ 43,473.91 | J46: 0 | M46: 2024 | N46: 2024.16.2824 | O46: =VLOOKUP($N46,Rateios_RP!$B:$E,4, FALSE) -> 100.000000000000000000% | P46: 87,605.82 | Q46: 44,131.91 | R46: 44,131.91 | S46: 43,473.91
A47: 2024 | B47: 2826 | C47: R$ 29,461,998.45 | D47: 0 | E47: R$ 1,076,444.69 | F47: R$ 24,470,190.08 | G47: R$ 23,887,574.56 | H47: R$ 1,067,004.06 | I47: R$ 4,991,808.37 | J47: 0 | M47: 2024 | N47: 2024.16.2826 | O47: =VLOOKUP($N47,Rateios_RP!$B:$E,4, FALSE) -> 100.000000000000000000% | P47: 30,538,443.14 | Q47: 25,546,634.77 | R47: 24,954,578.62 | S47: 4,991,808.37
A48: 2024 | B48: 2827 | C48: R$ 1,138,262.88 | D48: 0 | E48: R$ 68,170.40 | F48: R$ 960,575.40 | G48: R$ 960,575.40 | H48: R$ 68,170.40 | I48: R$ 177,687.48 | J48: 0 | M48: 2024 | N48: 2024.16.2827 | O48: =VLOOKUP($N48,Rateios_RP!$B:$E,4, FALSE) -> 100.000000000000000000% | P48: 1,206,433.28 | Q48: 1,028,745.80 | R48: 1,028,745.80 | S48: 177,687.48
A49: 2024 | B49: 2828 | C49: R$ 9,055,678.81 | D49: 0 | E49: R$ 2,449,310.12 | F49: R$ 2,921,790.11 | G49: R$ 2,921,790.11 | H49: R$ 2,421,928.13 | I49: R$ 6,133,888.70 | J49: 0 | M49: 2024 | N49: 2024.16.2828 | O49: =VLOOKUP($N49,Rateios_RP!$B:$E,4, FALSE) -> 100.000000000000000000% | P49: 11,504,988.93 | Q49: 5,371,100.23 | R49: 5,343,718.24 | S49: 6,133,888.70
A50: 2024 | B50: 2829 | C50: R$ 397,293.68 | D50: 0 | E50: 0 | F50: R$ 87,151.35 | G50: R$ 87,151.35 | H50: 0 | I50: R$ 310,142.33 | J50: 0 | M50: 2024 | N50: 2024.16.2829 | O50: =VLOOKUP($N50,Rateios_RP!$B:$E,4, FALSE) -> 100.000000000000000000% | P50: 397,293.68 | Q50: 87,151.35 | R50: 87,151.35 | S50: 310,142.33
A51: 2024 | B51: 2830 | C51: R$ 4,248,856.04 | D51: 0 | E51: 0 | F51: R$ 4,109,210.74 | G51: R$ 4,109,210.74 | H51: 0 | I51: R$ 139,645.30 | J51: 0 | M51: 2024 | N51: 2024.16.2830 | O51: =VLOOKUP($N51,Rateios_RP!$B:$E,4, FALSE) -> 71.428571428571400000% | P51: 3,034,897.17 | Q51: 2,935,150.53 | R51: 2,935,150.53 | S51: 99,746.64
A52: 2024 | B52: 2831 | C52: R$ 19,836,949.03 | D52: 0 | E52: R$ 282,094.44 | F52: R$ 18,555,534.00 | G52: R$ 18,517,160.91 | H52: R$ 281,362.80 | I52: R$ 1,281,415.03 | J52: 0 | M52: 2024 | N52: 2024.16.2831 | O52: =VLOOKUP($N52,Rateios_RP!$B:$E,4, FALSE) -> 99.676210690461700000% | P52: 20,053,900.16 | Q52: 18,776,634.21 | R52: 18,737,656.10 | S52: 1,277,265.95
A53: 2024 | B53: 2840 | C53: 0 | D53: 0 | E53: R$ 130,899.00 | F53: 0 | G53: 0 | H53: R$ 130,899.00 | I53: 0 | J53: 0 | M53: 2024 | N53: 2024.16.2840 | O53: =VLOOKUP($N53,Rateios_RP!$B:$E,4, FALSE) -> 100.000000000000000000% | P53: 130,899.00 | Q53: 130,899.00 | R53: 130,899.00 | S53: 0
A54: 2024 | B54: 2841 | C54: 0 | D54: 0 | E54: R$ 147,478.00 | F54: 0 | G54: 0 | H54: R$ 147,478.00 | I54: 0 | J54: 0 | M54: 2024 | N54: 2024.16.2841 | O54: =VLOOKUP($N54,Rateios_RP!$B:$E,4, FALSE) -> 100.000000000000000000% | P54: 147,478.00 | Q54: 147,478.00 | R54: 147,478.00 | S54: 0
A55: 2024 | B55: 2848 | C55: R$ 2,684,906.92 | D55: 0 | E55: R$ 15,171.85 | F55: R$ 2,431,983.71 | G55: R$ 2,431,983.71 | H55: R$ 15,171.85 | I55: R$ 252,923.21 | J55: 0 | M55: 2024 | N55: 2024.16.2848 | O55: =VLOOKUP($N55,Rateios_RP!$B:$E,4, FALSE) -> 100.000000000000000000% | P55: 2,700,078.77 | Q55: 2,447,155.56 | R55: 2,447,155.56 | S55: 252,923.21
A56: 2024 | B56: 2849 | C56: R$ 26,432,540.16 | D56: 0 | E56: R$ 926,728.71 | F56: R$ 24,767,472.10 | G56: R$ 24,767,472.10 | H56: R$ 925,877.74 | I56: R$ 1,665,068.06 | J56: 0 | M56: 2024 | N56: 2024.16.2849 | O56: =VLOOKUP($N56,Rateios_RP!$B:$E,4, FALSE) -> 100.000000000000000000% | P56: 27,359,268.87 | Q56: 25,694,200.81 | R56: 25,693,349.84 | S56: 1,665,068.06
A57: 2024 | B57: 2850 | C57: R$ 39,300,296.02 | D57: 0 | E57: R$ 124,813.29 | F57: R$ 37,687,542.50 | G57: R$ 37,687,542.50 | H57: R$ 113,591.64 | I57: R$ 1,612,753.52 | J57: 0 | M57: 2024 | N57: 2024.16.2850 | O57: =VLOOKUP($N57,Rateios_RP!$B:$E,4, FALSE) -> 100.000000000000000000% | P57: 39,425,109.31 | Q57: 37,812,355.79 | R57: 37,801,134.14 | S57: 1,612,753.52
A58: 2024 | B58: 2861 | C58: R$ 1,985,832.77 | D58: 0 | E58: R$ 175,243.31 | F58: R$ 635,131.89 | G58: R$ 635,131.89 | H58: R$ 175,243.31 | I58: R$ 1,350,700.88 | J58: 0 | M58: 2024 | N58: 2024.16.2861 | O58: =VLOOKUP($N58,Rateios_RP!$B:$E,4, FALSE) -> 100.000000000000000000% | P58: 2,161,076.08 | Q58: 810,375.20 | R58: 810,375.20 | S58: 1,350,700.88
A59: 2024 | B59: 2872 | C59: R$ 727,378.60 | D59: 0 | E59: R$ 232,133.40 | F59: R$ 339,782.00 | G59: R$ 336,482.00 | H59: R$ 232,133.40 | I59: R$ 387,596.60 | J59: 0 | M59: 2024 | N59: 2024.16.2872 | O59: =VLOOKUP($N59,Rateios_RP!$B:$E,4, FALSE) -> 0.000000000000000000% | P59: 0 | Q59: 0 | R59: 0 | S59: 0
A60: 2024 | B60: 2876 | C60: R$ 2,708,163.94 | D60: 0 | E60: R$ 145,430.82 | F60: R$ 1,560,644.24 | G60: R$ 1,560,644.24 | H60: R$ 145,290.80 | I60: R$ 1,147,519.70 | J60: 0 | M60: 2024 | N60: 2024.16.2876 | O60: =VLOOKUP($N60,Rateios_RP!$B:$E,4, FALSE) -> 100.000000000000000000% | P60: 2,853,594.76 | Q60: 1,706,075.06 | R60: 1,705,935.04 | S60: 1,147,519.70
A61: 2024 | B61: 2878 | C61: R$ 14,190,308.96 | D61: 0 | E61: 0 | F61: R$ 10,281,503.68 | G61: R$ 10,281,503.68 | H61: 0 | I61: R$ 3,908,805.28 | J61: 0 | M61: 2024 | N61: 2024.16.2878 | O61: =VLOOKUP($N61,Rateios_RP!$B:$E,4, FALSE) -> 100.000000000000000000% | P61: 14,190,308.96 | Q61: 10,281,503.68 | R61: 10,281,503.68 | S61: 3,908,805.28
A62: 2024 | B62: 2879 | C62: R$ 30,767,379.06 | D62: 0 | E62: 0 | F62: R$ 26,840,782.83 | G62: R$ 26,840,782.83 | H62: 0 | I62: R$ 3,926,596.23 | J62: 0 | M62: 2024 | N62: 2024.16.2879 | O62: =VLOOKUP($N62,Rateios_RP!$B:$E,4, FALSE) -> 100.000000000000000000% | P62: 30,767,379.06 | Q62: 26,840,782.83 | R62: 26,840,782.83 | S62: 3,926,596.23
A63: 2024 | B63: 2882 | C63: R$ 147,299.65 | D63: 0 | E63: 0 | F63: R$ 64,427.19 | G63: R$ 64,427.19 | H63: 0 | I63: R$ 82,872.46 | J63: 0 | M63: 2024 | N63: 2024.16.2882 | O63: =VLOOKUP($N63,Rateios_RP!$B:$E,4, FALSE) -> 0.000000000000000000% | P63: 0 | Q63: 0 | R63: 0 | S63: 0
A64: 2024 | B64: 2883 | C64: R$ 2,999,412.78 | D64: 0 | E64: R$ 49,392.64 | F64: R$ 2,508,062.87 | G64: R$ 2,477,717.78 | H64: R$ 49,392.64 | I64: R$ 491,349.91 | J64: 0 | M64: 2024 | N64: 2024.16.2883 | O64: =VLOOKUP($N64,Rateios_RP!$B:$E,4, FALSE) -> 65.850027070925800000% | P64: 2,007,639.19 | Q64: 1,684,085.15 | R64: 1,664,102.90 | S64: 323,554.05
A65: 2024 | B65: 2885 | C65: R$ 422,716.27 | D65: 0 | E65: 0 | F65: 0 | G65: 0 | H65: 0 | I65: R$ 422,716.27 | J65: 0 | M65: 2024 | N65: 2024.16.2885 | O65: =VLOOKUP($N65,Rateios_RP!$B:$E,4, FALSE) -> 99.676210690461700000% | P65: 421,347.56 | Q65: 0 | R65: 0 | S65: 421,347.56
A66: 2024 | B66: 3002 | C66: R$ 908,106.40 | D66: 0 | E66: 0 | F66: R$ 125,404.98 | G66: R$ 125,404.98 | H66: 0 | I66: R$ 782,701.42 | J66: 0 | M66: 2024 | N66: 2024.16.3002 | O66: =VLOOKUP($N66,Rateios_RP!$B:$E,4, FALSE) -> 99.676210690461700000% | P66: 905,166.05 | Q66: 124,998.93 | R66: 124,998.93 | S66: 780,167.12
A67: 2024 | B67: 3359 | C67: R$ 10,148,594.32 | D67: 0 | E67: 0 | F67: R$ 7,374,454.58 | G67: R$ 7,374,454.58 | H67: 0 | I67: R$ 2,774,139.74 | J67: 0 | M67: 2024 | N67: 2024.16.3359 | O67: =VLOOKUP($N67,Rateios_RP!$B:$E,4, FALSE) -> 100.000000000000000000% | P67: 10,148,594.32 | Q67: 7,374,454.58 | R67: 7,374,454.58 | S67: 2,774,139.74
A68: 2024 | B68: 3360 | C68: R$ 26,819,430.75 | D68: 0 | E68: 0 | F68: R$ 24,460,747.33 | G68: R$ 24,460,747.33 | H68: 0 | I68: R$ 2,358,683.42 | J68: 0 | M68: 2024 | N68: 2024.16.3360 | O68: =VLOOKUP($N68,Rateios_RP!$B:$E,4, FALSE) -> 100.000000000000000000% | P68: 26,819,430.75 | Q68: 24,460,747.33 | R68: 24,460,747.33 | S68: 2,358,683.42
A69: 2024 | B69: 3361 | C69: R$ 176,937.52 | D69: 0 | E69: 0 | F69: R$ 176,937.52 | G69: R$ 176,937.52 | H69: 0 | I69: 0 | J69: 0 | M69: 2024 | N69: 2024.16.3361 | O69: =VLOOKUP($N69,Rateios_RP!$B:$E,4, FALSE) -> 100.000000000000000000% | P69: 176,937.52 | Q69: 176,937.52 | R69: 176,937.52 | S69: 0
A70: 2024 | B70: 3362 | C70: R$ 9,751,921.08 | D70: 0 | E70: 0 | F70: R$ 9,010,656.17 | G70: R$ 9,010,656.17 | H70: 0 | I70: R$ 741,264.91 | J70: 0 | M70: 2024 | N70: 2024.16.3362 | O70: =VLOOKUP($N70,Rateios_RP!$B:$E,4, FALSE) -> 100.000000000000000000% | P70: 9,751,921.08 | Q70: 9,010,656.17 | R70: 9,010,656.17 | S70: 741,264.91
A71: 2024 | B71: 3363 | C71: R$ 647,034.81 | D71: 0 | E71: 0 | F71: R$ 292,134.30 | G71: R$ 292,134.30 | H71: 0 | I71: R$ 354,900.51 | J71: 0 | M71: 2024 | N71: 2024.16.3363 | O71: =VLOOKUP($N71,Rateios_RP!$B:$E,4, FALSE) -> 99.200000000000000000% | P71: 641,858.53 | Q71: 289,797.23 | R71: 289,797.23 | S71: 352,061.31
A72: 2024 | B72: 3364 | C72: R$ 42,038,803.12 | D72: 0 | E72: 0 | F72: R$ 37,798,110.48 | G72: R$ 37,798,110.48 | H72: 0 | I72: R$ 4,240,692.64 | J72: 0 | M72: 2024 | N72: 2024.16.3364 | O72: =VLOOKUP($N72,Rateios_RP!$B:$E,4, FALSE) -> 71.428571428571400000% | P72: 30,027,716.51 | Q72: 26,998,650.34 | R72: 26,998,650.34 | S72: 3,029,066.17
A73: 2024 | B73: 3365 | C73: R$ 2,676,995.51 | D73: 0 | E73: 0 | F73: R$ 2,400,390.63 | G73: R$ 2,400,390.63 | H73: 0 | I73: R$ 276,604.88 | J73: 0 | M73: 2024 | N73: 2024.16.3365 | O73: =VLOOKUP($N73,Rateios_RP!$B:$E,4, FALSE) -> 100.000000000000000000% | P73: 2,676,995.51 | Q73: 2,400,390.63 | R73: 2,400,390.63 | S73: 276,604.88
A74: 2024 | B74: 3366 | C74: R$ 16,325,778.15 | D74: 0 | E74: 0 | F74: R$ 15,729,561.86 | G74: R$ 15,729,561.86 | H74: 0 | I74: R$ 595,731.56 | J74: 0 | M74: 2024 | N74: 2024.16.3366 | O74: =VLOOKUP($N74,Rateios_RP!$B:$E,4, FALSE) -> 100.000000000000000000% | P74: 16,325,778.15 | Q74: 15,729,561.86 | R74: 15,729,561.86 | S74: 595,731.56
A75: 2024 | B75: 4303 | C75: R$ 3,435,116.08 | D75: 0 | E75: R$ 311,415.51 | F75: R$ 2,291,298.73 | G75: R$ 2,287,778.73 | H75: R$ 306,931.51 | I75: R$ 1,143,817.35 | J75: 0 | M75: 2024 | N75: 2024.16.4303 | O75: =VLOOKUP($N75,Rateios_RP!$B:$E,4, FALSE) -> 0.000000000000000000% | P75: 0 | Q75: 0 | R75: 0 | S75: 0
A76: 2024 | B76: 4360 | C76: R$ 25,264,050.48 | D76: 0 | E76: R$ 509,080.48 | F76: R$ 18,011,676.41 | G76: R$ 18,011,676.41 | H76: R$ 509,080.48 | I76: R$ 7,252,374.07 | J76: 0 | M76: =LEFT(N76, 4) -> 2024 | N76: 2024.16.4360 | O76: =VLOOKUP($N76,Rateios_RP!$B:$E,4, FALSE) -> 100.000000000000000000% | P76: 25,773,130.96 | Q76: 18,520,756.89 | R76: 18,520,756.89 | S76: 7,252,374.07
A77: 2024 | B77: 4362 | C77: R$ 19,550,352.75 | D77: 0 | E77: R$ 1,103,489.95 | F77: R$ 16,782,653.54 | G77: R$ 16,767,176.73 | H77: R$ 1,103,240.00 | I77: R$ 2,767,699.21 | J77: R$ 134.19 | M77: 2024 | N77: =CONCATENATE(A77,".",$B$7,".",B77) -> 2024.16.4362 | O77: =VLOOKUP($N77,Rateios_RP!$B:$E,4, FALSE) -> 100.000000000000000000% | P77: =SUM(C77:E77)*$O77 -> 20,653,842.70 | Q77: =SUM(D77:F77)*$O77 -> 17,886,143.49 | R77: =SUM(G77:H77)*$O77 -> 17,870,416.73 | S77: =SUM(I77:J77)*$O77 -> 2,767,833.40
A78: 2024 | B78: 4364 | C78: R$ 32,217,691.59 | D78: 0 | E78: R$ 2,453,038.84 | F78: R$ 29,915,077.40 | G78: R$ 29,915,077.40 | H78: R$ 2,452,394.98 | I78: R$ 2,302,614.19 | J78: 0 | M78: 2024 | N78: 2024.16.4364 | O78: =VLOOKUP($N78,Rateios_RP!$B:$E,4, FALSE) -> 71.428571428571400000% | P78: 24,764,807.45 | Q78: 23,120,083.03 | R78: 23,119,623.13 | S78: 1,644,724.42
A79: 2024 | B79: 2856 | C79: R$ 50,831,883.00 | D79: 0 | E79: 0 | F79: R$ 45,677,059.06 | G79: R$ 45,677,059.06 | H79: 0 | I79: R$ 5,154,823.94 | J79: 0 | M79: 2024 | N79: 2024.16.2856 | O79: =VLOOKUP($N79,Rateios_RP!$B:$E,4, FALSE) -> 100.000000000000000000% | P79: 50,831,883.00 | Q79: 45,677,059.06 | R79: 45,677,059.06 | S79: 5,154,823.94
A80: 2024 | B80: 2857 | C80: R$ 60,573,620.46 | D80: 0 | E80: 0 | F80: R$ 60,573,620.46 | G80: R$ 60,573,620.46 | H80: 0 | I80: 0 | J80: 0 | M80: 2024 | N80: 2024.16.2857 | O80: =VLOOKUP($N80,Rateios_RP!$B:$E,4, FALSE) -> 100.000000000000000000% | P80: 60,573,620.46 | Q80: 60,573,620.46 | R80: 60,573,620.46 | S80: 0
A81: 2024 | B81: 2858 | C81: R$ 52,930,278.00 | D81: 0 | E81: 0 | F81: R$ 52,870,001.37 | G81: R$ 52,870,001.37 | H81: 0 | I81: R$ 60,276.63 | J81: 0 | M81: 2024 | N81: 2024.16.2858 | O81: =VLOOKUP($N81,Rateios_RP!$B:$E,4, FALSE) -> 100.000000000000000000% | P81: 52,930,278.00 | Q81: 52,870,001.37 | R81: 52,870,001.37 | S81: 60,276.63
A82: 2024 | B82: 2877 | C82: R$ 6,984,366.00 | D82: 0 | E82: 0 | F82: R$ 6,286,986.79 | G82: R$ 6,286,986.79 | H82: 0 | I82: R$ 697,379.21 | J82: 0 | M82: 2024 | N82: 2024.16.2877 | O82: =VLOOKUP($N82,Rateios_RP!$B:$E,4, FALSE) -> 100.000000000000000000% | P82: 6,984,366.00 | Q82: 6,286,986.79 | R82: 6,286,986.79 | S82: 697,379.21
A83: 2024 | B83: 2888 | C83: R$ 8,605,469.66 | D83: 0 | E83: R$ 6,523.44 | F83: R$ 8,596,312.48 | G83: R$ 8,596,312.48 | H83: 0 | I83: R$ 9,157.18 | J83: 0 | M83: 2024 | N83: 2024.16.2888 | O83: =VLOOKUP($N83,Rateios_RP!$B:$E,4, FALSE) -> 99.676210690461700000% | P83: 8,584,108.39 | Q83: 8,574,980.86 | R83: 8,568,478.54 | S83: 9,127.53
A84: 2024 | B84: 2812 | C84: R$ 5,042,011.57 | D84: 0 | E84: 0 | F84: R$ 5,042,011.57 | G84: R$ 5,042,011.57 | H84: 0 | I84: 0 | J84: 0 | M84: 2024 | N84: 2024.16.2812 | O84: =VLOOKUP($N84,Rateios_RP!$B:$E,4, FALSE) -> 0.000000000000000000% | P84: 0 | Q84: 0 | R84: 0 | S84: 0
A85: 2024 | B85: 2811 | C85: R$ 880,846.92 | D85: 0 | E85: 0 | F85: R$ 880,846.92 | G85: R$ 880,846.92 | H85: 0 | I85: 0 | J85: 0 | M85: 2024 | N85: 2024.16.2811 | O85: =VLOOKUP($N85,Rateios_RP!$B:$E,4, FALSE) -> 0.000000000000000000% | P85: 0 | Q85: 0 | R85: 0 | S85: 0
A86: 2024 | B86: 2890 | C86: R$ 646,790.00 | D86: 0 | E86: R$ 38,960.00 | F86: R$ 460,550.00 | G86: R$ 460,550.00 | H86: R$ 38,960.00 | I86: R$ 186,240.00 | J86: 0 | M86: 2024 | N86: 2024.16.2890 | O86: =VLOOKUP($N86,Rateios_RP!$B:$E,4, FALSE) -> 99.676210690461700000% | P86: 683,529.61 | Q86: 497,892.64 | R86: 497,892.64 | S86: 185,636.97
A87: 2024 | B87: 2705 | C87: R$ 1,132,926.85 | D87: 0 | E87: 0 | F87: R$ 1,118,876.53 | G87: R$ 1,118,876.53 | H87: 0 | I87: R$ 14,050.32 | J87: 0 | M87: 2024 | N87: 2024.16.2705 | O87: =VLOOKUP($N87,Rateios_RP!$B:$E,4, FALSE) -> 99.676210690461700000% | P87: 1,129,258.55 | Q87: 1,115,253.73 | R87: 1,115,253.73 | S87: 14,004.83
A88: 2024 | B88: 2106 | C88: R$ 23,567,788.37 | D88: 0 | E88: 0 | F88: R$ 20,355,170.21 | G88: R$ 20,355,170.21 | H88: 0 | I88: R$ 3,212,618.16 | J88: 0 | M88: 2024 | N88: 2024.16.2106 | O88: =VLOOKUP($N88,Rateios_RP!$B:$E,4, FALSE) -> 99.676210690461700000% | P88: 23,491,478.39 | Q88: 20,289,262.34 | R88: 20,289,262.34 | S88: 3,202,216.05
A89: Total Geral | C89: R$ 652,225,959.32 | D89: R$ 2,056,750.93 | E89: R$ 11,103,076.44 | F89: R$ 571,777,515.90 | G89: R$ 571,099,341.14 | H89: R$ 10,631,764.45 | I89: R$ 80,447,958.69 | J89: R$ 134.19 | M89: 16.Total Geral.00 | P89: =SUM(P12:P88) -> 630,040,926.69 | Q89: =SUM(Q12:Q88) -> 553,358,557.62 | R89: 550,182,131.23 | S89: 76,682,018.53
A91: COD_ORG_EMP | B91: 28
A92: COD_FONT_REC | B92: (Vários itens) | C92: FONTES PMSP = 00
B93: Apenas a ação 6823, que é a única considerada no cálculo das despesas com MDE
A94: ANO_EPH | B94: COD_PROJ_ATVD_SOF | C94: Soma de VAL_SLDO_NAO_PRCS | D94: Soma de VAL_SLDO_NPRC_LQDD | E94: Soma de VAL_SLDO_PRCS | F94: Soma de VAL_LQDD_NPRC | G94: Soma de VAL_PAGO_NAO_PRCS | H94: Soma de VAL_PAGO_PRCS | I94: Soma de VAL_CANC_NAO_PRCS | J94: Soma de VAL_CANC_PRCS | M94: ANO_EPH | N94: UID | O94: RATEIO (da aba Rateios) | P94: SALDO RP RATEADO | Q94: SALDO LIQUIDADO RATEADO | R94: SALDO PAGO RATEADO | S94: SALDO CANCELADO RATEADO
A95: 2024 | B95: 6823 | C95: R$ 7,202,335.76 | D95: 0 | E95: 0 | F95: 0 | G95: 0 | H95: 0 | I95: R$ 7,202,335.76 | J95: 0 | M95: =LEFT(N95, 4) -> 2024 | N95: =CONCATENATE(A95,".",$B$91,".",B95) -> 2024.28.6823 | O95: =VLOOKUP($N95,Rateios_RP!$B:$E,4, FALSE) -> 99.676210690461700000% | P95: =SUM(C95:E95)*$O95 -> 7,179,015.37 | Q95: =SUM(D95:F95)*$O95 -> 0 | R95: =SUM(G95:H95)*$O95 -> 0 | S95: =SUM(I95:J95)*$O95 -> 7,179,015.37
A96: Total Geral | C96: R$ 7,202,335.76 | D96: 0 | E96: 0 | F96: 0 | G96: 0 | H96: 0 | I96: R$ 7,202,335.76 | J96: 0 | M96: 28.Total Geral.00 | P96: =SUM(P95) -> 7,179,015.37 | Q96: =SUM(Q95) -> 0 | R96: 0 | S96: 7,179,015.37
A98: COD_ORG_EMP | B98: 16
A99: COD_FONT_REC | B99: 04.1.543.9001 | C99: FONTES PMSP = 04
A101: ANO_EPH | B101: COD_PROJ_ATVD_SOF | C101: Soma de VAL_SLDO_NAO_PRCS | D101: Soma de VAL_SLDO_NPRC_LQDD | E101: Soma de VAL_SLDO_PRCS | F101: Soma de VAL_LQDD_NPRC | G101: Soma de VAL_PAGO_NAO_PRCS | H101: Soma de VAL_PAGO_PRCS | I101: Soma de VAL_CANC_NAO_PRCS | J101: Soma de VAL_CANC_PRCS | M101: ANO_EPH | N101: UID | O101: RATEIO (da aba Rateios) | P101: SALDO RP RATEADO | Q101: SALDO LIQUIDADO RATEADO | R101: SALDO PAGO RATEADO | S101: SALDO CANCELADO RATEADO
A102: 2024 | B102: 2857 | C102: R$ 30,086,801.54 | D102: 0 | E102: 0 | F102: R$ 30,086,801.54 | G102: R$ 30,086,801.54 | H102: 0 | I102: 0 | J102: 0 | M102: 2024 | N102: =CONCATENATE(A102,".",$B$98,".",B102) -> 2024.16.2857 | O102: =VLOOKUP($N102,Rateios_RP!$B:$E,4, FALSE) -> 100.000000000000000000% | P102: =SUM(C102:E102)*$O102 -> 30,086,801.54 | Q102: =SUM(D102:F102)*$O102 -> 30,086,801.54 | R102: =SUM(G102:H102)*$O102 -> 30,086,801.54 | S102: =SUM(I102:J102)*$O102 -> 0
A103: Total Geral | C103: R$ 30,086,801.54 | D103: 0 | E103: 0 | F103: R$ 30,086,801.54 | G103: R$ 30,086,801.54 | H103: 0 | I103: 0 | J103: 0 | M103: 16.Total Geral.04 | P103: =SUM(P102) -> 30,086,801.54 | Q103: =SUM(Q102) -> 30,086,801.54 | R103: 30,086,801.54 | S103: 0

Sheet BD_Receita_PMSP_SOR051R
A1: COD_ORIG_RCTA_F | B1: TXT_COD_RCTA_RESU | C1: COD_FONT_REC | D1: TXT_FONT_REC | E1: COD_ORG_EMP | F1: TXT_ORG_EMP | G1: COD_UNID_ORCM_SOF | H1: TXT_UNID_ORCM | I1: COD_TIP_CTA_RCTA | J1: VAL_PRVI_RCTA_ATUL | K1: VAL_REAZ_MENS | L1: PERC_VAL_REAZ_MENS | M1: VAL_REAZ_ATE_MES | N1: PERC_VAL_REAZ_ATE_MES | O1: VAL_PRVI_RCTA_INI | P1: FONTE_PADRONIZADO | Q1: RECEITA_5 | R1: RECEITA_6 | S1: FONTE_PMSP | T1: FONTE_PADRONIZADO_RECEITA_4
A2: 1.0.0.0.00.0.0.00.00.000.000.00.00.000 | B2: RECEITAS CORRENTES | I2: Sintética | J2: 9.842212953e+10 | K2: 7898815642 | L2: 8.03 | M2: 6.671954254e+10 | N2: 67.79 | O2: 98320660094 | P2: =MID(Receita_PMSP_Tabela[[#This Row],[COD_FONT_REC]], 6, 3) ->  | Q2: =LEFT(Receita_PMSP_Tabela[[#This Row],[COD_ORIG_RCTA_F]], 10) -> 1.0.0.0.00 | R2: =LEFT(Receita_PMSP_Tabela[[#This Row],[COD_ORIG_RCTA_F]], 12) -> 1.0.0.0.00.0 | S2: =LEFT(Receita_PMSP_Tabela[[#This Row],[COD_FONT_REC]], 2) ->  | T2: =_xlfn.CONCAT(Receita_PMSP_Tabela[[#This Row],[FONTE_PADRONIZADO]], "_", LEFT(Receita_PMSP_Tabela[[#This Row],[RECEITA_5]], 7)) -> _1.0.0.0
A3: 1.1.0.0.00.0.0.00.00.000.000.00.00.000 | B3: IMPOSTOS, TAXAS E CONTRIBUIÇÕES DE MELHORIA | I3: Sintética | J3: 65647186855 | K3: 5597406444 | L3: 8.53 | M3: 4.523932696e+10 | N3: 68.91 | O3: 65647186855 | P3: =MID(Receita_PMSP_Tabela[[#This Row],[COD_FONT_REC]], 6, 3) ->  | Q3: =LEFT(Receita_PMSP_Tabela[[#This Row],[COD_ORIG_RCTA_F]], 10) -> 1.1.0.0.00 | R3: =LEFT(Receita_PMSP_Tabela[[#This Row],[COD_ORIG_RCTA_F]], 12) -> 1.1.0.0.00.0 | S3: =LEFT(Receita_PMSP_Tabela[[#This Row],[COD_FONT_REC]], 2) ->  | T3: =_xlfn.CONCAT(Receita_PMSP_Tabela[[#This Row],[FONTE_PADRONIZADO]], "_", LEFT(Receita_PMSP_Tabela[[#This Row],[RECEITA_5]], 7)) -> _1.1.0.0
A4: 1.1.1.0.00.0.0.00.00.000.000.00.00.000 | B4: IMPOSTOS | I4: Sintética | J4: 65081890808 | K4: 5558403560 | L4: 8.54 | M4: 4.479576019e+10 | N4: 68.83 | O4: 65081890808 | P4: =MID(Receita_PMSP_Tabela[[#This Row],[COD_FONT_REC]], 6, 3) ->  | Q4: =LEFT(Receita_PMSP_Tabela[[#This Row],[COD_ORIG_RCTA_F]], 10) -> 1.1.1.0.00 | R4: =LEFT(Receita_PMSP_Tabela[[#This Row],[COD_ORIG_RCTA_F]], 12) -> 1.1.1.0.00.0 | S4: =LEFT(Receita_PMSP_Tabela[[#This Row],[COD_FONT_REC]], 2) ->  | T4: =_xlfn.CONCAT(Receita_PMSP_Tabela[[#This Row],[FONTE_PADRONIZADO]], "_", LEFT(Receita_PMSP_Tabela[[#This Row],[RECEITA_5]], 7)) -> _1.1.1.0
A5: 1.1.1.2.00.0.0.00.00.000.000.00.00.000 | B5: IMPOSTOS SOBRE O PATRIMÔNIO | I5: Sintética | J5: 21995465460 | K5: 1784290927 | L5: 8.11 | M5: 1.616659626e+10 | N5: 73.5 | O5: 21995465460 | P5: =MID(Receita_PMSP_Tabela[[#This Row],[COD_FONT_REC]], 6, 3) ->  | Q5: =LEFT(Receita_PMSP_Tabela[[#This Row],[COD_ORIG_RCTA_F]], 10) -> 1.1.1.2.00 | R5: =LEFT(Receita_PMSP_Tabela[[#This Row],[COD_ORIG_RCTA_F]], 12) -> 1.1.1.2.00.0 | S5: =LEFT(Receita_PMSP_Tabela[[#This Row],[COD_FONT_REC]], 2) ->  | T5: =_xlfn.CONCAT(Receita_PMSP_Tabela[[#This Row],[FONTE_PADRONIZADO]], "_", LEFT(Receita_PMSP_Tabela[[#This Row],[RECEITA_5]], 7)) -> _1.1.1.2
A6: 1.1.1.2.50.0.0.00.00.000.000.00.00.000 | B6: IMPOSTO SOBRE A PROPRIEDADE PREDIAL E TERRITORIAL URBANA | I6: Sintética | J6: 17596243214 | K6: 1348809936 | L6: 7.67 | M6: 1.32965511e+10 | N6: 75.56 | O6: 17596243214 | P6: =MID(Receita_PMSP_Tabela[[#This Row],[COD_FONT_REC]], 6, 3) ->  | Q6: =LEFT(Receita_PMSP_Tabela[[#This Row],[COD_ORIG_RCTA_F]], 10) -> 1.1.1.2.50 | R6: =LEFT(Receita_PMSP_Tabela[[#This Row],[COD_ORIG_RCTA_F]], 12) -> 1.1.1.2.50.0 | S6: =LEFT(Receita_PMSP_Tabela[[#This Row],[COD_FONT_REC]], 2) ->  | T6: =_xlfn.CONCAT(Receita_PMSP_Tabela[[#This Row],[FONTE_PADRONIZADO]], "_", LEFT(Receita_PMSP_Tabela[[#This Row],[RECEITA_5]], 7)) -> _1.1.1.2
A7: 1.1.1.2.50.0.1.00.00.000.000.00.00.000 | B7: IMPOSTO SOBRE A PROPRIEDADE PREDIAL E TERRITORIAL URBANA - PRINCIPAL | I7: Sintética | J7: 15697308008 | K7: 1220749160 | L7: 7.78 | M7: 1.213920716e+10 | N7: 77.33 | O7: 15697308008 | P7: =MID(Receita_PMSP_Tabela[[#This Row],[COD_FONT_REC]], 6, 3) ->  | Q7: =LEFT(Receita_PMSP_Tabela[[#This Row],[COD_ORIG_RCTA_F]], 10) -> 1.1.1.2.50 | R7: =LEFT(Receita_PMSP_Tabela[[#This Row],[COD_ORIG_RCTA_F]], 12) -> 1.1.1.2.50.0 | S7: =LEFT(Receita_PMSP_Tabela[[#This Row],[COD_FONT_REC]], 2) ->  | T7: =_xlfn.CONCAT(Receita_PMSP_Tabela[[#This Row],[FONTE_PADRONIZADO]], "_", LEFT(Receita_PMSP_Tabela[[#This Row],[RECEITA_5]], 7)) -> _1.1.1.2
A8: 1.1.1.2.50.0.1.01.00.000.000.00.00.000 | B8: IMPOSTO SOBRE A PROPRIEDADE PREDIAL E TERRITORIAL URBANA | I8: Sintética | J8: 15697308008 | K8: 1220749160 | L8: 7.78 | M8: 1.213920716e+10 | N8: 77.33 | O8: 15697308008 | P8: =MID(Receita_PMSP_Tabela[[#This Row],[COD_FONT_REC]], 6, 3) ->  | Q8: =LEFT(Receita_PMSP_Tabela[[#This Row],[COD_ORIG_RCTA_F]], 10) -> 1.1.1.2.50 | R8: =LEFT(Receita_PMSP_Tabela[[#This Row],[COD_ORIG_RCTA_F]], 12) -> 1.1.1.2.50.0 | S8: =LEFT(Receita_PMSP_Tabela[[#This Row],[COD_FONT_REC]], 2) ->  | T8: =_xlfn.CONCAT(Receita_PMSP_Tabela[[#This Row],[FONTE_PADRONIZADO]], "_", LEFT(Receita_PMSP_Tabela[[#This Row],[RECEITA_5]], 7)) -> _1.1.1.2
A9: 1.1.1.2.50.0.1.01.00.000.000.11.00.000 | B9: IMPOSTO SOBRE A PROPRIEDADE PREDIAL E TERRITORIAL URBANA | I9: Sintética | J9: 15563353863 | K9: 1211772876 | L9: 7.79 | M9: 1.205423125e+10 | N9: 77.45 | O9: 15563353863 | P9: =MID(Receita_PMSP_Tabela[[#This Row],[COD_FONT_REC]], 6, 3) ->  | Q9: =LEFT(Receita_PMSP_Tabela[[#This Row],[COD_ORIG_RCTA_F]], 10) -> 1.1.1.2.50 | R9: =LEFT(Receita_PMSP_Tabela[[#This Row],[COD_ORIG_RCTA_F]], 12) -> 1.1.1.2.50.0 | S9: =LEFT(Receita_PMSP_Tabela[[#This Row],[COD_FONT_REC]], 2) ->  | T9: =_xlfn.CONCAT(Receita_PMSP_Tabela[[#This Row],[FONTE_PADRONIZADO]], "_", LEFT(Receita_PMSP_Tabela[[#This Row],[RECEITA_5]], 7)) -> _1.1.1.2
A10: 1.1.1.2.50.0.1.01.00.000.000.11.01.000 | B10: Imposto sobre a Propriedade Predial e Territorial Urbana | C10: 00.1.500.9001 | D10: Recursos não vinculados de Impostos | I10: Analítica | J10: 15733742456 | K10: 1226848742 | L10: 7.8 | M10: 12136216193 | N10: 77.13 | O10: 15733742456 | P10: =MID(Receita_PMSP_Tabela[[#This Row],[COD_FONT_REC]], 6, 3) -> 500 | Q10: =LEFT(Receita_PMSP_Tabela[[#This Row],[COD_ORIG_RCTA_F]], 10) -> 1.1.1.2.50 | R10: =LEFT(Receita_PMSP_Tabela[[#This Row],[COD_ORIG_RCTA_F]], 12) -> 1.1.1.2.50.0 | S10: =LEFT(Receita_PMSP_Tabela[[#This Row],[COD_FONT_REC]], 2) -> 00 | T10: =_xlfn.CONCAT(Receita_PMSP_Tabela[[#This Row],[FONTE_PADRONIZADO]], "_", LEFT(Receita_PMSP_Tabela[[#This Row],[RECEITA_5]], 7)) -> 500_1.1.1.2
A11: 1.1.1.2.50.0.1.01.00.000.000.11.09.000 | B11: TOTAL DE DEDUÇÕES DO IMPOSTO SOBRE A PROPRIEDADE PREDIAL E TERRITORIAL | I11: Sintética | J11: -170388593 | K11: -15075865.85 | L11: 8.85 | M11: -81984942.97 | N11: 48.12 | O11: -170388593 | P11: =MID(Receita_PMSP_Tabela[[#This Row],[COD_FONT_REC]], 6, 3) ->  | Q11: =LEFT(Receita_PMSP_Tabela[[#This Row],[COD_ORIG_RCTA_F]], 10) -> 1.1.1.2.50 | R11: =LEFT(Receita_PMSP_Tabela[[#This Row],[COD_ORIG_RCTA_F]], 12) -> 1.1.1.2.50.0 | S11: =LEFT(Receita_PMSP_Tabela[[#This Row],[COD_FONT_REC]], 2) ->  | T11: =_xlfn.CONCAT(Receita_PMSP_Tabela[[#This Row],[FONTE_PADRONIZADO]], "_", LEFT(Receita_PMSP_Tabela[[#This Row],[RECEITA_5]], 7)) -> _1.1.1.2
A12: 1.1.1.2.50.0.1.01.00.000.000.11.09.001 | B12: Deduções do Imposto sobre a Propriedade Predial e Territorial Urbana | C12: 00.1.500.9001 | D12: Recursos não vinculados de Impostos | I12: Analítica | J12: -170388593 | K12: -15075865.85 | L12: 8.85 | M12: -81984942.97 | N12: 48.12 | O12: -170388593 | P12: =MID(Receita_PMSP_Tabela[[#This Row],[COD_FONT_REC]], 6, 3) -> 500 | Q12: =LEFT(Receita_PMSP_Tabela[[#This Row],[COD_ORIG_RCTA_F]], 10) -> 1.1.1.2.50 | R12: =LEFT(Receita_PMSP_Tabela[[#This Row],[COD_ORIG_RCTA_F]], 12) -> 1.1.1.2.50.0 | S12: =LEFT(Receita_PMSP_Tabela[[#This Row],[COD_FONT_REC]], 2) -> 00 | T12: =_xlfn.CONCAT(Receita_PMSP_Tabela[[#This Row],[FONTE_PADRONIZADO]], "_", LEFT(Receita_PMSP_Tabela[[#This Row],[RECEITA_5]], 7)) -> 500_1.1.1.2
A13: 1.1.1.2.50.0.1.01.00.000.000.12.00.000 | B13: TOTAL PARCELAMENTO IMPOSTO SOBRE A PROPRIEDADE PREDIAL E TERRITORIAL U | I13: Sintética | J13: 133954145 | K13: 8976284.36 | L13: 6.7 | M13: 84975912.25 | N13: 63.44 | O13: 133954145 | P13: =MID(Receita_PMSP_Tabela[[#This Row],[COD_FONT_REC]], 6, 3) ->  | Q13: =LEFT(Receita_PMSP_Tabela[[#This Row],[COD_ORIG_RCTA_F]], 10) -> 1.1.1.2.50 | R13: =LEFT(Receita_PMSP_Tabela[[#This Row],[COD_ORIG_RCTA_F]], 12) -> 1.1.1.2.50.0 | S13: =LEFT(Receita_PMSP_Tabela[[#This Row],[COD_FONT_REC]], 2) ->  | T13: =_xlfn.CONCAT(Receita_PMSP_Tabela[[#This Row],[FONTE_PADRONIZADO]], "_", LEFT(Receita_PMSP_Tabela[[#This Row],[RECEITA_5]], 7)) -> _1.1.1.2
A14: 1.1.1.2.50.0.1.01.00.000.000.12.01.000 | B14: PARCELAMENTO IMPOSTO SOBRE A PROPRIEDADE PREDIAL E TERRITORIAL URBANA | I14: Sintética | J14: 133954145 | K14: 8976284.36 | L14: 6.7 | M14: 85010872.32 | N14: 63.46 | O14: 133954145 | P14: =MID(Receita_PMSP_Tabela[[#This Row],[COD_FONT_REC]], 6, 3) ->  | Q14: =LEFT(Receita_PMSP_Tabela[[#This Row],[COD_ORIG_RCTA_F]], 10) -> 1.1.1.2.50 | R14: =LEFT(Receita_PMSP_Tabela[[#This Row],[COD_ORIG_RCTA_F]], 12) -> 1.1.1.2.50.0 | S14: =LEFT(Receita_PMSP_Tabela[[#This Row],[COD_FONT_REC]], 2) ->  | T14: =_xlfn.CONCAT(Receita_PMSP_Tabela[[#This Row],[FONTE_PADRONIZADO]], "_", LEFT(Receita_PMSP_Tabela[[#This Row],[RECEITA_5]], 7)) -> _1.1.1.2
A15: 1.1.1.2.50.0.1.01.00.000.000.12.01.001 | B15: PPI - Imposto sobre a Propriedade Predial e Territorial Urbana | C15: 00.1.500.9001 | D15: Recursos não vinculados de Impostos | I15: Analítica | J15: 124294948 | K15: 6607790.34 | L15: 5.32 | M15: 68993811.95 | N15: 55.51 | O15: 124294948 | P15: =MID(Receita_PMSP_Tabela[[#This Row],[COD_FONT_REC]], 6, 3) -> 500 | Q15: =LEFT(Receita_PMSP_Tabela[[#This Row],[COD_ORIG_RCTA_F]], 10) -> 1.1.1.2.50 | R15: =LEFT(Receita_PMSP_Tabela[[#This Row],[COD_ORIG_RCTA_F]], 12) -> 1.1.1.2.50.0 | S15: =LEFT(Receita_PMSP_Tabela[[#This Row],[COD_FONT_REC]], 2) -> 00 | T15: =_xlfn.CONCAT(Receita_PMSP_Tabela[[#This Row],[FONTE_PADRONIZADO]], "_", LEFT(Receita_PMSP_Tabela[[#This Row],[RECEITA_5]], 7)) -> 500_1.1.1.2
A16: 1.1.1.2.50.0.1.01.00.000.000.12.01.002 | B16: PAT - Imposto sobre a Propriedade Predial e Territorial Urbana | C16: 00.1.500.9001 | D16: Recursos não vinculados de Impostos | I16: Analítica | J16: 9659197 | K16: 2368494.02 | L16: 24.52 | M16: 16017060.37 | N16: 165.82 | O16: 9659197 | P16: =MID(Receita_PMSP_Tabela[[#This Row],[COD_FONT_REC]], 6, 3) -> 500 | Q16: =LEFT(Receita_PMSP_Tabela[[#This Row],[COD_ORIG_RCTA_F]], 10) -> 1.1.1.2.50 | R16: =LEFT(Receita_PMSP_Tabela[[#This Row],[COD_ORIG_RCTA_F]], 12) -> 1.1.1.2.50.0 | S16: =LEFT(Receita_PMSP_Tabela[[#This Row],[COD_FONT_REC]], 2) -> 00 | T16: =_xlfn.CONCAT(Receita_PMSP_Tabela[[#This Row],[FONTE_PADRONIZADO]], "_", LEFT(Receita_PMSP_Tabela[[#This Row],[RECEITA_5]], 7)) -> 500_1.1.1.2
A17: 1.1.1.2.50.0.1.01.00.000.000.12.09.000 | B17: TOTAL DEDUÇÕES PARCELAMENTO IMPOSTO SOBRE A PROPRIEDADE PREDIAL E TERR | I17: Sintética | J17: 0 | K17: 0 | L17: 0 | M17: -34960.07 | N17: 0 | O17: 0 | P17: =MID(Receita_PMSP_Tabela[[#This Row],[COD_FONT_REC]], 6, 3) ->  | Q17: =LEFT(Receita_PMSP_Tabela[[#This Row],[COD_ORIG_RCTA_F]], 10) -> 1.1.1.2.50 | R17: =LEFT(Receita_PMSP_Tabela[[#This Row],[COD_ORIG_RCTA_F]], 12) -> 1.1.1.2.50.0 | S17: =LEFT(Receita_PMSP_Tabela[[#This Row],[COD_FONT_REC]], 2) ->  | T17: =_xlfn.CONCAT(Receita_PMSP_Tabela[[#This Row],[FONTE_PADRONIZADO]], "_", LEFT(Receita_PMSP_Tabela[[#This Row],[RECEITA_5]], 7)) -> _1.1.1.2
A18: 1.1.1.2.50.0.1.01.00.000.000.12.09.001 | B18: Deduções PPI - Imposto sobre a Propriedade Predial e Territorial Urban | C18: 00.1.500.9001 | D18: Recursos não vinculados de Impostos | I18: Analítica | J18: 0 | K18: 0 | L18: 0 | M18: -32847.01 | N18: 0 | O18: 0 | P18: =MID(Receita_PMSP_Tabela[[#This Row],[COD_FONT_REC]], 6, 3) -> 500 | Q18: =LEFT(Receita_PMSP_Tabela[[#This Row],[COD_ORIG_RCTA_F]], 10) -> 1.1.1.2.50 | R18: =LEFT(Receita_PMSP_Tabela[[#This Row],[COD_ORIG_RCTA_F]], 12) -> 1.1.1.2.50.0 | S18: =LEFT(Receita_PMSP_Tabela[[#This Row],[COD_FONT_REC]], 2) -> 00 | T18: =_xlfn.CONCAT(Receita_PMSP_Tabela[[#This Row],[FONTE_PADRONIZADO]], "_", LEFT(Receita_PMSP_Tabela[[#This Row],[RECEITA_5]], 7)) -> 500_1.1.1.2
A19: 1.1.1.2.50.0.1.01.00.000.000.12.09.002 | B19: Deduções PAT - Imposto sobre a Propriedade Predial e Territorial Urban | C19: 00.1.500.9001 | D19: Recursos não vinculados de Impostos | I19: Analítica | J19: 0 | K19: 0 | L19: 0 | M19: -2113.06 | N19: 0 | O19: 0 | P19: =MID(Receita_PMSP_Tabela[[#This Row],[COD_FONT_REC]], 6, 3) -> 500 | Q19: =LEFT(Receita_PMSP_Tabela[[#This Row],[COD_ORIG_RCTA_F]], 10) -> 1.1.1.2.50 | R19: =LEFT(Receita_PMSP_Tabela[[#This Row],[COD_ORIG_RCTA_F]], 12) -> 1.1.1.2.50.0 | S19: =LEFT(Receita_PMSP_Tabela[[#This Row],[COD_FONT_REC]], 2) -> 00 | T19: =_xlfn.CONCAT(Receita_PMSP_Tabela[[#This Row],[FONTE_PADRONIZADO]], "_", LEFT(Receita_PMSP_Tabela[[#This Row],[RECEITA_5]], 7)) -> 500_1.1.1.2
A20: 1.1.1.2.50.0.2.00.00.000.000.00.00.000 | B20: IMPOSTO SOBRE A PROPRIEDADE PREDIAL E TERRITORIAL URBANA - MULTAS E JU | I20: Sintética | J20: 124573261 | K20: 14483274.21 | L20: 11.63 | M20: 94952124.89 | N20: 76.22 | O20: 124573261 | P20: =MID(Receita_PMSP_Tabela[[#This Row],[COD_FONT_REC]], 6, 3) ->  | Q20: =LEFT(Receita_PMSP_Tabela[[#This Row],[COD_ORIG_RCTA_F]], 10) -> 1.1.1.2.50 | R20: =LEFT(Receita_PMSP_Tabela[[#This Row],[COD_ORIG_RCTA_F]], 12) -> 1.1.1.2.50.0 | S20: =LEFT(Receita_PMSP_Tabela[[#This Row],[COD_FONT_REC]], 2) ->  | T20: =_xlfn.CONCAT(Receita_PMSP_Tabela[[#This Row],[FONTE_PADRONIZADO]], "_", LEFT(Receita_PMSP_Tabela[[#This Row],[RECEITA_5]], 7)) -> _1.1.1.2
A21: 1.1.1.2.50.0.2.01.00.000.000.00.00.000 | B21: IMPOSTO SOBRE A PROPRIEDADE PREDIAL E TERRITORIAL URBANA - MULTAS E JU | I21: Sintética | J21: 124573261 | K21: 14483274.21 | L21: 11.63 | M21: 94952124.89 | N21: 76.22 | O21: 124573261 | P21: =MID(Receita_PMSP_Tabela[[#This Row],[COD_FONT_REC]], 6, 3) ->  | Q21: =LEFT(Receita_PMSP_Tabela[[#This Row],[COD_ORIG_RCTA_F]], 10) -> 1.1.1.2.50 | R21: =LEFT(Receita_PMSP_Tabela[[#This Row],[COD_ORIG_RCTA_F]], 12) -> 1.1.1.2.50.0 | S21: =LEFT(Receita_PMSP_Tabela[[#This Row],[COD_FONT_REC]], 2) ->  | T21: =_xlfn.CONCAT(Receita_PMSP_Tabela[[#This Row],[FONTE_PADRONIZADO]], "_", LEFT(Receita_PMSP_Tabela[[#This Row],[RECEITA_5]], 7)) -> _1.1.1.2
A22: 1.1.1.2.50.0.2.01.00.000.000.11.00.000 | B22: IMPOSTO SOBRE A PROPRIEDADE PREDIAL E TERRITORIAL URBANA - MULTAS E JU | I22: Sintética | J22: 102995058 | K22: 13214867.22 | L22: 12.83 | M22: 84396248.83 | N22: 81.94 | O22: 102995058 | P22: =MID(Receita_PMSP_Tabela[[#This Row],[COD_FONT_REC]], 6, 3) ->  | Q22: =LEFT(Receita_PMSP_Tabela[[#This Row],[COD_ORIG_RCTA_F]], 10) -> 1.1.1.2.50 | R22: =LEFT(Receita_PMSP_Tabela[[#This Row],[COD_ORIG_RCTA_F]], 12) -> 1.1.1.2.50.0 | S22: =LEFT(Receita_PMSP_Tabela[[#This Row],[COD_FONT_REC]], 2) ->  | T22: =_xlfn.CONCAT(Receita_PMSP_Tabela[[#This Row],[FONTE_PADRONIZADO]], "_", LEFT(Receita_PMSP_Tabela[[#This Row],[RECEITA_5]], 7)) -> _1.1.1.2
A23: 1.1.1.2.50.0.2.01.00.000.000.11.01.000 | B23: Imposto sobre a Propriedade Predial e Territorial Urbana - Multas e Ju | C23: 00.1.500.9001 | D23: Recursos não vinculados de Impostos | I23: Analítica | J23: 102995058 | K23: 13214867.22 | L23: 12.83 | M23: 84396248.83 | N23: 81.94 | O23: 102995058 | P23: =MID(Receita_PMSP_Tabela[[#This Row],[COD_FONT_REC]], 6, 3) -> 500 | Q23: =LEFT(Receita_PMSP_Tabela[[#This Row],[COD_ORIG_RCTA_F]], 10) -> 1.1.1.2.50 | R23: =LEFT(Receita_PMSP_Tabela[[#This Row],[COD_ORIG_RCTA_F]], 12) -> 1.1.1.2.50.0 | S23: =LEFT(Receita_PMSP_Tabela[[#This Row],[COD_FONT_REC]], 2) -> 00 | T23: =_xlfn.CONCAT(Receita_PMSP_Tabela[[#This Row],[FONTE_PADRONIZADO]], "_", LEFT(Receita_PMSP_Tabela[[#This Row],[RECEITA_5]], 7)) -> 500_1.1.1.2
A24: 1.1.1.2.50.0.2.01.00.000.000.12.00.000 | B24: PARCELAMENTO IMPOSTO SOBRE A PROPRIEDADE PREDIAL E TERRITORIAL URBANA | I24: Sintética | J24: 21578203 | K24: 1268406.99 | L24: 5.88 | M24: 10555876.06 | N24: 48.92 | O24: 21578203 | P24: =MID(Receita_PMSP_Tabela[[#This Row],[COD_FONT_REC]], 6, 3) ->  | Q24: =LEFT(Receita_PMSP_Tabela[[#This Row],[COD_ORIG_RCTA_F]], 10) -> 1.1.1.2.50 | R24: =LEFT(Receita_PMSP_Tabela[[#This Row],[COD_ORIG_RCTA_F]], 12) -> 1.1.1.2.50.0 | S24: =LEFT(Receita_PMSP_Tabela[[#This Row],[COD_FONT_REC]], 2) ->  | T24: =_xlfn.CONCAT(Receita_PMSP_Tabela[[#This Row],[FONTE_PADRONIZADO]], "_", LEFT(Receita_PMSP_Tabela[[#This Row],[RECEITA_5]], 7)) -> _1.1.1.2
A25: 1.1.1.2.50.0.2.01.00.000.000.12.01.000 | B25: TOTAL PARCELAMENTO IMPOSTO SOBRE A PROPRIEDADE PREDIAL E TERRITORIAL U | I25: Sintética | J25: 21578203 | K25: 1268406.99 | L25: 5.88 | M25: 10558140.33 | N25: 48.93 | O25: 21578203 | P25: =MID(Receita_PMSP_Tabela[[#This Row],[COD_FONT_REC]], 6, 3) ->  | Q25: =LEFT(Receita_PMSP_Tabela[[#This Row],[COD_ORIG_RCTA_F]], 10) -> 1.1.1.2.50 | R25: =LEFT(Receita_PMSP_Tabela[[#This Row],[COD_ORIG_RCTA_F]], 12) -> 1.1.1.2.50.0 | S25: =LEFT(Receita_PMSP_Tabela[[#This Row],[COD_FONT_REC]], 2) ->  | T25: =_xlfn.CONCAT(Receita_PMSP_Tabela[[#This Row],[FONTE_PADRONIZADO]], "_", LEFT(Receita_PMSP_Tabela[[#This Row],[RECEITA_5]], 7)) -> _1.1.1.2
A26: 1.1.1.2.50.0.2.01.00.000.000.12.01.001 | B26: PPI - Imposto sobre a Propriedade Predial e Territorial Urbana - Multa | C26: 00.1.500.9001 | D26: Recursos não vinculados de Impostos | I26: Analítica | J26: 19715385 | K26: 1041318.89 | L26: 5.28 | M26: 9135709.75 | N26: 46.34 | O26: 19715385 | P26: =MID(Receita_PMSP_Tabela[[#This Row],[COD_FONT_REC]], 6, 3) -> 500 | Q26: =LEFT(Receita_PMSP_Tabela[[#This Row],[COD_ORIG_RCTA_F]], 10) -> 1.1.1.2.50 | R26: =LEFT(Receita_PMSP_Tabela[[#This Row],[COD_ORIG_RCTA_F]], 12) -> 1.1.1.2.50.0 | S26: =LEFT(Receita_PMSP_Tabela[[#This Row],[COD_FONT_REC]], 2) -> 00 | T26: =_xlfn.CONCAT(Receita_PMSP_Tabela[[#This Row],[FONTE_PADRONIZADO]], "_", LEFT(Receita_PMSP_Tabela[[#This Row],[RECEITA_5]], 7)) -> 500_1.1.1.2
A27: 1.1.1.2.50.0.2.01.00.000.000.12.01.002 | B27: PAT - Imposto sobre a Propriedade Predial e Territorial Urbana - Multa | C27: 00.1.500.9001 | D27: Recursos não vinculados de Impostos | I27: Analítica | J27: 1862818 | K27: 227088.1 | L27: 12.19 | M27: 1422430.58 | N27: 76.36 | O27: 1862818 | P27: =MID(Receita_PMSP_Tabela[[#This Row],[COD_FONT_REC]], 6, 3) -> 500 | Q27: =LEFT(Receita_PMSP_Tabela[[#This Row],[COD_ORIG_RCTA_F]], 10) -> 1.1.1.2.50 | R27: =LEFT(Receita_PMSP_Tabela[[#This Row],[COD_ORIG_RCTA_F]], 12) -> 1.1.1.2.50.0 | S27: =LEFT(Receita_PMSP_Tabela[[#This Row],[COD_FONT_REC]], 2) -> 00 | T27: =_xlfn.CONCAT(Receita_PMSP_Tabela[[#This Row],[FONTE_PADRONIZADO]], "_", LEFT(Receita_PMSP_Tabela[[#This Row],[RECEITA_5]], 7)) -> 500_1.1.1.2
A28: 1.1.1.2.50.0.2.01.00.000.000.12.09.000 | B28: TOTAL DEDUÇÕES PARCELAMENTO IMPOSTO SOBRE A PROPRIEDADE PREDIAL E TERR | I28: Sintética | J28: 0 | K28: 0 | L28: 0 | M28: -2264.27 | N28: 0 | O28: 0 | P28: =MID(Receita_PMSP_Tabela[[#This Row],[COD_FONT_REC]], 6, 3) ->  | Q28: =LEFT(Receita_PMSP_Tabela[[#This Row],[COD_ORIG_RCTA_F]], 10) -> 1.1.1.2.50 | R28: =LEFT(Receita_PMSP_Tabela[[#This Row],[COD_ORIG_RCTA_F]], 12) -> 1.1.1.2.50.0 | S28: =LEFT(Receita_PMSP_Tabela[[#This Row],[COD_FONT_REC]], 2) ->  | T28: =_xlfn.CONCAT(Receita_PMSP_Tabela[[#This Row],[FONTE_PADRONIZADO]], "_", LEFT(Receita_PMSP_Tabela[[#This Row],[RECEITA_5]], 7)) -> _1.1.1.2
A29: 1.1.1.2.50.0.2.01.00.000.000.12.09.001 | B29: Deduções PPI - Imposto sobre a Propriedade Predial e Territorial Urban | C29: 00.1.500.9001 | D29: Recursos não vinculados de Impostos | I29: Analítica | J29: 0 | K29: 0 | L29: 0 | M29: -2264.27 | N29: 0 | O29: 0 | P29: =MID(Receita_PMSP_Tabela[[#This Row],[COD_FONT_REC]], 6, 3) -> 500 | Q29: =LEFT(Receita_PMSP_Tabela[[#This Row],[COD_ORIG_RCTA_F]], 10) -> 1.1.1.2.50 | R29: =LEFT(Receita_PMSP_Tabela[[#This Row],[COD_ORIG_RCTA_F]], 12) -> 1.1.1.2.50.0 | S29: =LEFT(Receita_PMSP_Tabela[[#This Row],[COD_FONT_REC]], 2) -> 00 | T29: =_xlfn.CONCAT(Receita_PMSP_Tabela[[#This Row],[FONTE_PADRONIZADO]], "_", LEFT(Receita_PMSP_Tabela[[#This Row],[RECEITA_5]], 7)) -> 500_1.1.1.2
A30: 1.1.1.2.50.0.3.00.00.000.000.00.00.000 | B30: IMPOSTO SOBRE A PROPRIEDADE PREDIAL E TERRITORIAL URBANA - DÍVIDA ATIV | I30: Sintética | J30: 1307317200 | K30: 88402229.66 | L30: 6.76 | M30: 843052327.5 | N30: 64.49 | O30: 1307317200 | P30: =MID(Receita_PMSP_Tabela[[#This Row],[COD_FONT_REC]], 6, 3) ->  | Q30: =LEFT(Receita_PMSP_Tabela[[#This Row],[COD_ORIG_RCTA_F]], 10) -> 1.1.1.2.50 | R30: =LEFT(Receita_PMSP_Tabela[[#This Row],[COD_ORIG_RCTA_F]], 12) -> 1.1.1.2.50.0 | S30: =LEFT(Receita_PMSP_Tabela[[#This Row],[COD_FONT_REC]], 2) ->  | T30: =_xlfn.CONCAT(Receita_PMSP_Tabela[[#This Row],[FONTE_PADRONIZADO]], "_", LEFT(Receita_PMSP_Tabela[[#This Row],[RECEITA_5]], 7)) -> _1.1.1.2
A31: 1.1.1.2.50.0.3.01.00.000.000.00.00.000 | B31: IMPOSTO SOBRE A PROPRIEDADE PREDIAL E TERRITORIAL URBANA - DÍVIDA ATIV | I31: Sintética | J31: 1307317200 | K31: 88402229.66 | L31: 6.76 | M31: 843052327.5 | N31: 64.49 | O31: 1307317200 | P31: =MID(Receita_PMSP_Tabela[[#This Row],[COD_FONT_REC]], 6, 3) ->  | Q31: =LEFT(Receita_PMSP_Tabela[[#This Row],[COD_ORIG_RCTA_F]], 10) -> 1.1.1.2.50 | R31: =LEFT(Receita_PMSP_Tabela[[#This Row],[COD_ORIG_RCTA_F]], 12) -> 1.1.1.2.50.0 | S31: =LEFT(Receita_PMSP_Tabela[[#This Row],[COD_FONT_REC]], 2) ->  | T31: =_xlfn.CONCAT(Receita_PMSP_Tabela[[#This Row],[FONTE_PADRONIZADO]], "_", LEFT(Receita_PMSP_Tabela[[#This Row],[RECEITA_5]], 7)) -> _1.1.1.2
A32: 1.1.1.2.50.0.3.01.00.000.000.11.00.000 | B32: IMPOSTO SOBRE A PROPRIEDADE PREDIAL E TERRITORIAL URBANA - DÍVIDA ATIV | I32: Sintética | J32: 481043695 | K32: 48031722.39 | L32: 9.98 | M32: 372167950.8 | N32: 77.37 | O32: 481043695 | P32: =MID(Receita_PMSP_Tabela[[#This Row],[COD_FONT_REC]], 6, 3) ->  | Q32: =LEFT(Receita_PMSP_Tabela[[#This Row],[COD_ORIG_RCTA_F]], 10) -> 1.1.1.2.50 | R32: =LEFT(Receita_PMSP_Tabela[[#This Row],[COD_ORIG_RCTA_F]], 12) -> 1.1.1.2.50.0 | S32: =LEFT(Receita_PMSP_Tabela[[#This Row],[COD_FONT_REC]], 2) ->  | T32: =_xlfn.CONCAT(Receita_PMSP_Tabela[[#This Row],[FONTE_PADRONIZADO]], "_", LEFT(Receita_PMSP_Tabela[[#This Row],[RECEITA_5]], 7)) -> _1.1.1.2
A33: 1.1.1.2.50.0.3.01.00.000.000.11.01.000 | B33: Imposto sobre a Propriedade Predial e Territorial Urbana - Dívida Ativ | C33: 00.1.500.9001 | D33: Recursos não vinculados de Impostos | I33: Analítica | J33: 481043695 | K33: 48082313.08 | L33: 10 | M33: 377446623.9 | N33: 78.46 | O33: 481043695 | P33: =MID(Receita_PMSP_Tabela[[#This Row],[COD_FONT_REC]], 6, 3) -> 500 | Q33: =LEFT(Receita_PMSP_Tabela[[#This Row],[COD_ORIG_RCTA_F]], 10) -> 1.1.1.2.50 | R33: =LEFT(Receita_PMSP_Tabela[[#This Row],[COD_ORIG_RCTA_F]], 12) -> 1.1.1.2.50.0 | S33: =LEFT(Receita_PMSP_Tabela[[#This Row],[COD_FONT_REC]], 2) -> 00 | T33: =_xlfn.CONCAT(Receita_PMSP_Tabela[[#This Row],[FONTE_PADRONIZADO]], "_", LEFT(Receita_PMSP_Tabela[[#This Row],[RECEITA_5]], 7)) -> 500_1.1.1.2
A34: 1.1.1.2.50.0.3.01.00.000.000.11.09.000 | B34: TOTAL DEDUÇÕES IMPOSTO SOBRE A PROPRIEDADE PREDIAL E TERRITORIAL URBAN | I34: Sintética | J34: 0 | K34: -50590.69 | L34: 0 | M34: -5278673.12 | N34: 0 | O34: 0 | P34: =MID(Receita_PMSP_Tabela[[#This Row],[COD_FONT_REC]], 6, 3) ->  | Q34: =LEFT(Receita_PMSP_Tabela[[#This Row],[COD_ORIG_RCTA_F]], 10) -> 1.1.1.2.50 | R34: =LEFT(Receita_PMSP_Tabela[[#This Row],[COD_ORIG_RCTA_F]], 12) -> 1.1.1.2.50.0 | S34: =LEFT(Receita_PMSP_Tabela[[#This Row],[COD_FONT_REC]], 2) ->  | T34: =_xlfn.CONCAT(Receita_PMSP_Tabela[[#This Row],[FONTE_PADRONIZADO]], "_", LEFT(Receita_PMSP_Tabela[[#This Row],[RECEITA_5]], 7)) -> _1.1.1.2
A35: 1.1.1.2.50.0.3.01.00.000.000.11.09.001 | B35: Deduções Imposto sobre a Propriedade Predial e Territorial Urbana - Dí | C35: 00.1.500.9001 | D35: Recursos não vinculados de Impostos | I35: Analítica | J35: 0 | K35: -50590.69 | L35: 0 | M35: -5278673.12 | N35: 0 | O35: 0 | P35: =MID(Receita_PMSP_Tabela[[#This Row],[COD_FONT_REC]], 6, 3) -> 500 | Q35: =LEFT(Receita_PMSP_Tabela[[#This Row],[COD_ORIG_RCTA_F]], 10) -> 1.1.1.2.50 | R35: =LEFT(Receita_PMSP_Tabela[[#This Row],[COD_ORIG_RCTA_F]], 12) -> 1.1.1.2.50.0 | S35: =LEFT(Receita_PMSP_Tabela[[#This Row],[COD_FONT_REC]], 2) -> 00 | T35: =_xlfn.CONCAT(Receita_PMSP_Tabela[[#This Row],[FONTE_PADRONIZADO]], "_", LEFT(Receita_PMSP_Tabela[[#This Row],[RECEITA_5]], 7)) -> 500_1.1.1.2
A36: 1.1.1.2.50.0.3.01.00.000.000.12.00.000 | B36: PARCELAMENTO IMPOSTO SOBRE A PROPRIEDADE PREDIAL E TERRITORIAL URBANA | I36: Sintética | J36: 826273505 | K36: 40370507.27 | L36: 4.89 | M36: 470884376.7 | N36: 56.99 | O36: 826273505 | P36: =MID(Receita_PMSP_Tabela[[#This Row],[COD_FONT_REC]], 6, 3) ->  | Q36: =LEFT(Receita_PMSP_Tabela[[#This Row],[COD_ORIG_RCTA_F]], 10) -> 1.1.1.2.50 | R36: =LEFT(Receita_PMSP_Tabela[[#This Row],[COD_ORIG_RCTA_F]], 12) -> 1.1.1.2.50.0 | S36: =LEFT(Receita_PMSP_Tabela[[#This Row],[COD_FONT_REC]], 2) ->  | T36: =_xlfn.CONCAT(Receita_PMSP_Tabela[[#This Row],[FONTE_PADRONIZADO]], "_", LEFT(Receita_PMSP_Tabela[[#This Row],[RECEITA_5]], 7)) -> _1.1.1.2
A37: 1.1.1.2.50.0.3.01.00.000.000.12.01.000 | B37: TOTAL PARCELAMENTO IMPOSTO SOBRE A PROPRIEDADE PREDIAL E TERRITORIAL U | I37: Sintética | J37: 826273505 | K37: 40788606.03 | L37: 4.94 | M37: 471990503.1 | N37: 57.12 | O37: 826273505 | P37: =MID(Receita_PMSP_Tabela[[#This Row],[COD_FONT_REC]], 6, 3) ->  | Q37: =LEFT(Receita_PMSP_Tabela[[#This Row],[COD_ORIG_RCTA_F]], 10) -> 1.1.1.2.50 | R37: =LEFT(Receita_PMSP_Tabela[[#This Row],[COD_ORIG_RCTA_F]], 12) -> 1.1.1.2.50.0 | S37: =LEFT(Receita_PMSP_Tabela[[#This Row],[COD_FONT_REC]], 2) ->  | T37: =_xlfn.CONCAT(Receita_PMSP_Tabela[[#This Row],[FONTE_PADRONIZADO]], "_", LEFT(Receita_PMSP_Tabela[[#This Row],[RECEITA_5]], 7)) -> _1.1.1.2
A38: 1.1.1.2.50.0.3.01.00.000.000.12.01.001 | B38: PPI - Imposto sobre a Propriedade Predial e Territorial Urbana - Dívid | C38: 00.1.500.9001 | D38: Recursos não vinculados de Impostos | I38: Analítica | J38: 818913941 | K38: 40541177.14 | L38: 4.95 | M38: 469672443.4 | N38: 57.35 | O38: 818913941 | P38: =MID(Receita_PMSP_Tabela[[#This Row],[COD_FONT_REC]], 6, 3) -> 500 | Q38: =LEFT(Receita_PMSP_Tabela[[#This Row],[COD_ORIG_RCTA_F]], 10) -> 1.1.1.2.50 | R38: =LEFT(Receita_PMSP_Tabela[[#This Row],[COD_ORIG_RCTA_F]], 12) -> 1.1.1.2.50.0 | S38: =LEFT(Receita_PMSP_Tabela[[#This Row],[COD_FONT_REC]], 2) -> 00 | T38: =_xlfn.CONCAT(Receita_PMSP_Tabela[[#This Row],[FONTE_PADRONIZADO]], "_", LEFT(Receita_PMSP_Tabela[[#This Row],[RECEITA_5]], 7)) -> 500_1.1.1.2
A39: 1.1.1.2.50.0.3.01.00.000.000.12.01.002 | B39: PAT - Imposto sobre a Propriedade Predial e Territorial Urbana - Dívid | C39: 00.1.500.9001 | D39: Recursos não vinculados de Impostos | I39: Analítica | J39: 0 | K39: 0 | L39: 0 | M39: 2228.47 | N39: 0 | O39: 0 | P39: =MID(Receita_PMSP_Tabela[[#This Row],[COD_FONT_REC]], 6, 3) -> 500 | Q39: =LEFT(Receita_PMSP_Tabela[[#This Row],[COD_ORIG_RCTA_F]], 10) -> 1.1.1.2.50 | R39: =LEFT(Receita_PMSP_Tabela[[#This Row],[COD_ORIG_RCTA_F]], 12) -> 1.1.1.2.50.0 | S39: =LEFT(Receita_PMSP_Tabela[[#This Row],[COD_FONT_REC]], 2) -> 00 | T39: =_xlfn.CONCAT(Receita_PMSP_Tabela[[#This Row],[FONTE_PADRONIZADO]], "_", LEFT(Receita_PMSP_Tabela[[#This Row],[RECEITA_5]], 7)) -> 500_1.1.1.2
A40: 1.1.1.2.50.0.3.01.00.000.000.12.01.006 | B40: PEQ - Imposto sobre a Propriedade Predial e Territorial Urbana - Dívid | C40: 00.1.500.9001 | D40: Recursos não vinculados de Impostos | I40: Analítica | J40: 173052 | K40: 0 | L40: 0 | M40: 0 | N40: 0 | O40: 173052 | P40: =MID(Receita_PMSP_Tabela[[#This Row],[COD_FONT_REC]], 6, 3) -> 500 | Q40: =LEFT(Receita_PMSP_Tabela[[#This Row],[COD_ORIG_RCTA_F]], 10) -> 1.1.1.2.50 | R40: =LEFT(Receita_PMSP_Tabela[[#This Row],[COD_ORIG_RCTA_F]], 12) -> 1.1.1.2.50.0 | S40: =LEFT(Receita_PMSP_Tabela[[#This Row],[COD_FONT_REC]], 2) -> 00 | T40: =_xlfn.CONCAT(Receita_PMSP_Tabela[[#This Row],[FONTE_PADRONIZADO]], "_", LEFT(Receita_PMSP_Tabela[[#This Row],[RECEITA_5]], 7)) -> 500_1.1.1.2
A41: 1.1.1.2.50.0.3.01.00.000.000.12.01.008 | B41: TDM - Imposto sobre Propriedade Predial e Territorial Urb - Dív Ativa | C41: 00.1.500.9001 | D41: Recursos não vinculados de Impostos | I41: Analítica | J41: 7186512 | K41: 247428.89 | L41: 3.44 | M41: 2315831.23 | N41: 32.22 | O41: 7186512 | P41: =MID(Receita_PMSP_Tabela[[#This Row],[COD_FONT_REC]], 6, 3) -> 500 | Q41: =LEFT(Receita_PMSP_Tabela[[#This Row],[COD_ORIG_RCTA_F]], 10) -> 1.1.1.2.50 | R41: =LEFT(Receita_PMSP_Tabela[[#This Row],[COD_ORIG_RCTA_F]], 12) -> 1.1.1.2.50.0 | S41: =LEFT(Receita_PMSP_Tabela[[#This Row],[COD_FONT_REC]], 2) -> 00 | T41: =_xlfn.CONCAT(Receita_PMSP_Tabela[[#This Row],[FONTE_PADRONIZADO]], "_", LEFT(Receita_PMSP_Tabela[[#This Row],[RECEITA_5]], 7)) -> 500_1.1.1.2
A42: 1.1.1.2.50.0.3.01.00.000.000.12.09.000 | B42: TOTAL DEDUÇÕES PARCELAMENTO IMPOSTO SOBRE A PROPRIEDADE PREDIAL E TERR | I42: Sintética | J42: 0 | K42: -418098.76 | L42: 0 | M42: -1106126.31 | N42: 0 | O42: 0 | P42: =MID(Receita_PMSP_Tabela[[#This Row],[COD_FONT_REC]], 6, 3) ->  | Q42: =LEFT(Receita_PMSP_Tabela[[#This Row],[COD_ORIG_RCTA_F]], 10) -> 1.1.1.2.50 | R42: =LEFT(Receita_PMSP_Tabela[[#This Row],[COD_ORIG_RCTA_F]], 12) -> 1.1.1.2.50.0 | S42: =LEFT(Receita_PMSP_Tabela[[#This Row],[COD_FONT_REC]], 2) ->  | T42: =_xlfn.CONCAT(Receita_PMSP_Tabela[[#This Row],[FONTE_PADRONIZADO]], "_", LEFT(Receita_PMSP_Tabela[[#This Row],[RECEITA_5]], 7)) -> _1.1.1.2
A43: 1.1.1.2.50.0.3.01.00.000.000.12.09.001 | B43: Deduções PPI - Imposto sobre a Propriedade Predial e Territorial Urban | C43: 00.1.500.9001 | D43: Recursos não vinculados de Impostos | I43: Analítica | J43: 0 | K43: -418098.76 | L43: 0 | M43: -1106126.31 | N43: 0 | O43: 0 | P43: =MID(Receita_PMSP_Tabela[[#This Row],[COD_FONT_REC]], 6, 3) -> 500 | Q43: =LEFT(Receita_PMSP_Tabela[[#This Row],[COD_ORIG_RCTA_F]], 10) -> 1.1.1.2.50 | R43: =LEFT(Receita_PMSP_Tabela[[#This Row],[COD_ORIG_RCTA_F]], 12) -> 1.1.1.2.50.0 | S43: =LEFT(Receita_PMSP_Tabela[[#This Row],[COD_FONT_REC]], 2) -> 00 | T43: =_xlfn.CONCAT(Receita_PMSP_Tabela[[#This Row],[FONTE_PADRONIZADO]], "_", LEFT(Receita_PMSP_Tabela[[#This Row],[RECEITA_5]], 7)) -> 500_1.1.1.2
A44: 1.1.1.2.50.0.4.00.00.000.000.00.00.000 | B44: IMPOSTO SOBRE A PROPRIEDADE PREDIAL E TERRITORIAL URBANA - DÍVIDA ATIV | I44: Sintética | J44: 467044745 | K44: 25175271.88 | L44: 5.39 | M44: 219339480.8 | N44: 46.96 | O44: 467044745 | P44: =MID(Receita_PMSP_Tabela[[#This Row],[COD_FONT_REC]], 6, 3) ->  | Q44: =LEFT(Receita_PMSP_Tabela[[#This Row],[COD_ORIG_RCTA_F]], 10) -> 1.1.1.2.50 | R44: =LEFT(Receita_PMSP_Tabela[[#This Row],[COD_ORIG_RCTA_F]], 12) -> 1.1.1.2.50.0 | S44: =LEFT(Receita_PMSP_Tabela[[#This Row],[COD_FONT_REC]], 2) ->  | T44: =_xlfn.CONCAT(Receita_PMSP_Tabela[[#This Row],[FONTE_PADRONIZADO]], "_", LEFT(Receita_PMSP_Tabela[[#This Row],[RECEITA_5]], 7)) -> _1.1.1.2
A45: 1.1.1.2.50.0.4.01.00.000.000.00.00.000 | B45: IMPOSTO SOBRE A PROPRIEDADE PREDIAL E TERRITORIAL URBANA - DÍVIDA ATIV | I45: Sintética | J45: 467044745 | K45: 25175271.88 | L45: 5.39 | M45: 219339480.8 | N45: 46.96 | O45: 467044745 | P45: =MID(Receita_PMSP_Tabela[[#This Row],[COD_FONT_REC]], 6, 3) ->  | Q45: =LEFT(Receita_PMSP_Tabela[[#This Row],[COD_ORIG_RCTA_F]], 10) -> 1.1.1.2.50 | R45: =LEFT(Receita_PMSP_Tabela[[#This Row],[COD_ORIG_RCTA_F]], 12) -> 1.1.1.2.50.0 | S45: =LEFT(Receita_PMSP_Tabela[[#This Row],[COD_FONT_REC]], 2) ->  | T45: =_xlfn.CONCAT(Receita_PMSP_Tabela[[#This Row],[FONTE_PADRONIZADO]], "_", LEFT(Receita_PMSP_Tabela[[#This Row],[RECEITA_5]], 7)) -> _1.1.1.2
A46: 1.1.1.2.50.0.4.01.00.000.000.11.00.000 | B46: IMPOSTO SOBRE A PROPRIEDADE PREDIAL E TERRITORIAL URBANA - DÍVIDA ATIV | I46: Sintética | J46: 131721238 | K46: 9119955.68 | L46: 6.92 | M46: 69610672.05 | N46: 52.85 | O46: 131721238 | P46: =MID(Receita_PMSP_Tabela[[#This Row],[COD_FONT_REC]], 6, 3) ->  | Q46: =LEFT(Receita_PMSP_Tabela[[#This Row],[COD_ORIG_RCTA_F]], 10) -> 1.1.1.2.50 | R46: =LEFT(Receita_PMSP_Tabela[[#This Row],[COD_ORIG_RCTA_F]], 12) -> 1.1.1.2.50.0 | S46: =LEFT(Receita_PMSP_Tabela[[#This Row],[COD_FONT_REC]], 2) ->  | T46: =_xlfn.CONCAT(Receita_PMSP_Tabela[[#This Row],[FONTE_PADRONIZADO]], "_", LEFT(Receita_PMSP_Tabela[[#This Row],[RECEITA_5]], 7)) -> _1.1.1.2
A47: 1.1.1.2.50.0.4.01.00.000.000.11.01.000 | B47: Imposto sobre a Propriedade Predial e Territorial Urbana - Dívida Ativ | C47: 00.1.500.9001 | D47: Recursos não vinculados de Impostos | I47: Analítica | J47: 131721238 | K47: 9119955.68 | L47: 6.92 | M47: 69610672.05 | N47: 52.85 | O47: 131721238 | P47: =MID(Receita_PMSP_Tabela[[#This Row],[COD_FONT_REC]], 6, 3) -> 500 | Q47: =LEFT(Receita_PMSP_Tabela[[#This Row],[COD_ORIG_RCTA_F]], 10) -> 1.1.1.2.50 | R47: =LEFT(Receita_PMSP_Tabela[[#This Row],[COD_ORIG_RCTA_F]], 12) -> 1.1.1.2.50.0 | S47: =LEFT(Receita_PMSP_Tabela[[#This Row],[COD_FONT_REC]], 2) -> 00 | T47: =_xlfn.CONCAT(Receita_PMSP_Tabela[[#This Row],[FONTE_PADRONIZADO]], "_", LEFT(Receita_PMSP_Tabela[[#This Row],[RECEITA_5]], 7)) -> 500_1.1.1.2
A48: 1.1.1.2.50.0.4.01.00.000.000.12.00.000 | B48: PARCELAMENTO IMPOSTO SOBRE A PROPRIEDADE PREDIAL E TERRITORIAL URBANA | I48: Sintética | J48: 335323507 | K48: 16055316.2 | L48: 4.79 | M48: 149728808.7 | N48: 44.65 | O48: 335323507 | P48: =MID(Receita_PMSP_Tabela[[#This Row],[COD_FONT_REC]], 6, 3) ->  | Q48: =LEFT(Receita_PMSP_Tabela[[#This Row],[COD_ORIG_RCTA_F]], 10) -> 1.1.1.2.50 | R48: =LEFT(Receita_PMSP_Tabela[[#This Row],[COD_ORIG_RCTA_F]], 12) -> 1.1.1.2.50.0 | S48: =LEFT(Receita_PMSP_Tabela[[#This Row],[COD_FONT_REC]], 2) ->  | T48: =_xlfn.CONCAT(Receita_PMSP_Tabela[[#This Row],[FONTE_PADRONIZADO]], "_", LEFT(Receita_PMSP_Tabela[[#This Row],[RECEITA_5]], 7)) -> _1.1.1.2
A49: 1.1.1.2.50.0.4.01.00.000.000.12.01.000 | B49: TOTAL PARCELAMENTO IMPOSTO SOBRE A PROPRIEDADE PREDIAL E TERRITORIAL U | I49: Sintética | J49: 335323507 | K49: 16169513.83 | L49: 4.82 | M49: 150093291.3 | N49: 44.76 | O49: 335323507 | P49: =MID(Receita_PMSP_Tabela[[#This Row],[COD_FONT_REC]], 6, 3) ->  | Q49: =LEFT(Receita_PMSP_Tabela[[#This Row],[COD_ORIG_RCTA_F]], 10) -> 1.1.1.2.50 | R49: =LEFT(Receita_PMSP_Tabela[[#This Row],[COD_ORIG_RCTA_F]], 12) -> 1.1.1.2.50.0 | S49: =LEFT(Receita_PMSP_Tabela[[#This Row],[COD_FONT_REC]], 2) ->  | T49: =_xlfn.CONCAT(Receita_PMSP_Tabela[[#This Row],[FONTE_PADRONIZADO]], "_", LEFT(Receita_PMSP_Tabela[[#This Row],[RECEITA_5]], 7)) -> _1.1.1.2
A50: 1.1.1.2.50.0.4.01.00.000.000.12.01.001 | B50: PPI - Imposto sobre a Propriedade Predial e Territorial Urbana - Dívid | C50: 00.1.500.9001 | D50: Recursos não vinculados de Impostos | I50: Analítica | J50: 334339591 | K50: 16137538 | L50: 4.83 | M50: 149574633.6 | N50: 44.74 | O50: 334339591 | P50: =MID(Receita_PMSP_Tabela[[#This Row],[COD_FONT_REC]], 6, 3) -> 500 | Q50: =LEFT(Receita_PMSP_Tabela[[#This Row],[COD_ORIG_RCTA_F]], 10) -> 1.1.1.2.50 | R50: =LEFT(Receita_PMSP_Tabela[[#This Row],[COD_ORIG_RCTA_F]], 12) -> 1.1.1.2.50.0 | S50: =LEFT(Receita_PMSP_Tabela[[#This Row],[COD_FONT_REC]], 2) -> 00 | T50: =_xlfn.CONCAT(Receita_PMSP_Tabela[[#This Row],[FONTE_PADRONIZADO]], "_", LEFT(Receita_PMSP_Tabela[[#This Row],[RECEITA_5]], 7)) -> 500_1.1.1.2
A51: 1.1.1.2.50.0.4.01.00.000.000.12.01.002 | B51: PAT - Imposto sobre a Propriedade Predial e Territorial Urbana - Dívid | C51: 00.1.500.9001 | D51: Recursos não vinculados de Impostos | I51: Analítica | J51: 0 | K51: 0 | L51: 0 | M51: 846.83 | N51: 0 | O51: 0 | P51: =MID(Receita_PMSP_Tabela[[#This Row],[COD_FONT_REC]], 6, 3) -> 500 | Q51: =LEFT(Receita_PMSP_Tabela[[#This Row],[COD_ORIG_RCTA_F]], 10) -> 1.1.1.2.50 | R51: =LEFT(Receita_PMSP_Tabela[[#This Row],[COD_ORIG_RCTA_F]], 12) -> 1.1.1.2.50.0 | S51: =LEFT(Receita_PMSP_Tabela[[#This Row],[COD_FONT_REC]], 2) -> 00 | T51: =_xlfn.CONCAT(Receita_PMSP_Tabela[[#This Row],[FONTE_PADRONIZADO]], "_", LEFT(Receita_PMSP_Tabela[[#This Row],[RECEITA_5]], 7)) -> 500_1.1.1.2
A52: 1.1.1.2.50.0.4.01.00.000.000.12.01.006 | B52: PEQ - Imposto sobre a Propriedade Predial e Territorial Urbana - Dívid | C52: 00.1.500.9001 | D52: Recursos não vinculados de Impostos | I52: Analítica | J52: 173052 | K52: 0 | L52: 0 | M52: 0 | N52: 0 | O52: 173052 | P52: =MID(Receita_PMSP_Tabela[[#This Row],[COD_FONT_REC]], 6, 3) -> 500 | Q52: =LEFT(Receita_PMSP_Tabela[[#This Row],[COD_ORIG_RCTA_F]], 10) -> 1.1.1.2.50 | R52: =LEFT(Receita_PMSP_Tabela[[#This Row],[COD_ORIG_RCTA_F]], 12) -> 1.1.1.2.50.0 | S52: =LEFT(Receita_PMSP_Tabela[[#This Row],[COD_FONT_REC]], 2) -> 00 | T52: =_xlfn.CONCAT(Receita_PMSP_Tabela[[#This Row],[FONTE_PADRONIZADO]], "_", LEFT(Receita_PMSP_Tabela[[#This Row],[RECEITA_5]], 7)) -> 500_1.1.1.2
A53: 1.1.1.2.50.0.4.01.00.000.000.12.01.008 | B53: TDM - IPTU - Dívida Ativa - Multas e Juros | C53: 00.1.500.9001 | D53: Recursos não vinculados de Impostos | I53: Analítica | J53: 810864 | K53: 31975.83 | L53: 3.94 | M53: 517810.93 | N53: 63.86 | O53: 810864 | P53: =MID(Receita_PMSP_Tabela[[#This Row],[COD_FONT_REC]], 6, 3) -> 500 | Q53: =LEFT(Receita_PMSP_Tabela[[#This Row],[COD_ORIG_RCTA_F]], 10) -> 1.1.1.2.50 | R53: =LEFT(Receita_PMSP_Tabela[[#This Row],[COD_ORIG_RCTA_F]], 12) -> 1.1.1.2.50.0 | S53: =LEFT(Receita_PMSP_Tabela[[#This Row],[COD_FONT_REC]], 2) -> 00 | T53: =_xlfn.CONCAT(Receita_PMSP_Tabela[[#This Row],[FONTE_PADRONIZADO]], "_", LEFT(Receita_PMSP_Tabela[[#This Row],[RECEITA_5]], 7)) -> 500_1.1.1.2
A54: 1.1.1.2.50.0.4.01.00.000.000.12.09.000 | B54: TOTAL DEDUÇÕES PARCELAMENTO IMPOSTO SOBRE A PROPRIEDADE PREDIAL E TERR | I54: Sintética | J54: 0 | K54: -114197.63 | L54: 0 | M54: -364482.62 | N54: 0 | O54: 0 | P54: =MID(Receita_PMSP_Tabela[[#This Row],[COD_FONT_REC]], 6, 3) ->  | Q54: =LEFT(Receita_PMSP_Tabela[[#This Row],[COD_ORIG_RCTA_F]], 10) -> 1.1.1.2.50 | R54: =LEFT(Receita_PMSP_Tabela[[#This Row],[COD_ORIG_RCTA_F]], 12) -> 1.1.1.2.50.0 | S54: =LEFT(Receita_PMSP_Tabela[[#This Row],[COD_FONT_REC]], 2) ->  | T54: =_xlfn.CONCAT(Receita_PMSP_Tabela[[#This Row],[FONTE_PADRONIZADO]], "_", LEFT(Receita_PMSP_Tabela[[#This Row],[RECEITA_5]], 7)) -> _1.1.1.2
A55: 1.1.1.2.50.0.4.01.00.000.000.12.09.001 | B55: Deduções PPI - Imposto sobre a Propriedade Predial e Territorial Urban | C55: 00.1.500.9001 | D55: Recursos não vinculados de Impostos | I55: Analítica | J55: 0 | K55: -114197.63 | L55: 0 | M55: -364482.62 | N55: 0 | O55: 0 | P55: =MID(Receita_PMSP_Tabela[[#This Row],[COD_FONT_REC]], 6, 3) -> 500 | Q55: =LEFT(Receita_PMSP_Tabela[[#This Row],[COD_ORIG_RCTA_F]], 10) -> 1.1.1.2.50 | R55: =LEFT(Receita_PMSP_Tabela[[#This Row],[COD_ORIG_RCTA_F]], 12) -> 1.1.1.2.50.0 | S55: =LEFT(Receita_PMSP_Tabela[[#This Row],[COD_FONT_REC]], 2) -> 00 | T55: =_xlfn.CONCAT(Receita_PMSP_Tabela[[#This Row],[FONTE_PADRONIZADO]], "_", LEFT(Receita_PMSP_Tabela[[#This Row],[RECEITA_5]], 7)) -> 500_1.1.1.2
A56: 1.1.1.2.53.0.0.00.00.000.000.00.00.000 | B56: IMPOSTO SOBRE TRANSMISSÃO INTER VIVOS DE BENS IMÓVEIS E DE DIREITOS R" | I56: Sintética | J56: 4399222246 | K56: 435480990.7 | L56: 9.9 | M56: 2870045168 | N56: 65.24 | O56: 4399222246 | P56: =MID(Receita_PMSP_Tabela[[#This Row],[COD_FONT_REC]], 6, 3) ->  | Q56: =LEFT(Receita_PMSP_Tabela[[#This Row],[COD_ORIG_RCTA_F]], 10) -> 1.1.1.2.53 | R56: =LEFT(Receita_PMSP_Tabela[[#This Row],[COD_ORIG_RCTA_F]], 12) -> 1.1.1.2.53.0 | S56: =LEFT(Receita_PMSP_Tabela[[#This Row],[COD_FONT_REC]], 2) ->  | T56: =_xlfn.CONCAT(Receita_PMSP_Tabela[[#This Row],[FONTE_PADRONIZADO]], "_", LEFT(Receita_PMSP_Tabela[[#This Row],[RECEITA_5]], 7)) -> _1.1.1.2
A57: 1.1.1.2.53.0.1.00.00.000.000.00.00.000 | B57: IMPOSTO SOBRE TRANSMISSÃO INTER VIVOS DE BENS IMÓVEIS E DE DIREITOS RE | I57: Sintética | J57: 4334222428 | K57: 401817576.9 | L57: 9.27 | M57: 2788103286 | N57: 64.33 | O57: 4334222428 | P57: =MID(Receita_PMSP_Tabela[[#This Row],[COD_FONT_REC]], 6, 3) ->  | Q57: =LEFT(Receita_PMSP_Tabela[[#This Row],[COD_ORIG_RCTA_F]], 10) -> 1.1.1.2.53 | R57: =LEFT(Receita_PMSP_Tabela[[#This Row],[COD_ORIG_RCTA_F]], 12) -> 1.1.1.2.53.0 | S57: =LEFT(Receita_PMSP_Tabela[[#This Row],[COD_FONT_REC]], 2) ->  | T57: =_xlfn.CONCAT(Receita_PMSP_Tabela[[#This Row],[FONTE_PADRONIZADO]], "_", LEFT(Receita_PMSP_Tabela[[#This Row],[RECEITA_5]], 7)) -> _1.1.1.2
A58: 1.1.1.2.53.0.1.01.00.000.000.00.00.000 | B58: IMPOSTO SOBRE TRANSMISSÃO INTER VIVOS DE BENS IMÓVEIS E DE DIREITOS RE | I58: Sintética | J58: 4334222428 | K58: 401817576.9 | L58: 9.27 | M58: 2788103286 | N58: 64.33 | O58: 4334222428 | P58: =MID(Receita_PMSP_Tabela[[#This Row],[COD_FONT_REC]], 6, 3) ->  | Q58: =LEFT(Receita_PMSP_Tabela[[#This Row],[COD_ORIG_RCTA_F]], 10) -> 1.1.1.2.53 | R58: =LEFT(Receita_PMSP_Tabela[[#This Row],[COD_ORIG_RCTA_F]], 12) -> 1.1.1.2.53.0 | S58: =LEFT(Receita_PMSP_Tabela[[#This Row],[COD_FONT_REC]], 2) ->  | T58: =_xlfn.CONCAT(Receita_PMSP_Tabela[[#This Row],[FONTE_PADRONIZADO]], "_", LEFT(Receita_PMSP_Tabela[[#This Row],[RECEITA_5]], 7)) -> _1.1.1.2
A59: 1.1.1.2.53.0.1.01.00.000.000.11.00.000 | B59: IMPOSTO SOBRE TRANSMISSÃO INTER VIVOS DE BENS IMÓVEIS E DE DIREITOS RE | I59: Sintética | J59: 4331033809 | K59: 401545527.6 | L59: 9.27 | M59: 2779315768 | N59: 64.17 | O59: 4331033809 | P59: =MID(Receita_PMSP_Tabela[[#This Row],[COD_FONT_REC]], 6, 3) ->  | Q59: =LEFT(Receita_PMSP_Tabela[[#This Row],[COD_ORIG_RCTA_F]], 10) -> 1.1.1.2.53 | R59: =LEFT(Receita_PMSP_Tabela[[#This Row],[COD_ORIG_RCTA_F]], 12) -> 1.1.1.2.53.0 | S59: =LEFT(Receita_PMSP_Tabela[[#This Row],[COD_FONT_REC]], 2) ->  | T59: =_xlfn.CONCAT(Receita_PMSP_Tabela[[#This Row],[FONTE_PADRONIZADO]], "_", LEFT(Receita_PMSP_Tabela[[#This Row],[RECEITA_5]], 7)) -> _1.1.1.2
A60: 1.1.1.2.53.0.1.01.00.000.000.11.01.000 | B60: Imposto sobre Transmissão Inter Vivos de Bens Imóveis e de Direitos Re | C60: 00.1.500.9001 | D60: Recursos não vinculados de Impostos | I60: Analítica | J60: 4331033809 | K60: 402900878.2 | L60: 9.3 | M60: 2785088707 | N60: 64.31 | O60: 4331033809 | P60: =MID(Receita_PMSP_Tabela[[#This Row],[COD_FONT_REC]], 6, 3) -> 500 | Q60: =LEFT(Receita_PMSP_Tabela[[#This Row],[COD_ORIG_RCTA_F]], 10) -> 1.1.1.2.53 | R60: =LEFT(Receita_PMSP_Tabela[[#This Row],[COD_ORIG_RCTA_F]], 12) -> 1.1.1.2.53.0 | S60: =LEFT(Receita_PMSP_Tabela[[#This Row],[COD_FONT_REC]], 2) -> 00 | T60: =_xlfn.CONCAT(Receita_PMSP_Tabela[[#This Row],[FONTE_PADRONIZADO]], "_", LEFT(Receita_PMSP_Tabela[[#This Row],[RECEITA_5]], 7)) -> 500_1.1.1.2
A61: 1.1.1.2.53.0.1.01.00.000.000.11.09.000 | B61: TOTAL DEDUÇÕES IMPOSTO SOBRE TRANSMISSÃO INTER VIVOS DE BENS IMÓVEIS E | I61: Sintética | J61: 0 | K61: -1355350.62 | L61: 0 | M61: -5772938.73 | N61: 0 | O61: 0 | P61: =MID(Receita_PMSP_Tabela[[#This Row],[COD_FONT_REC]], 6, 3) ->  | Q61: =LEFT(Receita_PMSP_Tabela[[#This Row],[COD_ORIG_RCTA_F]], 10) -> 1.1.1.2.53 | R61: =LEFT(Receita_PMSP_Tabela[[#This Row],[COD_ORIG_RCTA_F]], 12) -> 1.1.1.2.53.0 | S61: =LEFT(Receita_PMSP_Tabela[[#This Row],[COD_FONT_REC]], 2) ->  | T61: =_xlfn.CONCAT(Receita_PMSP_Tabela[[#This Row],[FONTE_PADRONIZADO]], "_", LEFT(Receita_PMSP_Tabela[[#This Row],[RECEITA_5]], 7)) -> _1.1.1.2
A62: 1.1.1.2.53.0.1.01.00.000.000.11.09.001 | B62: Deduções Imposto sobre Transmissão Inter Vivos de Bens Imóveis e de Di | C62: 00.1.500.9001 | D62: Recursos não vinculados de Impostos | I62: Analítica | J62: 0 | K62: -1355350.62 | L62: 0 | M62: -5772938.73 | N62: 0 | O62: 0 | P62: =MID(Receita_PMSP_Tabela[[#This Row],[COD_FONT_REC]], 6, 3) -> 500 | Q62: =LEFT(Receita_PMSP_Tabela[[#This Row],[COD_ORIG_RCTA_F]], 10) -> 1.1.1.2.53 | R62: =LEFT(Receita_PMSP_Tabela[[#This Row],[COD_ORIG_RCTA_F]], 12) -> 1.1.1.2.53.0 | S62: =LEFT(Receita_PMSP_Tabela[[#This Row],[COD_FONT_REC]], 2) -> 00 | T62: =_xlfn.CONCAT(Receita_PMSP_Tabela[[#This Row],[FONTE_PADRONIZADO]], "_", LEFT(Receita_PMSP_Tabela[[#This Row],[RECEITA_5]], 7)) -> 500_1.1.1.2
A63: 1.1.1.2.53.0.1.01.00.000.000.12.00.000 | B63: PARCELAMENTO IMPOSTO SOBRE TRANSMISSÃO INTER VIVOS DE BENS IMÓVEIS E D | I63: Sintética | J63: 3188619 | K63: 272049.36 | L63: 8.53 | M63: 8787517.75 | N63: 275.59 | O63: 3188619 | P63: =MID(Receita_PMSP_Tabela[[#This Row],[COD_FONT_REC]], 6, 3) ->  | Q63: =LEFT(Receita_PMSP_Tabela[[#This Row],[COD_ORIG_RCTA_F]], 10) -> 1.1.1.2.53 | R63: =LEFT(Receita_PMSP_Tabela[[#This Row],[COD_ORIG_RCTA_F]], 12) -> 1.1.1.2.53.0 | S63: =LEFT(Receita_PMSP_Tabela[[#This Row],[COD_FONT_REC]], 2) ->  | T63: =_xlfn.CONCAT(Receita_PMSP_Tabela[[#This Row],[FONTE_PADRONIZADO]], "_", LEFT(Receita_PMSP_Tabela[[#This Row],[RECEITA_5]], 7)) -> _1.1.1.2
A64: 1.1.1.2.53.0.1.01.00.000.000.12.01.000 | B64: TOTAL PARCELAMENTO IMPOSTO SOBRE TRANSMISSÃO INTER VIVOS DE BENS IMÓVE | I64: Sintética | J64: 3188619 | K64: 272049.36 | L64: 8.53 | M64: 8787517.75 | N64: 275.59 | O64: 3188619 | P64: =MID(Receita_PMSP_Tabela[[#This Row],[COD_FONT_REC]], 6, 3) ->  | Q64: =LEFT(Receita_PMSP_Tabela[[#This Row],[COD_ORIG_RCTA_F]], 10) -> 1.1.1.2.53 | R64: =LEFT(Receita_PMSP_Tabela[[#This Row],[COD_ORIG_RCTA_F]], 12) -> 1.1.1.2.53.0 | S64: =LEFT(Receita_PMSP_Tabela[[#This Row],[COD_FONT_REC]], 2) ->  | T64: =_xlfn.CONCAT(Receita_PMSP_Tabela[[#This Row],[FONTE_PADRONIZADO]], "_", LEFT(Receita_PMSP_Tabela[[#This Row],[RECEITA_5]], 7)) -> _1.1.1.2
A65: 1.1.1.2.53.0.1.01.00.000.000.12.01.001 | B65: PPI - Imposto sobre Transmissão Inter Vivos de Bens Imóveis e de Direi | C65: 00.1.500.9001 | D65: Recursos não vinculados de Impostos | I65: Analítica | J65: 2211506 | K65: 106176.9 | L65: 4.8 | M65: 7921288.64 | N65: 358.19 | O65: 2211506 | P65: =MID(Receita_PMSP_Tabela[[#This Row],[COD_FONT_REC]], 6, 3) -> 500 | Q65: =LEFT(Receita_PMSP_Tabela[[#This Row],[COD_ORIG_RCTA_F]], 10) -> 1.1.1.2.53 | R65: =LEFT(Receita_PMSP_Tabela[[#This Row],[COD_ORIG_RCTA_F]], 12) -> 1.1.1.2.53.0 | S65: =LEFT(Receita_PMSP_Tabela[[#This Row],[COD_FONT_REC]], 2) -> 00 | T65: =_xlfn.CONCAT(Receita_PMSP_Tabela[[#This Row],[FONTE_PADRONIZADO]], "_", LEFT(Receita_PMSP_Tabela[[#This Row],[RECEITA_5]], 7)) -> 500_1.1.1.2
A66: 1.1.1.2.53.0.1.01.00.000.000.12.01.002 | B66: PAT - Imposto sobre Transmissão Inter Vivos de Bens Imóveis e de Direi | C66: 00.1.500.9001 | D66: Recursos não vinculados de Impostos | I66: Analítica | J66: 977113 | K66: 165872.46 | L66: 16.98 | M66: 866229.11 | N66: 88.65 | O66: 977113 | P66: =MID(Receita_PMSP_Tabela[[#This Row],[COD_FONT_REC]], 6, 3) -> 500 | Q66: =LEFT(Receita_PMSP_Tabela[[#This Row],[COD_ORIG_RCTA_F]], 10) -> 1.1.1.2.53 | R66: =LEFT(Receita_PMSP_Tabela[[#This Row],[COD_ORIG_RCTA_F]], 12) -> 1.1.1.2.53.0 | S66: =LEFT(Receita_PMSP_Tabela[[#This Row],[COD_FONT_REC]], 2) -> 00 | T66: =_xlfn.CONCAT(Receita_PMSP_Tabela[[#This Row],[FONTE_PADRONIZADO]], "_", LEFT(Receita_PMSP_Tabela[[#This Row],[RECEITA_5]], 7)) -> 500_1.1.1.2
A67: 1.1.1.2.53.0.2.00.00.000.000.00.00.000 | B67: IMPOSTO SOBRE TRANSMISSÃO INTER VIVOS DE BENS IMÓVEIS E DE DIREITOS RE | I67: Sintética | J67: 35682966 | K67: 2754503.62 | L67: 7.72 | M67: 22143435.44 | N67: 62.06 | O67: 35682966 | P67: =MID(Receita_PMSP_Tabela[[#This Row],[COD_FONT_REC]], 6, 3) ->  | Q67: =LEFT(Receita_PMSP_Tabela[[#This Row],[COD_ORIG_RCTA_F]], 10) -> 1.1.1.2.53 | R67: =LEFT(Receita_PMSP_Tabela[[#This Row],[COD_ORIG_RCTA_F]], 12) -> 1.1.1.2.53.0 | S67: =LEFT(Receita_PMSP_Tabela[[#This Row],[COD_FONT_REC]], 2) ->  | T67: =_xlfn.CONCAT(Receita_PMSP_Tabela[[#This Row],[FONTE_PADRONIZADO]], "_", LEFT(Receita_PMSP_Tabela[[#This Row],[RECEITA_5]], 7)) -> _1.1.1.2
A68: 1.1.1.2.53.0.2.01.00.000.000.00.00.000 | B68: IMPOSTO SOBRE TRANSMISSÃO INTER VIVOS DE BENS IMÓVEIS E DE DIREITOS RE | I68: Sintética | J68: 35682966 | K68: 2754503.62 | L68: 7.72 | M68: 22143435.44 | N68: 62.06 | O68: 35682966 | P68: =MID(Receita_PMSP_Tabela[[#This Row],[COD_FONT_REC]], 6, 3) ->  | Q68: =LEFT(Receita_PMSP_Tabela[[#This Row],[COD_ORIG_RCTA_F]], 10) -> 1.1.1.2.53 | R68: =LEFT(Receita_PMSP_Tabela[[#This Row],[COD_ORIG_RCTA_F]], 12) -> 1.1.1.2.53.0 | S68: =LEFT(Receita_PMSP_Tabela[[#This Row],[COD_FONT_REC]], 2) ->  | T68: =_xlfn.CONCAT(Receita_PMSP_Tabela[[#This Row],[FONTE_PADRONIZADO]], "_", LEFT(Receita_PMSP_Tabela[[#This Row],[RECEITA_5]], 7)) -> _1.1.1.2
A69: 1.1.1.2.53.0.2.01.00.000.000.11.00.000 | B69: IMPOSTO SOBRE TRANSMISSÃO INTER VIVOS DE BENS IMÓVEIS E DE DIREITOS RE | I69: Sintética | J69: 33357971 | K69: 2538381.54 | L69: 7.61 | M69: 20194470.3 | N69: 60.54 | O69: 33357971 | P69: =MID(Receita_PMSP_Tabela[[#This Row],[COD_FONT_REC]], 6, 3) ->  | Q69: =LEFT(Receita_PMSP_Tabela[[#This Row],[COD_ORIG_RCTA_F]], 10) -> 1.1.1.2.53 | R69: =LEFT(Receita_PMSP_Tabela[[#This Row],[COD_ORIG_RCTA_F]], 12) -> 1.1.1.2.53.0 | S69: =LEFT(Receita_PMSP_Tabela[[#This Row],[COD_FONT_REC]], 2) ->  | T69: =_xlfn.CONCAT(Receita_PMSP_Tabela[[#This Row],[FONTE_PADRONIZADO]], "_", LEFT(Receita_PMSP_Tabela[[#This Row],[RECEITA_5]], 7)) -> _1.1.1.2
A70: 1.1.1.2.53.0.2.01.00.000.000.11.01.000 | B70: Imposto s/ Transmissão Inter Vivos de Bens Imov. e Dir. Multas e juros | C70: 00.1.500.9001 | D70: Recursos não vinculados de Impostos | I70: Analítica | J70: 33357971 | K70: 2538381.54 | L70: 7.61 | M70: 20194470.3 | N70: 60.54 | O70: 33357971 | P70: =MID(Receita_PMSP_Tabela[[#This Row],[COD_FONT_REC]], 6, 3) -> 500 | Q70: =LEFT(Receita_PMSP_Tabela[[#This Row],[COD_ORIG_RCTA_F]], 10) -> 1.1.1.2.53 | R70: =LEFT(Receita_PMSP_Tabela[[#This Row],[COD_ORIG_RCTA_F]], 12) -> 1.1.1.2.53.0 | S70: =LEFT(Receita_PMSP_Tabela[[#This Row],[COD_FONT_REC]], 2) -> 00 | T70: =_xlfn.CONCAT(Receita_PMSP_Tabela[[#This Row],[FONTE_PADRONIZADO]], "_", LEFT(Receita_PMSP_Tabela[[#This Row],[RECEITA_5]], 7)) -> 500_1.1.1.2
A71: 1.1.1.2.53.0.2.01.00.000.000.12.00.000 | B71: PARCELAMENTO IMPOSTO SOBRE TRANSMISSÃO INTER VIVOS DE BENS IMÓVEIS E D | I71: Sintética | J71: 2324995 | K71: 216122.08 | L71: 9.3 | M71: 1948965.14 | N71: 83.83 | O71: 2324995 | P71: =MID(Receita_PMSP_Tabela[[#This Row],[COD_FONT_REC]], 6, 3) ->  | Q71: =LEFT(Receita_PMSP_Tabela[[#This Row],[COD_ORIG_RCTA_F]], 10) -> 1.1.1.2.53 | R71: =LEFT(Receita_PMSP_Tabela[[#This Row],[COD_ORIG_RCTA_F]], 12) -> 1.1.1.2.53.0 | S71: =LEFT(Receita_PMSP_Tabela[[#This Row],[COD_FONT_REC]], 2) ->  | T71: =_xlfn.CONCAT(Receita_PMSP_Tabela[[#This Row],[FONTE_PADRONIZADO]], "_", LEFT(Receita_PMSP_Tabela[[#This Row],[RECEITA_5]], 7)) -> _1.1.1.2
A72: 1.1.1.2.53.0.2.01.00.000.000.12.01.000 | B72: TOTAL PARCELAMENTO IMPOSTO SOBRE TRANSMISSÃO INTER VIVOS DE BENS IMÓVE | I72: Sintética | J72: 2324995 | K72: 216122.08 | L72: 9.3 | M72: 1948965.14 | N72: 83.83 | O72: 2324995 | P72: =MID(Receita_PMSP_Tabela[[#This Row],[COD_FONT_REC]], 6, 3) ->  | Q72: =LEFT(Receita_PMSP_Tabela[[#This Row],[COD_ORIG_RCTA_F]], 10) -> 1.1.1.2.53 | R72: =LEFT(Receita_PMSP_Tabela[[#This Row],[COD_ORIG_RCTA_F]], 12) -> 1.1.1.2.53.0 | S72: =LEFT(Receita_PMSP_Tabela[[#This Row],[COD_FONT_REC]], 2) ->  | T72: =_xlfn.CONCAT(Receita_PMSP_Tabela[[#This Row],[FONTE_PADRONIZADO]], "_", LEFT(Receita_PMSP_Tabela[[#This Row],[RECEITA_5]], 7)) -> _1.1.1.2
A73: 1.1.1.2.53.0.2.01.00.000.000.12.01.001 | B73: PPI - Imposto sobre Transmissão Inter Vivos de Bens Imóveis e de Direi | C73: 00.1.500.9001 | D73: Recursos não vinculados de Impostos | I73: Analítica | J73: 1099125 | K73: 60534.13 | L73: 5.51 | M73: 1082824.77 | N73: 98.52 | O73: 1099125 | P73: =MID(Receita_PMSP_Tabela[[#This Row],[COD_FONT_REC]], 6, 3) -> 500 | Q73: =LEFT(Receita_PMSP_Tabela[[#This Row],[COD_ORIG_RCTA_F]], 10) -> 1.1.1.2.53 | R73: =LEFT(Receita_PMSP_Tabela[[#This Row],[COD_ORIG_RCTA_F]], 12) -> 1.1.1.2.53.0 | S73: =LEFT(Receita_PMSP_Tabela[[#This Row],[COD_FONT_REC]], 2) -> 00 | T73: =_xlfn.CONCAT(Receita_PMSP_Tabela[[#This Row],[FONTE_PADRONIZADO]], "_", LEFT(Receita_PMSP_Tabela[[#This Row],[RECEITA_5]], 7)) -> 500_1.1.1.2
A74: 1.1.1.2.53.0.2.01.00.000.000.12.01.002 | B74: PAT - Imposto sobre Transmissão Inter Vivos de Bens Imóveis e de Direi | C74: 00.1.500.9001 | D74: Recursos não vinculados de Impostos | I74: Analítica | J74: 1225870 | K74: 155587.95 | L74: 12.69 | M74: 866140.37 | N74: 70.66 | O74: 1225870 | P74: =MID(Receita_PMSP_Tabela[[#This Row],[COD_FONT_REC]], 6, 3) -> 500 | Q74: =LEFT(Receita_PMSP_Tabela[[#This Row],[COD_ORIG_RCTA_F]], 10) -> 1.1.1.2.53 | R74: =LEFT(Receita_PMSP_Tabela[[#This Row],[COD_ORIG_RCTA_F]], 12) -> 1.1.1.2.53.0 | S74: =LEFT(Receita_PMSP_Tabela[[#This Row],[COD_FONT_REC]], 2) -> 00 | T74: =_xlfn.CONCAT(Receita_PMSP_Tabela[[#This Row],[FONTE_PADRONIZADO]], "_", LEFT(Receita_PMSP_Tabela[[#This Row],[RECEITA_5]], 7)) -> 500_1.1.1.2
A75: 1.1.1.2.53.0.3.00.00.000.000.00.00.000 | B75: IMPOSTO SOBRE TRANSMISSÃO INTER VIVOS DE BENS IMÓVEIS E DE DIREITOS RE | I75: Sintética | J75: 17740817 | K75: 30416272.78 | L75: 171.45 | M75: 53286896.99 | N75: 300.36 | O75: 17740817 | P75: =MID(Receita_PMSP_Tabela[[#This Row],[COD_FONT_REC]], 6, 3) ->  | Q75: =LEFT(Receita_PMSP_Tabela[[#This Row],[COD_ORIG_RCTA_F]], 10) -> 1.1.1.2.53 | R75: =LEFT(Receita_PMSP_Tabela[[#This Row],[COD_ORIG_RCTA_F]], 12) -> 1.1.1.2.53.0 | S75: =LEFT(Receita_PMSP_Tabela[[#This Row],[COD_FONT_REC]], 2) ->  | T75: =_xlfn.CONCAT(Receita_PMSP_Tabela[[#This Row],[FONTE_PADRONIZADO]], "_", LEFT(Receita_PMSP_Tabela[[#This Row],[RECEITA_5]], 7)) -> _1.1.1.2
A76: 1.1.1.2.53.0.3.01.00.000.000.00.00.000 | B76: IMPOSTO SOBRE TRANSMISSÃO INTER VIVOS DE BENS IMÓVEIS E DE DIREITOS RE | I76: Sintética | J76: 17740817 | K76: 30416272.78 | L76: 171.45 | M76: 53286896.99 | N76: 300.36 | O76: 17740817 | P76: =MID(Receita_PMSP_Tabela[[#This Row],[COD_FONT_REC]], 6, 3) ->  | Q76: =LEFT(Receita_PMSP_Tabela[[#This Row],[COD_ORIG_RCTA_F]], 10) -> 1.1.1.2.53 | R76: =LEFT(Receita_PMSP_Tabela[[#This Row],[COD_ORIG_RCTA_F]], 12) -> 1.1.1.2.53.0 | S76: =LEFT(Receita_PMSP_Tabela[[#This Row],[COD_FONT_REC]], 2) ->  | T76: =_xlfn.CONCAT(Receita_PMSP_Tabela[[#This Row],[FONTE_PADRONIZADO]], "_", LEFT(Receita_PMSP_Tabela[[#This Row],[RECEITA_5]], 7)) -> _1.1.1.2
A77: 1.1.1.2.53.0.3.01.00.000.000.11.00.000 | B77: IMPOSTO SOBRE TRANSMISSÃO INTER VIVOS DE BENS IMÓVEIS E DE DIREITOS RE | I77: Sintética | J77: 9742155 | K77: 30013380.7 | L77: 308.08 | M77: 31778345.6 | N77: 326.19 | O77: 9742155 | P77: =MID(Receita_PMSP_Tabela[[#This Row],[COD_FONT_REC]], 6, 3) ->  | Q77: =LEFT(Receita_PMSP_Tabela[[#This Row],[COD_ORIG_RCTA_F]], 10) -> 1.1.1.2.53 | R77: =LEFT(Receita_PMSP_Tabela[[#This Row],[COD_ORIG_RCTA_F]], 12) -> 1.1.1.2.53.0 | S77: =LEFT(Receita_PMSP_Tabela[[#This Row],[COD_FONT_REC]], 2) ->  | T77: =_xlfn.CONCAT(Receita_PMSP_Tabela[[#This Row],[FONTE_PADRONIZADO]], "_", LEFT(Receita_PMSP_Tabela[[#This Row],[RECEITA_5]], 7)) -> _1.1.1.2
A78: 1.1.1.2.53.0.3.01.00.000.000.11.01.000 | B78: Imposto sobre Transmissão Inter Vivos de Bens Imóveis e de Direitos Re | C78: 00.1.500.9001 | D78: Recursos não vinculados de Impostos | I78: Analítica | J78: 9742155 | K78: 30013380.7 | L78: 308.08 | M78: 31778345.6 | N78: 326.19 | O78: 9742155 | P78: =MID(Receita_PMSP_Tabela[[#This Row],[COD_FONT_REC]], 6, 3) -> 500 | Q78: =LEFT(Receita_PMSP_Tabela[[#This Row],[COD_ORIG_RCTA_F]], 10) -> 1.1.1.2.53 | R78: =LEFT(Receita_PMSP_Tabela[[#This Row],[COD_ORIG_RCTA_F]], 12) -> 1.1.1.2.53.0 | S78: =LEFT(Receita_PMSP_Tabela[[#This Row],[COD_FONT_REC]], 2) -> 00 | T78: =_xlfn.CONCAT(Receita_PMSP_Tabela[[#This Row],[FONTE_PADRONIZADO]], "_", LEFT(Receita_PMSP_Tabela[[#This Row],[RECEITA_5]], 7)) -> 500_1.1.1.2
A79: 1.1.1.2.53.0.3.01.00.000.000.12.00.000 | B79: PARCELAMENTO IMPOSTO SOBRE TRANSMISSÃO INTER VIVOS DE BENS IMÓVEIS E D | I79: Sintética | J79: 7998662 | K79: 402892.08 | L79: 5.04 | M79: 21508551.39 | N79: 268.9 | O79: 7998662 | P79: =MID(Receita_PMSP_Tabela[[#This Row],[COD_FONT_REC]], 6, 3) ->  | Q79: =LEFT(Receita_PMSP_Tabela[[#This Row],[COD_ORIG_RCTA_F]], 10) -> 1.1.1.2.53 | R79: =LEFT(Receita_PMSP_Tabela[[#This Row],[COD_ORIG_RCTA_F]], 12) -> 1.1.1.2.53.0 | S79: =LEFT(Receita_PMSP_Tabela[[#This Row],[COD_FONT_REC]], 2) ->  | T79: =_xlfn.CONCAT(Receita_PMSP_Tabela[[#This Row],[FONTE_PADRONIZADO]], "_", LEFT(Receita_PMSP_Tabela[[#This Row],[RECEITA_5]], 7)) -> _1.1.1.2
A80: 1.1.1.2.53.0.3.01.00.000.000.12.01.000 | B80: TOTAL PARCELAMENTO IMPOSTO SOBRE TRANSMISSÃO INTER VIVOS DE BENS IMÓVE | I80: Sintética | J80: 7998662 | K80: 402892.08 | L80: 5.04 | M80: 21508551.39 | N80: 268.9 | O80: 7998662 | P80: =MID(Receita_PMSP_Tabela[[#This Row],[COD_FONT_REC]], 6, 3) ->  | Q80: =LEFT(Receita_PMSP_Tabela[[#This Row],[COD_ORIG_RCTA_F]], 10) -> 1.1.1.2.53 | R80: =LEFT(Receita_PMSP_Tabela[[#This Row],[COD_ORIG_RCTA_F]], 12) -> 1.1.1.2.53.0 | S80: =LEFT(Receita_PMSP_Tabela[[#This Row],[COD_FONT_REC]], 2) ->  | T80: =_xlfn.CONCAT(Receita_PMSP_Tabela[[#This Row],[FONTE_PADRONIZADO]], "_", LEFT(Receita_PMSP_Tabela[[#This Row],[RECEITA_5]], 7)) -> _1.1.1.2
A81: 1.1.1.2.53.0.3.01.00.000.000.12.01.001 | B81: PPI - Imposto sobre Transmissão Inter Vivos de Bens Imóveis e de Direi | C81: 00.1.500.9001 | D81: Recursos não vinculados de Impostos | I81: Analítica | J81: 7998662 | K81: 402892.08 | L81: 5.04 | M81: 21508551.39 | N81: 268.9 | O81: 7998662 | P81: =MID(Receita_PMSP_Tabela[[#This Row],[COD_FONT_REC]], 6, 3) -> 500 | Q81: =LEFT(Receita_PMSP_Tabela[[#This Row],[COD_ORIG_RCTA_F]], 10) -> 1.1.1.2.53 | R81: =LEFT(Receita_PMSP_Tabela[[#This Row],[COD_ORIG_RCTA_F]], 12) -> 1.1.1.2.53.0 | S81: =LEFT(Receita_PMSP_Tabela[[#This Row],[COD_FONT_REC]], 2) -> 00 | T81: =_xlfn.CONCAT(Receita_PMSP_Tabela[[#This Row],[FONTE_PADRONIZADO]], "_", LEFT(Receita_PMSP_Tabela[[#This Row],[RECEITA_5]], 7)) -> 500_1.1.1.2
A82: 1.1.1.2.53.0.4.00.00.000.000.00.00.000 | B82: IMPOSTO SOBRE TRANSMISSÃO INTER VIVOS DE BENS IMÓVEIS E DE DIREITOS RE | I82: Sintética | J82: 11576035 | K82: 492637.37 | L82: 4.26 | M82: 6511550.06 | N82: 56.25 | O82: 11576035 | P82: =MID(Receita_PMSP_Tabela[[#This Row],[COD_FONT_REC]], 6, 3) ->  | Q82: =LEFT(Receita_PMSP_Tabela[[#This Row],[COD_ORIG_RCTA_F]], 10) -> 1.1.1.2.53 | R82: =LEFT(Receita_PMSP_Tabela[[#This Row],[COD_ORIG_RCTA_F]], 12) -> 1.1.1.2.53.0 | S82: =LEFT(Receita_PMSP_Tabela[[#This Row],[COD_FONT_REC]], 2) ->  | T82: =_xlfn.CONCAT(Receita_PMSP_Tabela[[#This Row],[FONTE_PADRONIZADO]], "_", LEFT(Receita_PMSP_Tabela[[#This Row],[RECEITA_5]], 7)) -> _1.1.1.2
A83: 1.1.1.2.53.0.4.01.00.000.000.00.00.000 | B83: IMPOSTO SOBRE TRANSMISSÃO INTER VIVOS DE BENS IMÓVEIS E DE DIREITOS RE | I83: Sintética | J83: 11576035 | K83: 492637.37 | L83: 4.26 | M83: 6511550.06 | N83: 56.25 | O83: 11576035 | P83: =MID(Receita_PMSP_Tabela[[#This Row],[COD_FONT_REC]], 6, 3) ->  | Q83: =LEFT(Receita_PMSP_Tabela[[#This Row],[COD_ORIG_RCTA_F]], 10) -> 1.1.1.2.53 | R83: =LEFT(Receita_PMSP_Tabela[[#This Row],[COD_ORIG_RCTA_F]], 12) -> 1.1.1.2.53.0 | S83: =LEFT(Receita_PMSP_Tabela[[#This Row],[COD_FONT_REC]], 2) ->  | T83: =_xlfn.CONCAT(Receita_PMSP_Tabela[[#This Row],[FONTE_PADRONIZADO]], "_", LEFT(Receita_PMSP_Tabela[[#This Row],[RECEITA_5]], 7)) -> _1.1.1.2
A84: 1.1.1.2.53.0.4.01.00.000.000.11.00.000 | B84: IMPOSTO SOBRE TRANSMISSÃO INTER VIVOS DE BENS IMÓVEIS E DE DIREITOS RE | I84: Sintética | J84: 4540602 | K84: 142700.05 | L84: 3.14 | M84: 1057775.46 | N84: 23.3 | O84: 4540602 | P84: =MID(Receita_PMSP_Tabela[[#This Row],[COD_FONT_REC]], 6, 3) ->  | Q84: =LEFT(Receita_PMSP_Tabela[[#This Row],[COD_ORIG_RCTA_F]], 10) -> 1.1.1.2.53 | R84: =LEFT(Receita_PMSP_Tabela[[#This Row],[COD_ORIG_RCTA_F]], 12) -> 1.1.1.2.53.0 | S84: =LEFT(Receita_PMSP_Tabela[[#This Row],[COD_FONT_REC]], 2) ->  | T84: =_xlfn.CONCAT(Receita_PMSP_Tabela[[#This Row],[FONTE_PADRONIZADO]], "_", LEFT(Receita_PMSP_Tabela[[#This Row],[RECEITA_5]], 7)) -> _1.1.1.2
A85: 1.1.1.2.53.0.4.01.00.000.000.11.01.000 | B85: Imposto s/ Transmissão Inter Vivos de Bens Imov. e Dir. Multas e juros | C85: 00.1.500.9001 | D85: Recursos não vinculados de Impostos | I85: Analítica | J85: 4540602 | K85: 142700.05 | L85: 3.14 | M85: 1057775.46 | N85: 23.3 | O85: 4540602 | P85: =MID(Receita_PMSP_Tabela[[#This Row],[COD_FONT_REC]], 6, 3) -> 500 | Q85: =LEFT(Receita_PMSP_Tabela[[#This Row],[COD_ORIG_RCTA_F]], 10) -> 1.1.1.2.53 | R85: =LEFT(Receita_PMSP_Tabela[[#This Row],[COD_ORIG_RCTA_F]], 12) -> 1.1.1.2.53.0 | S85: =LEFT(Receita_PMSP_Tabela[[#This Row],[COD_FONT_REC]], 2) -> 00 | T85: =_xlfn.CONCAT(Receita_PMSP_Tabela[[#This Row],[FONTE_PADRONIZADO]], "_", LEFT(Receita_PMSP_Tabela[[#This Row],[RECEITA_5]], 7)) -> 500_1.1.1.2
A86: 1.1.1.2.53.0.4.01.00.000.000.12.00.000 | B86: PARCELAMENTO IMPOSTO SOBRE TRANSMISSÃO INTER VIVOS DE BENS IMÓVEIS E D | I86: Sintética | J86: 7035433 | K86: 349937.32 | L86: 4.97 | M86: 5453774.6 | N86: 77.52 | O86: 7035433 | P86: =MID(Receita_PMSP_Tabela[[#This Row],[COD_FONT_REC]], 6, 3) ->  | Q86: =LEFT(Receita_PMSP_Tabela[[#This Row],[COD_ORIG_RCTA_F]], 10) -> 1.1.1.2.53 | R86: =LEFT(Receita_PMSP_Tabela[[#This Row],[COD_ORIG_RCTA_F]], 12) -> 1.1.1.2.53.0 | S86: =LEFT(Receita_PMSP_Tabela[[#This Row],[COD_FONT_REC]], 2) ->  | T86: =_xlfn.CONCAT(Receita_PMSP_Tabela[[#This Row],[FONTE_PADRONIZADO]], "_", LEFT(Receita_PMSP_Tabela[[#This Row],[RECEITA_5]], 7)) -> _1.1.1.2
A87: 1.1.1.2.53.0.4.01.00.000.000.12.01.000 | B87: TOTAL PARCELAMENTO IMPOSTO SOBRE TRANSMISSÃO INTER VIVOS DE BENS IMÓVE | I87: Sintética | J87: 7035433 | K87: 349937.32 | L87: 4.97 | M87: 5453774.6 | N87: 77.52 | O87: 7035433 | P87: =MID(Receita_PMSP_Tabela[[#This Row],[COD_FONT_REC]], 6, 3) ->  | Q87: =LEFT(Receita_PMSP_Tabela[[#This Row],[COD_ORIG_RCTA_F]], 10) -> 1.1.1.2.53 | R87: =LEFT(Receita_PMSP_Tabela[[#This Row],[COD_ORIG_RCTA_F]], 12) -> 1.1.1.2.53.0 | S87: =LEFT(Receita_PMSP_Tabela[[#This Row],[COD_FONT_REC]], 2) ->  | T87: =_xlfn.CONCAT(Receita_PMSP_Tabela[[#This Row],[FONTE_PADRONIZADO]], "_", LEFT(Receita_PMSP_Tabela[[#This Row],[RECEITA_5]], 7)) -> _1.1.1.2
A88: 1.1.1.2.53.0.4.01.00.000.000.12.01.001 | B88: PPI - Imposto sobre Transmissão Inter Vivos de Bens Imóveis e de Direi | C88: 00.1.500.9001 | D88: Recursos não vinculados de Impostos | I88: Analítica | J88: 7035433 | K88: 349937.32 | L88: 4.97 | M88: 5453774.6 | N88: 77.52 | O88: 7035433 | P88: =MID(Receita_PMSP_Tabela[[#This Row],[COD_FONT_REC]], 6, 3) -> 500 | Q88: =LEFT(Receita_PMSP_Tabela[[#This Row],[COD_ORIG_RCTA_F]], 10) -> 1.1.1.2.53 | R88: =LEFT(Receita_PMSP_Tabela[[#This Row],[COD_ORIG_RCTA_F]], 12) -> 1.1.1.2.53.0 | S88: =LEFT(Receita_PMSP_Tabela[[#This Row],[COD_FONT_REC]], 2) -> 00 | T88: =_xlfn.CONCAT(Receita_PMSP_Tabela[[#This Row],[FONTE_PADRONIZADO]], "_", LEFT(Receita_PMSP_Tabela[[#This Row],[RECEITA_5]], 7)) -> 500_1.1.1.2
A89: 1.1.1.3.00.0.0.00.00.000.000.00.00.000 | B89: IMPOSTOS SOBRE A RENDA E PROVENTOS DE QUALQUER NATUREZA | I89: Sintética | J89: 5521973064 | K89: 463457985.4 | L89: 8.39 | M89: 3213582437 | N89: 58.2 | O89: 5521973064 | P89: =MID(Receita_PMSP_Tabela[[#This Row],[COD_FONT_REC]], 6, 3) ->  | Q89: =LEFT(Receita_PMSP_Tabela[[#This Row],[COD_ORIG_RCTA_F]], 10) -> 1.1.1.3.00 | R89: =LEFT(Receita_PMSP_Tabela[[#This Row],[COD_ORIG_RCTA_F]], 12) -> 1.1.1.3.00.0 | S89: =LEFT(Receita_PMSP_Tabela[[#This Row],[COD_FONT_REC]], 2) ->  | T89: =_xlfn.CONCAT(Receita_PMSP_Tabela[[#This Row],[FONTE_PADRONIZADO]], "_", LEFT(Receita_PMSP_Tabela[[#This Row],[RECEITA_5]], 7)) -> _1.1.1.3
A90: 1.1.1.3.03.0.0.00.00.000.000.00.00.000 | B90: IMPOSTO SOBRE A RENDA - RETIDO NA FONTE | I90: Sintética | J90: 5521973064 | K90: 463457985.4 | L90: 8.39 | M90: 3213582437 | N90: 58.2 | O90: 5521973064 | P90: =MID(Receita_PMSP_Tabela[[#This Row],[COD_FONT_REC]], 6, 3) ->  | Q90: =LEFT(Receita_PMSP_Tabela[[#This Row],[COD_ORIG_RCTA_F]], 10) -> 1.1.1.3.03 | R90: =LEFT(Receita_PMSP_Tabela[[#This Row],[COD_ORIG_RCTA_F]], 12) -> 1.1.1.3.03.0 | S90: =LEFT(Receita_PMSP_Tabela[[#This Row],[COD_FONT_REC]], 2) ->  | T90: =_xlfn.CONCAT(Receita_PMSP_Tabela[[#This Row],[FONTE_PADRONIZADO]], "_", LEFT(Receita_PMSP_Tabela[[#This Row],[RECEITA_5]], 7)) -> _1.1.1.3
A91: 1.1.1.3.03.1.0.00.00.000.000.00.00.000 | B91: IMPOSTO SOBRE A RENDA - RETIDO NA FONTE - TRABALHO | I91: Sintética | J91: 4690446932 | K91: 403017843.1 | L91: 8.59 | M91: 2710538355 | N91: 57.79 | O91: 4690446932 | P91: =MID(Receita_PMSP_Tabela[[#This Row],[COD_FONT_REC]], 6, 3) ->  | Q91: =LEFT(Receita_PMSP_Tabela[[#This Row],[COD_ORIG_RCTA_F]], 10) -> 1.1.1.3.03 | R91: =LEFT(Receita_PMSP_Tabela[[#This Row],[COD_ORIG_RCTA_F]], 12) -> 1.1.1.3.03.1 | S91: =LEFT(Receita_PMSP_Tabela[[#This Row],[COD_FONT_REC]], 2) ->  | T91: =_xlfn.CONCAT(Receita_PMSP_Tabela[[#This Row],[FONTE_PADRONIZADO]], "_", LEFT(Receita_PMSP_Tabela[[#This Row],[RECEITA_5]], 7)) -> _1.1.1.3
A92: 1.1.1.3.03.1.1.00.00.000.000.00.00.000 | B92: IMPOSTO SOBRE A RENDA - RETIDO NA FONTE - TRABALHO - PRINCIPAL | I92: Sintética | J92: 4690446932 | K92: 403017843.1 | L92: 8.59 | M92: 2710538355 | N92: 57.79 | O92: 4690446932 | P92: =MID(Receita_PMSP_Tabela[[#This Row],[COD_FONT_REC]], 6, 3) ->  | Q92: =LEFT(Receita_PMSP_Tabela[[#This Row],[COD_ORIG_RCTA_F]], 10) -> 1.1.1.3.03 | R92: =LEFT(Receita_PMSP_Tabela[[#This Row],[COD_ORIG_RCTA_F]], 12) -> 1.1.1.3.03.1 | S92: =LEFT(Receita_PMSP_Tabela[[#This Row],[COD_FONT_REC]], 2) ->  | T92: =_xlfn.CONCAT(Receita_PMSP_Tabela[[#This Row],[FONTE_PADRONIZADO]], "_", LEFT(Receita_PMSP_Tabela[[#This Row],[RECEITA_5]], 7)) -> _1.1.1.3
A93: 1.1.1.3.03.1.1.01.00.000.000.00.00.000 | B93: IMPOSTO SOBRE A RENDA - RETIDO NA FONTE - TRABALHO - PRINCIPAL - PF | I93: Sintética | J93: 146107774 | K93: 37480960.08 | L93: 25.65 | M93: 150367900.1 | N93: 102.92 | O93: 146107774 | P93: =MID(Receita_PMSP_Tabela[[#This Row],[COD_FONT_REC]], 6, 3) ->  | Q93: =LEFT(Receita_PMSP_Tabela[[#This Row],[COD_ORIG_RCTA_F]], 10) -> 1.1.1.3.03 | R93: =LEFT(Receita_PMSP_Tabela[[#This Row],[COD_ORIG_RCTA_F]], 12) -> 1.1.1.3.03.1 | S93: =LEFT(Receita_PMSP_Tabela[[#This Row],[COD_FONT_REC]], 2) ->  | T93: =_xlfn.CONCAT(Receita_PMSP_Tabela[[#This Row],[FONTE_PADRONIZADO]], "_", LEFT(Receita_PMSP_Tabela[[#This Row],[RECEITA_5]], 7)) -> _1.1.1.3
A94: 1.1.1.3.03.1.1.01.00.000.000.11.00.000 | B94: IMPOSTO SOBRE A RENDA - RETIDO NA FONTE - TRABALHO - PF | I94: Sintética | J94: 146107774 | K94: 37480960.08 | L94: 25.65 | M94: 150367900.1 | N94: 102.92 | O94: 146107774 | P94: =MID(Receita_PMSP_Tabela[[#This Row],[COD_FONT_REC]], 6, 3) ->  | Q94: =LEFT(Receita_PMSP_Tabela[[#This Row],[COD_ORIG_RCTA_F]], 10) -> 1.1.1.3.03 | R94: =LEFT(Receita_PMSP_Tabela[[#This Row],[COD_ORIG_RCTA_F]], 12) -> 1.1.1.3.03.1 | S94: =LEFT(Receita_PMSP_Tabela[[#This Row],[COD_FONT_REC]], 2) ->  | T94: =_xlfn.CONCAT(Receita_PMSP_Tabela[[#This Row],[FONTE_PADRONIZADO]], "_", LEFT(Receita_PMSP_Tabela[[#This Row],[RECEITA_5]], 7)) -> _1.1.1.3
A95: 1.1.1.3.03.1.1.01.00.000.000.11.01.000 | B95: Imposto sobre a Renda - Retido na Fonte - Trabalho - PF | C95: 00.1.500.9003 | D95: Recursos de Imposto de Renda Retido na Fonte - IRRF | I95: Analítica | J95: 146107774 | K95: 37480960.08 | L95: 25.65 | M95: 150368614.6 | N95: 102.92 | O95: 146107774 | P95: =MID(Receita_PMSP_Tabela[[#This Row],[COD_FONT_REC]], 6, 3) -> 500 | Q95: =LEFT(Receita_PMSP_Tabela[[#This Row],[COD_ORIG_RCTA_F]], 10) -> 1.1.1.3.03 | R95: =LEFT(Receita_PMSP_Tabela[[#This Row],[COD_ORIG_RCTA_F]], 12) -> 1.1.1.3.03.1 | S95: =LEFT(Receita_PMSP_Tabela[[#This Row],[COD_FONT_REC]], 2) -> 00 | T95: =_xlfn.CONCAT(Receita_PMSP_Tabela[[#This Row],[FONTE_PADRONIZADO]], "_", LEFT(Receita_PMSP_Tabela[[#This Row],[RECEITA_5]], 7)) -> 500_1.1.1.3
A96: 1.1.1.3.03.1.1.01.00.000.000.11.09.000 | B96: TOTAL DO IMPOSTO SOBRE A RENDA - RETIDO NA FONTE - TRABALHO - PF | I96: Sintética | J96: 0 | K96: 0 | L96: 0 | M96: -714.49 | N96: 0 | O96: 0 | P96: =MID(Receita_PMSP_Tabela[[#This Row],[COD_FONT_REC]], 6, 3) ->  | Q96: =LEFT(Receita_PMSP_Tabela[[#This Row],[COD_ORIG_RCTA_F]], 10) -> 1.1.1.3.03 | R96: =LEFT(Receita_PMSP_Tabela[[#This Row],[COD_ORIG_RCTA_F]], 12) -> 1.1.1.3.03.1 | S96: =LEFT(Receita_PMSP_Tabela[[#This Row],[COD_FONT_REC]], 2) ->  | T96: =_xlfn.CONCAT(Receita_PMSP_Tabela[[#This Row],[FONTE_PADRONIZADO]], "_", LEFT(Receita_PMSP_Tabela[[#This Row],[RECEITA_5]], 7)) -> _1.1.1.3
A97: 1.1.1.3.03.1.1.01.00.000.000.11.09.001 | B97: Deduções do Imposto sobre a Renda - Retido na Fonte - Trabalho - PF | C97: 00.1.500.9003 | D97: Recursos de Imposto de Renda Retido na Fonte - IRRF | I97: Analítica | J97: 0 | K97: 0 | L97: 0 | M97: -714.49 | N97: 0 | O97: 0 | P97: =MID(Receita_PMSP_Tabela[[#This Row],[COD_FONT_REC]], 6, 3) -> 500 | Q97: =LEFT(Receita_PMSP_Tabela[[#This Row],[COD_ORIG_RCTA_F]], 10) -> 1.1.1.3.03 | R97: =LEFT(Receita_PMSP_Tabela[[#This Row],[COD_ORIG_RCTA_F]], 12) -> 1.1.1.3.03.1 | S97: =LEFT(Receita_PMSP_Tabela[[#This Row],[COD_FONT_REC]], 2) -> 00 | T97: =_xlfn.CONCAT(Receita_PMSP_Tabela[[#This Row],[FONTE_PADRONIZADO]], "_", LEFT(Receita_PMSP_Tabela[[#This Row],[RECEITA_5]], 7)) -> 500_1.1.1.3
A98: 1.1.1.3.03.1.1.02.00.000.000.00.00.000 | B98: IRRF - TRABALHO - PF - FOLHA DE PAGAMENTO | I98: Sintética | J98: 2994096383 | K98: 221139055.4 | L98: 7.39 | M98: 1492648107 | N98: 49.85 | O98: 4544339158 | P98: =MID(Receita_PMSP_Tabela[[#This Row],[COD_FONT_REC]], 6, 3) ->  | Q98: =LEFT(Receita_PMSP_Tabela[[#This Row],[COD_ORIG_RCTA_F]], 10) -> 1.1.1.3.03 | R98: =LEFT(Receita_PMSP_Tabela[[#This Row],[COD_ORIG_RCTA_F]], 12) -> 1.1.1.3.03.1 | S98: =LEFT(Receita_PMSP_Tabela[[#This Row],[COD_FONT_REC]], 2) ->  | T98: =_xlfn.CONCAT(Receita_PMSP_Tabela[[#This Row],[FONTE_PADRONIZADO]], "_", LEFT(Receita_PMSP_Tabela[[#This Row],[RECEITA_5]], 7)) -> _1.1.1.3
A99: 1.1.1.3.03.1.1.02.00.000.000.11.00.000 | B99: IRRF - TRABALHO - PF - FOLHA DE PAGAMENTO | I99: Sintética | J99: 2994096383 | K99: 221139055.4 | L99: 7.39 | M99: 1492648107 | N99: 49.85 | O99: 4544339158 | P99: =MID(Receita_PMSP_Tabela[[#This Row],[COD_FONT_REC]], 6, 3) ->  | Q99: =LEFT(Receita_PMSP_Tabela[[#This Row],[COD_ORIG_RCTA_F]], 10) -> 1.1.1.3.03 | R99: =LEFT(Receita_PMSP_Tabela[[#This Row],[COD_ORIG_RCTA_F]], 12) -> 1.1.1.3.03.1 | S99: =LEFT(Receita_PMSP_Tabela[[#This Row],[COD_FONT_REC]], 2) ->  | T99: =_xlfn.CONCAT(Receita_PMSP_Tabela[[#This Row],[FONTE_PADRONIZADO]], "_", LEFT(Receita_PMSP_Tabela[[#This Row],[RECEITA_5]], 7)) -> _1.1.1.3
A100: 1.1.1.3.03.1.1.02.00.000.000.11.01.000 | B100: IRRF - Trabalho - PF - Folha de Pagamento | C100: 00.1.500.9003 | D100: Recursos de Imposto de Renda Retido na Fonte - IRRF | I100: Analítica | J100: 2994096383 | K100: 221139055.4 | L100: 7.39 | M100: 1492648107 | N100: 49.85 | O100: 4544339158 | P100: =MID(Receita_PMSP_Tabela[[#This Row],[COD_FONT_REC]], 6, 3) -> 500 | Q100: =LEFT(Receita_PMSP_Tabela[[#This Row],[COD_ORIG_RCTA_F]], 10) -> 1.1.1.3.03 | R100: =LEFT(Receita_PMSP_Tabela[[#This Row],[COD_ORIG_RCTA_F]], 12) -> 1.1.1.3.03.1 | S100: =LEFT(Receita_PMSP_Tabela[[#This Row],[COD_FONT_REC]], 2) -> 00 | T100: =_xlfn.CONCAT(Receita_PMSP_Tabela[[#This Row],[FONTE_PADRONIZADO]], "_", LEFT(Receita_PMSP_Tabela[[#This Row],[RECEITA_5]], 7)) -> 500_1.1.1.3
